Workbook

Sheet NOMBRE (hidden)
A1: DATOS DEL ESTABLECIMIENTO | C1: CÓDIGOS
A2: NOMBRE DE COMUNA | I2: =IF(OR(NOMBRE!C2="",NOMBRE!D2="",NOMBRE!E2="",NOMBRE!F2="",NOMBRE!G2=""),"Falta Cód. Com.","") -> Falta Cód. Com. | AG2: =IF(I2>"",1,0) -> 1
A3: NOMBRE ESTABLECIMIENTO/ESTRATEGIA | I3: =IF(OR(NOMBRE!C3="",NOMBRE!D3="",NOMBRE!E3="",NOMBRE!F3="",NOMBRE!G3="",NOMBRE!H3=""),"Falta Cód. Est.","") -> Falta Cód. Est. | AG3: =IF(I3>"",1,0) -> 1
A4: TIPO DE ESTABLECIMIENTO/ESTRATEGIA | I4: =IF(OR(NOMBRE!B4=""),"Falta Tipo. Est.","") -> Falta Tipo. Est. | AG4: =IF(I4>"",1,0) -> 1
A5: DEPENDENCIA | I5: =IF(OR(NOMBRE!B5=""),"Falta Dependencia. Est.","") -> Falta Dependencia. Est. | AG5: =IF(I5>"",1,0) -> 1
A6: MES: | I6: =IF(OR(NOMBRE!C6="",NOMBRE!D6=""),"Falta Cód. Mes.","") -> Falta Cód. Mes. | AG6: =IF(I6>"",1,0) -> 1
A7: AÑO: | B7: 2023 | AG7: =SUM(AG2:AG6) -> 5
A9: Versión 1.4: Mayo 2023 | G9: Para habilitar el contenido de las celdas "Tipo de Establecimiento", "Dependencia" y "Mes", presione el boton "Verificar Habilitacion de Macros". Para poder tener un 100% de funcionalidad debe hablitar la opcion Macros en esta planilla.
A11: Director Servicio de Salud o Director Establecimiento | AA11: ENERO | AB11: Establecimiento de Mayor Complejidad (EMAYC) | AC11: SERVICIO DE SALUD
A12: Jefe de Estadísticas | AA12: FEBRERO | AB12: Establecimiento de Mediana Complejidad (EMEDC) | AC12: MUNICIPAL
AA13: MARZO | AB13: Establecimiento de Menor Complejidad (EMENC) | AC13: OTRA INSTITUCION (Delegado)
AA14: ABRIL | AB14: Centros de Diagnóstico Terapeutico (CDT)
A15: MINSAL - DEIS | AA15: MAYO | AB15: Centro de Referencia de Salud (CRS)
AA16: JUNIO | AB16: Consultorio General Urbano (CGU)
B17: SERIE A | G17: ESTADO MACROS: | AA17: JULIO | AB17: Consultorio General Urbano (CGU) - CESFAM
I18: HABILITADO | AA18: AGOSTO | AB18: Consultorio General Urbano(CGU) con SAPU/SUR/SAR
AA19: SEPTIEMBRE | AB19: Consultorio General Urbano (CGU) - CESFAM con SAPU/SAR
AA20: OCTUBRE | AB20: Consultorio General Rural (CGR)
AA21: NOVIEMBRE | AB21: Consultorio General Rural (CGR) - CESFAM
AA22: DICIEMBRE | AB22: Consultorio General Rural (CGR) con SAPU/SAR/SUR
AB23: Consultorio General Rural (CGR) - CESFAM con SAPU/SAR/SUR
AB24: Posta de Salud Rural (PSR)
AB25: Centro Comunitario de Salud Familiar (CECOF)
AB26: Consultorio de Salud Mental (COSAM)
AB27: Programa de Reparación y Atención Integral de Salud (PRAIS)
AB28: Centro de Atención Funcionarios (CAF)
AB29: Unidad de Salud de Funcionarios (USF)
AB30: ClÍnica Dental Móvil (CDM)
AB31: Dirección Servicio de Salud (DSS)
AB32: Servicio de Atención Primaria de Urgencia (SAPU)
AB33: Servicio de Atención Primaria de Urgencia de Alta Resolutividad (SAR)
AB34: Servicio de Urgencia Rural (SUR)
AB35: Laboratorio Clínico o Dental
AB36: Servicio de Atención Primaria de Urgencia Dental (SAPUDENT)
AB37: Centro de Rehabilitación (CR)
AB38: Hospital de Campaña
AB39: Centro Oncologico
AB40: SAMU

Sheet FILTRO
A1: Comuna | B1: (Todas)
A2: Establecimiento | B2: (Todas)
A3: Mes | B3: (Todas)
A5: Etiquetas de fila | B5: Suma de Col01 | C5: Suma de Col02 | D5: Suma de Col03 | E5: Suma de Col04 | F5: Suma de Col05 | G5: Suma de Col06 | H5: Suma de Col07 | I5: Suma de Col08 | J5: Suma de Col09 | K5: Suma de Col10 | L5: Suma de Col11 | M5: Suma de Col12 | N5: Suma de Col13 | O5: Suma de Col14 | P5: Suma de Col15 | Q5: Suma de Col16 | R5: Suma de Col17 | S5: Suma de Col18 | T5: Suma de Col19 | U5: Suma de Col20 | V5: Suma de Col21 | W5: Suma de Col22 | X5: Suma de Col23 | Y5: Suma de Col24 | Z5: Suma de Col25 | AA5: Suma de Col26 | AB5: Suma de Col27 | AC5: Suma de Col28 | AD5: Suma de Col29 | AE5: Suma de Col30 | AF5: Suma de Col31 | AG5: Suma de Col32 | AH5: Suma de Col33 | AI5: Suma de Col34 | AJ5: Suma de Col35 | AK5: Suma de Col36 | AL5: Suma de Col37 | AM5: Suma de Col38 | AN5: Suma de Col39 | AO5: Suma de Col40 | AP5: Suma de Col41 | AQ5: Suma de col42 | AR5: Suma de col43 | AS5: Suma de col44 | AT5: Suma de col45 | AU5: Suma de col46 | AV5: Suma de col47 | AW5: Suma de col48
A6: 01010101 | B6: 7 | E6: 0 | F6: 0 | G6: 0 | H6: 4 | I6: 2 | J6: 0 | K6: 1 | L6: 0 | M6: 0 | N6: 0 | T6: 0 | U6: 7 | X6: 0 | Y6: 0 | Z6: 0 | AA6: 0 | AB6: 0
A7: 01010103 | B7: 1663 | E7: 5 | F7: 77 | G7: 275 | H7: 459 | I7: 421 | J7: 292 | K7: 115 | L7: 21 | M7: 1 | N7: 0 | T7: 10 | U7: 1639 | X7: 17 | Y7: 0 | Z7: 0 | AA7: 14 | AB7: 74
A8: 01010201 | B8: 297 | E8: 0 | F8: 23 | G8: 67 | H8: 68 | I8: 76 | J8: 50 | K8: 4 | L8: 4 | M8: 3 | N8: 2 | U8: 296 | V8: 13 | Y8: 0 | Z8: 0 | AA8: 2 | AB8: 1
A9: 01010203 | B9: 40629 | E9: 110 | F9: 2232 | G9: 9019 | H9: 12096 | I9: 10450 | J9: 5221 | K9: 1452 | L9: 52 | M9: 3 | N9: 1 | U9: 40261 | V9: 11368 | Y9: 48 | Z9: 33 | AA9: 538 | AB9: 3026
A10: 01010401 | B10: 128 | E10: 4 | F10: 29 | G10: 16 | H10: 25 | I10: 23 | J10: 16 | K10: 11 | L10: 2 | M10: 2 | N10: 0 | O10: 0 | P10: 0 | Q10: 0 | R10: 0 | S10: 0 | T10: 0 | U10: 135 | X10: 8 | Y10: 8 | Z10: 8 | AA10: 4 | AB10: 8
A11: 01010403 | B11: 79331 | E11: 1851 | F11: 11831 | G11: 13405 | H11: 13970 | I11: 12711 | J11: 9971 | K11: 7740 | L11: 5634 | M11: 1925 | N11: 200 | O11: 58 | P11: 21 | Q11: 7 | R11: 3 | S11: 4 | T11: 499 | U11: 77948 | X11: 1791 | Y11: 78 | Z11: 44 | AA11: 592 | AB11: 1897
A12: 01010601 | B12: 1511 | E12: 40 | F12: 103 | G12: 88 | H12: 109 | I12: 185 | J12: 185 | K12: 203 | L12: 161 | M12: 135 | N12: 123 | O12: 55 | P12: 55 | Q12: 31 | R12: 23 | S12: 15 | U12: 1586 | X12: 0 | Y12: 0 | Z12: 0 | AA12: 0 | AB12: 68
A13: 01010603 | B13: 55634 | E13: 323 | F13: 743 | G13: 2367 | H13: 4495 | I13: 5634 | J13: 5782 | K13: 6520 | L13: 6712 | M13: 6904 | N13: 6387 | O13: 5331 | P13: 2675 | Q13: 1106 | R13: 430 | S13: 225 | U13: 54961 | X13: 44 | Y13: 8 | Z13: 2 | AA13: 261 | AB13: 1816
A14: 01010901 | B14: 416 | L14: 135 | M14: 126 | N14: 105 | O14: 50 | U14: 474 | AA14: 4 | AB14: 12
A15: 01010903 | B15: 4164 | L15: 1153 | M15: 1587 | N15: 917 | O15: 507 | U15: 4144 | AA15: 59 | AB15: 142
A16: 01030100 | B16: 2963 | C16: 9 | D16: 207 | E16: 2281 | F16: 461 | G16: 16 | H16: 18 | I16: 35 | J16: 196 | K16: 1811 | L16: 2033 | M16: 232 | N16: 5 | O16: 11 | P16: 994 | Q16: 903 | R16: 104 | S16: 2529 | T16: 41 | U16: 359 | V16: 2244 | W16: 1 | X16: 115 | Y16: 345 | Z16: 0 | AA16: 0
A17: 01030100A | B17: 104 | C17: 42 | D17: 62 | AE17: 9 | AF17: 13 | AG17: 12 | AH17: 13 | AI17: 9 | AJ17: 19 | AK17: 12 | AL17: 17 | AM17: 8 | AN17: 8
A18: 01030200B | B18: 1638 | C18: 640 | D18: 998 | AE18: 141 | AF18: 247 | AG18: 187 | AH18: 296 | AI18: 155 | AJ18: 228 | AK18: 157 | AL18: 227 | AM18: 9 | AN18: 9
A19: 01030300 | B19: 1170 | C19: 1 | D19: 15 | E19: 794 | F19: 341 | G19: 0 | H19: 1 | I19: 2 | J19: 23 | K19: 831 | L19: 1128 | M19: 4 | N19: 0 | O19: 25 | P19: 5 | Q19: 16 | R19: 3 | S19: 85 | T19: 30 | U19: 1072 | V19: 778 | W19: 0 | X19: 34 | Y19: 101 | Z19: 0 | AA19: 0
A20: 01030300C | B20: 103 | C20: 50 | D20: 53 | AE20: 13 | AF20: 15 | AG20: 13 | AH20: 11 | AI20: 11 | AJ20: 11 | AK20: 13 | AL20: 16 | AM20: 9 | AN20: 8
A21: 01030400 | B21: 703 | C21: 703 | K21: 14 | L21: 458 | M21: 33 | N21: 396 | O21: 510
A22: 01030400D | B22: 720 | C22: 263 | D22: 457 | AE22: 32 | AF22: 45 | AG22: 45 | AH22: 99 | AI22: 53 | AJ22: 100 | AK22: 133 | AL22: 213 | AM22: 14 | AN22: 9
A23: 01030500 | B23: 1167 | C23: 453 | D23: 714 | E23: 39 | F23: 42 | G23: 1265 | H23: 417 | I23: 848 | J23: 59 | K23: 57 | L23: 14 | M23: 45
A24: 01030600 | B24: 3875 | C24: 1738 | D24: 2137 | E24: 250 | F24: 178 | G24: 1614 | H24: 604 | I24: 1010 | J24: 116 | K24: 91 | L24: 65 | M24: 81
A25: 01030700 | B25: 4547 | C25: 2168 | D25: 2379 | E25: 176 | F25: 163 | G25: 1383 | H25: 643 | I25: 740 | J25: 76 | K25: 33 | L25: 3 | M25: 6
A26: 01030800 | B26: 305 | C26: 152 | D26: 153 | E26: 9 | F26: 4 | G26: 94 | H26: 56 | I26: 39 | J26: 6 | K26: 0 | L26: 40 | M26: 105
A27: 01031000 | B27: 694 | C27: 320 | D27: 374 | E27: 2 | F27: 3 | G27: 0 | H27: 0
A28: 01031100 | B28: 1058 | C28: 515 | D28: 543 | E28: 6 | F28: 13 | G28: 2 | H28: 0
A29: 01031200 | B29: 1282 | C29: 600 | D29: 682 | E29: 3 | F29: 9 | G29: 2 | H29: 0
A30: 01031300 | B30: 1399 | C30: 683 | D30: 716 | E30: 11 | F30: 8 | G30: 0 | H30: 0
A31: 01031400 | B31: 1427 | C31: 701 | D31: 726 | E31: 8 | F31: 9 | G31: 1 | H31: 0
A32: 01031900 | C32: 0 | G32: 1
A33: 01060100 | B33: 6104 | C33: 4 | D33: 29 | E33: 33 | F33: 116 | G33: 288 | H33: 1025 | I33: 4129 | J33: 480 | K33: 100
A34: 01080003 | B34: 23 | C34: 2 | D34: 1 | E34: 8 | F34: 12 | G34: 0 | H34: 0 | I34: 0 | J34: 0 | K34: 0 | L34: 0 | M34: 0
A35: 01080004 | B35: 470 | C35: 14 | D35: 114 | E35: 70 | F35: 246 | G35: 0 | H35: 4 | I35: 5 | J35: 17 | K35: 1 | L35: 8 | M35: 27
A36: 01080008 | B36: 6552 | C36: 15 | D36: 387 | E36: 1451 | F36: 1919 | G36: 1666 | H36: 876 | I36: 231 | J36: 8 | K36: 0 | L36: 0 | M36: 127 | N36: 366 | O36: 815 | P36: 315 | Q36: 683
A37: 01080009 | B37: 5600 | C37: 13 | D37: 318 | E37: 1235 | F37: 1643 | G37: 1455 | H37: 738 | I37: 190 | J37: 8 | K37: 0 | L37: 0 | M37: 86 | N37: 305 | O37: 580 | P37: 216 | Q37: 545
A38: 01080010 | B38: 2306 | C38: 16 | D38: 341 | E38: 826 | F38: 659 | G38: 334 | H38: 116 | I38: 14 | J38: 0 | K38: 0 | L38: 0 | M38: 36 | N38: 135 | O38: 277 | P38: 120 | Q38: 239
A39: 01080011 | B39: 1055 | C39: 23 | D39: 111 | E39: 177 | F39: 253 | G39: 221 | H39: 141 | I39: 82 | J39: 33 | K39: 13 | L39: 1 | P39: 13 | Q39: 308 | R39: 6 | S39: 47 | T39: 1
A40: 01080013 | B40: 904 | C40: 48 | D40: 244 | E40: 130 | F40: 153 | G40: 117 | H40: 88 | I40: 55 | J40: 39 | K40: 25 | L40: 5 | P40: 108 | Q40: 181 | R40: 6 | S40: 40 | T40: 2
A41: 01080014 | B41: 621 | C41: 107 | D41: 424 | E41: 27 | F41: 14 | G41: 17 | H41: 14 | I41: 8 | J41: 2 | K41: 6 | L41: 2 | P41: 353 | Q41: 8 | R41: 4 | S41: 17 | T41: 0
A42: 01080016 | B42: 399
A43: 01080017 | B43: 84 | C43: 1 | D43: 2 | E43: 11
A44: 01080018 | B44: 107 | C44: 0 | D44: 1 | E44: 3
A45: 01080019 | B45: 1069 | C45: 5 | D45: 40 | E45: 99
A46: 01080020 | B46: 6981
A47: 01080021 | B47: 4727 | C47: 390 | D47: 1387 | E47: 951 | F47: 727 | G47: 606 | H47: 411 | I47: 176 | J47: 67 | K47: 11 | L47: 1 | P47: 297 | Q47: 856 | R47: 44 | S47: 182 | T47: 4
A48: 01080022 | B48: 1827 | C48: 10 | D48: 114 | E48: 250 | F48: 324 | G48: 343 | H48: 265 | I48: 248 | J48: 215 | K48: 57 | L48: 1 | P48: 13 | Q48: 454 | R48: 10 | S48: 54 | T48: 2
A49: 01080023 | B49: 2207 | C49: 109 | D49: 666 | E49: 501 | F49: 395 | G49: 282 | H49: 155 | I49: 79 | J49: 20 | K49: 0 | L49: 0 | P49: 131 | Q49: 570 | R49: 22 | S49: 107 | T49: 5
A50: 01080030 | B50: 9 | E50: 0 | F50: 0 | G50: 3 | H50: 4 | I50: 2 | J50: 0 | K50: 0 | L50: 0 | M50: 0 | N50: 0 | U50: 14 | V50: 3 | W50: 8 | Y50: 0 | Z50: 0 | AA50: 0 | AB50: 3
A51: 01080040 | B51: 1749 | E51: 3 | F51: 104 | G51: 340 | H51: 511 | I51: 453 | J51: 257 | K51: 79 | L51: 1 | M51: 0 | N51: 1 | U51: 1692 | V51: 265 | W51: 607 | Y51: 5 | Z51: 0 | AA51: 18 | AB51: 83
A52: 01080090 | B52: 1682
A53: 01090040 | B53: 20 | C53: 1 | D53: 0 | E53: 5
A54: 01090050 | B54: 3558 | C54: 15 | D54: 307 | E54: 907 | F54: 975 | G54: 782 | H54: 429 | I54: 140 | J54: 3 | K54: 0 | L54: 0 | M54: 79 | N54: 187 | O54: 422 | P54: 137 | Q54: 269
A55: 01090060 | B55: 5363 | C55: 193 | D55: 942 | E55: 1075 | F55: 1086 | G55: 856 | H55: 567 | I55: 377 | J55: 214 | K55: 51 | L55: 2 | P55: 222 | Q55: 970 | R55: 58 | S55: 298 | T55: 4
A56: 01110106 | B56: 48 | F56: 4 | G56: 11 | H56: 13 | I56: 8 | J56: 6 | K56: 6 | U56: 45 | V56: 2 | W56: 19 | Y56: 0 | Z56: 0 | AA56: 1 | AB56: 4
A57: 01110107 | B57: 3451 | E57: 6 | F57: 173 | G57: 708 | H57: 1039 | I57: 917 | J57: 483 | K57: 130 | L57: 5 | M57: 0 | N57: 1 | U57: 3417 | V57: 635 | W57: 1622 | Y57: 2 | Z57: 1 | AA57: 41 | AB57: 225
A58: 01200010 | B58: 145 | C58: 40 | D58: 105 | E58: 0 | F58: 0 | G58: 0 | H58: 0 | I58: 0 | J58: 0 | K58: 1 | L58: 1 | M58: 2 | N58: 1 | O58: 1 | P58: 0 | Q58: 1 | R58: 1 | S58: 2 | T58: 2 | U58: 2 | V58: 4 | W58: 0 | X58: 3 | Y58: 5 | Z58: 8 | AA58: 2 | AB58: 11 | AC58: 2 | AD58: 22 | AE58: 3 | AF58: 20 | AG58: 8 | AH58: 21 | AI58: 5 | AJ58: 5 | AK58: 6 | AL58: 6 | AM58: 0 | AN58: 0
A59: 01200020 | B59: 238 | C59: 72 | D59: 166 | E59: 0 | F59: 0 | G59: 2 | H59: 1 | I59: 0 | J59: 4 | K59: 0 | L59: 1 | M59: 1 | N59: 2 | O59: 0 | P59: 10 | Q59: 2 | R59: 4 | S59: 4 | T59: 12 | U59: 0 | V59: 19 | W59: 1 | X59: 7 | Y59: 2 | Z59: 13 | AA59: 8 | AB59: 16 | AC59: 16 | AD59: 12 | AE59: 11 | AF59: 20 | AG59: 10 | AH59: 17 | AI59: 8 | AJ59: 14 | AK59: 7 | AL59: 14 | AM59: 6 | AN59: 6
A60: 01200030 | B60: 269 | C60: 55 | D60: 214 | E60: 0 | F60: 1 | G60: 0 | H60: 0 | I60: 0 | J60: 1 | K60: 2 | L60: 5 | M60: 10 | N60: 56 | O60: 9 | P60: 38 | Q60: 8 | R60: 27 | S60: 12 | T60: 19 | U60: 7 | V60: 22 | W60: 5 | X60: 9 | Y60: 1 | Z60: 15 | AA60: 0 | AB60: 10 | AC60: 0 | AD60: 1 | AE60: 1 | AF60: 2 | AG60: 0 | AH60: 1 | AI60: 0 | AJ60: 6 | AK60: 0 | AL60: 1 | AM60: 1 | AN60: 18
A61: 01200031 | B61: 99 | C61: 57 | D61: 42 | E61: 35 | F61: 26 | G61: 13 | H61: 11 | I61: 6 | J61: 4 | K61: 3 | L61: 1 | AM61: 1 | AN61: 0
A62: 01200032 | B62: 932 | C62: 578 | D62: 354 | E62: 377 | F62: 248 | G62: 145 | H62: 74 | I62: 40 | J62: 22 | K62: 16 | L62: 12 | AM62: 3 | AN62: 0
A63: 01200033 | B63: 11 | C63: 5 | D63: 6 | E63: 3 | F63: 4 | G63: 1 | H63: 1 | I63: 1 | J63: 1 | K63: 0 | L63: 0 | AM63: 0 | AN63: 0
A64: 01200034 | B64: 241 | C64: 161 | D64: 80 | E64: 105 | F64: 54 | G64: 32 | H64: 19 | I64: 20 | J64: 5 | K64: 4 | L64: 2 | AM64: 0 | AN64: 1
A65: 01501010 | B65: 456 | C65: 139 | D65: 317 | E65: 2 | F65: 0 | G65: 2 | H65: 2 | I65: 4 | J65: 1 | K65: 5 | L65: 8 | M65: 2 | N65: 16 | O65: 4 | P65: 19 | Q65: 7 | R65: 27 | S65: 17 | T65: 33 | U65: 20 | V65: 43 | W65: 24 | X65: 45 | Y65: 14 | Z65: 43 | AA65: 9 | AB65: 26 | AC65: 10 | AD65: 23 | AE65: 19 | AF65: 31 | AG65: 5 | AH65: 5
A66: 01501020 | B66: 380 | C66: 117 | D66: 263 | E66: 1 | F66: 0 | G66: 0 | H66: 2 | I66: 3 | J66: 3 | K66: 0 | L66: 0 | M66: 3 | N66: 8 | O66: 2 | P66: 10 | Q66: 9 | R66: 16 | S66: 10 | T66: 15 | U66: 13 | V66: 53 | W66: 17 | X66: 35 | Y66: 19 | Z66: 29 | AA66: 21 | AB66: 30 | AC66: 8 | AD66: 19 | AE66: 11 | AF66: 43 | AG66: 6 | AH66: 6
A67: 01501030 | B67: 1847 | C67: 592 | D67: 1255 | E67: 0 | F67: 0 | G67: 0 | H67: 5 | I67: 0 | J67: 2 | K67: 1 | L67: 9 | M67: 10 | N67: 12 | O67: 5 | P67: 21 | Q67: 14 | R67: 46 | S67: 27 | T67: 69 | U67: 40 | V67: 139 | W67: 80 | X67: 170 | Y67: 144 | Z67: 250 | AA67: 98 | AB67: 190 | AC67: 80 | AD67: 162 | AE67: 93 | AF67: 180 | AG67: 10 | AH67: 5
A68: 01501040 | B68: 2026 | C68: 587 | D68: 1439 | E68: 0 | F68: 0 | G68: 0 | H68: 5 | I68: 0 | J68: 0 | K68: 2 | L68: 7 | M68: 3 | N68: 15 | O68: 2 | P68: 24 | Q68: 8 | R68: 26 | S68: 14 | T68: 103 | U68: 30 | V68: 151 | W68: 82 | X68: 218 | Y68: 178 | Z68: 380 | AA68: 111 | AB68: 228 | AC68: 72 | AD68: 132 | AE68: 85 | AF68: 150 | AG68: 2 | AH68: 2
A69: 01501050 | B69: 4 | E69: 0 | F69: 0 | G69: 3 | H69: 0 | I69: 0 | J69: 1 | K69: 0 | L69: 0 | M69: 0 | N69: 0 | U69: 4 | Y69: 0 | Z69: 0 | AA69: 0 | AB69: 0
A70: 01501060 | B70: 435 | E70: 0 | F70: 15 | G70: 99 | H70: 109 | I70: 122 | J70: 66 | K70: 22 | L70: 1 | M70: 0 | N70: 1 | U70: 433 | Y70: 1 | Z70: 0 | AA70: 2 | AB70: 23
A71: 01501070 | B71: 5 | E71: 0 | F71: 0 | G71: 1 | H71: 2 | I71: 0 | J71: 2 | K71: 0 | L71: 0 | M71: 0 | N71: 0 | U71: 5 | Y71: 0 | Z71: 0 | AA71: 0 | AB71: 0
A72: 01501080 | B72: 216 | E72: 0 | F72: 12 | G72: 36 | H72: 42 | I72: 57 | J72: 49 | K72: 16 | L72: 4 | M72: 0 | N72: 0 | U72: 209 | Y72: 0 | Z72: 0 | AA72: 6 | AB72: 18
A73: 01502000 | B73: 1276 | C73: 1276 | T73: 571 | U73: 673 | V73: 284 | W73: 623 | X73: 0 | Y73: 1 | Z73: 0 | AA73: 3 | AB73: 23
A74: 01502010 | B74: 1 | C74: 1 | U74: 1 | V74: 0 | W74: 0 | X74: 0 | Y74: 0 | Z74: 0 | AA74: 0 | AB74: 0
A75: 01502020 | B75: 537 | C75: 537 | T75: 245 | U75: 281 | V75: 92 | W75: 165 | X75: 1 | Y75: 3 | Z75: 1 | AA75: 1 | AB75: 11
A76: 01502040 | B76: 10 | C76: 1 | D76: 9 | E76: 0 | F76: 0 | G76: 0 | H76: 0 | I76: 0 | J76: 1 | K76: 0 | L76: 0 | M76: 0 | N76: 0 | O76: 0 | P76: 0 | Q76: 0 | R76: 1 | S76: 0 | T76: 0 | U76: 0 | V76: 0 | W76: 0 | X76: 0 | Y76: 0 | Z76: 1 | AA76: 0 | AB76: 0 | AC76: 0 | AD76: 4 | AE76: 1 | AF76: 2 | AG76: 0 | AH76: 0
A77: 02010101 | B77: 18392 | C77: 8583 | D77: 9793 | E77: 183 | F77: 4928 | G77: 381 | H77: 4808 | I77: 404 | J77: 77 | K77: 50 | L77: 83 | M77: 146 | N77: 61 | O77: 148 | P77: 165 | Q77: 249 | R77: 1469 | S77: 466 | T77: 233 | U77: 50 | V77: 72 | W77: 97 | X77: 133 | Y77: 162 | Z77: 239 | AA77: 291 | AB77: 484 | AC77: 522 | AD77: 730 | AE77: 591 | AF77: 460 | AG77: 710 | AH77: 2290 | AI77: 12 | AJ77: 53 | AK77: 73 | AL77: 170 | AM77: 624
A78: 02010103 | B78: 21781 | C78: 4564 | D78: 17107 | E78: 4110 | S78: 3651 | T78: 3135 | U78: 1384 | V78: 1773 | W78: 1646 | X78: 1455 | Y78: 1250 | Z78: 1125 | AA78: 868 | AB78: 644 | AC78: 446 | AD78: 208 | AE78: 55 | AF78: 23 | AG78: 8 | AH78: 1866 | AJ78: 21 | AK78: 30 | AL78: 150 | AM78: 343
A79: 02010105 | B79: 24 | C79: 12 | D79: 11 | M79: 1 | N79: 1 | O79: 4 | P79: 0 | Q79: 2 | R79: 16 | AI79: 4 | AJ79: 2 | AK79: 0 | AL79: 1 | AM79: 42
A80: 02010201 | B80: 101443 | C80: 47386 | D80: 52395 | E80: 96 | F80: 110 | G80: 5422 | H80: 298 | I80: 5308 | J80: 385 | K80: 5180 | L80: 6294 | M80: 6625 | N80: 5720 | O80: 12413 | P80: 5667 | Q80: 5382 | R80: 13526 | S80: 5987 | T80: 1835 | U80: 511 | V80: 668 | W80: 732 | X80: 751 | Y80: 784 | Z80: 897 | AA80: 1023 | AB80: 1213 | AC80: 1369 | AD80: 3443 | AE80: 3324 | AF80: 2839 | AG80: 3708 | AH80: 5070 | AI80: 4287 | AJ80: 429 | AK80: 307 | AL80: 1255 | AM80: 1692
A81: 02010320 | B81: 13878 | C81: 6707 | D81: 7171 | E81: 66 | F81: 66 | G81: 2479 | H81: 2530 | I81: 521 | J81: 540 | K81: 2106 | L81: 2219 | M81: 1449 | N81: 1718 | O81: 115 | P81: 117 | Q81: 51 | R81: 93
A82: 02010321 | B82: 1348 | C82: 823 | D82: 525 | E82: 12 | F82: 8 | G82: 117 | H82: 106 | I82: 58 | J82: 23 | K82: 329 | L82: 216 | M82: 301 | N82: 168 | O82: 7 | P82: 4 | Q82: 1 | R82: 12
A83: 02010322 | B83: 454 | C83: 314 | D83: 140 | E83: 1 | F83: 1 | G83: 22 | H83: 21 | I83: 19 | J83: 3 | K83: 154 | L83: 72 | M83: 109 | N83: 36 | O83: 9 | P83: 7 | Q83: 0 | R83: 2
A84: 02010420 | B84: 642 | C84: 383 | D84: 259 | E84: 3 | F84: 1 | G84: 46 | H84: 31 | I84: 33 | J84: 20 | K84: 179 | L84: 118 | M84: 106 | N84: 78 | O84: 16 | P84: 12 | Q84: 0 | R84: 2
A85: 02010421 | B85: 130 | C85: 88 | D85: 42 | E85: 0 | F85: 0 | G85: 8 | H85: 3 | I85: 14 | J85: 4 | K85: 35 | L85: 20 | M85: 28 | N85: 14 | O85: 5 | P85: 1 | Q85: 0 | R85: 0
A86: 02010422 | B86: 45 | C86: 35 | D86: 10 | E86: 0 | F86: 0 | G86: 1 | H86: 0 | I86: 0 | J86: 0 | K86: 15 | L86: 5 | M86: 13 | N86: 4 | O86: 6 | P86: 1 | Q86: 0 | R86: 0
A87: 02021730 | B87: 14563 | C87: 7210 | D87: 7353 | E87: 5 | F87: 14 | G87: 90 | H87: 82 | I87: 8 | J87: 13 | K87: 106 | L87: 128 | M87: 2446 | N87: 2508 | O87: 89 | P87: 103 | Q87: 15 | R87: 22 | S87: 83 | T87: 80 | U87: 2416 | V87: 2327 | W87: 1952 | X87: 2086
A88: 02021740 | B88: 18547 | C88: 9581 | D88: 8966 | E88: 93 | F88: 81 | G88: 2846 | H88: 2848 | I88: 761 | J88: 674 | K88: 3198 | L88: 2867 | M88: 2509 | N88: 2369 | O88: 214 | P88: 167 | Q88: 78 | R88: 115
A89: 02021760 | B89: 4843 | C89: 2465 | D89: 2378 | E89: 2062 | F89: 1970 | G89: 403 | H89: 408
A90: 02021790 | B90: 1274 | C90: 724 | D90: 550 | E90: 27 | F90: 25 | G90: 102 | H90: 113 | I90: 74 | J90: 48 | K90: 182 | L90: 125 | M90: 322 | N90: 233 | O90: 18 | P90: 6
A91: 02021810 | B91: 1273 | C91: 791 | D91: 482 | E91: 11 | F91: 7 | G91: 102 | H91: 96 | I91: 70 | J91: 33 | K91: 302 | L91: 180 | M91: 290 | N91: 161 | O91: 16 | P91: 5
A92: 02021820 | B92: 441 | C92: 317 | D92: 124 | E92: 1 | F92: 1 | G92: 13 | H92: 15 | I92: 24 | J92: 4 | K92: 135 | L92: 62 | M92: 123 | N92: 37 | O92: 21 | P92: 5
A93: 02021830 | B93: 6145 | C93: 1695 | D93: 1379 | E93: 125
A94: 02200010 | B94: 16100 | C94: 6112 | D94: 9988 | E94: 25 | F94: 47 | G94: 568 | H94: 975 | I94: 729 | J94: 1165 | K94: 695 | L94: 1348 | M94: 691 | N94: 1306 | O94: 681 | P94: 1207 | Q94: 577 | R94: 1053 | S94: 543 | T94: 858 | U94: 481 | V94: 595 | W94: 308 | X94: 421 | Y94: 307 | Z94: 440 | AA94: 249 | AB94: 298 | AC94: 152 | AD94: 150 | AE94: 106 | AF94: 126 | AG94: 50 | AH94: 107
A95: 02200020 | B95: 15329 | C95: 6573 | D95: 8756 | E95: 27 | F95: 31 | G95: 193 | H95: 187 | I95: 222 | J95: 212 | K95: 249 | L95: 325 | M95: 284 | N95: 400 | O95: 349 | P95: 475 | Q95: 420 | R95: 574 | S95: 481 | T95: 624 | U95: 514 | V95: 483 | W95: 432 | X95: 454 | Y95: 878 | Z95: 1249 | AA95: 909 | AB95: 1212 | AC95: 788 | AD95: 1087 | AE95: 827 | AF95: 1443 | AG95: 56 | AH95: 107
A96: 02200030 | B96: 12625 | C96: 4331 | D96: 8294 | E96: 13 | F96: 20 | G96: 202 | H96: 553 | I96: 240 | J96: 613 | K96: 310 | L96: 776 | M96: 330 | N96: 842 | O96: 344 | P96: 708 | Q96: 336 | R96: 718 | S96: 367 | T96: 664 | U96: 365 | V96: 578 | W96: 282 | X96: 437 | Y96: 440 | Z96: 719 | AA96: 417 | AB96: 588 | AC96: 321 | AD96: 511 | AE96: 364 | AF96: 567 | AG96: 65 | AH96: 195
A97: 02200040 | B97: 5196 | C97: 1675 | D97: 3521 | E97: 3 | F97: 6 | G97: 26 | H97: 62 | I97: 53 | J97: 119 | K97: 81 | L97: 160 | M97: 80 | N97: 187 | O97: 117 | P97: 240 | Q97: 132 | R97: 302 | S97: 116 | T97: 306 | U97: 133 | V97: 279 | W97: 104 | X97: 210 | Y97: 240 | Z97: 531 | AA97: 239 | AB97: 433 | AC97: 191 | AD97: 312 | AE97: 160 | AF97: 374 | AG97: 28 | AH97: 30
A98: 03010501 | B98: 143626 | C98: 49635 | D98: 94334 | K98: 87 | L98: 141 | M98: 138 | N98: 336 | O98: 231 | P98: 606 | Q98: 414 | R98: 1161 | S98: 703 | T98: 1944 | U98: 1188 | V98: 3324 | W98: 1922 | X98: 5215 | Y98: 3138 | Z98: 7930 | AA98: 4892 | AB98: 11498 | AC98: 6942 | AD98: 13614 | AE98: 8253 | AF98: 14045 | AG98: 7849 | AH98: 12320 | AI98: 6586 | AJ98: 10161 | AK98: 7479 | AL98: 12039 | AM98: 2364 | AN98: 2220
A99: 03010502 | B99: 63456 | C99: 23027 | D99: 40429 | K99: 40 | L99: 38 | M99: 58 | N99: 122 | O99: 96 | P99: 259 | Q99: 176 | R99: 473 | S99: 298 | T99: 832 | U99: 538 | V99: 1374 | W99: 887 | X99: 2203 | Y99: 1395 | Z99: 3312 | AA99: 2294 | AB99: 4798 | AC99: 3085 | AD99: 5666 | AE99: 3934 | AF99: 6188 | AG99: 3685 | AH99: 5357 | AI99: 2984 | AJ99: 4296 | AK99: 3557 | AL99: 5517 | AM99: 595 | AN99: 466
A100: 03010504 | B100: 59569 | C100: 19654 | D100: 39915 | K100: 41 | L100: 57 | M100: 68 | N100: 168 | O100: 101 | P100: 287 | Q100: 214 | R100: 559 | S100: 318 | T100: 965 | U100: 484 | V100: 1542 | W100: 820 | X100: 2402 | Y100: 1262 | Z100: 3522 | AA100: 1896 | AB100: 5065 | AC100: 2680 | AD100: 5869 | AE100: 3279 | AF100: 5938 | AG100: 3131 | AH100: 5008 | AI100: 2474 | AJ100: 4016 | AK100: 2886 | AL100: 4517 | AM100: 986 | AN100: 484
A101: 03010505 | B101: 592 | C101: 255 | D101: 337 | K101: 1 | L101: 0 | M101: 0 | N101: 1 | O101: 2 | P101: 1 | Q101: 3 | R101: 10 | S101: 4 | T101: 5 | U101: 10 | V101: 13 | W101: 25 | X101: 22 | Y101: 11 | Z101: 45 | AA101: 32 | AB101: 38 | AC101: 33 | AD101: 37 | AE101: 32 | AF101: 49 | AG101: 30 | AH101: 40 | AI101: 31 | AJ101: 36 | AK101: 41 | AL101: 40 | AM101: 44 | AN101: 8
A102: 03020101 | B102: 11390 | C102: 4736 | D102: 6654 | E102: 314 | F102: 270 | G102: 1054 | H102: 993 | I102: 1106 | J102: 1155 | K102: 618 | L102: 534 | M102: 214 | N102: 277 | O102: 75 | P102: 176 | Q102: 90 | R102: 282 | S102: 95 | T102: 260 | U102: 93 | V102: 283 | W102: 82 | X102: 257 | Y102: 68 | Z102: 273 | AA102: 91 | AB102: 293 | AC102: 115 | AD102: 315 | AE102: 160 | AF102: 357 | AG102: 143 | AH102: 300 | AI102: 123 | AJ102: 238 | AK102: 120 | AL102: 158 | AM102: 175 | AN102: 233 | AO102: 232 | AP102: 88 | AQ102: 22 | AR102: 53 | AS102: 83
A103: 03020201 | B103: 925 | C103: 469 | D103: 456 | E103: 121 | F103: 103 | G103: 226 | H103: 207 | I103: 122 | J103: 146 | AO103: 28 | AP103: 11 | AQ103: 10 | AR103: 3 | AS103: 37
A104: 03020301 | B104: 1401 | C104: 527 | D104: 874 | E104: 14 | F104: 20 | G104: 71 | H104: 63 | I104: 77 | J104: 46 | K104: 23 | L104: 12 | M104: 8 | N104: 16 | O104: 4 | P104: 11 | Q104: 11 | R104: 16 | S104: 13 | T104: 19 | U104: 11 | V104: 25 | W104: 6 | X104: 25 | Y104: 8 | Z104: 25 | AA104: 15 | AB104: 43 | AC104: 20 | AD104: 78 | AE104: 30 | AF104: 81 | AG104: 44 | AH104: 93 | AI104: 45 | AJ104: 63 | AK104: 36 | AL104: 74 | AM104: 91 | AN104: 164 | AO104: 8 | AP104: 4 | AQ104: 0 | AR104: 0 | AS104: 23
A105: 03020401 | B105: 10743 | C105: 4212 | D105: 6531 | E105: 262 | F105: 268 | G105: 816 | H105: 769 | I105: 889 | J105: 857 | K105: 418 | L105: 410 | M105: 176 | N105: 231 | O105: 81 | P105: 188 | Q105: 97 | R105: 235 | S105: 119 | T105: 295 | U105: 120 | V105: 312 | W105: 74 | X105: 252 | Y105: 71 | Z105: 255 | AA105: 99 | AB105: 364 | AC105: 161 | AD105: 397 | AE105: 177 | AF105: 432 | AG105: 189 | AH105: 397 | AI105: 169 | AJ105: 325 | AK105: 127 | AL105: 267 | AM105: 167 | AN105: 277 | AO105: 658 | AP105: 87 | AQ105: 29 | AR105: 18 | AS105: 55
A106: 03020402 | B106: 1257 | C106: 466 | D106: 791 | I106: 137 | J106: 86 | K106: 81 | L106: 56 | M106: 44 | N106: 38 | O106: 14 | P106: 27 | Q106: 9 | R106: 36 | S106: 9 | T106: 44 | U106: 7 | V106: 52 | W106: 10 | X106: 27 | Y106: 10 | Z106: 48 | AA106: 13 | AB106: 54 | AC106: 20 | AD106: 75 | AE106: 16 | AF106: 67 | AG106: 32 | AH106: 46 | AI106: 26 | AJ106: 56 | AK106: 20 | AL106: 41 | AM106: 18 | AN106: 38 | AO106: 25 | AP106: 7 | AQ106: 1 | AR106: 4 | AS106: 13
A107: 03020403 | B107: 822 | C107: 366 | D107: 456 | U107: 2 | V107: 3 | W107: 6 | X107: 12 | Y107: 5 | Z107: 13 | AA107: 10 | AB107: 17 | AC107: 9 | AD107: 39 | AE107: 35 | AF107: 43 | AG107: 42 | AH107: 67 | AI107: 71 | AJ107: 49 | AK107: 66 | AL107: 66 | AM107: 120 | AN107: 147 | AO107: 2 | AP107: 2 | AQ107: 0 | AR107: 0 | AS107: 10
A108: 03020501 | B108: 373973 | C108: 140487 | D108: 233486 | E108: 3075 | F108: 2871 | G108: 8630 | H108: 7473 | I108: 10824 | J108: 9940 | K108: 9007 | L108: 8941 | M108: 7138 | N108: 8926 | O108: 4364 | P108: 8809 | Q108: 4551 | R108: 9685 | S108: 5021 | T108: 11476 | U108: 4925 | V108: 12213 | W108: 5180 | X108: 13513 | Y108: 6241 | Z108: 15283 | AA108: 7775 | AB108: 18245 | AC108: 9789 | AD108: 20444 | AE108: 11564 | AF108: 21143 | AG108: 12225 | AH108: 19809 | AI108: 11095 | AJ108: 16158 | AK108: 8682 | AL108: 12720 | AM108: 10401 | AN108: 15837 | AO108: 9826 | AP108: 7267 | AQ108: 842 | AR108: 255 | AS108: 43
A109: 03020604 | B109: 23485 | C109: 8594 | D109: 14891 | E109: 3029 | F109: 3210 | G109: 2286 | H109: 2136 | I109: 756 | J109: 860 | K109: 510 | L109: 779 | M109: 373 | N109: 944 | O109: 94 | P109: 1155 | Q109: 77 | R109: 1273 | S109: 90 | T109: 1206 | U109: 70 | V109: 713 | W109: 83 | X109: 422 | Y109: 102 | Z109: 341 | AA109: 98 | AB109: 275 | AC109: 104 | AD109: 315 | AE109: 141 | AF109: 261 | AG109: 189 | AH109: 321 | AI109: 209 | AJ109: 215 | AK109: 161 | AL109: 164 | AM109: 222 | AN109: 301 | AO109: 403 | AP109: 490 | AQ109: 732 | AR109: 133 | AS109: 114
A110: 03020702 | B110: 52327 | C110: 23855 | D110: 28472 | E110: 727 | F110: 820 | G110: 1471 | H110: 1252 | I110: 679 | J110: 652 | K110: 528 | L110: 597 | M110: 375 | N110: 444 | O110: 209 | P110: 522 | Q110: 383 | R110: 637 | S110: 394 | T110: 853 | U110: 503 | V110: 780 | W110: 503 | X110: 1191 | Y110: 835 | Z110: 1455 | AA110: 1400 | AB110: 1948 | AC110: 1897 | AD110: 2418 | AE110: 2449 | AF110: 2422 | AG110: 3478 | AH110: 3930 | AI110: 3070 | AJ110: 2750 | AK110: 2269 | AL110: 2132 | AM110: 2685 | AN110: 3669 | AO110: 1087 | AP110: 658 | AQ110: 138 | AR110: 101 | AS110: 19
A111: 03020806 | B111: 70968 | C111: 24603 | D111: 46365 | E111: 1207 | F111: 1317 | G111: 1692 | H111: 1243 | I111: 1847 | J111: 1497 | K111: 1555 | L111: 1644 | M111: 1216 | N111: 2133 | O111: 1013 | P111: 3558 | Q111: 1222 | R111: 4449 | S111: 1348 | T111: 4602 | U111: 1280 | V111: 3635 | W111: 1128 | X111: 3019 | Y111: 1252 | Z111: 2830 | AA111: 1450 | AB111: 2973 | AC111: 1747 | AD111: 3370 | AE111: 1786 | AF111: 2797 | AG111: 1406 | AH111: 2034 | AI111: 1105 | AJ111: 1496 | AK111: 941 | AL111: 1319 | AM111: 1449 | AN111: 2566 | AO111: 1245 | AP111: 7746 | AQ111: 717 | AR111: 295 | AS111: 635
A112: 03020908 | B112: 15243 | C112: 4942 | D112: 10301 | E112: 60 | F112: 27 | G112: 361 | H112: 206 | I112: 771 | J112: 600 | K112: 1027 | L112: 1602 | M112: 733 | N112: 1290 | O112: 191 | P112: 605 | Q112: 183 | R112: 713 | S112: 211 | T112: 794 | U112: 186 | V112: 672 | W112: 149 | X112: 539 | Y112: 166 | Z112: 554 | AA112: 108 | AB112: 485 | AC112: 145 | AD112: 491 | AE112: 108 | AF112: 399 | AG112: 141 | AH112: 369 | AI112: 141 | AJ112: 342 | AK112: 102 | AL112: 259 | AM112: 160 | AN112: 354 | AO112: 164 | AP112: 164 | AQ112: 1211 | AR112: 68 | AS112: 394
A113: 03021106 | B113: 6742 | C113: 2868 | D113: 3874 | E113: 11 | F113: 5 | G113: 10 | H113: 23 | I113: 24 | J113: 42 | K113: 51 | L113: 79 | M113: 80 | N113: 180 | O113: 130 | P113: 240 | Q113: 154 | R113: 375 | S113: 237 | T113: 405 | U113: 341 | V113: 505 | W113: 424 | X113: 514 | Y113: 526 | Z113: 492 | AA113: 369 | AB113: 396 | AC113: 263 | AD113: 286 | AE113: 248 | AF113: 332 | AG113: 69 | AH113: 123
A114: 03021107 | B114: 3339 | C114: 1479 | D114: 1860 | E114: 2 | F114: 9 | G114: 11 | H114: 14 | I114: 11 | J114: 25 | K114: 27 | L114: 57 | M114: 51 | N114: 69 | O114: 96 | P114: 120 | Q114: 92 | R114: 139 | S114: 136 | T114: 224 | U114: 185 | V114: 267 | W114: 262 | X114: 260 | Y114: 223 | Z114: 248 | AA114: 174 | AB114: 189 | AC114: 117 | AD114: 121 | AE114: 92 | AF114: 118 | AG114: 40 | AH114: 32
A115: 03021108 | B115: 4555 | C115: 1721 | D115: 2834 | E115: 8 | F115: 9 | G115: 15 | H115: 27 | I115: 26 | J115: 52 | K115: 45 | L115: 80 | M115: 62 | N115: 122 | O115: 106 | P115: 171 | Q115: 126 | R115: 248 | S115: 162 | T115: 355 | U115: 217 | V115: 413 | W115: 271 | X115: 446 | Y115: 272 | Z115: 350 | AA115: 204 | AB115: 260 | AC115: 119 | AD115: 182 | AE115: 88 | AF115: 119 | AG115: 50 | AH115: 44
A116: 03030101 | B116: 881 | C116: 354 | D116: 527 | E116: 0 | F116: 2
A117: 03030102 | B117: 59247 | C117: 22276 | D117: 36976 | E117: 176 | F117: 531
A118: 03030103 | B118: 3384 | C118: 207 | D118: 3208 | E118: 9 | F118: 51
A119: 03030104 | B119: 6272 | C119: 2132 | D119: 4150 | E119: 8 | F119: 112
A120: 03030110 | B120: 17424 | C120: 5662 | D120: 11762 | E120: 107 | F120: 353
A121: 03030120 | B121: 34018 | C121: 12718 | D121: 21300 | E121: 66 | F121: 164 | G121: 679 | H121: 1398 | I121: 876 | J121: 1723 | K121: 1037 | L121: 1992 | M121: 983 | N121: 1953 | O121: 980 | P121: 1776 | Q121: 886 | R121: 1712 | S121: 885 | T121: 1546 | U121: 849 | V121: 1207 | W121: 728 | X121: 881 | Y121: 1329 | Z121: 1955 | AA121: 1299 | AB121: 1808 | AC121: 1042 | AD121: 1517 | AE121: 1093 | AF121: 1687 | AG121: 101 | AH121: 381
A122: 03030130 | B122: 29136 | C122: 8244 | D122: 20892 | E122: 63 | F122: 150 | G122: 434 | H122: 1337 | I122: 604 | J122: 1811 | K122: 724 | L122: 2181 | M122: 682 | N122: 2005 | O122: 697 | P122: 1792 | Q122: 673 | R122: 1600 | S122: 650 | T122: 1452 | U122: 574 | V122: 1090 | W122: 417 | X122: 791 | Y122: 899 | Z122: 2189 | AA122: 745 | AB122: 1846 | AC122: 567 | AD122: 1309 | AE122: 519 | AF122: 1365 | AG122: 106 | AH122: 318
A123: 03030140 | B123: 29620 | C123: 8838 | D123: 20782 | E123: 83 | F123: 66 | G123: 128 | H123: 88 | I123: 113 | J123: 109 | K123: 133 | L123: 230 | M123: 126 | N123: 342 | O123: 124 | P123: 397 | Q123: 153 | R123: 651 | S123: 189 | T123: 759 | U123: 228 | V123: 905 | W123: 238 | X123: 1295 | Y123: 457 | Z123: 1597 | AA123: 687 | AB123: 2237 | AC123: 1041 | AD123: 2710 | AE123: 1120 | AF123: 2583 | AG123: 1282 | AH123: 2320 | AI123: 1059 | AJ123: 1964 | AK123: 1677 | AL123: 2529 | AM123: 327 | AN123: 353
A124: 03030150 | B124: 2616 | C124: 732 | D124: 1884 | E124: 17 | F124: 13 | G124: 4 | H124: 5 | I124: 8 | J124: 13 | K124: 6 | L124: 13 | M124: 6 | N124: 31 | O124: 9 | P124: 32 | Q124: 6 | R124: 62 | S124: 18 | T124: 69 | U124: 14 | V124: 105 | W124: 29 | X124: 109 | Y124: 37 | Z124: 170 | AA124: 63 | AB124: 190 | AC124: 84 | AD124: 229 | AE124: 115 | AF124: 234 | AG124: 106 | AH124: 223 | AI124: 81 | AJ124: 176 | AK124: 129 | AL124: 210 | AM124: 20 | AN124: 14
A125: 03030160 | B125: 3759 | C125: 1026 | D125: 2733 | E125: 237 | F125: 202 | G125: 99 | H125: 91 | I125: 62 | J125: 79 | K125: 33 | L125: 92 | M125: 44 | N125: 165 | O125: 35 | P125: 173 | Q125: 25 | R125: 198 | S125: 34 | T125: 184 | U125: 38 | V125: 189 | W125: 38 | X125: 198 | Y125: 50 | Z125: 227 | AA125: 55 | AB125: 228 | AC125: 42 | AD125: 211 | AE125: 56 | AF125: 153 | AG125: 62 | AH125: 137 | AI125: 53 | AJ125: 104 | AK125: 63 | AL125: 102 | AM125: 54 | AN125: 91
A126: 03030170 | B126: 179 | C126: 13 | D126: 166 | E126: 3 | F126: 3 | G126: 0 | H126: 1 | I126: 0 | J126: 3 | K126: 0 | L126: 13 | M126: 0 | N126: 24 | O126: 2 | P126: 21 | Q126: 0 | R126: 26 | S126: 0 | T126: 19 | U126: 0 | V126: 8 | W126: 0 | X126: 3 | Y126: 0 | Z126: 8 | AA126: 0 | AB126: 10 | AC126: 1 | AD126: 6 | AE126: 0 | AF126: 2 | AG126: 0 | AH126: 4 | AI126: 2 | AJ126: 3 | AK126: 5 | AL126: 12 | AM126: 0 | AN126: 9
A127: 03030180 | B127: 288 | C127: 130 | D127: 158 | E127: 7 | F127: 3 | G127: 7 | H127: 3 | I127: 4 | J127: 5 | K127: 5 | L127: 2 | M127: 7 | N127: 18 | O127: 3 | P127: 10 | Q127: 6 | R127: 22 | S127: 6 | T127: 15 | U127: 16 | V127: 13 | W127: 13 | X127: 3 | Y127: 5 | Z127: 12 | AA127: 11 | AB127: 14 | AC127: 10 | AD127: 6 | AE127: 10 | AF127: 7 | AG127: 10 | AH127: 5 | AI127: 4 | AJ127: 7 | AK127: 6 | AL127: 13 | AM127: 8 | AN127: 0
A128: 03030250 | B128: 17338 | C128: 10747 | D128: 6591 | E128: 213 | F128: 215 | G128: 7436 | H128: 3541 | I128: 1672 | J128: 718 | K128: 255 | L128: 203 | M128: 92 | N128: 91 | O128: 40 | P128: 76 | Q128: 20 | R128: 73 | S128: 30 | T128: 71 | U128: 56 | V128: 88 | W128: 61 | X128: 90 | Y128: 25 | Z128: 95 | AA128: 45 | AB128: 150 | AC128: 81 | AD128: 135 | AE128: 96 | AF128: 173 | AG128: 120 | AH128: 175 | AI128: 162 | AJ128: 230 | AK128: 149 | AL128: 195 | AM128: 230 | AN128: 292 | AO128: 162 | AP128: 69 | AQ128: 55 | AR128: 75 | AS128: 71
A129: 03030270 | B129: 3419 | C129: 1702 | D129: 1717 | E129: 97 | F129: 74 | G129: 204 | H129: 59 | I129: 193 | J129: 61 | K129: 112 | L129: 27 | M129: 26 | N129: 48 | O129: 9 | P129: 9 | Q129: 21 | R129: 34 | S129: 5 | T129: 38 | U129: 16 | V129: 52 | W129: 32 | X129: 57 | Y129: 55 | Z129: 55 | AA129: 37 | AB129: 105 | AC129: 79 | AD129: 147 | AE129: 197 | AF129: 178 | AG129: 210 | AH129: 228 | AI129: 164 | AJ129: 140 | AK129: 101 | AL129: 163 | AM129: 144 | AN129: 242 | AO129: 32 | AP129: 27 | AQ129: 0 | AR129: 36 | AS129: 52
A130: 03030280 | B130: 302 | C130: 112 | D130: 190 | E130: 2 | F130: 4 | G130: 37 | H130: 18 | I130: 5 | J130: 6 | K130: 14 | L130: 5 | M130: 13 | N130: 21 | O130: 3 | P130: 13 | Q130: 1 | R130: 9 | S130: 0 | T130: 17 | U130: 5 | V130: 9 | W130: 1 | X130: 19 | Y130: 2 | Z130: 9 | AA130: 4 | AB130: 10 | AC130: 7 | AD130: 13 | AE130: 4 | AF130: 13 | AG130: 2 | AH130: 6 | AI130: 6 | AJ130: 3 | AK130: 0 | AL130: 7 | AM130: 6 | AN130: 8 | AO130: 12 | AP130: 486 | AQ130: 0 | AR130: 6 | AS130: 0
A131: 03030290 | B131: 127401
A132: 03030330 | B132: 29909 | C132: 11655 | D132: 18254 | E132: 157 | F132: 257 | G132: 938 | H132: 1599 | I132: 759 | J132: 1468 | K132: 629 | L132: 1463 | M132: 488 | N132: 1185 | O132: 430 | P132: 972 | Q132: 397 | R132: 840 | S132: 369 | T132: 670 | U132: 353 | V132: 640 | W132: 339 | X132: 534 | Y132: 1523 | Z132: 2087 | AA132: 1605 | AB132: 1958 | AC132: 1538 | AD132: 1764 | AE132: 2163 | AF132: 2866 | AG132: 87 | AH132: 295
A133: 03030340 | B133: 4584 | C133: 1779 | D133: 2805 | E133: 39 | F133: 15 | G133: 55 | H133: 116 | I133: 38 | J133: 61 | K133: 21 | L133: 46 | M133: 12 | N133: 34 | O133: 12 | P133: 31 | Q133: 16 | R133: 31 | S133: 7 | T133: 25 | U133: 15 | V133: 22 | W133: 17 | X133: 29 | Y133: 229 | Z133: 366 | AA133: 346 | AB133: 409 | AC133: 314 | AD133: 464 | AE133: 661 | AF133: 1156 | AG133: 19 | AH133: 64
A134: 03030350 | B134: 10942 | C134: 4046 | D134: 6896 | E134: 18 | F134: 135
A135: 03030360 | B135: 11583 | C135: 4729 | D135: 6854 | E135: 20 | F135: 21 | G135: 33 | H135: 59 | I135: 51 | J135: 104 | K135: 106 | L135: 190 | M135: 155 | N135: 329 | O135: 250 | P135: 455 | Q135: 304 | R135: 628 | S135: 435 | T135: 811 | U135: 577 | V135: 952 | W135: 698 | X135: 946 | Y135: 783 | Z135: 829 | AA135: 575 | AB135: 626 | AC135: 398 | AD135: 466 | AE135: 347 | AF135: 443 | AG135: 136 | AH135: 152
A136: 03040210 | B136: 207 | D136: 207 | L136: 4 | N136: 17 | P136: 42 | R136: 61 | T136: 33 | V136: 27 | X136: 13 | Z136: 5 | AB136: 0 | AD136: 1 | AF136: 4 | AO136: 1 | AP136: 10 | AQ136: 0 | AR136: 0 | AS136: 0
A137: 03040220 | B137: 683 | D137: 683 | F137: 0 | H137: 6 | J137: 6 | L137: 11 | N137: 55 | P137: 47 | R137: 47 | T137: 54 | V137: 70 | X137: 67 | Z137: 85 | AB137: 49 | AD137: 48 | AF137: 42 | AH137: 32 | AJ137: 29 | AL137: 18 | AN137: 17 | AO137: 43 | AP137: 8 | AQ137: 4 | AR137: 0 | AS137: 0
A138: 03050400 | B138: 5861 | C138: 2521 | D138: 3364 | E138: 1697 | F138: 2226 | G138: 824 | H138: 1138
A139: 03050500 | B139: 836 | C139: 460 | D139: 376 | E139: 292 | F139: 239 | G139: 168 | H139: 137
A140: 03050600 | B140: 3446 | C140: 1326 | D140: 2120 | E140: 987 | F140: 1371 | G140: 339 | H140: 749
A141: 03050700 | B141: 2662 | C141: 1213 | D141: 1449 | E141: 935 | F141: 950 | G141: 278 | H141: 499
A142: 03050710 | B142: 483 | C142: 248 | D142: 235 | E142: 181 | F142: 138 | G142: 67 | H142: 97
A143: 03051000A | B143: 9 | C143: 7 | D143: 2 | E143: 0 | F143: 0 | G143: 0 | H143: 0 | I143: 1 | J143: 0 | K143: 0 | L143: 0 | M143: 0 | N143: 0 | O143: 0 | P143: 0 | Q143: 0 | R143: 0 | S143: 4 | T143: 1 | U143: 1 | V143: 0 | W143: 1 | X143: 1 | Y143: 0 | Z143: 0
A144: 03051100 | B144: 336 | C144: 175 | D144: 161 | E144: 2 | F144: 1 | G144: 0 | H144: 0 | I144: 2 | J144: 1 | K144: 6 | L144: 2 | M144: 6 | N144: 3 | O144: 1 | P144: 2 | Q144: 2 | R144: 5 | S144: 109 | T144: 122 | U144: 22 | V144: 14 | W144: 18 | X144: 9 | Y144: 7 | Z144: 2
A145: 03051200 | B145: 397 | C145: 177 | D145: 220 | E145: 0 | F145: 1 | G145: 1 | H145: 2 | I145: 0 | J145: 2 | K145: 3 | L145: 3 | M145: 2 | N145: 0 | O145: 3 | P145: 2 | Q145: 6 | R145: 4 | S145: 116 | T145: 133 | U145: 17 | V145: 36 | W145: 20 | X145: 26 | Y145: 9 | Z145: 11
A146: 03051300 | B146: 289 | C146: 141 | D146: 148 | E146: 0 | F146: 0 | G146: 3 | H146: 2 | I146: 4 | J146: 1 | K146: 11 | L146: 4 | M146: 7 | N146: 1 | O146: 2 | P146: 0 | Q146: 1 | R146: 3 | S146: 62 | T146: 74 | U146: 8 | V146: 11 | W146: 29 | X146: 23 | Y146: 14 | Z146: 29
A147: 03051400 | B147: 21 | C147: 10 | D147: 11 | E147: 0 | F147: 0 | G147: 0 | H147: 0 | I147: 1 | J147: 1 | K147: 0 | L147: 0 | M147: 0 | N147: 0 | O147: 0 | P147: 0 | Q147: 0 | R147: 0 | S147: 1 | T147: 1 | U147: 0 | V147: 1 | W147: 2 | X147: 3 | Y147: 6 | Z147: 5
A148: 03051500 | B148: 3 | C148: 2 | D148: 1 | E148: 0 | F148: 0 | G148: 0 | H148: 0 | I148: 0 | J148: 0 | K148: 0 | L148: 0 | M148: 0 | N148: 0 | O148: 0 | P148: 0 | Q148: 0 | R148: 0 | S148: 2 | T148: 1 | U148: 0 | V148: 0 | W148: 0 | X148: 0 | Y148: 0 | Z148: 0
A149: 03051600 | B149: 46 | C149: 31 | D149: 15 | E149: 0 | F149: 0 | G149: 0 | H149: 0 | I149: 0 | J149: 0 | K149: 1 | L149: 0 | M149: 0 | N149: 0 | O149: 2 | P149: 1 | Q149: 0 | R149: 0 | S149: 22 | T149: 13 | U149: 6 | V149: 1 | W149: 0 | X149: 0 | Y149: 0 | Z149: 0
A150: 03051700 | B150: 76 | C150: 35 | D150: 41 | E150: 0 | F150: 0 | G150: 1 | H150: 0 | I150: 0 | J150: 0 | K150: 1 | L150: 0 | M150: 1 | N150: 0 | O150: 1 | P150: 1 | Q150: 0 | R150: 2 | S150: 21 | T150: 28 | U150: 9 | V150: 4 | W150: 1 | X150: 4 | Y150: 0 | Z150: 2
A151: 03051800 | B151: 51 | C151: 27 | D151: 24 | E151: 0 | F151: 0 | G151: 0 | H151: 0 | I151: 0 | J151: 1 | K151: 1 | L151: 0 | M151: 3 | N151: 1 | O151: 1 | P151: 0 | Q151: 1 | R151: 0 | S151: 13 | T151: 12 | U151: 5 | V151: 2 | W151: 2 | X151: 4 | Y151: 1 | Z151: 4
A152: 03051900 | B152: 5 | C152: 2 | D152: 3 | E152: 0 | F152: 0 | G152: 0 | H152: 0 | I152: 0 | J152: 0 | K152: 0 | L152: 0 | M152: 0 | N152: 0 | O152: 0 | P152: 0 | Q152: 0 | R152: 0 | S152: 0 | T152: 1 | U152: 0 | V152: 0 | W152: 1 | X152: 1 | Y152: 1 | Z152: 1
A153: 03052000 | B153: 2 | C153: 2 | D153: 0 | E153: 0 | F153: 0 | G153: 0 | H153: 0 | I153: 0 | J153: 0 | K153: 0 | L153: 0 | M153: 0 | N153: 0 | O153: 0 | P153: 0 | Q153: 0 | R153: 0 | S153: 2 | T153: 0 | U153: 0 | V153: 0 | W153: 0 | X153: 0 | Y153: 0 | Z153: 0
A154: 03052100 | B154: 33 | C154: 18 | D154: 15 | E154: 0 | F154: 0 | G154: 0 | H154: 0 | I154: 0 | J154: 2 | K154: 0 | L154: 0 | M154: 1 | N154: 0 | O154: 1 | P154: 1 | Q154: 0 | R154: 0 | S154: 15 | T154: 11 | U154: 1 | V154: 1 | W154: 0 | X154: 0 | Y154: 0 | Z154: 0
A155: 03052200 | B155: 21 | C155: 11 | D155: 10 | E155: 0 | F155: 0 | G155: 0 | H155: 0 | I155: 0 | J155: 0 | K155: 0 | L155: 0 | M155: 0 | N155: 0 | O155: 0 | P155: 0 | Q155: 0 | R155: 0 | S155: 4 | T155: 6 | U155: 1 | V155: 2 | W155: 2 | X155: 0 | Y155: 4 | Z155: 2
A156: 03052300 | B156: 20 | C156: 10 | D156: 10 | E156: 0 | F156: 0 | G156: 0 | H156: 0 | I156: 2 | J156: 0 | K156: 2 | L156: 0 | M156: 0 | N156: 0 | O156: 1 | P156: 0 | Q156: 0 | R156: 0 | S156: 2 | T156: 7 | U156: 1 | V156: 2 | W156: 2 | X156: 1 | Y156: 0 | Z156: 0
A157: 03052400 | B157: 2 | C157: 1 | D157: 1 | E157: 0 | F157: 0 | G157: 0 | H157: 0 | I157: 0 | J157: 0 | K157: 0 | L157: 0 | M157: 0 | N157: 0 | O157: 0 | P157: 0 | Q157: 0 | R157: 0 | S157: 0 | T157: 0 | U157: 1 | V157: 1 | W157: 0 | X157: 0 | Y157: 0 | Z157: 0
A158: 03052500 | B158: 3 | C158: 2 | D158: 1 | E158: 0 | F158: 0 | G158: 0 | H158: 0 | I158: 0 | J158: 0 | K158: 0 | L158: 0 | M158: 0 | N158: 0 | O158: 0 | P158: 0 | Q158: 0 | R158: 0 | S158: 2 | T158: 1 | U158: 0 | V158: 0 | W158: 0 | X158: 0 | Y158: 0 | Z158: 0
A159: 03052600 | B159: 136 | C159: 86 | D159: 50 | E159: 0 | F159: 0 | G159: 0 | H159: 0 | I159: 18 | J159: 3 | K159: 20 | L159: 7 | M159: 13 | N159: 12 | O159: 11 | P159: 3 | Q159: 8 | R159: 3 | S159: 13 | T159: 20 | U159: 2 | V159: 1 | W159: 1 | X159: 0 | Y159: 0 | Z159: 1
A160: 03052700 | B160: 254 | C160: 164 | D160: 90 | E160: 4 | F160: 0 | G160: 2 | H160: 1 | I160: 28 | J160: 11 | K160: 61 | L160: 21 | M160: 32 | N160: 13 | O160: 9 | P160: 15 | Q160: 2 | R160: 7 | S160: 14 | T160: 14 | U160: 2 | V160: 3 | W160: 8 | X160: 3 | Y160: 2 | Z160: 2
A161: 03052800 | B161: 434 | C161: 248 | D161: 186 | E161: 1 | F161: 0 | G161: 5 | H161: 9 | I161: 70 | J161: 17 | K161: 76 | L161: 33 | M161: 29 | N161: 14 | O161: 17 | P161: 7 | Q161: 7 | R161: 3 | S161: 18 | T161: 31 | U161: 3 | V161: 4 | W161: 5 | X161: 13 | Y161: 17 | Z161: 55
A162: 03052900 | B162: 21 | C162: 4 | D162: 17 | E162: 0 | F162: 0 | G162: 0 | H162: 0 | I162: 0 | J162: 1 | K162: 1 | L162: 0 | M162: 0 | N162: 0 | O162: 0 | P162: 0 | Q162: 0 | R162: 0 | S162: 0 | T162: 4 | U162: 0 | V162: 0 | W162: 1 | X162: 3 | Y162: 2 | Z162: 9
A163: 03053000 | B163: 2 | C163: 2 | D163: 0 | E163: 0 | F163: 0 | G163: 0 | H163: 0 | I163: 0 | J163: 0 | K163: 0 | L163: 0 | M163: 0 | N163: 0 | O163: 0 | P163: 0 | Q163: 0 | R163: 0 | S163: 2 | T163: 0 | U163: 0 | V163: 0 | W163: 0 | X163: 0 | Y163: 0 | Z163: 0
A164: 03053100 | B164: 34 | C164: 20 | D164: 14 | E164: 0 | F164: 0 | G164: 4 | H164: 0 | I164: 1 | J164: 0 | K164: 3 | L164: 4 | M164: 4 | N164: 4 | O164: 2 | P164: 3 | Q164: 2 | R164: 1 | S164: 4 | T164: 2 | U164: 0 | V164: 0 | W164: 0 | X164: 0 | Y164: 0 | Z164: 0
A165: 03053200 | B165: 41 | C165: 22 | D165: 19 | E165: 1 | F165: 0 | G165: 0 | H165: 0 | I165: 1 | J165: 3 | K165: 7 | L165: 2 | M165: 5 | N165: 2 | O165: 1 | P165: 4 | Q165: 3 | R165: 3 | S165: 3 | T165: 3 | U165: 1 | V165: 0 | W165: 0 | X165: 0 | Y165: 0 | Z165: 2
A166: 03053300 | B166: 65 | C166: 45 | D166: 20 | E166: 0 | F166: 0 | G166: 0 | H166: 1 | I166: 7 | J166: 0 | K166: 10 | L166: 7 | M166: 5 | N166: 1 | O166: 4 | P166: 4 | Q166: 4 | R166: 0 | S166: 10 | T166: 2 | U166: 3 | V166: 1 | W166: 1 | X166: 2 | Y166: 1 | Z166: 2
A167: 03053400 | B167: 12 | C167: 6 | D167: 6 | E167: 0 | F167: 0 | G167: 0 | H167: 0 | I167: 2 | J167: 1 | K167: 1 | L167: 1 | M167: 0 | N167: 0 | O167: 0 | P167: 0 | Q167: 0 | R167: 0 | S167: 1 | T167: 1 | U167: 1 | V167: 0 | W167: 0 | X167: 1 | Y167: 1 | Z167: 2
A168: 03053500 | B168: 3 | C168: 3 | D168: 0 | E168: 0 | F168: 0 | G168: 0 | H168: 0 | I168: 0 | J168: 0 | K168: 0 | L168: 0 | M168: 0 | N168: 0 | O168: 0 | P168: 0 | Q168: 0 | R168: 0 | S168: 3 | T168: 0 | U168: 0 | V168: 0 | W168: 0 | X168: 0 | Y168: 0 | Z168: 0
A169: 03053600 | B169: 14 | C169: 11 | D169: 3 | E169: 0 | F169: 0 | G169: 0 | H169: 0 | I169: 4 | J169: 0 | K169: 0 | L169: 1 | M169: 1 | N169: 0 | O169: 1 | P169: 0 | Q169: 0 | R169: 0 | S169: 3 | T169: 2 | U169: 1 | V169: 0 | W169: 1 | X169: 0 | Y169: 0 | Z169: 0
A170: 03053700 | B170: 48 | C170: 23 | D170: 25 | E170: 0 | F170: 0 | G170: 1 | H170: 0 | I170: 1 | J170: 1 | K170: 3 | L170: 3 | M170: 1 | N170: 1 | O170: 3 | P170: 0 | Q170: 0 | R170: 0 | S170: 9 | T170: 19 | U170: 4 | V170: 0 | W170: 0 | X170: 1 | Y170: 1 | Z170: 0
A171: 03053800 | B171: 252 | C171: 127 | D171: 125 | E171: 1 | F171: 0 | G171: 1 | H171: 1 | I171: 10 | J171: 5 | K171: 15 | L171: 13 | M171: 8 | N171: 10 | O171: 24 | P171: 10 | Q171: 5 | R171: 5 | S171: 33 | T171: 51 | U171: 19 | V171: 2 | W171: 7 | X171: 11 | Y171: 4 | Z171: 17
A172: 03053900 | B172: 52 | C172: 22 | D172: 30 | E172: 0 | F172: 0 | G172: 0 | H172: 1 | I172: 3 | J172: 1 | K172: 5 | L172: 0 | M172: 0 | N172: 1 | O172: 1 | P172: 1 | Q172: 0 | R172: 0 | S172: 5 | T172: 7 | U172: 1 | V172: 1 | W172: 3 | X172: 3 | Y172: 4 | Z172: 15
A173: 03500020 | B173: 12989 | C173: 6268 | D173: 6721 | E173: 5 | F173: 13 | G173: 90 | H173: 82 | I173: 8 | J173: 13 | K173: 104 | L173: 126 | M173: 2338 | N173: 2426 | O173: 83 | P173: 99 | Q173: 14 | R173: 18 | S173: 73 | T173: 73 | U173: 2129 | V173: 2127 | W173: 1424 | X173: 1744
A174: 03500030 | B174: 1573 | C174: 940 | D174: 633 | E174: 1 | F174: 1 | G174: 0 | H174: 0 | I174: 0 | J174: 0 | K174: 2 | L174: 2 | M174: 106 | N174: 81 | O174: 6 | P174: 4 | Q174: 1 | R174: 3 | S174: 10 | T174: 7 | U174: 288 | V174: 197 | W174: 526 | X174: 339
A175: 03500040 | B175: 4029 | C175: 2034 | D175: 1995 | E175: 1727 | F175: 1676 | G175: 307 | H175: 319
A176: 03500050 | B176: 755 | C176: 401 | D176: 354 | E176: 312 | F176: 275 | G176: 89 | H176: 79
A177: 03500060 | B177: 71 | C177: 38 | D177: 33 | E177: 31 | F177: 23 | G177: 7 | H177: 10
A178: 03500120 | B178: 327
A179: 03500130 | B179: 338
A180: 03500140 | B180: 203
A181: 03500150 | B181: 14
A182: 03500160 | B182: 6187 | D182: 598 | E182: 574
A183: 03500170 | B183: 75 | D183: 27 | E183: 14
A184: 03500200 | B184: 4481 | C184: 664 | E184: 520
A185: 03500210 | B185: 4198 | C185: 647 | E185: 468
A186: 03500290 | B186: 3603 | C186: 1526 | D186: 2077 | E186: 34 | F186: 46 | G186: 169 | H186: 179 | I186: 164 | J186: 260 | K186: 525 | L186: 852 | M186: 382 | N186: 496 | O186: 124 | P186: 106 | Q186: 109 | R186: 116 | S186: 19 | T186: 22
A187: 03500300 | B187: 758 | C187: 441 | D187: 317 | E187: 27 | F187: 32 | G187: 103 | H187: 78 | I187: 27 | J187: 23 | K187: 111 | L187: 72 | M187: 111 | N187: 71 | O187: 28 | P187: 33 | Q187: 31 | R187: 5 | S187: 3 | T187: 3
A188: 03500331 | B188: 167 | C188: 109 | D188: 58 | E188: 0 | F188: 0 | G188: 14 | H188: 12 | I188: 13 | J188: 8 | K188: 42 | L188: 22 | M188: 39 | N188: 15 | O188: 4 | P188: 2 | Q188: 0 | R188: 0
A189: 03500332 | B189: 165 | C189: 127 | D189: 38 | E189: 0 | F189: 2 | G189: 2 | H189: 7 | I189: 15 | J189: 1 | K189: 62 | L189: 19 | M189: 40 | N189: 7 | O189: 8 | P189: 3 | Q189: 0 | R189: 1
A190: 03500333 | B190: 5 | C190: 3 | D190: 2 | E190: 0 | F190: 0 | G190: 0 | H190: 1 | I190: 1 | J190: 0 | K190: 1 | L190: 1 | M190: 1 | N190: 0 | O190: 0 | P190: 0 | Q190: 0 | R190: 0
A191: 03500334 | B191: 16 | C191: 11 | D191: 5 | E191: 0 | F191: 0 | G191: 0 | H191: 1 | I191: 3 | J191: 0 | K191: 7 | L191: 1 | M191: 1 | N191: 2 | O191: 0 | P191: 1 | Q191: 0 | R191: 0
A192: 03500335 | B192: 1 | C192: 1 | D192: 0 | G192: 1 | Q192: 0 | R192: 0
A193: 03500336 | B193: 255 | C193: 128 | D193: 127 | E193: 0 | F193: 0 | G193: 0 | H193: 0 | I193: 12 | J193: 2 | K193: 30 | L193: 11 | M193: 14 | N193: 7 | O193: 9 | P193: 4 | Q193: 3 | R193: 5 | S193: 34 | T193: 47 | U193: 10 | V193: 13 | W193: 13 | X193: 18 | Y193: 3 | Z193: 20
A194: 03500337 | B194: 182 | C194: 101 | D194: 81 | E194: 0 | F194: 0 | G194: 0 | H194: 0 | I194: 6 | J194: 2 | K194: 5 | L194: 4 | M194: 4 | N194: 5 | O194: 2 | P194: 1 | Q194: 2 | R194: 5 | S194: 61 | T194: 55 | U194: 11 | V194: 5 | W194: 7 | X194: 3 | Y194: 3 | Z194: 1
A195: 03500338 | B195: 243 | C195: 121 | D195: 122 | E195: 1 | F195: 1 | G195: 1 | H195: 1 | I195: 12 | J195: 7 | K195: 25 | L195: 10 | M195: 11 | N195: 5 | O195: 5 | P195: 8 | Q195: 2 | R195: 5 | S195: 46 | T195: 54 | U195: 7 | V195: 15 | W195: 8 | X195: 7 | Y195: 3 | Z195: 9
A196: 03500339 | B196: 348 | C196: 197 | D196: 151 | E196: 0 | F196: 0 | G196: 2 | H196: 3 | I196: 36 | J196: 8 | K196: 42 | L196: 29 | M196: 16 | N196: 9 | O196: 17 | P196: 6 | Q196: 10 | R196: 2 | S196: 39 | T196: 60 | U196: 10 | V196: 8 | W196: 14 | X196: 8 | Y196: 11 | Z196: 18
A197: 03500340 | B197: 33 | C197: 15 | D197: 18 | E197: 0 | F197: 0 | G197: 0 | H197: 1 | I197: 2 | J197: 1 | K197: 0 | L197: 1 | M197: 0 | N197: 0 | O197: 1 | P197: 0 | Q197: 0 | R197: 0 | S197: 6 | T197: 3 | U197: 0 | V197: 0 | W197: 2 | X197: 2 | Y197: 4 | Z197: 10
A198: 03500341 | B198: 18 | C198: 8 | D198: 10 | E198: 0 | F198: 0 | G198: 0 | H198: 0 | I198: 1 | J198: 2 | K198: 0 | L198: 0 | M198: 0 | N198: 0 | O198: 1 | P198: 1 | Q198: 0 | R198: 0 | S198: 2 | T198: 3 | U198: 3 | V198: 1 | W198: 1 | X198: 2 | Y198: 0 | Z198: 1
A199: 03500342 | B199: 63 | C199: 36 | D199: 27 | E199: 0 | F199: 0 | G199: 0 | H199: 0 | I199: 2 | J199: 2 | K199: 4 | L199: 0 | M199: 1 | N199: 2 | O199: 3 | P199: 1 | Q199: 1 | R199: 0 | S199: 12 | T199: 13 | U199: 8 | V199: 5 | W199: 5 | X199: 3 | Y199: 0 | Z199: 1
A200: 03500343 | B200: 92 | C200: 39 | D200: 53 | E200: 0 | F200: 0 | G200: 0 | H200: 0 | I200: 2 | J200: 1 | K200: 11 | L200: 5 | M200: 4 | N200: 2 | O200: 1 | P200: 2 | Q200: 1 | R200: 3 | S200: 13 | T200: 26 | U200: 2 | V200: 9 | W200: 4 | X200: 5 | Y200: 1 | Z200: 0
A201: 03500344 | B201: 138 | C201: 68 | D201: 70 | E201: 0 | F201: 0 | G201: 0 | H201: 0 | I201: 5 | J201: 1 | K201: 19 | L201: 8 | M201: 7 | N201: 5 | O201: 6 | P201: 2 | Q201: 1 | R201: 2 | S201: 17 | T201: 17 | U201: 3 | V201: 4 | W201: 6 | X201: 13 | Y201: 4 | Z201: 18
... 2434 more rows

Sheet A01,
B1: SERVICIO DE SALUD
B2: =CONCATENATE("COMUNA: ",NOMBRE!B2," - ","( ",NOMBRE!C2,NOMBRE!D2,NOMBRE!E2,NOMBRE!F2,NOMBRE!G2," )") -> COMUNA: - ( )
B3: =CONCATENATE("ESTABLECIMIENTO/ESTRATEGIA: ",NOMBRE!B3," - ","( ",NOMBRE!C3,NOMBRE!D3,NOMBRE!E3,NOMBRE!F3,NOMBRE!G3,NOMBRE!H3," )") -> ESTABLECIMIENTO/ESTRATEGIA: - ( )
B4: =CONCATENATE("MES: ",NOMBRE!B6," - ","( ",NOMBRE!C6,NOMBRE!D6," )") -> MES: - ( )
B5: =CONCATENATE("AÑO: ",NOMBRE!B7) -> AÑO: 2023
B6: REM-A01. CONTROLES DE SALUD
B9: SECCIÓN A: CONTROLES DE SALUD SEXUAL Y REPRODUCTIVA
B10: TIPO DE CONTROL | C10: PROFESIONAL | D10: TOTAL | E10: POR EDAD | V10: SEXO | X10: Control con pareja familiar u otro | Y10: Control de diada con presencia del padre | Z10: Espacios Amigables/ Adolescentes | AA10: Niños, Niñas, Adolescentes y Jóvenes SENAME | AB10: Niños, Niñas, Adolescentes y Jóvenes Mejor Niñez | AC10: Pueblos Originarios | AD10: Migrantes
E11: Menor de 4 años | F11: 5 - 9 años | G11: 10 - 14 años | H11: 15 a 19 años | I11: 20 - 24 años | J11: 25 - 29 años | K11: 30 - 34 años | L11: 35 - 39 años | M11: 40 - 44 años | N11: 45 - 49 años | O11: 50 - 54 años | P11: 55 - 59 años | Q11: 60 - 64 años | R11: 65 - 69 años | S11: 70 - 74 años | T11: 75 - 79 años | U11: 80 y más años | V11: HOMBRES | W11: MUJERES
A12: 01010101 | B12: PRE- CONCEPCIONAL | C12: MÉDICO/A | D12: =SUM(G12:P12) -> 7 | E12: =IFERROR(VLOOKUP($A12,FILTRO!$A$5:$AW$2635,3,FALSE),0) -> 0 | F12: =IFERROR(VLOOKUP($A12,FILTRO!$A$5:$AW$2635,4,FALSE),0) -> 0 | G12: =IFERROR(VLOOKUP($A12,FILTRO!$A$5:$AW$2635,5,FALSE),0) -> 0 | H12: =IFERROR(VLOOKUP($A12,FILTRO!$A$5:$AW$2635,6,FALSE),0) -> 0 | I12: =IFERROR(VLOOKUP($A12,FILTRO!$A$5:$AW$2635,7,FALSE),0) -> 0 | J12: =IFERROR(VLOOKUP($A12,FILTRO!$A$5:$AW$2635,8,FALSE),0) -> 4 | K12: =IFERROR(VLOOKUP($A12,FILTRO!$A$5:$AW$2635,9,FALSE),0) -> 2 | L12: =IFERROR(VLOOKUP($A12,FILTRO!$A$5:$AW$2635,10,FALSE),0) -> 0 | M12: =IFERROR(VLOOKUP($A12,FILTRO!$A$5:$AW$2635,11,FALSE),0) -> 1 | N12: =IFERROR(VLOOKUP($A12,FILTRO!$A$5:$AW$2635,12,FALSE),0) -> 0 | O12: =IFERROR(VLOOKUP($A12,FILTRO!$A$5:$AW$2635,13,FALSE),0) -> 0 | P12: =IFERROR(VLOOKUP($A12,FILTRO!$A$5:$AW$2635,14,FALSE),0) -> 0 | Q12: =IFERROR(VLOOKUP($A12,FILTRO!$A$5:$AW$2635,15,FALSE),0) -> 0 | R12: =IFERROR(VLOOKUP($A12,FILTRO!$A$5:$AW$2635,16,FALSE),0) -> 0 | S12: =IFERROR(VLOOKUP($A12,FILTRO!$A$5:$AW$2635,17,FALSE),0) -> 0 | T12: =IFERROR(VLOOKUP($A12,FILTRO!$A$5:$AW$2635,18,FALSE),0) -> 0 | U12: =IFERROR(VLOOKUP($A12,FILTRO!$A$5:$AW$2635,19,FALSE),0) -> 0 | V12: =IFERROR(VLOOKUP($A12,FILTRO!$A$5:$AW$2635,20,FALSE),0) -> 0 | W12: =IFERROR(VLOOKUP($A12,FILTRO!$A$5:$AW$2635,21,FALSE),0) -> 7 | X12: =IFERROR(VLOOKUP($A12,FILTRO!$A$5:$AW$2635,22,FALSE),0) -> 0 | Y12: =IFERROR(VLOOKUP($A12,FILTRO!$A$5:$AW$2635,23,FALSE),0) -> 0 | Z12: =IFERROR(VLOOKUP($A12,FILTRO!$A$5:$AW$2635,24,FALSE),0) -> 0 | AA12: =IFERROR(VLOOKUP($A12,FILTRO!$A$5:$AW$2635,25,FALSE),0) -> 0 | AB12: =IFERROR(VLOOKUP($A12,FILTRO!$A$5:$AW$2635,26,FALSE),0) -> 0 | AC12: =IFERROR(VLOOKUP($A12,FILTRO!$A$5:$AW$2635,27,FALSE),0) -> 0 | AD12: =IFERROR(VLOOKUP($A12,FILTRO!$A$5:$AW$2635,28,FALSE),0) -> 0 | CA12: * El número de Sexo Hombres y mujeres debe ser igual al total. | DA12: 1 | DB12: 0 | DE12: 0 | DF12: 0 | DG12: 0 | DH12: 0 | DI12: 0 | DJ12: 0 | DK12: 0 | DL12: 0 | DM12: 0 | DN12: 0 | DO12: 0 | DP12: 0 | DQ12: 0
A13: 01010103 | C13: MATRONA/ÓN | D13: =SUM(G13:P13) -> 1666 | E13: =IFERROR(VLOOKUP($A13,FILTRO!$A$5:$AW$2635,3,FALSE),0) -> 0 | F13: =IFERROR(VLOOKUP($A13,FILTRO!$A$5:$AW$2635,4,FALSE),0) -> 0 | G13: =IFERROR(VLOOKUP($A13,FILTRO!$A$5:$AW$2635,5,FALSE),0) -> 5 | H13: =IFERROR(VLOOKUP($A13,FILTRO!$A$5:$AW$2635,6,FALSE),0) -> 77 | I13: =IFERROR(VLOOKUP($A13,FILTRO!$A$5:$AW$2635,7,FALSE),0) -> 275 | J13: =IFERROR(VLOOKUP($A13,FILTRO!$A$5:$AW$2635,8,FALSE),0) -> 459 | K13: =IFERROR(VLOOKUP($A13,FILTRO!$A$5:$AW$2635,9,FALSE),0) -> 421 | L13: =IFERROR(VLOOKUP($A13,FILTRO!$A$5:$AW$2635,10,FALSE),0) -> 292 | M13: =IFERROR(VLOOKUP($A13,FILTRO!$A$5:$AW$2635,11,FALSE),0) -> 115 | N13: =IFERROR(VLOOKUP($A13,FILTRO!$A$5:$AW$2635,12,FALSE),0) -> 21 | O13: =IFERROR(VLOOKUP($A13,FILTRO!$A$5:$AW$2635,13,FALSE),0) -> 1 | P13: =IFERROR(VLOOKUP($A13,FILTRO!$A$5:$AW$2635,14,FALSE),0) -> 0 | Q13: =IFERROR(VLOOKUP($A13,FILTRO!$A$5:$AW$2635,15,FALSE),0) -> 0 | R13: =IFERROR(VLOOKUP($A13,FILTRO!$A$5:$AW$2635,16,FALSE),0) -> 0 | S13: =IFERROR(VLOOKUP($A13,FILTRO!$A$5:$AW$2635,17,FALSE),0) -> 0 | T13: =IFERROR(VLOOKUP($A13,FILTRO!$A$5:$AW$2635,18,FALSE),0) -> 0 | U13: =IFERROR(VLOOKUP($A13,FILTRO!$A$5:$AW$2635,19,FALSE),0) -> 0 | V13: =IFERROR(VLOOKUP($A13,FILTRO!$A$5:$AW$2635,20,FALSE),0) -> 10 | W13: =IFERROR(VLOOKUP($A13,FILTRO!$A$5:$AW$2635,21,FALSE),0) -> 1639 | X13: =IFERROR(VLOOKUP($A13,FILTRO!$A$5:$AW$2635,22,FALSE),0) -> 0 | Y13: =IFERROR(VLOOKUP($A13,FILTRO!$A$5:$AW$2635,23,FALSE),0) -> 0 | Z13: =IFERROR(VLOOKUP($A13,FILTRO!$A$5:$AW$2635,24,FALSE),0) -> 17 | AA13: =IFERROR(VLOOKUP($A13,FILTRO!$A$5:$AW$2635,25,FALSE),0) -> 0 | AB13: =IFERROR(VLOOKUP($A13,FILTRO!$A$5:$AW$2635,26,FALSE),0) -> 0 | AC13: =IFERROR(VLOOKUP($A13,FILTRO!$A$5:$AW$2635,27,FALSE),0) -> 14 | AD13: =IFERROR(VLOOKUP($A13,FILTRO!$A$5:$AW$2635,28,FALSE),0) -> 74 | CA13: * El número de Sexo Hombres y mujeres debe ser igual al total. | DA13: 1 | DB13: 0 | DE13: 0 | DF13: 0 | DG13: 0 | DH13: 0 | DI13: 0 | DJ13: 0 | DK13: 0 | DL13: 0 | DM13: 0 | DN13: 0 | DO13: 0 | DP13: 0 | DQ13: 0
A14: 01010201 | B14: PRENATAL | C14: MÉDICO/A | D14: =SUM(G14:P14) -> 297 | E14: =IFERROR(VLOOKUP($A14,FILTRO!$A$5:$AW$2635,3,FALSE),0) -> 0 | F14: =IFERROR(VLOOKUP($A14,FILTRO!$A$5:$AW$2635,4,FALSE),0) -> 0 | G14: =IFERROR(VLOOKUP($A14,FILTRO!$A$5:$AW$2635,5,FALSE),0) -> 0 | H14: =IFERROR(VLOOKUP($A14,FILTRO!$A$5:$AW$2635,6,FALSE),0) -> 23 | I14: =IFERROR(VLOOKUP($A14,FILTRO!$A$5:$AW$2635,7,FALSE),0) -> 67 | J14: =IFERROR(VLOOKUP($A14,FILTRO!$A$5:$AW$2635,8,FALSE),0) -> 68 | K14: =IFERROR(VLOOKUP($A14,FILTRO!$A$5:$AW$2635,9,FALSE),0) -> 76 | L14: =IFERROR(VLOOKUP($A14,FILTRO!$A$5:$AW$2635,10,FALSE),0) -> 50 | M14: =IFERROR(VLOOKUP($A14,FILTRO!$A$5:$AW$2635,11,FALSE),0) -> 4 | N14: =IFERROR(VLOOKUP($A14,FILTRO!$A$5:$AW$2635,12,FALSE),0) -> 4 | O14: =IFERROR(VLOOKUP($A14,FILTRO!$A$5:$AW$2635,13,FALSE),0) -> 3 | P14: =IFERROR(VLOOKUP($A14,FILTRO!$A$5:$AW$2635,14,FALSE),0) -> 2 | Q14: =IFERROR(VLOOKUP($A14,FILTRO!$A$5:$AW$2635,15,FALSE),0) -> 0 | R14: =IFERROR(VLOOKUP($A14,FILTRO!$A$5:$AW$2635,16,FALSE),0) -> 0 | S14: =IFERROR(VLOOKUP($A14,FILTRO!$A$5:$AW$2635,17,FALSE),0) -> 0 | T14: =IFERROR(VLOOKUP($A14,FILTRO!$A$5:$AW$2635,18,FALSE),0) -> 0 | U14: =IFERROR(VLOOKUP($A14,FILTRO!$A$5:$AW$2635,19,FALSE),0) -> 0 | V14: =IFERROR(VLOOKUP($A14,FILTRO!$A$5:$AW$2635,20,FALSE),0) -> 0 | W14: =IFERROR(VLOOKUP($A14,FILTRO!$A$5:$AW$2635,21,FALSE),0) -> 296 | X14: =IFERROR(VLOOKUP($A14,FILTRO!$A$5:$AW$2635,22,FALSE),0) -> 13 | Y14: =IFERROR(VLOOKUP($A14,FILTRO!$A$5:$AW$2635,23,FALSE),0) -> 0 | Z14: =IFERROR(VLOOKUP($A14,FILTRO!$A$5:$AW$2635,24,FALSE),0) -> 0 | AA14: =IFERROR(VLOOKUP($A14,FILTRO!$A$5:$AW$2635,25,FALSE),0) -> 0 | AB14: =IFERROR(VLOOKUP($A14,FILTRO!$A$5:$AW$2635,26,FALSE),0) -> 0 | AC14: =IFERROR(VLOOKUP($A14,FILTRO!$A$5:$AW$2635,27,FALSE),0) -> 2 | AD14: =IFERROR(VLOOKUP($A14,FILTRO!$A$5:$AW$2635,28,FALSE),0) -> 1 | CA14: * El número de Sexo Hombres y mujeres debe ser igual al total. | DA14: 1 | DB14: 0 | DC14: 0 | DE14: 0 | DF14: 0 | DG14: 0 | DH14: 0 | DI14: 0 | DJ14: 0 | DK14: 0 | DL14: 0 | DM14: 0 | DN14: 0 | DO14: 0 | DP14: 0 | DQ14: 0
A15: 01010203 | C15: MATRONA/ÓN | D15: 40636 | E15: =IFERROR(VLOOKUP($A15,FILTRO!$A$5:$AW$2635,3,FALSE),0) -> 0 | F15: =IFERROR(VLOOKUP($A15,FILTRO!$A$5:$AW$2635,4,FALSE),0) -> 0 | G15: =IFERROR(VLOOKUP($A15,FILTRO!$A$5:$AW$2635,5,FALSE),0) -> 110 | H15: =IFERROR(VLOOKUP($A15,FILTRO!$A$5:$AW$2635,6,FALSE),0) -> 2232 | I15: =IFERROR(VLOOKUP($A15,FILTRO!$A$5:$AW$2635,7,FALSE),0) -> 9019 | J15: =IFERROR(VLOOKUP($A15,FILTRO!$A$5:$AW$2635,8,FALSE),0) -> 12096 | K15: =IFERROR(VLOOKUP($A15,FILTRO!$A$5:$AW$2635,9,FALSE),0) -> 10450 | L15: =IFERROR(VLOOKUP($A15,FILTRO!$A$5:$AW$2635,10,FALSE),0) -> 5221 | M15: =IFERROR(VLOOKUP($A15,FILTRO!$A$5:$AW$2635,11,FALSE),0) -> 1452 | N15: =IFERROR(VLOOKUP($A15,FILTRO!$A$5:$AW$2635,12,FALSE),0) -> 52 | O15: =IFERROR(VLOOKUP($A15,FILTRO!$A$5:$AW$2635,13,FALSE),0) -> 3 | P15: =IFERROR(VLOOKUP($A15,FILTRO!$A$5:$AW$2635,14,FALSE),0) -> 1 | Q15: =IFERROR(VLOOKUP($A15,FILTRO!$A$5:$AW$2635,15,FALSE),0) -> 0 | R15: =IFERROR(VLOOKUP($A15,FILTRO!$A$5:$AW$2635,16,FALSE),0) -> 0 | S15: =IFERROR(VLOOKUP($A15,FILTRO!$A$5:$AW$2635,17,FALSE),0) -> 0 | T15: =IFERROR(VLOOKUP($A15,FILTRO!$A$5:$AW$2635,18,FALSE),0) -> 0 | U15: =IFERROR(VLOOKUP($A15,FILTRO!$A$5:$AW$2635,19,FALSE),0) -> 0 | V15: =IFERROR(VLOOKUP($A15,FILTRO!$A$5:$AW$2635,20,FALSE),0) -> 0 | W15: =IFERROR(VLOOKUP($A15,FILTRO!$A$5:$AW$2635,21,FALSE),0) -> 40261 | X15: =IFERROR(VLOOKUP($A15,FILTRO!$A$5:$AW$2635,22,FALSE),0) -> 11368 | Y15: =IFERROR(VLOOKUP($A15,FILTRO!$A$5:$AW$2635,23,FALSE),0) -> 0 | Z15: =IFERROR(VLOOKUP($A15,FILTRO!$A$5:$AW$2635,24,FALSE),0) -> 0 | AA15: =IFERROR(VLOOKUP($A15,FILTRO!$A$5:$AW$2635,25,FALSE),0) -> 48 | AB15: =IFERROR(VLOOKUP($A15,FILTRO!$A$5:$AW$2635,26,FALSE),0) -> 33 | AC15: =IFERROR(VLOOKUP($A15,FILTRO!$A$5:$AW$2635,27,FALSE),0) -> 538 | AD15: =IFERROR(VLOOKUP($A15,FILTRO!$A$5:$AW$2635,28,FALSE),0) -> 3026 | CA15: * El número de Sexo Hombres y mujeres debe ser igual al total. | DA15: 1 | DB15: 0 | DC15: 0 | DE15: 0 | DF15: 0 | DG15: 0 | DH15: 0 | DI15: 0 | DJ15: 0 | DK15: 0 | DL15: 0 | DM15: 0 | DN15: 0 | DO15: 0 | DP15: 0 | DQ15: 0
A16: 01501050 | B16: POST PARTO | C16: MÉDICO/A | D16: 4 | E16: =IFERROR(VLOOKUP($A16,FILTRO!$A$5:$AW$2635,3,FALSE),0) -> 0 | F16: =IFERROR(VLOOKUP($A16,FILTRO!$A$5:$AW$2635,4,FALSE),0) -> 0 | G16: =IFERROR(VLOOKUP($A16,FILTRO!$A$5:$AW$2635,5,FALSE),0) -> 0 | H16: =IFERROR(VLOOKUP($A16,FILTRO!$A$5:$AW$2635,6,FALSE),0) -> 0 | I16: =IFERROR(VLOOKUP($A16,FILTRO!$A$5:$AW$2635,7,FALSE),0) -> 3 | J16: =IFERROR(VLOOKUP($A16,FILTRO!$A$5:$AW$2635,8,FALSE),0) -> 0 | K16: =IFERROR(VLOOKUP($A16,FILTRO!$A$5:$AW$2635,9,FALSE),0) -> 0 | L16: =IFERROR(VLOOKUP($A16,FILTRO!$A$5:$AW$2635,10,FALSE),0) -> 1 | M16: =IFERROR(VLOOKUP($A16,FILTRO!$A$5:$AW$2635,11,FALSE),0) -> 0 | N16: =IFERROR(VLOOKUP($A16,FILTRO!$A$5:$AW$2635,12,FALSE),0) -> 0 | O16: =IFERROR(VLOOKUP($A16,FILTRO!$A$5:$AW$2635,13,FALSE),0) -> 0 | P16: =IFERROR(VLOOKUP($A16,FILTRO!$A$5:$AW$2635,14,FALSE),0) -> 0 | Q16: =IFERROR(VLOOKUP($A16,FILTRO!$A$5:$AW$2635,15,FALSE),0) -> 0 | R16: =IFERROR(VLOOKUP($A16,FILTRO!$A$5:$AW$2635,16,FALSE),0) -> 0 | S16: =IFERROR(VLOOKUP($A16,FILTRO!$A$5:$AW$2635,17,FALSE),0) -> 0 | T16: =IFERROR(VLOOKUP($A16,FILTRO!$A$5:$AW$2635,18,FALSE),0) -> 0 | U16: =IFERROR(VLOOKUP($A16,FILTRO!$A$5:$AW$2635,19,FALSE),0) -> 0 | V16: =IFERROR(VLOOKUP($A16,FILTRO!$A$5:$AW$2635,20,FALSE),0) -> 0 | W16: =IFERROR(VLOOKUP($A16,FILTRO!$A$5:$AW$2635,21,FALSE),0) -> 4 | X16: =IFERROR(VLOOKUP($A16,FILTRO!$A$5:$AW$2635,22,FALSE),0) -> 0 | Y16: =IFERROR(VLOOKUP($A16,FILTRO!$A$5:$AW$2635,23,FALSE),0) -> 0 | Z16: =IFERROR(VLOOKUP($A16,FILTRO!$A$5:$AW$2635,24,FALSE),0) -> 0 | AA16: =IFERROR(VLOOKUP($A16,FILTRO!$A$5:$AW$2635,25,FALSE),0) -> 0 | AB16: =IFERROR(VLOOKUP($A16,FILTRO!$A$5:$AW$2635,26,FALSE),0) -> 0 | AC16: =IFERROR(VLOOKUP($A16,FILTRO!$A$5:$AW$2635,27,FALSE),0) -> 0 | AD16: =IFERROR(VLOOKUP($A16,FILTRO!$A$5:$AW$2635,28,FALSE),0) -> 0 | CA16: * El número de Sexo Hombres y mujeres debe ser igual al total. | DA16: 1 | DB16: 0 | DE16: 0 | DF16: 0 | DG16: 0 | DH16: 0 | DI16: 0 | DJ16: 0 | DK16: 0 | DL16: 0 | DM16: 0 | DN16: 0 | DO16: 0 | DP16: 0 | DQ16: 0
A17: 01501060 | C17: MATRONA/ÓN | D17: 435 | E17: =IFERROR(VLOOKUP($A17,FILTRO!$A$5:$AW$2635,3,FALSE),0) -> 0 | F17: =IFERROR(VLOOKUP($A17,FILTRO!$A$5:$AW$2635,4,FALSE),0) -> 0 | G17: =IFERROR(VLOOKUP($A17,FILTRO!$A$5:$AW$2635,5,FALSE),0) -> 0 | H17: =IFERROR(VLOOKUP($A17,FILTRO!$A$5:$AW$2635,6,FALSE),0) -> 15 | I17: =IFERROR(VLOOKUP($A17,FILTRO!$A$5:$AW$2635,7,FALSE),0) -> 99 | J17: =IFERROR(VLOOKUP($A17,FILTRO!$A$5:$AW$2635,8,FALSE),0) -> 109 | K17: =IFERROR(VLOOKUP($A17,FILTRO!$A$5:$AW$2635,9,FALSE),0) -> 122 | L17: =IFERROR(VLOOKUP($A17,FILTRO!$A$5:$AW$2635,10,FALSE),0) -> 66 | M17: =IFERROR(VLOOKUP($A17,FILTRO!$A$5:$AW$2635,11,FALSE),0) -> 22 | N17: =IFERROR(VLOOKUP($A17,FILTRO!$A$5:$AW$2635,12,FALSE),0) -> 1 | O17: =IFERROR(VLOOKUP($A17,FILTRO!$A$5:$AW$2635,13,FALSE),0) -> 0 | P17: =IFERROR(VLOOKUP($A17,FILTRO!$A$5:$AW$2635,14,FALSE),0) -> 1 | Q17: =IFERROR(VLOOKUP($A17,FILTRO!$A$5:$AW$2635,15,FALSE),0) -> 0 | R17: =IFERROR(VLOOKUP($A17,FILTRO!$A$5:$AW$2635,16,FALSE),0) -> 0 | S17: =IFERROR(VLOOKUP($A17,FILTRO!$A$5:$AW$2635,17,FALSE),0) -> 0 | T17: =IFERROR(VLOOKUP($A17,FILTRO!$A$5:$AW$2635,18,FALSE),0) -> 0 | U17: =IFERROR(VLOOKUP($A17,FILTRO!$A$5:$AW$2635,19,FALSE),0) -> 0 | V17: =IFERROR(VLOOKUP($A17,FILTRO!$A$5:$AW$2635,20,FALSE),0) -> 0 | W17: =IFERROR(VLOOKUP($A17,FILTRO!$A$5:$AW$2635,21,FALSE),0) -> 433 | X17: =IFERROR(VLOOKUP($A17,FILTRO!$A$5:$AW$2635,22,FALSE),0) -> 0 | Y17: =IFERROR(VLOOKUP($A17,FILTRO!$A$5:$AW$2635,23,FALSE),0) -> 0 | Z17: =IFERROR(VLOOKUP($A17,FILTRO!$A$5:$AW$2635,24,FALSE),0) -> 0 | AA17: =IFERROR(VLOOKUP($A17,FILTRO!$A$5:$AW$2635,25,FALSE),0) -> 1 | AB17: =IFERROR(VLOOKUP($A17,FILTRO!$A$5:$AW$2635,26,FALSE),0) -> 0 | AC17: =IFERROR(VLOOKUP($A17,FILTRO!$A$5:$AW$2635,27,FALSE),0) -> 2 | AD17: =IFERROR(VLOOKUP($A17,FILTRO!$A$5:$AW$2635,28,FALSE),0) -> 23 | CA17: * El número de Sexo Hombres y mujeres debe ser igual al total. | DA17: 1 | DB17: 0 | DE17: 0 | DF17: 0 | DG17: 0 | DH17: 0 | DI17: 0 | DJ17: 0 | DK17: 0 | DL17: 0 | DM17: 0 | DN17: 0 | DO17: 0 | DP17: 0 | DQ17: 0
A18: 01501070 | B18: POST ABORTO | C18: MÉDICO/A | D18: 5 | E18: =IFERROR(VLOOKUP($A18,FILTRO!$A$5:$AW$2635,3,FALSE),0) -> 0 | F18: =IFERROR(VLOOKUP($A18,FILTRO!$A$5:$AW$2635,4,FALSE),0) -> 0 | G18: =IFERROR(VLOOKUP($A18,FILTRO!$A$5:$AW$2635,5,FALSE),0) -> 0 | H18: =IFERROR(VLOOKUP($A18,FILTRO!$A$5:$AW$2635,6,FALSE),0) -> 0 | I18: =IFERROR(VLOOKUP($A18,FILTRO!$A$5:$AW$2635,7,FALSE),0) -> 1 | J18: =IFERROR(VLOOKUP($A18,FILTRO!$A$5:$AW$2635,8,FALSE),0) -> 2 | K18: =IFERROR(VLOOKUP($A18,FILTRO!$A$5:$AW$2635,9,FALSE),0) -> 0 | L18: =IFERROR(VLOOKUP($A18,FILTRO!$A$5:$AW$2635,10,FALSE),0) -> 2 | M18: =IFERROR(VLOOKUP($A18,FILTRO!$A$5:$AW$2635,11,FALSE),0) -> 0 | N18: =IFERROR(VLOOKUP($A18,FILTRO!$A$5:$AW$2635,12,FALSE),0) -> 0 | O18: =IFERROR(VLOOKUP($A18,FILTRO!$A$5:$AW$2635,13,FALSE),0) -> 0 | P18: =IFERROR(VLOOKUP($A18,FILTRO!$A$5:$AW$2635,14,FALSE),0) -> 0 | Q18: =IFERROR(VLOOKUP($A18,FILTRO!$A$5:$AW$2635,15,FALSE),0) -> 0 | R18: =IFERROR(VLOOKUP($A18,FILTRO!$A$5:$AW$2635,16,FALSE),0) -> 0 | S18: =IFERROR(VLOOKUP($A18,FILTRO!$A$5:$AW$2635,17,FALSE),0) -> 0 | T18: =IFERROR(VLOOKUP($A18,FILTRO!$A$5:$AW$2635,18,FALSE),0) -> 0 | U18: =IFERROR(VLOOKUP($A18,FILTRO!$A$5:$AW$2635,19,FALSE),0) -> 0 | V18: =IFERROR(VLOOKUP($A18,FILTRO!$A$5:$AW$2635,20,FALSE),0) -> 0 | W18: =IFERROR(VLOOKUP($A18,FILTRO!$A$5:$AW$2635,21,FALSE),0) -> 5 | X18: =IFERROR(VLOOKUP($A18,FILTRO!$A$5:$AW$2635,22,FALSE),0) -> 0 | Y18: =IFERROR(VLOOKUP($A18,FILTRO!$A$5:$AW$2635,23,FALSE),0) -> 0 | Z18: =IFERROR(VLOOKUP($A18,FILTRO!$A$5:$AW$2635,24,FALSE),0) -> 0 | AA18: =IFERROR(VLOOKUP($A18,FILTRO!$A$5:$AW$2635,25,FALSE),0) -> 0 | AB18: =IFERROR(VLOOKUP($A18,FILTRO!$A$5:$AW$2635,26,FALSE),0) -> 0 | AC18: =IFERROR(VLOOKUP($A18,FILTRO!$A$5:$AW$2635,27,FALSE),0) -> 0 | AD18: =IFERROR(VLOOKUP($A18,FILTRO!$A$5:$AW$2635,28,FALSE),0) -> 0 | CA18: * El número de Sexo Hombres y mujeres debe ser igual al total. | DA18: 1 | DB18: 0 | DE18: 0 | DF18: 0 | DG18: 0 | DH18: 0 | DI18: 0 | DJ18: 0 | DK18: 0 | DL18: 0 | DM18: 0 | DN18: 0 | DO18: 0 | DP18: 0 | DQ18: 0
A19: 01501080 | C19: MATRONA/ÓN | D19: 216 | E19: =IFERROR(VLOOKUP($A19,FILTRO!$A$5:$AW$2635,3,FALSE),0) -> 0 | F19: =IFERROR(VLOOKUP($A19,FILTRO!$A$5:$AW$2635,4,FALSE),0) -> 0 | G19: =IFERROR(VLOOKUP($A19,FILTRO!$A$5:$AW$2635,5,FALSE),0) -> 0 | H19: =IFERROR(VLOOKUP($A19,FILTRO!$A$5:$AW$2635,6,FALSE),0) -> 12 | I19: =IFERROR(VLOOKUP($A19,FILTRO!$A$5:$AW$2635,7,FALSE),0) -> 36 | J19: =IFERROR(VLOOKUP($A19,FILTRO!$A$5:$AW$2635,8,FALSE),0) -> 42 | K19: =IFERROR(VLOOKUP($A19,FILTRO!$A$5:$AW$2635,9,FALSE),0) -> 57 | L19: =IFERROR(VLOOKUP($A19,FILTRO!$A$5:$AW$2635,10,FALSE),0) -> 49 | M19: =IFERROR(VLOOKUP($A19,FILTRO!$A$5:$AW$2635,11,FALSE),0) -> 16 | N19: =IFERROR(VLOOKUP($A19,FILTRO!$A$5:$AW$2635,12,FALSE),0) -> 4 | O19: =IFERROR(VLOOKUP($A19,FILTRO!$A$5:$AW$2635,13,FALSE),0) -> 0 | P19: =IFERROR(VLOOKUP($A19,FILTRO!$A$5:$AW$2635,14,FALSE),0) -> 0 | Q19: =IFERROR(VLOOKUP($A19,FILTRO!$A$5:$AW$2635,15,FALSE),0) -> 0 | R19: =IFERROR(VLOOKUP($A19,FILTRO!$A$5:$AW$2635,16,FALSE),0) -> 0 | S19: =IFERROR(VLOOKUP($A19,FILTRO!$A$5:$AW$2635,17,FALSE),0) -> 0 | T19: =IFERROR(VLOOKUP($A19,FILTRO!$A$5:$AW$2635,18,FALSE),0) -> 0 | U19: =IFERROR(VLOOKUP($A19,FILTRO!$A$5:$AW$2635,19,FALSE),0) -> 0 | V19: =IFERROR(VLOOKUP($A19,FILTRO!$A$5:$AW$2635,20,FALSE),0) -> 0 | W19: =IFERROR(VLOOKUP($A19,FILTRO!$A$5:$AW$2635,21,FALSE),0) -> 209 | X19: =IFERROR(VLOOKUP($A19,FILTRO!$A$5:$AW$2635,22,FALSE),0) -> 0 | Y19: =IFERROR(VLOOKUP($A19,FILTRO!$A$5:$AW$2635,23,FALSE),0) -> 0 | Z19: =IFERROR(VLOOKUP($A19,FILTRO!$A$5:$AW$2635,24,FALSE),0) -> 0 | AA19: =IFERROR(VLOOKUP($A19,FILTRO!$A$5:$AW$2635,25,FALSE),0) -> 0 | AB19: =IFERROR(VLOOKUP($A19,FILTRO!$A$5:$AW$2635,26,FALSE),0) -> 0 | AC19: =IFERROR(VLOOKUP($A19,FILTRO!$A$5:$AW$2635,27,FALSE),0) -> 6 | AD19: =IFERROR(VLOOKUP($A19,FILTRO!$A$5:$AW$2635,28,FALSE),0) -> 18 | CA19: * El número de Sexo Hombres y mujeres debe ser igual al total. | DA19: 1 | DB19: 0 | DE19: 0 | DF19: 0 | DG19: 0 | DH19: 0 | DI19: 0 | DJ19: 0 | DK19: 0 | DL19: 0 | DM19: 0 | DN19: 0 | DO19: 0 | DP19: 0 | DQ19: 0
A20: 01110106 | B20: PUÉRPERA CON RECIÉN NACIDO HASTA 10 DÍAS DE VIDA | C20: MÉDICO/A | D20: 48 | E20: =IFERROR(VLOOKUP($A20,FILTRO!$A$5:$AW$2635,3,FALSE),0) -> 0 | F20: =IFERROR(VLOOKUP($A20,FILTRO!$A$5:$AW$2635,4,FALSE),0) -> 0 | G20: =IFERROR(VLOOKUP($A20,FILTRO!$A$5:$AW$2635,5,FALSE),0) -> 0 | H20: =IFERROR(VLOOKUP($A20,FILTRO!$A$5:$AW$2635,6,FALSE),0) -> 4 | I20: =IFERROR(VLOOKUP($A20,FILTRO!$A$5:$AW$2635,7,FALSE),0) -> 11 | J20: =IFERROR(VLOOKUP($A20,FILTRO!$A$5:$AW$2635,8,FALSE),0) -> 13 | K20: =IFERROR(VLOOKUP($A20,FILTRO!$A$5:$AW$2635,9,FALSE),0) -> 8 | L20: =IFERROR(VLOOKUP($A20,FILTRO!$A$5:$AW$2635,10,FALSE),0) -> 6 | M20: =IFERROR(VLOOKUP($A20,FILTRO!$A$5:$AW$2635,11,FALSE),0) -> 6 | N20: =IFERROR(VLOOKUP($A20,FILTRO!$A$5:$AW$2635,12,FALSE),0) -> 0 | O20: =IFERROR(VLOOKUP($A20,FILTRO!$A$5:$AW$2635,13,FALSE),0) -> 0 | P20: =IFERROR(VLOOKUP($A20,FILTRO!$A$5:$AW$2635,14,FALSE),0) -> 0 | Q20: =IFERROR(VLOOKUP($A20,FILTRO!$A$5:$AW$2635,15,FALSE),0) -> 0 | R20: =IFERROR(VLOOKUP($A20,FILTRO!$A$5:$AW$2635,16,FALSE),0) -> 0 | S20: =IFERROR(VLOOKUP($A20,FILTRO!$A$5:$AW$2635,17,FALSE),0) -> 0 | T20: =IFERROR(VLOOKUP($A20,FILTRO!$A$5:$AW$2635,18,FALSE),0) -> 0 | U20: =IFERROR(VLOOKUP($A20,FILTRO!$A$5:$AW$2635,19,FALSE),0) -> 0 | V20: =IFERROR(VLOOKUP($A20,FILTRO!$A$5:$AW$2635,20,FALSE),0) -> 0 | W20: =IFERROR(VLOOKUP($A20,FILTRO!$A$5:$AW$2635,21,FALSE),0) -> 45 | X20: =IFERROR(VLOOKUP($A20,FILTRO!$A$5:$AW$2635,22,FALSE),0) -> 2 | Y20: =IFERROR(VLOOKUP($A20,FILTRO!$A$5:$AW$2635,23,FALSE),0) -> 19 | Z20: =IFERROR(VLOOKUP($A20,FILTRO!$A$5:$AW$2635,24,FALSE),0) -> 0 | AA20: =IFERROR(VLOOKUP($A20,FILTRO!$A$5:$AW$2635,25,FALSE),0) -> 0 | AB20: =IFERROR(VLOOKUP($A20,FILTRO!$A$5:$AW$2635,26,FALSE),0) -> 0 | AC20: =IFERROR(VLOOKUP($A20,FILTRO!$A$5:$AW$2635,27,FALSE),0) -> 1 | AD20: =IFERROR(VLOOKUP($A20,FILTRO!$A$5:$AW$2635,28,FALSE),0) -> 4 | CA20: * El número de Sexo Hombres y mujeres debe ser igual al total. | CD20: =IF(AND(C20<>0,'A05'!C81=""),"* No olvide registrar ingresos a control de salud de los respectivos RN, en REM A05-sección E. ","") ->  | DA20: 1 | DB20: 0 | DC20: 0 | DD20: 0 | DE20: 0 | DF20: 0 | DG20: 0 | DH20: 0 | DI20: 0 | DJ20: 0 | DK20: 0 | DL20: 0 | DM20: 0 | DN20: 0 | DO20: 0 | DP20: 0 | DQ20: 0
A21: 01110107 | C21: MATRONA/ÓN | D21: 3462 | E21: =IFERROR(VLOOKUP($A21,FILTRO!$A$5:$AW$2635,3,FALSE),0) -> 0 | F21: =IFERROR(VLOOKUP($A21,FILTRO!$A$5:$AW$2635,4,FALSE),0) -> 0 | G21: =IFERROR(VLOOKUP($A21,FILTRO!$A$5:$AW$2635,5,FALSE),0) -> 6 | H21: =IFERROR(VLOOKUP($A21,FILTRO!$A$5:$AW$2635,6,FALSE),0) -> 173 | I21: =IFERROR(VLOOKUP($A21,FILTRO!$A$5:$AW$2635,7,FALSE),0) -> 708 | J21: =IFERROR(VLOOKUP($A21,FILTRO!$A$5:$AW$2635,8,FALSE),0) -> 1039 | K21: =IFERROR(VLOOKUP($A21,FILTRO!$A$5:$AW$2635,9,FALSE),0) -> 917 | L21: =IFERROR(VLOOKUP($A21,FILTRO!$A$5:$AW$2635,10,FALSE),0) -> 483 | M21: =IFERROR(VLOOKUP($A21,FILTRO!$A$5:$AW$2635,11,FALSE),0) -> 130 | N21: =IFERROR(VLOOKUP($A21,FILTRO!$A$5:$AW$2635,12,FALSE),0) -> 5 | O21: =IFERROR(VLOOKUP($A21,FILTRO!$A$5:$AW$2635,13,FALSE),0) -> 0 | P21: =IFERROR(VLOOKUP($A21,FILTRO!$A$5:$AW$2635,14,FALSE),0) -> 1 | Q21: =IFERROR(VLOOKUP($A21,FILTRO!$A$5:$AW$2635,15,FALSE),0) -> 0 | R21: =IFERROR(VLOOKUP($A21,FILTRO!$A$5:$AW$2635,16,FALSE),0) -> 0 | S21: =IFERROR(VLOOKUP($A21,FILTRO!$A$5:$AW$2635,17,FALSE),0) -> 0 | T21: =IFERROR(VLOOKUP($A21,FILTRO!$A$5:$AW$2635,18,FALSE),0) -> 0 | U21: =IFERROR(VLOOKUP($A21,FILTRO!$A$5:$AW$2635,19,FALSE),0) -> 0 | V21: =IFERROR(VLOOKUP($A21,FILTRO!$A$5:$AW$2635,20,FALSE),0) -> 0 | W21: =IFERROR(VLOOKUP($A21,FILTRO!$A$5:$AW$2635,21,FALSE),0) -> 3417 | X21: =IFERROR(VLOOKUP($A21,FILTRO!$A$5:$AW$2635,22,FALSE),0) -> 635 | Y21: =IFERROR(VLOOKUP($A21,FILTRO!$A$5:$AW$2635,23,FALSE),0) -> 1622 | Z21: =IFERROR(VLOOKUP($A21,FILTRO!$A$5:$AW$2635,24,FALSE),0) -> 0 | AA21: =IFERROR(VLOOKUP($A21,FILTRO!$A$5:$AW$2635,25,FALSE),0) -> 2 | AB21: =IFERROR(VLOOKUP($A21,FILTRO!$A$5:$AW$2635,26,FALSE),0) -> 1 | AC21: =IFERROR(VLOOKUP($A21,FILTRO!$A$5:$AW$2635,27,FALSE),0) -> 41 | AD21: =IFERROR(VLOOKUP($A21,FILTRO!$A$5:$AW$2635,28,FALSE),0) -> 225 | CA21: * El número de Sexo Hombres y mujeres debe ser igual al total. | CD21: =IF(AND(C21<>0,'A05'!C81=""),"* No olvide registrar ingresos a control de salud de los respectivos RN, en REM A05-sección E. ","") ->  | DA21: 1 | DB21: 0 | DC21: 0 | DD21: 0 | DE21: 0 | DF21: 0 | DG21: 0 | DH21: 0 | DI21: 0 | DJ21: 0 | DK21: 0 | DL21: 0 | DM21: 0 | DN21: 0 | DO21: 0 | DP21: 0 | DQ21: 0
A22: 01080030 | B22: PUÉRPERA CON RECIÉN NACIDO ENTRE 11 y 28 DÍAS | C22: MÉDICO/A | D22: 9 | E22: =IFERROR(VLOOKUP($A22,FILTRO!$A$5:$AW$2635,3,FALSE),0) -> 0 | F22: =IFERROR(VLOOKUP($A22,FILTRO!$A$5:$AW$2635,4,FALSE),0) -> 0 | G22: =IFERROR(VLOOKUP($A22,FILTRO!$A$5:$AW$2635,5,FALSE),0) -> 0 | H22: =IFERROR(VLOOKUP($A22,FILTRO!$A$5:$AW$2635,6,FALSE),0) -> 0 | I22: =IFERROR(VLOOKUP($A22,FILTRO!$A$5:$AW$2635,7,FALSE),0) -> 3 | J22: =IFERROR(VLOOKUP($A22,FILTRO!$A$5:$AW$2635,8,FALSE),0) -> 4 | K22: =IFERROR(VLOOKUP($A22,FILTRO!$A$5:$AW$2635,9,FALSE),0) -> 2 | L22: =IFERROR(VLOOKUP($A22,FILTRO!$A$5:$AW$2635,10,FALSE),0) -> 0 | M22: =IFERROR(VLOOKUP($A22,FILTRO!$A$5:$AW$2635,11,FALSE),0) -> 0 | N22: =IFERROR(VLOOKUP($A22,FILTRO!$A$5:$AW$2635,12,FALSE),0) -> 0 | O22: =IFERROR(VLOOKUP($A22,FILTRO!$A$5:$AW$2635,13,FALSE),0) -> 0 | P22: =IFERROR(VLOOKUP($A22,FILTRO!$A$5:$AW$2635,14,FALSE),0) -> 0 | Q22: =IFERROR(VLOOKUP($A22,FILTRO!$A$5:$AW$2635,15,FALSE),0) -> 0 | R22: =IFERROR(VLOOKUP($A22,FILTRO!$A$5:$AW$2635,16,FALSE),0) -> 0 | S22: =IFERROR(VLOOKUP($A22,FILTRO!$A$5:$AW$2635,17,FALSE),0) -> 0 | T22: =IFERROR(VLOOKUP($A22,FILTRO!$A$5:$AW$2635,18,FALSE),0) -> 0 | U22: =IFERROR(VLOOKUP($A22,FILTRO!$A$5:$AW$2635,19,FALSE),0) -> 0 | V22: =IFERROR(VLOOKUP($A22,FILTRO!$A$5:$AW$2635,20,FALSE),0) -> 0 | W22: =IFERROR(VLOOKUP($A22,FILTRO!$A$5:$AW$2635,21,FALSE),0) -> 14 | X22: =IFERROR(VLOOKUP($A22,FILTRO!$A$5:$AW$2635,22,FALSE),0) -> 3 | Y22: =IFERROR(VLOOKUP($A22,FILTRO!$A$5:$AW$2635,23,FALSE),0) -> 8 | Z22: =IFERROR(VLOOKUP($A22,FILTRO!$A$5:$AW$2635,24,FALSE),0) -> 0 | AA22: =IFERROR(VLOOKUP($A22,FILTRO!$A$5:$AW$2635,25,FALSE),0) -> 0 | AB22: =IFERROR(VLOOKUP($A22,FILTRO!$A$5:$AW$2635,26,FALSE),0) -> 0 | AC22: =IFERROR(VLOOKUP($A22,FILTRO!$A$5:$AW$2635,27,FALSE),0) -> 0 | AD22: =IFERROR(VLOOKUP($A22,FILTRO!$A$5:$AW$2635,28,FALSE),0) -> 3 | CA22: * El número de Sexo Hombres y mujeres debe ser igual al total. | CD22: =IF(AND(C22<>0,'A05'!C81=""),"* No olvide registrar ingresos a control de salud de los respectivos RN, en REM A05-sección E. ","") ->  | DA22: 1 | DB22: 0 | DC22: 0 | DD22: 0 | DE22: 0 | DF22: 0 | DG22: 0 | DH22: 0 | DI22: 0 | DJ22: 0 | DK22: 0 | DL22: 0 | DM22: 0 | DN22: 0 | DO22: 0 | DP22: 0 | DQ22: 0
A23: 01080040 | C23: MATRONA/ÓN | D23: 1749 | E23: =IFERROR(VLOOKUP($A23,FILTRO!$A$5:$AW$2635,3,FALSE),0) -> 0 | F23: =IFERROR(VLOOKUP($A23,FILTRO!$A$5:$AW$2635,4,FALSE),0) -> 0 | G23: =IFERROR(VLOOKUP($A23,FILTRO!$A$5:$AW$2635,5,FALSE),0) -> 3 | H23: =IFERROR(VLOOKUP($A23,FILTRO!$A$5:$AW$2635,6,FALSE),0) -> 104 | I23: =IFERROR(VLOOKUP($A23,FILTRO!$A$5:$AW$2635,7,FALSE),0) -> 340 | J23: =IFERROR(VLOOKUP($A23,FILTRO!$A$5:$AW$2635,8,FALSE),0) -> 511 | K23: =IFERROR(VLOOKUP($A23,FILTRO!$A$5:$AW$2635,9,FALSE),0) -> 453 | L23: =IFERROR(VLOOKUP($A23,FILTRO!$A$5:$AW$2635,10,FALSE),0) -> 257 | M23: =IFERROR(VLOOKUP($A23,FILTRO!$A$5:$AW$2635,11,FALSE),0) -> 79 | N23: =IFERROR(VLOOKUP($A23,FILTRO!$A$5:$AW$2635,12,FALSE),0) -> 1 | O23: =IFERROR(VLOOKUP($A23,FILTRO!$A$5:$AW$2635,13,FALSE),0) -> 0 | P23: =IFERROR(VLOOKUP($A23,FILTRO!$A$5:$AW$2635,14,FALSE),0) -> 1 | Q23: =IFERROR(VLOOKUP($A23,FILTRO!$A$5:$AW$2635,15,FALSE),0) -> 0 | R23: =IFERROR(VLOOKUP($A23,FILTRO!$A$5:$AW$2635,16,FALSE),0) -> 0 | S23: =IFERROR(VLOOKUP($A23,FILTRO!$A$5:$AW$2635,17,FALSE),0) -> 0 | T23: =IFERROR(VLOOKUP($A23,FILTRO!$A$5:$AW$2635,18,FALSE),0) -> 0 | U23: =IFERROR(VLOOKUP($A23,FILTRO!$A$5:$AW$2635,19,FALSE),0) -> 0 | V23: =IFERROR(VLOOKUP($A23,FILTRO!$A$5:$AW$2635,20,FALSE),0) -> 0 | W23: =IFERROR(VLOOKUP($A23,FILTRO!$A$5:$AW$2635,21,FALSE),0) -> 1692 | X23: =IFERROR(VLOOKUP($A23,FILTRO!$A$5:$AW$2635,22,FALSE),0) -> 265 | Y23: =IFERROR(VLOOKUP($A23,FILTRO!$A$5:$AW$2635,23,FALSE),0) -> 607 | Z23: =IFERROR(VLOOKUP($A23,FILTRO!$A$5:$AW$2635,24,FALSE),0) -> 0 | AA23: =IFERROR(VLOOKUP($A23,FILTRO!$A$5:$AW$2635,25,FALSE),0) -> 5 | AB23: =IFERROR(VLOOKUP($A23,FILTRO!$A$5:$AW$2635,26,FALSE),0) -> 0 | AC23: =IFERROR(VLOOKUP($A23,FILTRO!$A$5:$AW$2635,27,FALSE),0) -> 18 | AD23: =IFERROR(VLOOKUP($A23,FILTRO!$A$5:$AW$2635,28,FALSE),0) -> 83 | CA23: * El número de Sexo Hombres y mujeres debe ser igual al total. | CD23: =IF(AND(C23<>0,'A05'!C81=""),"* No olvide registrar ingresos a control de salud de los respectivos RN, en REM A05-sección E. ","") ->  | DA23: 1 | DB23: 0 | DC23: 0 | DD23: 0 | DE23: 0 | DF23: 0 | DG23: 0 | DH23: 0 | DI23: 0 | DJ23: 0 | DK23: 0 | DL23: 0 | DM23: 0 | DN23: 0 | DO23: 0 | DP23: 0 | DQ23: 0
A24: 01501090 | B24: RECIÉN NACIDO HASTA 10 DÍAS DE VIDA | C24: MÉDICO | D24: =SUM(E24) -> 0 | E24: =IFERROR(VLOOKUP($A24,FILTRO!$A$5:$AW$2635,3,FALSE),0) -> 0 | F24: =IFERROR(VLOOKUP($A24,FILTRO!$A$5:$AW$2635,4,FALSE),0) -> 0 | G24: =IFERROR(VLOOKUP($A24,FILTRO!$A$5:$AW$2635,5,FALSE),0) -> 0 | H24: =IFERROR(VLOOKUP($A24,FILTRO!$A$5:$AW$2635,6,FALSE),0) -> 0 | I24: =IFERROR(VLOOKUP($A24,FILTRO!$A$5:$AW$2635,7,FALSE),0) -> 0 | J24: =IFERROR(VLOOKUP($A24,FILTRO!$A$5:$AW$2635,8,FALSE),0) -> 0 | K24: =IFERROR(VLOOKUP($A24,FILTRO!$A$5:$AW$2635,9,FALSE),0) -> 0 | L24: =IFERROR(VLOOKUP($A24,FILTRO!$A$5:$AW$2635,10,FALSE),0) -> 0 | M24: =IFERROR(VLOOKUP($A24,FILTRO!$A$5:$AW$2635,11,FALSE),0) -> 0 | N24: =IFERROR(VLOOKUP($A24,FILTRO!$A$5:$AW$2635,12,FALSE),0) -> 0 | O24: =IFERROR(VLOOKUP($A24,FILTRO!$A$5:$AW$2635,13,FALSE),0) -> 0 | P24: =IFERROR(VLOOKUP($A24,FILTRO!$A$5:$AW$2635,14,FALSE),0) -> 0 | Q24: =IFERROR(VLOOKUP($A24,FILTRO!$A$5:$AW$2635,15,FALSE),0) -> 0 | R24: =IFERROR(VLOOKUP($A24,FILTRO!$A$5:$AW$2635,16,FALSE),0) -> 0 | S24: =IFERROR(VLOOKUP($A24,FILTRO!$A$5:$AW$2635,17,FALSE),0) -> 0 | T24: =IFERROR(VLOOKUP($A24,FILTRO!$A$5:$AW$2635,18,FALSE),0) -> 0 | U24: =IFERROR(VLOOKUP($A24,FILTRO!$A$5:$AW$2635,19,FALSE),0) -> 0 | V24: =IFERROR(VLOOKUP($A24,FILTRO!$A$5:$AW$2635,20,FALSE),0) -> 0 | W24: =IFERROR(VLOOKUP($A24,FILTRO!$A$5:$AW$2635,21,FALSE),0) -> 0 | X24: =IFERROR(VLOOKUP($A24,FILTRO!$A$5:$AW$2635,22,FALSE),0) -> 0 | Y24: =IFERROR(VLOOKUP($A24,FILTRO!$A$5:$AW$2635,23,FALSE),0) -> 0 | Z24: =IFERROR(VLOOKUP($A24,FILTRO!$A$5:$AW$2635,24,FALSE),0) -> 0 | AA24: =IFERROR(VLOOKUP($A24,FILTRO!$A$5:$AW$2635,25,FALSE),0) -> 0 | AB24: =IFERROR(VLOOKUP($A24,FILTRO!$A$5:$AW$2635,26,FALSE),0) -> 0 | AC24: =IFERROR(VLOOKUP($A24,FILTRO!$A$5:$AW$2635,27,FALSE),0) -> 0 | AD24: =IFERROR(VLOOKUP($A24,FILTRO!$A$5:$AW$2635,28,FALSE),0) -> 0 | CA24: * El número de Sexo Hombres y mujeres debe ser igual al total. | DA24: 1 | DB24: 0 | DE24: 0 | DF24: 0 | DG24: 0 | DH24: 0 | DI24: 0 | DJ24: 0 | DK24: 0 | DL24: 0 | DM24: 0 | DN24: 0 | DO24: 0 | DP24: 0 | DQ24: 0
A25: 01502000 | C25: MATRONA /ÓN | D25: =SUM(E25) -> 1276 | E25: =IFERROR(VLOOKUP($A25,FILTRO!$A$5:$AW$2635,3,FALSE),0) -> 1276 | F25: =IFERROR(VLOOKUP($A25,FILTRO!$A$5:$AW$2635,4,FALSE),0) -> 0 | G25: =IFERROR(VLOOKUP($A25,FILTRO!$A$5:$AW$2635,5,FALSE),0) -> 0 | H25: =IFERROR(VLOOKUP($A25,FILTRO!$A$5:$AW$2635,6,FALSE),0) -> 0 | I25: =IFERROR(VLOOKUP($A25,FILTRO!$A$5:$AW$2635,7,FALSE),0) -> 0 | J25: =IFERROR(VLOOKUP($A25,FILTRO!$A$5:$AW$2635,8,FALSE),0) -> 0 | K25: =IFERROR(VLOOKUP($A25,FILTRO!$A$5:$AW$2635,9,FALSE),0) -> 0 | L25: =IFERROR(VLOOKUP($A25,FILTRO!$A$5:$AW$2635,10,FALSE),0) -> 0 | M25: =IFERROR(VLOOKUP($A25,FILTRO!$A$5:$AW$2635,11,FALSE),0) -> 0 | N25: =IFERROR(VLOOKUP($A25,FILTRO!$A$5:$AW$2635,12,FALSE),0) -> 0 | O25: =IFERROR(VLOOKUP($A25,FILTRO!$A$5:$AW$2635,13,FALSE),0) -> 0 | P25: =IFERROR(VLOOKUP($A25,FILTRO!$A$5:$AW$2635,14,FALSE),0) -> 0 | Q25: =IFERROR(VLOOKUP($A25,FILTRO!$A$5:$AW$2635,15,FALSE),0) -> 0 | R25: =IFERROR(VLOOKUP($A25,FILTRO!$A$5:$AW$2635,16,FALSE),0) -> 0 | S25: =IFERROR(VLOOKUP($A25,FILTRO!$A$5:$AW$2635,17,FALSE),0) -> 0 | T25: =IFERROR(VLOOKUP($A25,FILTRO!$A$5:$AW$2635,18,FALSE),0) -> 0 | U25: =IFERROR(VLOOKUP($A25,FILTRO!$A$5:$AW$2635,19,FALSE),0) -> 0 | V25: =IFERROR(VLOOKUP($A25,FILTRO!$A$5:$AW$2635,20,FALSE),0) -> 571 | W25: =IFERROR(VLOOKUP($A25,FILTRO!$A$5:$AW$2635,21,FALSE),0) -> 673 | X25: =IFERROR(VLOOKUP($A25,FILTRO!$A$5:$AW$2635,22,FALSE),0) -> 284 | Y25: =IFERROR(VLOOKUP($A25,FILTRO!$A$5:$AW$2635,23,FALSE),0) -> 623 | Z25: =IFERROR(VLOOKUP($A25,FILTRO!$A$5:$AW$2635,24,FALSE),0) -> 0 | AA25: =IFERROR(VLOOKUP($A25,FILTRO!$A$5:$AW$2635,25,FALSE),0) -> 1 | AB25: =IFERROR(VLOOKUP($A25,FILTRO!$A$5:$AW$2635,26,FALSE),0) -> 0 | AC25: =IFERROR(VLOOKUP($A25,FILTRO!$A$5:$AW$2635,27,FALSE),0) -> 3 | AD25: =IFERROR(VLOOKUP($A25,FILTRO!$A$5:$AW$2635,28,FALSE),0) -> 23 | CA25: * El número de Sexo Hombres y mujeres debe ser igual al total. | DA25: 1 | DB25: 0 | DE25: 0 | DF25: 0 | DG25: 0 | DH25: 0 | DI25: 0 | DJ25: 0 | DK25: 0 | DL25: 0 | DM25: 0 | DN25: 0 | DO25: 0 | DP25: 0 | DQ25: 0
A26: 01502010 | B26: RECIÉN NACIDO ENTRE 11 y 28 DÍAS | C26: MÉDICO | D26: =SUM(E26) -> 1 | E26: =IFERROR(VLOOKUP($A26,FILTRO!$A$5:$AW$2635,3,FALSE),0) -> 1 | F26: =IFERROR(VLOOKUP($A26,FILTRO!$A$5:$AW$2635,4,FALSE),0) -> 0 | G26: =IFERROR(VLOOKUP($A26,FILTRO!$A$5:$AW$2635,5,FALSE),0) -> 0 | H26: =IFERROR(VLOOKUP($A26,FILTRO!$A$5:$AW$2635,6,FALSE),0) -> 0 | I26: =IFERROR(VLOOKUP($A26,FILTRO!$A$5:$AW$2635,7,FALSE),0) -> 0 | J26: =IFERROR(VLOOKUP($A26,FILTRO!$A$5:$AW$2635,8,FALSE),0) -> 0 | K26: =IFERROR(VLOOKUP($A26,FILTRO!$A$5:$AW$2635,9,FALSE),0) -> 0 | L26: =IFERROR(VLOOKUP($A26,FILTRO!$A$5:$AW$2635,10,FALSE),0) -> 0 | M26: =IFERROR(VLOOKUP($A26,FILTRO!$A$5:$AW$2635,11,FALSE),0) -> 0 | N26: =IFERROR(VLOOKUP($A26,FILTRO!$A$5:$AW$2635,12,FALSE),0) -> 0 | O26: =IFERROR(VLOOKUP($A26,FILTRO!$A$5:$AW$2635,13,FALSE),0) -> 0 | P26: =IFERROR(VLOOKUP($A26,FILTRO!$A$5:$AW$2635,14,FALSE),0) -> 0 | Q26: =IFERROR(VLOOKUP($A26,FILTRO!$A$5:$AW$2635,15,FALSE),0) -> 0 | R26: =IFERROR(VLOOKUP($A26,FILTRO!$A$5:$AW$2635,16,FALSE),0) -> 0 | S26: =IFERROR(VLOOKUP($A26,FILTRO!$A$5:$AW$2635,17,FALSE),0) -> 0 | T26: =IFERROR(VLOOKUP($A26,FILTRO!$A$5:$AW$2635,18,FALSE),0) -> 0 | U26: =IFERROR(VLOOKUP($A26,FILTRO!$A$5:$AW$2635,19,FALSE),0) -> 0 | V26: =IFERROR(VLOOKUP($A26,FILTRO!$A$5:$AW$2635,20,FALSE),0) -> 0 | W26: =IFERROR(VLOOKUP($A26,FILTRO!$A$5:$AW$2635,21,FALSE),0) -> 1 | X26: =IFERROR(VLOOKUP($A26,FILTRO!$A$5:$AW$2635,22,FALSE),0) -> 0 | Y26: =IFERROR(VLOOKUP($A26,FILTRO!$A$5:$AW$2635,23,FALSE),0) -> 0 | Z26: =IFERROR(VLOOKUP($A26,FILTRO!$A$5:$AW$2635,24,FALSE),0) -> 0 | AA26: =IFERROR(VLOOKUP($A26,FILTRO!$A$5:$AW$2635,25,FALSE),0) -> 0 | AB26: =IFERROR(VLOOKUP($A26,FILTRO!$A$5:$AW$2635,26,FALSE),0) -> 0 | AC26: =IFERROR(VLOOKUP($A26,FILTRO!$A$5:$AW$2635,27,FALSE),0) -> 0 | AD26: =IFERROR(VLOOKUP($A26,FILTRO!$A$5:$AW$2635,28,FALSE),0) -> 0 | CA26: * El número de Sexo Hombres y mujeres debe ser igual al total. | DA26: 1 | DB26: 0 | DE26: 0 | DF26: 0 | DG26: 0 | DH26: 0 | DI26: 0 | DJ26: 0 | DK26: 0 | DL26: 0 | DM26: 0 | DN26: 0 | DO26: 0 | DP26: 0 | DQ26: 0
A27: 01502020 | C27: MATRONA /ÓN | D27: =SUM(E27) -> 537 | E27: =IFERROR(VLOOKUP($A27,FILTRO!$A$5:$AW$2635,3,FALSE),0) -> 537 | F27: =IFERROR(VLOOKUP($A27,FILTRO!$A$5:$AW$2635,4,FALSE),0) -> 0 | G27: =IFERROR(VLOOKUP($A27,FILTRO!$A$5:$AW$2635,5,FALSE),0) -> 0 | H27: =IFERROR(VLOOKUP($A27,FILTRO!$A$5:$AW$2635,6,FALSE),0) -> 0 | I27: =IFERROR(VLOOKUP($A27,FILTRO!$A$5:$AW$2635,7,FALSE),0) -> 0 | J27: =IFERROR(VLOOKUP($A27,FILTRO!$A$5:$AW$2635,8,FALSE),0) -> 0 | K27: =IFERROR(VLOOKUP($A27,FILTRO!$A$5:$AW$2635,9,FALSE),0) -> 0 | L27: =IFERROR(VLOOKUP($A27,FILTRO!$A$5:$AW$2635,10,FALSE),0) -> 0 | M27: =IFERROR(VLOOKUP($A27,FILTRO!$A$5:$AW$2635,11,FALSE),0) -> 0 | N27: =IFERROR(VLOOKUP($A27,FILTRO!$A$5:$AW$2635,12,FALSE),0) -> 0 | O27: =IFERROR(VLOOKUP($A27,FILTRO!$A$5:$AW$2635,13,FALSE),0) -> 0 | P27: =IFERROR(VLOOKUP($A27,FILTRO!$A$5:$AW$2635,14,FALSE),0) -> 0 | Q27: =IFERROR(VLOOKUP($A27,FILTRO!$A$5:$AW$2635,15,FALSE),0) -> 0 | R27: =IFERROR(VLOOKUP($A27,FILTRO!$A$5:$AW$2635,16,FALSE),0) -> 0 | S27: =IFERROR(VLOOKUP($A27,FILTRO!$A$5:$AW$2635,17,FALSE),0) -> 0 | T27: =IFERROR(VLOOKUP($A27,FILTRO!$A$5:$AW$2635,18,FALSE),0) -> 0 | U27: =IFERROR(VLOOKUP($A27,FILTRO!$A$5:$AW$2635,19,FALSE),0) -> 0 | V27: =IFERROR(VLOOKUP($A27,FILTRO!$A$5:$AW$2635,20,FALSE),0) -> 245 | W27: =IFERROR(VLOOKUP($A27,FILTRO!$A$5:$AW$2635,21,FALSE),0) -> 281 | X27: =IFERROR(VLOOKUP($A27,FILTRO!$A$5:$AW$2635,22,FALSE),0) -> 92 | Y27: =IFERROR(VLOOKUP($A27,FILTRO!$A$5:$AW$2635,23,FALSE),0) -> 165 | Z27: =IFERROR(VLOOKUP($A27,FILTRO!$A$5:$AW$2635,24,FALSE),0) -> 1 | AA27: =IFERROR(VLOOKUP($A27,FILTRO!$A$5:$AW$2635,25,FALSE),0) -> 3 | AB27: =IFERROR(VLOOKUP($A27,FILTRO!$A$5:$AW$2635,26,FALSE),0) -> 1 | AC27: =IFERROR(VLOOKUP($A27,FILTRO!$A$5:$AW$2635,27,FALSE),0) -> 1 | AD27: =IFERROR(VLOOKUP($A27,FILTRO!$A$5:$AW$2635,28,FALSE),0) -> 11 | CA27: * El número de Sexo Hombres y mujeres debe ser igual al total. | DA27: 1 | DB27: 0 | DE27: 0 | DF27: 0 | DG27: 0 | DH27: 0 | DI27: 0 | DJ27: 0 | DK27: 0 | DL27: 0 | DM27: 0 | DN27: 0 | DO27: 0 | DP27: 0 | DQ27: 0
A28: 01010601 | B28: GINECOLÓGICO | C28: MÉDICO/A | D28: =SUM(G28:U28) -> 1511 | E28: =IFERROR(VLOOKUP($A28,FILTRO!$A$5:$AW$2635,3,FALSE),0) -> 0 | F28: =IFERROR(VLOOKUP($A28,FILTRO!$A$5:$AW$2635,4,FALSE),0) -> 0 | G28: =IFERROR(VLOOKUP($A28,FILTRO!$A$5:$AW$2635,5,FALSE),0) -> 40 | H28: =IFERROR(VLOOKUP($A28,FILTRO!$A$5:$AW$2635,6,FALSE),0) -> 103 | I28: =IFERROR(VLOOKUP($A28,FILTRO!$A$5:$AW$2635,7,FALSE),0) -> 88 | J28: =IFERROR(VLOOKUP($A28,FILTRO!$A$5:$AW$2635,8,FALSE),0) -> 109 | K28: =IFERROR(VLOOKUP($A28,FILTRO!$A$5:$AW$2635,9,FALSE),0) -> 185 | L28: =IFERROR(VLOOKUP($A28,FILTRO!$A$5:$AW$2635,10,FALSE),0) -> 185 | M28: =IFERROR(VLOOKUP($A28,FILTRO!$A$5:$AW$2635,11,FALSE),0) -> 203 | N28: =IFERROR(VLOOKUP($A28,FILTRO!$A$5:$AW$2635,12,FALSE),0) -> 161 | O28: =IFERROR(VLOOKUP($A28,FILTRO!$A$5:$AW$2635,13,FALSE),0) -> 135 | P28: =IFERROR(VLOOKUP($A28,FILTRO!$A$5:$AW$2635,14,FALSE),0) -> 123 | Q28: =IFERROR(VLOOKUP($A28,FILTRO!$A$5:$AW$2635,15,FALSE),0) -> 55 | R28: =IFERROR(VLOOKUP($A28,FILTRO!$A$5:$AW$2635,16,FALSE),0) -> 55 | S28: =IFERROR(VLOOKUP($A28,FILTRO!$A$5:$AW$2635,17,FALSE),0) -> 31 | T28: =IFERROR(VLOOKUP($A28,FILTRO!$A$5:$AW$2635,18,FALSE),0) -> 23 | U28: =IFERROR(VLOOKUP($A28,FILTRO!$A$5:$AW$2635,19,FALSE),0) -> 15 | V28: =IFERROR(VLOOKUP($A28,FILTRO!$A$5:$AW$2635,20,FALSE),0) -> 0 | W28: =IFERROR(VLOOKUP($A28,FILTRO!$A$5:$AW$2635,21,FALSE),0) -> 1586 | X28: =IFERROR(VLOOKUP($A28,FILTRO!$A$5:$AW$2635,22,FALSE),0) -> 0 | Y28: =IFERROR(VLOOKUP($A28,FILTRO!$A$5:$AW$2635,23,FALSE),0) -> 0 | Z28: =IFERROR(VLOOKUP($A28,FILTRO!$A$5:$AW$2635,24,FALSE),0) -> 0 | AA28: =IFERROR(VLOOKUP($A28,FILTRO!$A$5:$AW$2635,25,FALSE),0) -> 0 | AB28: =IFERROR(VLOOKUP($A28,FILTRO!$A$5:$AW$2635,26,FALSE),0) -> 0 | AC28: =IFERROR(VLOOKUP($A28,FILTRO!$A$5:$AW$2635,27,FALSE),0) -> 0 | AD28: =IFERROR(VLOOKUP($A28,FILTRO!$A$5:$AW$2635,28,FALSE),0) -> 68 | CA28: * El número de Sexo Hombres y mujeres debe ser igual al total. | DA28: 1 | DB28: 0 | DE28: 0 | DF28: 0 | DG28: 0 | DH28: 0 | DI28: 0 | DJ28: 0 | DK28: 0 | DL28: 0 | DM28: 0 | DN28: 0 | DO28: 0 | DP28: 0 | DQ28: 0
A29: 01010603 | C29: MATRONA/ÓN | D29: =SUM(G29:U29) -> 55634 | E29: =IFERROR(VLOOKUP($A29,FILTRO!$A$5:$AW$2635,3,FALSE),0) -> 0 | F29: =IFERROR(VLOOKUP($A29,FILTRO!$A$5:$AW$2635,4,FALSE),0) -> 0 | G29: =IFERROR(VLOOKUP($A29,FILTRO!$A$5:$AW$2635,5,FALSE),0) -> 323 | H29: =IFERROR(VLOOKUP($A29,FILTRO!$A$5:$AW$2635,6,FALSE),0) -> 743 | I29: =IFERROR(VLOOKUP($A29,FILTRO!$A$5:$AW$2635,7,FALSE),0) -> 2367 | J29: =IFERROR(VLOOKUP($A29,FILTRO!$A$5:$AW$2635,8,FALSE),0) -> 4495 | K29: =IFERROR(VLOOKUP($A29,FILTRO!$A$5:$AW$2635,9,FALSE),0) -> 5634 | L29: =IFERROR(VLOOKUP($A29,FILTRO!$A$5:$AW$2635,10,FALSE),0) -> 5782 | M29: =IFERROR(VLOOKUP($A29,FILTRO!$A$5:$AW$2635,11,FALSE),0) -> 6520 | N29: =IFERROR(VLOOKUP($A29,FILTRO!$A$5:$AW$2635,12,FALSE),0) -> 6712 | O29: =IFERROR(VLOOKUP($A29,FILTRO!$A$5:$AW$2635,13,FALSE),0) -> 6904 | P29: =IFERROR(VLOOKUP($A29,FILTRO!$A$5:$AW$2635,14,FALSE),0) -> 6387 | Q29: =IFERROR(VLOOKUP($A29,FILTRO!$A$5:$AW$2635,15,FALSE),0) -> 5331 | R29: =IFERROR(VLOOKUP($A29,FILTRO!$A$5:$AW$2635,16,FALSE),0) -> 2675 | S29: =IFERROR(VLOOKUP($A29,FILTRO!$A$5:$AW$2635,17,FALSE),0) -> 1106 | T29: =IFERROR(VLOOKUP($A29,FILTRO!$A$5:$AW$2635,18,FALSE),0) -> 430 | U29: =IFERROR(VLOOKUP($A29,FILTRO!$A$5:$AW$2635,19,FALSE),0) -> 225 | V29: =IFERROR(VLOOKUP($A29,FILTRO!$A$5:$AW$2635,20,FALSE),0) -> 0 | W29: =IFERROR(VLOOKUP($A29,FILTRO!$A$5:$AW$2635,21,FALSE),0) -> 54961 | X29: =IFERROR(VLOOKUP($A29,FILTRO!$A$5:$AW$2635,22,FALSE),0) -> 0 | Y29: =IFERROR(VLOOKUP($A29,FILTRO!$A$5:$AW$2635,23,FALSE),0) -> 0 | Z29: =IFERROR(VLOOKUP($A29,FILTRO!$A$5:$AW$2635,24,FALSE),0) -> 44 | AA29: =IFERROR(VLOOKUP($A29,FILTRO!$A$5:$AW$2635,25,FALSE),0) -> 8 | AB29: =IFERROR(VLOOKUP($A29,FILTRO!$A$5:$AW$2635,26,FALSE),0) -> 2 | AC29: =IFERROR(VLOOKUP($A29,FILTRO!$A$5:$AW$2635,27,FALSE),0) -> 261 | AD29: =IFERROR(VLOOKUP($A29,FILTRO!$A$5:$AW$2635,28,FALSE),0) -> 1816 | CA29: * El número de Sexo Hombres y mujeres debe ser igual al total. | DA29: 1 | DB29: 0 | DE29: 0 | DF29: 0 | DG29: 0 | DH29: 0 | DI29: 0 | DJ29: 0 | DK29: 0 | DL29: 0 | DM29: 0 | DN29: 0 | DO29: 0 | DP29: 0 | DQ29: 0
A30: 01010901 | B30: CLIMATERIO | C30: MÉDICO/A | D30: =SUM(N30:Q30) -> 416 | E30: =IFERROR(VLOOKUP($A30,FILTRO!$A$5:$AW$2635,3,FALSE),0) -> 0 | F30: =IFERROR(VLOOKUP($A30,FILTRO!$A$5:$AW$2635,4,FALSE),0) -> 0 | G30: =IFERROR(VLOOKUP($A30,FILTRO!$A$5:$AW$2635,5,FALSE),0) -> 0 | H30: =IFERROR(VLOOKUP($A30,FILTRO!$A$5:$AW$2635,6,FALSE),0) -> 0 | I30: =IFERROR(VLOOKUP($A30,FILTRO!$A$5:$AW$2635,7,FALSE),0) -> 0 | J30: =IFERROR(VLOOKUP($A30,FILTRO!$A$5:$AW$2635,8,FALSE),0) -> 0 | K30: =IFERROR(VLOOKUP($A30,FILTRO!$A$5:$AW$2635,9,FALSE),0) -> 0 | L30: =IFERROR(VLOOKUP($A30,FILTRO!$A$5:$AW$2635,10,FALSE),0) -> 0 | M30: =IFERROR(VLOOKUP($A30,FILTRO!$A$5:$AW$2635,11,FALSE),0) -> 0 | N30: =IFERROR(VLOOKUP($A30,FILTRO!$A$5:$AW$2635,12,FALSE),0) -> 135 | O30: =IFERROR(VLOOKUP($A30,FILTRO!$A$5:$AW$2635,13,FALSE),0) -> 126 | P30: =IFERROR(VLOOKUP($A30,FILTRO!$A$5:$AW$2635,14,FALSE),0) -> 105 | Q30: =IFERROR(VLOOKUP($A30,FILTRO!$A$5:$AW$2635,15,FALSE),0) -> 50 | R30: =IFERROR(VLOOKUP($A30,FILTRO!$A$5:$AW$2635,16,FALSE),0) -> 0 | S30: =IFERROR(VLOOKUP($A30,FILTRO!$A$5:$AW$2635,17,FALSE),0) -> 0 | T30: =IFERROR(VLOOKUP($A30,FILTRO!$A$5:$AW$2635,18,FALSE),0) -> 0 | U30: =IFERROR(VLOOKUP($A30,FILTRO!$A$5:$AW$2635,19,FALSE),0) -> 0 | V30: =IFERROR(VLOOKUP($A30,FILTRO!$A$5:$AW$2635,20,FALSE),0) -> 0 | W30: =IFERROR(VLOOKUP($A30,FILTRO!$A$5:$AW$2635,21,FALSE),0) -> 474 | X30: =IFERROR(VLOOKUP($A30,FILTRO!$A$5:$AW$2635,22,FALSE),0) -> 0 | Y30: =IFERROR(VLOOKUP($A30,FILTRO!$A$5:$AW$2635,23,FALSE),0) -> 0 | Z30: =IFERROR(VLOOKUP($A30,FILTRO!$A$5:$AW$2635,24,FALSE),0) -> 0 | AA30: =IFERROR(VLOOKUP($A30,FILTRO!$A$5:$AW$2635,25,FALSE),0) -> 0 | AB30: =IFERROR(VLOOKUP($A30,FILTRO!$A$5:$AW$2635,26,FALSE),0) -> 0 | AC30: =IFERROR(VLOOKUP($A30,FILTRO!$A$5:$AW$2635,27,FALSE),0) -> 4 | AD30: =IFERROR(VLOOKUP($A30,FILTRO!$A$5:$AW$2635,28,FALSE),0) -> 12 | CA30: * El número de Sexo Hombres y mujeres debe ser igual al total. | DA30: 1 | DB30: 0 | DE30: 0 | DF30: 0 | DG30: 0 | DH30: 0 | DI30: 0 | DJ30: 0 | DK30: 0 | DL30: 0 | DM30: 0 | DN30: 0 | DO30: 0 | DP30: 0 | DQ30: 0
A31: 01010903 | C31: MATRONA/ÓN | D31: =SUM(N31:Q31) -> 4164 | E31: =IFERROR(VLOOKUP($A31,FILTRO!$A$5:$AW$2635,3,FALSE),0) -> 0 | F31: =IFERROR(VLOOKUP($A31,FILTRO!$A$5:$AW$2635,4,FALSE),0) -> 0 | G31: =IFERROR(VLOOKUP($A31,FILTRO!$A$5:$AW$2635,5,FALSE),0) -> 0 | H31: =IFERROR(VLOOKUP($A31,FILTRO!$A$5:$AW$2635,6,FALSE),0) -> 0 | I31: =IFERROR(VLOOKUP($A31,FILTRO!$A$5:$AW$2635,7,FALSE),0) -> 0 | J31: =IFERROR(VLOOKUP($A31,FILTRO!$A$5:$AW$2635,8,FALSE),0) -> 0 | K31: =IFERROR(VLOOKUP($A31,FILTRO!$A$5:$AW$2635,9,FALSE),0) -> 0 | L31: =IFERROR(VLOOKUP($A31,FILTRO!$A$5:$AW$2635,10,FALSE),0) -> 0 | M31: =IFERROR(VLOOKUP($A31,FILTRO!$A$5:$AW$2635,11,FALSE),0) -> 0 | N31: =IFERROR(VLOOKUP($A31,FILTRO!$A$5:$AW$2635,12,FALSE),0) -> 1153 | O31: =IFERROR(VLOOKUP($A31,FILTRO!$A$5:$AW$2635,13,FALSE),0) -> 1587 | P31: =IFERROR(VLOOKUP($A31,FILTRO!$A$5:$AW$2635,14,FALSE),0) -> 917 | Q31: =IFERROR(VLOOKUP($A31,FILTRO!$A$5:$AW$2635,15,FALSE),0) -> 507 | R31: =IFERROR(VLOOKUP($A31,FILTRO!$A$5:$AW$2635,16,FALSE),0) -> 0 | S31: =IFERROR(VLOOKUP($A31,FILTRO!$A$5:$AW$2635,17,FALSE),0) -> 0 | T31: =IFERROR(VLOOKUP($A31,FILTRO!$A$5:$AW$2635,18,FALSE),0) -> 0 | U31: =IFERROR(VLOOKUP($A31,FILTRO!$A$5:$AW$2635,19,FALSE),0) -> 0 | V31: =IFERROR(VLOOKUP($A31,FILTRO!$A$5:$AW$2635,20,FALSE),0) -> 0 | W31: =IFERROR(VLOOKUP($A31,FILTRO!$A$5:$AW$2635,21,FALSE),0) -> 4144 | X31: =IFERROR(VLOOKUP($A31,FILTRO!$A$5:$AW$2635,22,FALSE),0) -> 0 | Y31: =IFERROR(VLOOKUP($A31,FILTRO!$A$5:$AW$2635,23,FALSE),0) -> 0 | Z31: =IFERROR(VLOOKUP($A31,FILTRO!$A$5:$AW$2635,24,FALSE),0) -> 0 | AA31: =IFERROR(VLOOKUP($A31,FILTRO!$A$5:$AW$2635,25,FALSE),0) -> 0 | AB31: =IFERROR(VLOOKUP($A31,FILTRO!$A$5:$AW$2635,26,FALSE),0) -> 0 | AC31: =IFERROR(VLOOKUP($A31,FILTRO!$A$5:$AW$2635,27,FALSE),0) -> 59 | AD31: =IFERROR(VLOOKUP($A31,FILTRO!$A$5:$AW$2635,28,FALSE),0) -> 142 | CA31: * El número de Sexo Hombres y mujeres debe ser igual al total. | DA31: 1 | DB31: 0 | DE31: 0 | DF31: 0 | DG31: 0 | DH31: 0 | DI31: 0 | DJ31: 0 | DK31: 0 | DL31: 0 | DM31: 0 | DN31: 0 | DO31: 0 | DP31: 0 | DQ31: 0
A32: 01010401 | B32: REGULACIÓN DE FECUNDIDAD | C32: MÉDICO/A | D32: =SUM(G32:U32) -> 128 | E32: =IFERROR(VLOOKUP($A32,FILTRO!$A$5:$AW$2635,3,FALSE),0) -> 0 | F32: =IFERROR(VLOOKUP($A32,FILTRO!$A$5:$AW$2635,4,FALSE),0) -> 0 | G32: =IFERROR(VLOOKUP($A32,FILTRO!$A$5:$AW$2635,5,FALSE),0) -> 4 | H32: =IFERROR(VLOOKUP($A32,FILTRO!$A$5:$AW$2635,6,FALSE),0) -> 29 | I32: =IFERROR(VLOOKUP($A32,FILTRO!$A$5:$AW$2635,7,FALSE),0) -> 16 | J32: =IFERROR(VLOOKUP($A32,FILTRO!$A$5:$AW$2635,8,FALSE),0) -> 25 | K32: =IFERROR(VLOOKUP($A32,FILTRO!$A$5:$AW$2635,9,FALSE),0) -> 23 | L32: =IFERROR(VLOOKUP($A32,FILTRO!$A$5:$AW$2635,10,FALSE),0) -> 16 | M32: =IFERROR(VLOOKUP($A32,FILTRO!$A$5:$AW$2635,11,FALSE),0) -> 11 | N32: =IFERROR(VLOOKUP($A32,FILTRO!$A$5:$AW$2635,12,FALSE),0) -> 2 | O32: =IFERROR(VLOOKUP($A32,FILTRO!$A$5:$AW$2635,13,FALSE),0) -> 2 | P32: =IFERROR(VLOOKUP($A32,FILTRO!$A$5:$AW$2635,14,FALSE),0) -> 0 | Q32: =IFERROR(VLOOKUP($A32,FILTRO!$A$5:$AW$2635,15,FALSE),0) -> 0 | R32: =IFERROR(VLOOKUP($A32,FILTRO!$A$5:$AW$2635,16,FALSE),0) -> 0 | S32: =IFERROR(VLOOKUP($A32,FILTRO!$A$5:$AW$2635,17,FALSE),0) -> 0 | T32: =IFERROR(VLOOKUP($A32,FILTRO!$A$5:$AW$2635,18,FALSE),0) -> 0 | U32: =IFERROR(VLOOKUP($A32,FILTRO!$A$5:$AW$2635,19,FALSE),0) -> 0 | V32: =IFERROR(VLOOKUP($A32,FILTRO!$A$5:$AW$2635,20,FALSE),0) -> 0 | W32: =IFERROR(VLOOKUP($A32,FILTRO!$A$5:$AW$2635,21,FALSE),0) -> 135 | X32: =IFERROR(VLOOKUP($A32,FILTRO!$A$5:$AW$2635,22,FALSE),0) -> 0 | Y32: =IFERROR(VLOOKUP($A32,FILTRO!$A$5:$AW$2635,23,FALSE),0) -> 0 | Z32: =IFERROR(VLOOKUP($A32,FILTRO!$A$5:$AW$2635,24,FALSE),0) -> 8 | AA32: =IFERROR(VLOOKUP($A32,FILTRO!$A$5:$AW$2635,25,FALSE),0) -> 8 | AB32: =IFERROR(VLOOKUP($A32,FILTRO!$A$5:$AW$2635,26,FALSE),0) -> 8 | AC32: =IFERROR(VLOOKUP($A32,FILTRO!$A$5:$AW$2635,27,FALSE),0) -> 4 | AD32: =IFERROR(VLOOKUP($A32,FILTRO!$A$5:$AW$2635,28,FALSE),0) -> 8 | CA32: * El número de Sexo Hombres y mujeres debe ser igual al total. | DA32: 1 | DB32: 0 | DE32: 0 | DF32: 0 | DG32: 0 | DH32: 0 | DI32: 0 | DJ32: 0 | DK32: 0 | DL32: 0 | DM32: 0 | DN32: 0 | DO32: 0 | DP32: 0 | DQ32: 0
A33: 01010403 | C33: MATRONA/ÓN | D33: =SUM(G33:U33) -> 79331 | E33: =IFERROR(VLOOKUP($A33,FILTRO!$A$5:$AW$2635,3,FALSE),0) -> 0 | F33: =IFERROR(VLOOKUP($A33,FILTRO!$A$5:$AW$2635,4,FALSE),0) -> 0 | G33: =IFERROR(VLOOKUP($A33,FILTRO!$A$5:$AW$2635,5,FALSE),0) -> 1851 | H33: =IFERROR(VLOOKUP($A33,FILTRO!$A$5:$AW$2635,6,FALSE),0) -> 11831 | I33: =IFERROR(VLOOKUP($A33,FILTRO!$A$5:$AW$2635,7,FALSE),0) -> 13405 | J33: =IFERROR(VLOOKUP($A33,FILTRO!$A$5:$AW$2635,8,FALSE),0) -> 13970 | K33: =IFERROR(VLOOKUP($A33,FILTRO!$A$5:$AW$2635,9,FALSE),0) -> 12711 | L33: =IFERROR(VLOOKUP($A33,FILTRO!$A$5:$AW$2635,10,FALSE),0) -> 9971 | M33: =IFERROR(VLOOKUP($A33,FILTRO!$A$5:$AW$2635,11,FALSE),0) -> 7740 | N33: =IFERROR(VLOOKUP($A33,FILTRO!$A$5:$AW$2635,12,FALSE),0) -> 5634 | O33: =IFERROR(VLOOKUP($A33,FILTRO!$A$5:$AW$2635,13,FALSE),0) -> 1925 | P33: =IFERROR(VLOOKUP($A33,FILTRO!$A$5:$AW$2635,14,FALSE),0) -> 200 | Q33: =IFERROR(VLOOKUP($A33,FILTRO!$A$5:$AW$2635,15,FALSE),0) -> 58 | R33: =IFERROR(VLOOKUP($A33,FILTRO!$A$5:$AW$2635,16,FALSE),0) -> 21 | S33: =IFERROR(VLOOKUP($A33,FILTRO!$A$5:$AW$2635,17,FALSE),0) -> 7 | T33: =IFERROR(VLOOKUP($A33,FILTRO!$A$5:$AW$2635,18,FALSE),0) -> 3 | U33: =IFERROR(VLOOKUP($A33,FILTRO!$A$5:$AW$2635,19,FALSE),0) -> 4 | V33: =IFERROR(VLOOKUP($A33,FILTRO!$A$5:$AW$2635,20,FALSE),0) -> 499 | W33: =IFERROR(VLOOKUP($A33,FILTRO!$A$5:$AW$2635,21,FALSE),0) -> 77948 | X33: =IFERROR(VLOOKUP($A33,FILTRO!$A$5:$AW$2635,22,FALSE),0) -> 0 | Y33: =IFERROR(VLOOKUP($A33,FILTRO!$A$5:$AW$2635,23,FALSE),0) -> 0 | Z33: =IFERROR(VLOOKUP($A33,FILTRO!$A$5:$AW$2635,24,FALSE),0) -> 1791 | AA33: =IFERROR(VLOOKUP($A33,FILTRO!$A$5:$AW$2635,25,FALSE),0) -> 78 | AB33: =IFERROR(VLOOKUP($A33,FILTRO!$A$5:$AW$2635,26,FALSE),0) -> 44 | AC33: =IFERROR(VLOOKUP($A33,FILTRO!$A$5:$AW$2635,27,FALSE),0) -> 592 | AD33: =IFERROR(VLOOKUP($A33,FILTRO!$A$5:$AW$2635,28,FALSE),0) -> 1897 | CA33: * El número de Sexo Hombres y mujeres debe ser igual al total. | DA33: 1 | DB33: 0 | DE33: 0 | DF33: 0 | DG33: 0 | DH33: 0 | DI33: 0 | DJ33: 0 | DK33: 0 | DL33: 0 | DM33: 0 | DN33: 0 | DO33: 0 | DP33: 0 | DQ33: 0
B34: SECCIÓN B: CONTROLES DE SALUD SEGÚN CICLO VITAL
B35: TIPO DE CONTROL | C35: PROFESIONAL | D35: TOTAL | G35: POR EDAD | AJ35: Control con Presencia del Padre | AL35: Niños, Niñas, Adolescentes y Jóvenes SENAME | AM35: Niños, Niñas, Adolescentes y Jóvenes Mejor Niñez | AN35: Pueblos Originarios | AO35: Migrantes
D36: Ambos Sexos | E36: Hombres | F36: Mujeres | G36: Menor de 1 mes | H36: 1 mes | I36: 2 meses | J36: 3 meses | K36: 4 meses | L36: 5 meses | M36: 6 meses | N36: 7 - 11 meses | O36: 12 a 17 meses | P36: 18 - 23 meses | Q36: 24 - 47 meses | R36: 48 - 59 meses | S36: 60 - 71 meses | T36: 6 - 9 | U36: 10 - 14 | V36: 15 - 19 | W36: 20 - 24 | X36: 25 - 29 | Y36: 30 - 34 | Z36: 35 - 39 | AA36: 40 - 44 | AB36: 45 - 49 | AC36: 50 - 54 | AD36: 55 - 59 | AE36: 60 - 64 | AF36: 65 - 69 | AG36: 70 - 74 | AH36: 75 - 79 | AI36: 80 y mas | AJ36: menor 1 año | AK36: 1 año a 3 años 11 meses 29 días
A37: 02010101 | B37: DE SALUD | C37: MÉDICO/A | D37: =SUM(G37:AI37) -> 18392 | E37: =IFERROR(VLOOKUP($A37,FILTRO!$A$5:$AW$2635,3,FALSE),0) -> 8583 | F37: =IFERROR(VLOOKUP($A37,FILTRO!$A$5:$AW$2635,4,FALSE),0) -> 9793 | G37: =IFERROR(VLOOKUP($A37,FILTRO!$A$5:$AW$2635,5,FALSE),0) -> 183 | H37: =IFERROR(VLOOKUP($A37,FILTRO!$A$5:$AW$2635,6,FALSE),0) -> 4928 | I37: =IFERROR(VLOOKUP($A37,FILTRO!$A$5:$AW$2635,7,FALSE),0) -> 381 | J37: =IFERROR(VLOOKUP($A37,FILTRO!$A$5:$AW$2635,8,FALSE),0) -> 4808 | K37: =IFERROR(VLOOKUP($A37,FILTRO!$A$5:$AW$2635,9,FALSE),0) -> 404 | L37: =IFERROR(VLOOKUP($A37,FILTRO!$A$5:$AW$2635,10,FALSE),0) -> 77 | M37: =IFERROR(VLOOKUP($A37,FILTRO!$A$5:$AW$2635,11,FALSE),0) -> 50 | N37: =IFERROR(VLOOKUP($A37,FILTRO!$A$5:$AW$2635,12,FALSE),0) -> 83 | O37: =IFERROR(VLOOKUP($A37,FILTRO!$A$5:$AW$2635,13,FALSE),0) -> 146 | P37: =IFERROR(VLOOKUP($A37,FILTRO!$A$5:$AW$2635,14,FALSE),0) -> 61 | Q37: =IFERROR(VLOOKUP($A37,FILTRO!$A$5:$AW$2635,15,FALSE),0) -> 148 | R37: =IFERROR(VLOOKUP($A37,FILTRO!$A$5:$AW$2635,16,FALSE),0) -> 165 | S37: =IFERROR(VLOOKUP($A37,FILTRO!$A$5:$AW$2635,17,FALSE),0) -> 249 | T37: =IFERROR(VLOOKUP($A37,FILTRO!$A$5:$AW$2635,18,FALSE),0) -> 1469 | U37: =IFERROR(VLOOKUP($A37,FILTRO!$A$5:$AW$2635,19,FALSE),0) -> 466 | V37: =IFERROR(VLOOKUP($A37,FILTRO!$A$5:$AW$2635,20,FALSE),0) -> 233 | W37: =IFERROR(VLOOKUP($A37,FILTRO!$A$5:$AW$2635,21,FALSE),0) -> 50 | X37: =IFERROR(VLOOKUP($A37,FILTRO!$A$5:$AW$2635,22,FALSE),0) -> 72 | Y37: =IFERROR(VLOOKUP($A37,FILTRO!$A$5:$AW$2635,23,FALSE),0) -> 97 | Z37: =IFERROR(VLOOKUP($A37,FILTRO!$A$5:$AW$2635,24,FALSE),0) -> 133 | AA37: =IFERROR(VLOOKUP($A37,FILTRO!$A$5:$AW$2635,25,FALSE),0) -> 162 | AB37: =IFERROR(VLOOKUP($A37,FILTRO!$A$5:$AW$2635,26,FALSE),0) -> 239 | AC37: =IFERROR(VLOOKUP($A37,FILTRO!$A$5:$AW$2635,27,FALSE),0) -> 291 | AD37: =IFERROR(VLOOKUP($A37,FILTRO!$A$5:$AW$2635,28,FALSE),0) -> 484 | AE37: =IFERROR(VLOOKUP($A37,FILTRO!$A$5:$AW$2635,29,FALSE),0) -> 522 | AF37: =IFERROR(VLOOKUP($A37,FILTRO!$A$5:$AW$2635,30,FALSE),0) -> 730 | AG37: =IFERROR(VLOOKUP($A37,FILTRO!$A$5:$AW$2635,31,FALSE),0) -> 591 | AH37: =IFERROR(VLOOKUP($A37,FILTRO!$A$5:$AW$2635,32,FALSE),0) -> 460 | AI37: =IFERROR(VLOOKUP($A37,FILTRO!$A$5:$AW$2635,33,FALSE),0) -> 710 | AJ37: =IFERROR(VLOOKUP($A37,FILTRO!$A$5:$AW$2635,34,FALSE),0) -> 2290 | AK37: =IFERROR(VLOOKUP($A37,FILTRO!$A$5:$AW$2635,35,FALSE),0) -> 12 | AL37: =IFERROR(VLOOKUP($A37,FILTRO!$A$5:$AW$2635,36,FALSE),0) -> 53 | AM37: =IFERROR(VLOOKUP($A37,FILTRO!$A$5:$AW$2635,37,FALSE),0) -> 73 | AN37: =IFERROR(VLOOKUP($A37,FILTRO!$A$5:$AW$2635,38,FALSE),0) -> 170 | AO37: =IFERROR(VLOOKUP($A37,FILTRO!$A$5:$AW$2635,39,FALSE),0) -> 624 | CB37: * El número de controles con presencia de Padre para menor entre 1 año y 3 años NO DEBE ser Mayor a la suma de controles del rango correspondiente. | CC37: * El número de controles según sexo NO DEBE ser diferente al Total. | DA37: 0 | DB37: 1 | DC37: 1 | DD37: 0
A38: 02010201 | C38: ENFERMERA/O | D38: =SUM(G38:AI38) -> 101510 | E38: =IFERROR(VLOOKUP($A38,FILTRO!$A$5:$AW$2635,3,FALSE),0) -> 47386 | F38: =IFERROR(VLOOKUP($A38,FILTRO!$A$5:$AW$2635,4,FALSE),0) -> 52395 | G38: =IFERROR(VLOOKUP($A38,FILTRO!$A$5:$AW$2635,5,FALSE),0) -> 96 | H38: =IFERROR(VLOOKUP($A38,FILTRO!$A$5:$AW$2635,6,FALSE),0) -> 110 | I38: =IFERROR(VLOOKUP($A38,FILTRO!$A$5:$AW$2635,7,FALSE),0) -> 5422 | J38: =IFERROR(VLOOKUP($A38,FILTRO!$A$5:$AW$2635,8,FALSE),0) -> 298 | K38: =IFERROR(VLOOKUP($A38,FILTRO!$A$5:$AW$2635,9,FALSE),0) -> 5308 | L38: =IFERROR(VLOOKUP($A38,FILTRO!$A$5:$AW$2635,10,FALSE),0) -> 385 | M38: =IFERROR(VLOOKUP($A38,FILTRO!$A$5:$AW$2635,11,FALSE),0) -> 5180 | N38: =IFERROR(VLOOKUP($A38,FILTRO!$A$5:$AW$2635,12,FALSE),0) -> 6294 | O38: =IFERROR(VLOOKUP($A38,FILTRO!$A$5:$AW$2635,13,FALSE),0) -> 6625 | P38: =IFERROR(VLOOKUP($A38,FILTRO!$A$5:$AW$2635,14,FALSE),0) -> 5720 | Q38: =IFERROR(VLOOKUP($A38,FILTRO!$A$5:$AW$2635,15,FALSE),0) -> 12413 | R38: =IFERROR(VLOOKUP($A38,FILTRO!$A$5:$AW$2635,16,FALSE),0) -> 5667 | S38: =IFERROR(VLOOKUP($A38,FILTRO!$A$5:$AW$2635,17,FALSE),0) -> 5382 | T38: =IFERROR(VLOOKUP($A38,FILTRO!$A$5:$AW$2635,18,FALSE),0) -> 13526 | U38: =IFERROR(VLOOKUP($A38,FILTRO!$A$5:$AW$2635,19,FALSE),0) -> 5987 | V38: =IFERROR(VLOOKUP($A38,FILTRO!$A$5:$AW$2635,20,FALSE),0) -> 1835 | W38: =IFERROR(VLOOKUP($A38,FILTRO!$A$5:$AW$2635,21,FALSE),0) -> 511 | X38: =IFERROR(VLOOKUP($A38,FILTRO!$A$5:$AW$2635,22,FALSE),0) -> 668 | Y38: =IFERROR(VLOOKUP($A38,FILTRO!$A$5:$AW$2635,23,FALSE),0) -> 732 | Z38: =IFERROR(VLOOKUP($A38,FILTRO!$A$5:$AW$2635,24,FALSE),0) -> 751 | AA38: =IFERROR(VLOOKUP($A38,FILTRO!$A$5:$AW$2635,25,FALSE),0) -> 784 | AB38: =IFERROR(VLOOKUP($A38,FILTRO!$A$5:$AW$2635,26,FALSE),0) -> 897 | AC38: =IFERROR(VLOOKUP($A38,FILTRO!$A$5:$AW$2635,27,FALSE),0) -> 1023 | AD38: =IFERROR(VLOOKUP($A38,FILTRO!$A$5:$AW$2635,28,FALSE),0) -> 1213 | AE38: =IFERROR(VLOOKUP($A38,FILTRO!$A$5:$AW$2635,29,FALSE),0) -> 1369 | AF38: =IFERROR(VLOOKUP($A38,FILTRO!$A$5:$AW$2635,30,FALSE),0) -> 3443 | AG38: =IFERROR(VLOOKUP($A38,FILTRO!$A$5:$AW$2635,31,FALSE),0) -> 3324 | AH38: =IFERROR(VLOOKUP($A38,FILTRO!$A$5:$AW$2635,32,FALSE),0) -> 2839 | AI38: =IFERROR(VLOOKUP($A38,FILTRO!$A$5:$AW$2635,33,FALSE),0) -> 3708 | AJ38: =IFERROR(VLOOKUP($A38,FILTRO!$A$5:$AW$2635,34,FALSE),0) -> 5070 | AK38: =IFERROR(VLOOKUP($A38,FILTRO!$A$5:$AW$2635,35,FALSE),0) -> 4287 | AL38: =IFERROR(VLOOKUP($A38,FILTRO!$A$5:$AW$2635,36,FALSE),0) -> 429 | AM38: =IFERROR(VLOOKUP($A38,FILTRO!$A$5:$AW$2635,37,FALSE),0) -> 307 | AN38: =IFERROR(VLOOKUP($A38,FILTRO!$A$5:$AW$2635,38,FALSE),0) -> 1255 | AO38: =IFERROR(VLOOKUP($A38,FILTRO!$A$5:$AW$2635,39,FALSE),0) -> 1692 | CC38: * El número de controles según sexo NO DEBE ser diferente al Total. | DA38: 0 | DB38: 0 | DC38: 1 | DD38: 0
A39: 02010103 | C39: MATRONA/ÓN | D39: =SUM(G39+U39+V39+W39+X39+Y39+Z39+AA39+AB39+AC39+AD39+AE39+AF39+AG39+AH39+AI39) -> 21781 | E39: =IFERROR(VLOOKUP($A39,FILTRO!$A$5:$AW$2635,3,FALSE),0) -> 4564 | F39: =IFERROR(VLOOKUP($A39,FILTRO!$A$5:$AW$2635,4,FALSE),0) -> 17107 | G39: =IFERROR(VLOOKUP($A39,FILTRO!$A$5:$AW$2635,5,FALSE),0) -> 4110 | H39: =IFERROR(VLOOKUP($A39,FILTRO!$A$5:$AW$2635,6,FALSE),0) -> 0 | I39: =IFERROR(VLOOKUP($A39,FILTRO!$A$5:$AW$2635,7,FALSE),0) -> 0 | J39: =IFERROR(VLOOKUP($A39,FILTRO!$A$5:$AW$2635,8,FALSE),0) -> 0 | K39: =IFERROR(VLOOKUP($A39,FILTRO!$A$5:$AW$2635,9,FALSE),0) -> 0 | L39: =IFERROR(VLOOKUP($A39,FILTRO!$A$5:$AW$2635,10,FALSE),0) -> 0 | M39: =IFERROR(VLOOKUP($A39,FILTRO!$A$5:$AW$2635,11,FALSE),0) -> 0 | N39: =IFERROR(VLOOKUP($A39,FILTRO!$A$5:$AW$2635,12,FALSE),0) -> 0 | O39: =IFERROR(VLOOKUP($A39,FILTRO!$A$5:$AW$2635,13,FALSE),0) -> 0 | P39: =IFERROR(VLOOKUP($A39,FILTRO!$A$5:$AW$2635,14,FALSE),0) -> 0 | Q39: =IFERROR(VLOOKUP($A39,FILTRO!$A$5:$AW$2635,15,FALSE),0) -> 0 | R39: =IFERROR(VLOOKUP($A39,FILTRO!$A$5:$AW$2635,16,FALSE),0) -> 0 | S39: =IFERROR(VLOOKUP($A39,FILTRO!$A$5:$AW$2635,17,FALSE),0) -> 0 | T39: =IFERROR(VLOOKUP($A39,FILTRO!$A$5:$AW$2635,18,FALSE),0) -> 0 | U39: =IFERROR(VLOOKUP($A39,FILTRO!$A$5:$AW$2635,19,FALSE),0) -> 3651 | V39: =IFERROR(VLOOKUP($A39,FILTRO!$A$5:$AW$2635,20,FALSE),0) -> 3135 | W39: =IFERROR(VLOOKUP($A39,FILTRO!$A$5:$AW$2635,21,FALSE),0) -> 1384 | X39: =IFERROR(VLOOKUP($A39,FILTRO!$A$5:$AW$2635,22,FALSE),0) -> 1773 | Y39: =IFERROR(VLOOKUP($A39,FILTRO!$A$5:$AW$2635,23,FALSE),0) -> 1646 | Z39: =IFERROR(VLOOKUP($A39,FILTRO!$A$5:$AW$2635,24,FALSE),0) -> 1455 | AA39: =IFERROR(VLOOKUP($A39,FILTRO!$A$5:$AW$2635,25,FALSE),0) -> 1250 | AB39: =IFERROR(VLOOKUP($A39,FILTRO!$A$5:$AW$2635,26,FALSE),0) -> 1125 | AC39: =IFERROR(VLOOKUP($A39,FILTRO!$A$5:$AW$2635,27,FALSE),0) -> 868 | AD39: =IFERROR(VLOOKUP($A39,FILTRO!$A$5:$AW$2635,28,FALSE),0) -> 644 | AE39: =IFERROR(VLOOKUP($A39,FILTRO!$A$5:$AW$2635,29,FALSE),0) -> 446 | AF39: =IFERROR(VLOOKUP($A39,FILTRO!$A$5:$AW$2635,30,FALSE),0) -> 208 | AG39: =IFERROR(VLOOKUP($A39,FILTRO!$A$5:$AW$2635,31,FALSE),0) -> 55 | AH39: =IFERROR(VLOOKUP($A39,FILTRO!$A$5:$AW$2635,32,FALSE),0) -> 23 | AI39: =IFERROR(VLOOKUP($A39,FILTRO!$A$5:$AW$2635,33,FALSE),0) -> 8 | AJ39: =IFERROR(VLOOKUP($A39,FILTRO!$A$5:$AW$2635,34,FALSE),0) -> 1866 | AK39: =IFERROR(VLOOKUP($A39,FILTRO!$A$5:$AW$2635,35,FALSE),0) -> 0 | AL39: =IFERROR(VLOOKUP($A39,FILTRO!$A$5:$AW$2635,36,FALSE),0) -> 21 | AM39: =IFERROR(VLOOKUP($A39,FILTRO!$A$5:$AW$2635,37,FALSE),0) -> 30 | AN39: =IFERROR(VLOOKUP($A39,FILTRO!$A$5:$AW$2635,38,FALSE),0) -> 150 | AO39: =IFERROR(VLOOKUP($A39,FILTRO!$A$5:$AW$2635,39,FALSE),0) -> 343 | CB39: * El número de controles con presencia de Padre para menor entre 1 año y 3 años NO DEBE ser Mayor a la suma de controles del rango correspondiente. | CC39: * El número de controles según sexo NO DEBE ser diferente al Total. | DA39: 0 | DB39: 1 | DC39: 1 | DD39: 0
A40: 02010105 | C40: TÉCNICO EN ENFERMERÍA | D40: =SUM(O40:T40) -> 24 | E40: =IFERROR(VLOOKUP($A40,FILTRO!$A$5:$AW$2635,3,FALSE),0) -> 12 | F40: =IFERROR(VLOOKUP($A40,FILTRO!$A$5:$AW$2635,4,FALSE),0) -> 11 | G40: =IFERROR(VLOOKUP($A40,FILTRO!$A$5:$AW$2635,5,FALSE),0) -> 0 | H40: =IFERROR(VLOOKUP($A40,FILTRO!$A$5:$AW$2635,6,FALSE),0) -> 0 | I40: =IFERROR(VLOOKUP($A40,FILTRO!$A$5:$AW$2635,7,FALSE),0) -> 0 | J40: =IFERROR(VLOOKUP($A40,FILTRO!$A$5:$AW$2635,8,FALSE),0) -> 0 | K40: =IFERROR(VLOOKUP($A40,FILTRO!$A$5:$AW$2635,9,FALSE),0) -> 0 | L40: =IFERROR(VLOOKUP($A40,FILTRO!$A$5:$AW$2635,10,FALSE),0) -> 0 | M40: =IFERROR(VLOOKUP($A40,FILTRO!$A$5:$AW$2635,11,FALSE),0) -> 0 | N40: =IFERROR(VLOOKUP($A40,FILTRO!$A$5:$AW$2635,12,FALSE),0) -> 0 | O40: =IFERROR(VLOOKUP($A40,FILTRO!$A$5:$AW$2635,13,FALSE),0) -> 1 | P40: =IFERROR(VLOOKUP($A40,FILTRO!$A$5:$AW$2635,14,FALSE),0) -> 1 | Q40: =IFERROR(VLOOKUP($A40,FILTRO!$A$5:$AW$2635,15,FALSE),0) -> 4 | R40: =IFERROR(VLOOKUP($A40,FILTRO!$A$5:$AW$2635,16,FALSE),0) -> 0 | S40: =IFERROR(VLOOKUP($A40,FILTRO!$A$5:$AW$2635,17,FALSE),0) -> 2 | T40: =IFERROR(VLOOKUP($A40,FILTRO!$A$5:$AW$2635,18,FALSE),0) -> 16 | U40: =IFERROR(VLOOKUP($A40,FILTRO!$A$5:$AW$2635,19,FALSE),0) -> 0 | V40: =IFERROR(VLOOKUP($A40,FILTRO!$A$5:$AW$2635,20,FALSE),0) -> 0 | W40: =IFERROR(VLOOKUP($A40,FILTRO!$A$5:$AW$2635,21,FALSE),0) -> 0 | X40: =IFERROR(VLOOKUP($A40,FILTRO!$A$5:$AW$2635,22,FALSE),0) -> 0 | Y40: =IFERROR(VLOOKUP($A40,FILTRO!$A$5:$AW$2635,23,FALSE),0) -> 0 | Z40: =IFERROR(VLOOKUP($A40,FILTRO!$A$5:$AW$2635,24,FALSE),0) -> 0 | AA40: =IFERROR(VLOOKUP($A40,FILTRO!$A$5:$AW$2635,25,FALSE),0) -> 0 | AB40: =IFERROR(VLOOKUP($A40,FILTRO!$A$5:$AW$2635,26,FALSE),0) -> 0 | AC40: =IFERROR(VLOOKUP($A40,FILTRO!$A$5:$AW$2635,27,FALSE),0) -> 0 | AD40: =IFERROR(VLOOKUP($A40,FILTRO!$A$5:$AW$2635,28,FALSE),0) -> 0 | AE40: =IFERROR(VLOOKUP($A40,FILTRO!$A$5:$AW$2635,29,FALSE),0) -> 0 | AF40: =IFERROR(VLOOKUP($A40,FILTRO!$A$5:$AW$2635,30,FALSE),0) -> 0 | AG40: =IFERROR(VLOOKUP($A40,FILTRO!$A$5:$AW$2635,31,FALSE),0) -> 0 | AH40: =IFERROR(VLOOKUP($A40,FILTRO!$A$5:$AW$2635,32,FALSE),0) -> 0 | AI40: =IFERROR(VLOOKUP($A40,FILTRO!$A$5:$AW$2635,33,FALSE),0) -> 0 | AJ40: =IFERROR(VLOOKUP($A40,FILTRO!$A$5:$AW$2635,34,FALSE),0) -> 0 | AK40: =IFERROR(VLOOKUP($A40,FILTRO!$A$5:$AW$2635,35,FALSE),0) -> 4 | AL40: =IFERROR(VLOOKUP($A40,FILTRO!$A$5:$AW$2635,36,FALSE),0) -> 2 | AM40: =IFERROR(VLOOKUP($A40,FILTRO!$A$5:$AW$2635,37,FALSE),0) -> 0 | AN40: =IFERROR(VLOOKUP($A40,FILTRO!$A$5:$AW$2635,38,FALSE),0) -> 1 | AO40: =IFERROR(VLOOKUP($A40,FILTRO!$A$5:$AW$2635,39,FALSE),0) -> 42 | CC40: * El número de controles según sexo NO DEBE ser diferente al Total. | DC40: 1 | DD40: 0
B41: SECCIÓN C: CONTROLES SEGÚN PROBLEMA DE SALUD
B42: TIPO DE CONTROL | C42: PROFESIONAL | D42: TOTAL | G42: POR EDAD | AO42: Pueblos Originarios | AP42: Migrantes
G43: 0 - 4 años | I43: 5 - 9 años | K43: 10 - 14 años | M43: 15 a 19 años | O43: 20 - 24 años | Q43: 25 - 29 años | S43: 30 - 34 años | U43: 35 - 39 años | W43: 40 - 44 años | Y43: 45 - 49 años | AA43: 50 - 54 años | AC43: 55 - 59 años | AE43: 60 - 64 años | AG43: 65 - 69 años | AI43: 70 - 74 años | AK43: 75 - 79 años | AM43: 80 y más años
D44: Ambos Sexos | E44: Hombres | F44: Mujeres | G44: Hombres | H44: Mujeres | I44: Hombres | J44: Mujeres | K44: Hombres | L44: Mujeres | M44: Hombres | N44: Mujeres | O44: Hombres | P44: Mujeres | Q44: Hombres | R44: Mujeres | S44: Hombres | T44: Mujeres | U44: Hombres | V44: Mujeres | W44: Hombres | X44: Mujeres | Y44: Hombres | Z44: Mujeres | AA44: Hombres | AB44: Mujeres | AC44: Hombres | AD44: Mujeres | AE44: Hombres | AF44: Mujeres | AG44: Hombres | AH44: Mujeres | AI44: Hombres | AJ44: Mujeres | AK44: Hombres | AL44: Mujeres | AM44: Hombres | AN44: Mujeres
A45: 03010501 | B45: DE SALUD CARDIOVASCULAR | C45: MÉDICO/A | D45: =SUM(E45:F45) -> 144156 | E45: =SUM(K45+M45+O45+Q45+S45+U45+W45+Y45+AA45+AC45+AE45+AG45+AI45+AK45+AM45) -> 49822 | F45: 94334 | G45: =IFERROR(VLOOKUP($A45,FILTRO!$A$5:$AW$2635,5,FALSE),0) -> 0 | H45: =IFERROR(VLOOKUP($A45,FILTRO!$A$5:$AW$2635,6,FALSE),0) -> 0 | I45: =IFERROR(VLOOKUP($A45,FILTRO!$A$5:$AW$2635,7,FALSE),0) -> 0 | J45: =IFERROR(VLOOKUP($A45,FILTRO!$A$5:$AW$2635,8,FALSE),0) -> 0 | K45: =IFERROR(VLOOKUP($A45,FILTRO!$A$5:$AW$2635,9,FALSE),0) -> 0 | L45: =IFERROR(VLOOKUP($A45,FILTRO!$A$5:$AW$2635,10,FALSE),0) -> 0 | M45: =IFERROR(VLOOKUP($A45,FILTRO!$A$5:$AW$2635,11,FALSE),0) -> 87 | N45: =IFERROR(VLOOKUP($A45,FILTRO!$A$5:$AW$2635,12,FALSE),0) -> 141 | O45: =IFERROR(VLOOKUP($A45,FILTRO!$A$5:$AW$2635,13,FALSE),0) -> 138 | P45: =IFERROR(VLOOKUP($A45,FILTRO!$A$5:$AW$2635,14,FALSE),0) -> 336 | Q45: =IFERROR(VLOOKUP($A45,FILTRO!$A$5:$AW$2635,15,FALSE),0) -> 231 | R45: =IFERROR(VLOOKUP($A45,FILTRO!$A$5:$AW$2635,16,FALSE),0) -> 606 | S45: =IFERROR(VLOOKUP($A45,FILTRO!$A$5:$AW$2635,17,FALSE),0) -> 414 | T45: =IFERROR(VLOOKUP($A45,FILTRO!$A$5:$AW$2635,18,FALSE),0) -> 1161 | U45: =IFERROR(VLOOKUP($A45,FILTRO!$A$5:$AW$2635,19,FALSE),0) -> 703 | V45: =IFERROR(VLOOKUP($A45,FILTRO!$A$5:$AW$2635,20,FALSE),0) -> 1944 | W45: =IFERROR(VLOOKUP($A45,FILTRO!$A$5:$AW$2635,21,FALSE),0) -> 1188 | X45: =IFERROR(VLOOKUP($A45,FILTRO!$A$5:$AW$2635,22,FALSE),0) -> 3324 | Y45: =IFERROR(VLOOKUP($A45,FILTRO!$A$5:$AW$2635,23,FALSE),0) -> 1922 | Z45: =IFERROR(VLOOKUP($A45,FILTRO!$A$5:$AW$2635,24,FALSE),0) -> 5215 | AA45: =IFERROR(VLOOKUP($A45,FILTRO!$A$5:$AW$2635,25,FALSE),0) -> 3138 | AB45: =IFERROR(VLOOKUP($A45,FILTRO!$A$5:$AW$2635,26,FALSE),0) -> 7930 | AC45: =IFERROR(VLOOKUP($A45,FILTRO!$A$5:$AW$2635,27,FALSE),0) -> 4892 | AD45: =IFERROR(VLOOKUP($A45,FILTRO!$A$5:$AW$2635,28,FALSE),0) -> 11498 | AE45: =IFERROR(VLOOKUP($A45,FILTRO!$A$5:$AW$2635,29,FALSE),0) -> 6942 | AF45: =IFERROR(VLOOKUP($A45,FILTRO!$A$5:$AW$2635,30,FALSE),0) -> 13614 | AG45: =IFERROR(VLOOKUP($A45,FILTRO!$A$5:$AW$2635,31,FALSE),0) -> 8253 | AH45: =IFERROR(VLOOKUP($A45,FILTRO!$A$5:$AW$2635,32,FALSE),0) -> 14045 | AI45: =IFERROR(VLOOKUP($A45,FILTRO!$A$5:$AW$2635,33,FALSE),0) -> 7849 | AJ45: =IFERROR(VLOOKUP($A45,FILTRO!$A$5:$AW$2635,34,FALSE),0) -> 12320 | AK45: =IFERROR(VLOOKUP($A45,FILTRO!$A$5:$AW$2635,35,FALSE),0) -> 6586 | AL45: =IFERROR(VLOOKUP($A45,FILTRO!$A$5:$AW$2635,36,FALSE),0) -> 10161 | AM45: =IFERROR(VLOOKUP($A45,FILTRO!$A$5:$AW$2635,37,FALSE),0) -> 7479 | AN45: =IFERROR(VLOOKUP($A45,FILTRO!$A$5:$AW$2635,38,FALSE),0) -> 12039 | AO45: =IFERROR(VLOOKUP($A45,FILTRO!$A$5:$AW$2635,39,FALSE),0) -> 2364 | AP45: =IFERROR(VLOOKUP($A45,FILTRO!$A$5:$AW$2635,40,FALSE),0) -> 2220 | DB45: 0 | DC45: 0 | DD45: 0 | DE45: 0
A46: 03010502 | C46: ENFERMERA/O | D46: =SUM(E46:F46) -> 63462 | E46: 23027 | F46: 40435 | G46: =IFERROR(VLOOKUP($A46,FILTRO!$A$5:$AW$2635,5,FALSE),0) -> 0 | H46: =IFERROR(VLOOKUP($A46,FILTRO!$A$5:$AW$2635,6,FALSE),0) -> 0 | I46: =IFERROR(VLOOKUP($A46,FILTRO!$A$5:$AW$2635,7,FALSE),0) -> 0 | J46: =IFERROR(VLOOKUP($A46,FILTRO!$A$5:$AW$2635,8,FALSE),0) -> 0 | K46: =IFERROR(VLOOKUP($A46,FILTRO!$A$5:$AW$2635,9,FALSE),0) -> 0 | L46: =IFERROR(VLOOKUP($A46,FILTRO!$A$5:$AW$2635,10,FALSE),0) -> 0 | M46: =IFERROR(VLOOKUP($A46,FILTRO!$A$5:$AW$2635,11,FALSE),0) -> 40 | N46: =IFERROR(VLOOKUP($A46,FILTRO!$A$5:$AW$2635,12,FALSE),0) -> 38 | O46: =IFERROR(VLOOKUP($A46,FILTRO!$A$5:$AW$2635,13,FALSE),0) -> 58 | P46: =IFERROR(VLOOKUP($A46,FILTRO!$A$5:$AW$2635,14,FALSE),0) -> 122 | Q46: =IFERROR(VLOOKUP($A46,FILTRO!$A$5:$AW$2635,15,FALSE),0) -> 96 | R46: =IFERROR(VLOOKUP($A46,FILTRO!$A$5:$AW$2635,16,FALSE),0) -> 259 | S46: =IFERROR(VLOOKUP($A46,FILTRO!$A$5:$AW$2635,17,FALSE),0) -> 176 | T46: =IFERROR(VLOOKUP($A46,FILTRO!$A$5:$AW$2635,18,FALSE),0) -> 473 | U46: =IFERROR(VLOOKUP($A46,FILTRO!$A$5:$AW$2635,19,FALSE),0) -> 298 | V46: =IFERROR(VLOOKUP($A46,FILTRO!$A$5:$AW$2635,20,FALSE),0) -> 832 | W46: =IFERROR(VLOOKUP($A46,FILTRO!$A$5:$AW$2635,21,FALSE),0) -> 538 | X46: =IFERROR(VLOOKUP($A46,FILTRO!$A$5:$AW$2635,22,FALSE),0) -> 1374 | Y46: =IFERROR(VLOOKUP($A46,FILTRO!$A$5:$AW$2635,23,FALSE),0) -> 887 | Z46: =IFERROR(VLOOKUP($A46,FILTRO!$A$5:$AW$2635,24,FALSE),0) -> 2203 | AA46: =IFERROR(VLOOKUP($A46,FILTRO!$A$5:$AW$2635,25,FALSE),0) -> 1395 | AB46: =IFERROR(VLOOKUP($A46,FILTRO!$A$5:$AW$2635,26,FALSE),0) -> 3312 | AC46: =IFERROR(VLOOKUP($A46,FILTRO!$A$5:$AW$2635,27,FALSE),0) -> 2294 | AD46: =IFERROR(VLOOKUP($A46,FILTRO!$A$5:$AW$2635,28,FALSE),0) -> 4798 | AE46: =IFERROR(VLOOKUP($A46,FILTRO!$A$5:$AW$2635,29,FALSE),0) -> 3085 | AF46: =IFERROR(VLOOKUP($A46,FILTRO!$A$5:$AW$2635,30,FALSE),0) -> 5666 | AG46: =IFERROR(VLOOKUP($A46,FILTRO!$A$5:$AW$2635,31,FALSE),0) -> 3934 | AH46: =IFERROR(VLOOKUP($A46,FILTRO!$A$5:$AW$2635,32,FALSE),0) -> 6188 | AI46: =IFERROR(VLOOKUP($A46,FILTRO!$A$5:$AW$2635,33,FALSE),0) -> 3685 | AJ46: =IFERROR(VLOOKUP($A46,FILTRO!$A$5:$AW$2635,34,FALSE),0) -> 5357 | AK46: =IFERROR(VLOOKUP($A46,FILTRO!$A$5:$AW$2635,35,FALSE),0) -> 2984 | AL46: =IFERROR(VLOOKUP($A46,FILTRO!$A$5:$AW$2635,36,FALSE),0) -> 4296 | AM46: =IFERROR(VLOOKUP($A46,FILTRO!$A$5:$AW$2635,37,FALSE),0) -> 3557 | AN46: =IFERROR(VLOOKUP($A46,FILTRO!$A$5:$AW$2635,38,FALSE),0) -> 5517 | AO46: =IFERROR(VLOOKUP($A46,FILTRO!$A$5:$AW$2635,39,FALSE),0) -> 595 | AP46: =IFERROR(VLOOKUP($A46,FILTRO!$A$5:$AW$2635,40,FALSE),0) -> 466 | DB46: 0 | DC46: 0 | DD46: 0 | DE46: 0
A47: 03010504 | C47: NUTRICIONISTA | D47: 59569 | E47: 19654 | F47: 39915 | G47: =IFERROR(VLOOKUP($A47,FILTRO!$A$5:$AW$2635,5,FALSE),0) -> 0 | H47: =IFERROR(VLOOKUP($A47,FILTRO!$A$5:$AW$2635,6,FALSE),0) -> 0 | I47: =IFERROR(VLOOKUP($A47,FILTRO!$A$5:$AW$2635,7,FALSE),0) -> 0 | J47: =IFERROR(VLOOKUP($A47,FILTRO!$A$5:$AW$2635,8,FALSE),0) -> 0 | K47: =IFERROR(VLOOKUP($A47,FILTRO!$A$5:$AW$2635,9,FALSE),0) -> 0 | L47: =IFERROR(VLOOKUP($A47,FILTRO!$A$5:$AW$2635,10,FALSE),0) -> 0 | M47: =IFERROR(VLOOKUP($A47,FILTRO!$A$5:$AW$2635,11,FALSE),0) -> 41 | N47: =IFERROR(VLOOKUP($A47,FILTRO!$A$5:$AW$2635,12,FALSE),0) -> 57 | O47: =IFERROR(VLOOKUP($A47,FILTRO!$A$5:$AW$2635,13,FALSE),0) -> 68 | P47: =IFERROR(VLOOKUP($A47,FILTRO!$A$5:$AW$2635,14,FALSE),0) -> 168 | Q47: =IFERROR(VLOOKUP($A47,FILTRO!$A$5:$AW$2635,15,FALSE),0) -> 101 | R47: =IFERROR(VLOOKUP($A47,FILTRO!$A$5:$AW$2635,16,FALSE),0) -> 287 | S47: =IFERROR(VLOOKUP($A47,FILTRO!$A$5:$AW$2635,17,FALSE),0) -> 214 | T47: =IFERROR(VLOOKUP($A47,FILTRO!$A$5:$AW$2635,18,FALSE),0) -> 559 | U47: =IFERROR(VLOOKUP($A47,FILTRO!$A$5:$AW$2635,19,FALSE),0) -> 318 | V47: =IFERROR(VLOOKUP($A47,FILTRO!$A$5:$AW$2635,20,FALSE),0) -> 965 | W47: =IFERROR(VLOOKUP($A47,FILTRO!$A$5:$AW$2635,21,FALSE),0) -> 484 | X47: =IFERROR(VLOOKUP($A47,FILTRO!$A$5:$AW$2635,22,FALSE),0) -> 1542 | Y47: =IFERROR(VLOOKUP($A47,FILTRO!$A$5:$AW$2635,23,FALSE),0) -> 820 | Z47: =IFERROR(VLOOKUP($A47,FILTRO!$A$5:$AW$2635,24,FALSE),0) -> 2402 | AA47: =IFERROR(VLOOKUP($A47,FILTRO!$A$5:$AW$2635,25,FALSE),0) -> 1262 | AB47: =IFERROR(VLOOKUP($A47,FILTRO!$A$5:$AW$2635,26,FALSE),0) -> 3522 | AC47: =IFERROR(VLOOKUP($A47,FILTRO!$A$5:$AW$2635,27,FALSE),0) -> 1896 | AD47: =IFERROR(VLOOKUP($A47,FILTRO!$A$5:$AW$2635,28,FALSE),0) -> 5065 | AE47: =IFERROR(VLOOKUP($A47,FILTRO!$A$5:$AW$2635,29,FALSE),0) -> 2680 | AF47: =IFERROR(VLOOKUP($A47,FILTRO!$A$5:$AW$2635,30,FALSE),0) -> 5869 | AG47: =IFERROR(VLOOKUP($A47,FILTRO!$A$5:$AW$2635,31,FALSE),0) -> 3279 | AH47: =IFERROR(VLOOKUP($A47,FILTRO!$A$5:$AW$2635,32,FALSE),0) -> 5938 | AI47: =IFERROR(VLOOKUP($A47,FILTRO!$A$5:$AW$2635,33,FALSE),0) -> 3131 | AJ47: =IFERROR(VLOOKUP($A47,FILTRO!$A$5:$AW$2635,34,FALSE),0) -> 5008 | AK47: =IFERROR(VLOOKUP($A47,FILTRO!$A$5:$AW$2635,35,FALSE),0) -> 2474 | AL47: =IFERROR(VLOOKUP($A47,FILTRO!$A$5:$AW$2635,36,FALSE),0) -> 4016 | AM47: =IFERROR(VLOOKUP($A47,FILTRO!$A$5:$AW$2635,37,FALSE),0) -> 2886 | AN47: =IFERROR(VLOOKUP($A47,FILTRO!$A$5:$AW$2635,38,FALSE),0) -> 4517 | AO47: =IFERROR(VLOOKUP($A47,FILTRO!$A$5:$AW$2635,39,FALSE),0) -> 986 | AP47: =IFERROR(VLOOKUP($A47,FILTRO!$A$5:$AW$2635,40,FALSE),0) -> 484 | DB47: 0 | DC47: 0 | DD47: 0 | DE47: 0
A48: 03010505 | C48: TÉCNICO EN ENFERMERÍA | D48: 592 | E48: 255 | F48: 337 | G48: =IFERROR(VLOOKUP($A48,FILTRO!$A$5:$AW$2635,5,FALSE),0) -> 0 | H48: =IFERROR(VLOOKUP($A48,FILTRO!$A$5:$AW$2635,6,FALSE),0) -> 0 | I48: =IFERROR(VLOOKUP($A48,FILTRO!$A$5:$AW$2635,7,FALSE),0) -> 0 | J48: =IFERROR(VLOOKUP($A48,FILTRO!$A$5:$AW$2635,8,FALSE),0) -> 0 | K48: =IFERROR(VLOOKUP($A48,FILTRO!$A$5:$AW$2635,9,FALSE),0) -> 0 | L48: =IFERROR(VLOOKUP($A48,FILTRO!$A$5:$AW$2635,10,FALSE),0) -> 0 | M48: =IFERROR(VLOOKUP($A48,FILTRO!$A$5:$AW$2635,11,FALSE),0) -> 1 | N48: =IFERROR(VLOOKUP($A48,FILTRO!$A$5:$AW$2635,12,FALSE),0) -> 0 | O48: =IFERROR(VLOOKUP($A48,FILTRO!$A$5:$AW$2635,13,FALSE),0) -> 0 | P48: =IFERROR(VLOOKUP($A48,FILTRO!$A$5:$AW$2635,14,FALSE),0) -> 1 | Q48: =IFERROR(VLOOKUP($A48,FILTRO!$A$5:$AW$2635,15,FALSE),0) -> 2 | R48: =IFERROR(VLOOKUP($A48,FILTRO!$A$5:$AW$2635,16,FALSE),0) -> 1 | S48: =IFERROR(VLOOKUP($A48,FILTRO!$A$5:$AW$2635,17,FALSE),0) -> 3 | T48: =IFERROR(VLOOKUP($A48,FILTRO!$A$5:$AW$2635,18,FALSE),0) -> 10 | U48: =IFERROR(VLOOKUP($A48,FILTRO!$A$5:$AW$2635,19,FALSE),0) -> 4 | V48: =IFERROR(VLOOKUP($A48,FILTRO!$A$5:$AW$2635,20,FALSE),0) -> 5 | W48: =IFERROR(VLOOKUP($A48,FILTRO!$A$5:$AW$2635,21,FALSE),0) -> 10 | X48: =IFERROR(VLOOKUP($A48,FILTRO!$A$5:$AW$2635,22,FALSE),0) -> 13 | Y48: =IFERROR(VLOOKUP($A48,FILTRO!$A$5:$AW$2635,23,FALSE),0) -> 25 | Z48: =IFERROR(VLOOKUP($A48,FILTRO!$A$5:$AW$2635,24,FALSE),0) -> 22 | AA48: =IFERROR(VLOOKUP($A48,FILTRO!$A$5:$AW$2635,25,FALSE),0) -> 11 | AB48: =IFERROR(VLOOKUP($A48,FILTRO!$A$5:$AW$2635,26,FALSE),0) -> 45 | AC48: =IFERROR(VLOOKUP($A48,FILTRO!$A$5:$AW$2635,27,FALSE),0) -> 32 | AD48: =IFERROR(VLOOKUP($A48,FILTRO!$A$5:$AW$2635,28,FALSE),0) -> 38 | AE48: =IFERROR(VLOOKUP($A48,FILTRO!$A$5:$AW$2635,29,FALSE),0) -> 33 | AF48: =IFERROR(VLOOKUP($A48,FILTRO!$A$5:$AW$2635,30,FALSE),0) -> 37 | AG48: =IFERROR(VLOOKUP($A48,FILTRO!$A$5:$AW$2635,31,FALSE),0) -> 32 | AH48: =IFERROR(VLOOKUP($A48,FILTRO!$A$5:$AW$2635,32,FALSE),0) -> 49 | AI48: =IFERROR(VLOOKUP($A48,FILTRO!$A$5:$AW$2635,33,FALSE),0) -> 30 | AJ48: =IFERROR(VLOOKUP($A48,FILTRO!$A$5:$AW$2635,34,FALSE),0) -> 40 | AK48: =IFERROR(VLOOKUP($A48,FILTRO!$A$5:$AW$2635,35,FALSE),0) -> 31 | AL48: =IFERROR(VLOOKUP($A48,FILTRO!$A$5:$AW$2635,36,FALSE),0) -> 36 | AM48: =IFERROR(VLOOKUP($A48,FILTRO!$A$5:$AW$2635,37,FALSE),0) -> 41 | AN48: =IFERROR(VLOOKUP($A48,FILTRO!$A$5:$AW$2635,38,FALSE),0) -> 40 | AO48: =IFERROR(VLOOKUP($A48,FILTRO!$A$5:$AW$2635,39,FALSE),0) -> 44 | AP48: =IFERROR(VLOOKUP($A48,FILTRO!$A$5:$AW$2635,40,FALSE),0) -> 8 | DB48: 0 | DC48: 0 | DD48: 0 | DE48: 0
A49: 01030100A | B49: SEGUIMIENTO AUTOVALENTE CON RIESGO | C49: MÉDICO/A | D49: 104 | E49: =SUM(AG49+AI49+AK49+AM49) -> 42 | F49: =SUM(AH49+AJ49+AL49+AN49) -> 62 | G49: =IFERROR(VLOOKUP($A49,FILTRO!$A$5:$AW$2635,5,FALSE),0) -> 0 | H49: =IFERROR(VLOOKUP($A49,FILTRO!$A$5:$AW$2635,6,FALSE),0) -> 0 | I49: =IFERROR(VLOOKUP($A49,FILTRO!$A$5:$AW$2635,7,FALSE),0) -> 0 | J49: =IFERROR(VLOOKUP($A49,FILTRO!$A$5:$AW$2635,8,FALSE),0) -> 0 | K49: =IFERROR(VLOOKUP($A49,FILTRO!$A$5:$AW$2635,9,FALSE),0) -> 0 | L49: =IFERROR(VLOOKUP($A49,FILTRO!$A$5:$AW$2635,10,FALSE),0) -> 0 | M49: =IFERROR(VLOOKUP($A49,FILTRO!$A$5:$AW$2635,11,FALSE),0) -> 0 | N49: =IFERROR(VLOOKUP($A49,FILTRO!$A$5:$AW$2635,12,FALSE),0) -> 0 | O49: =IFERROR(VLOOKUP($A49,FILTRO!$A$5:$AW$2635,13,FALSE),0) -> 0 | P49: =IFERROR(VLOOKUP($A49,FILTRO!$A$5:$AW$2635,14,FALSE),0) -> 0 | Q49: =IFERROR(VLOOKUP($A49,FILTRO!$A$5:$AW$2635,15,FALSE),0) -> 0 | R49: =IFERROR(VLOOKUP($A49,FILTRO!$A$5:$AW$2635,16,FALSE),0) -> 0 | S49: =IFERROR(VLOOKUP($A49,FILTRO!$A$5:$AW$2635,17,FALSE),0) -> 0 | T49: =IFERROR(VLOOKUP($A49,FILTRO!$A$5:$AW$2635,18,FALSE),0) -> 0 | U49: =IFERROR(VLOOKUP($A49,FILTRO!$A$5:$AW$2635,19,FALSE),0) -> 0 | V49: =IFERROR(VLOOKUP($A49,FILTRO!$A$5:$AW$2635,20,FALSE),0) -> 0 | W49: =IFERROR(VLOOKUP($A49,FILTRO!$A$5:$AW$2635,21,FALSE),0) -> 0 | X49: =IFERROR(VLOOKUP($A49,FILTRO!$A$5:$AW$2635,22,FALSE),0) -> 0 | Y49: =IFERROR(VLOOKUP($A49,FILTRO!$A$5:$AW$2635,23,FALSE),0) -> 0 | Z49: =IFERROR(VLOOKUP($A49,FILTRO!$A$5:$AW$2635,24,FALSE),0) -> 0 | AA49: =IFERROR(VLOOKUP($A49,FILTRO!$A$5:$AW$2635,25,FALSE),0) -> 0 | AB49: =IFERROR(VLOOKUP($A49,FILTRO!$A$5:$AW$2635,26,FALSE),0) -> 0 | AC49: =IFERROR(VLOOKUP($A49,FILTRO!$A$5:$AW$2635,27,FALSE),0) -> 0 | AD49: =IFERROR(VLOOKUP($A49,FILTRO!$A$5:$AW$2635,28,FALSE),0) -> 0 | AE49: =IFERROR(VLOOKUP($A49,FILTRO!$A$5:$AW$2635,29,FALSE),0) -> 0 | AF49: =IFERROR(VLOOKUP($A49,FILTRO!$A$5:$AW$2635,30,FALSE),0) -> 0 | AG49: =IFERROR(VLOOKUP($A49,FILTRO!$A$5:$AW$2635,31,FALSE),0) -> 9 | AH49: =IFERROR(VLOOKUP($A49,FILTRO!$A$5:$AW$2635,32,FALSE),0) -> 13 | AI49: =IFERROR(VLOOKUP($A49,FILTRO!$A$5:$AW$2635,33,FALSE),0) -> 12 | AJ49: =IFERROR(VLOOKUP($A49,FILTRO!$A$5:$AW$2635,34,FALSE),0) -> 13 | AK49: =IFERROR(VLOOKUP($A49,FILTRO!$A$5:$AW$2635,35,FALSE),0) -> 9 | AL49: =IFERROR(VLOOKUP($A49,FILTRO!$A$5:$AW$2635,36,FALSE),0) -> 19 | AM49: =IFERROR(VLOOKUP($A49,FILTRO!$A$5:$AW$2635,37,FALSE),0) -> 12 | AN49: =IFERROR(VLOOKUP($A49,FILTRO!$A$5:$AW$2635,38,FALSE),0) -> 17 | AO49: =IFERROR(VLOOKUP($A49,FILTRO!$A$5:$AW$2635,39,FALSE),0) -> 8 | AP49: =IFERROR(VLOOKUP($A49,FILTRO!$A$5:$AW$2635,40,FALSE),0) -> 8 | DB49: 0 | DC49: 0 | DD49: 0 | DE49: 0
A50: 01030200B | C50: ENFERMERA/O | D50: 1638 | E50: =SUM(AG50+AI50+AK50+AM50) -> 640 | F50: =SUM(AH50+AJ50+AL50+AN50) -> 998 | G50: =IFERROR(VLOOKUP($A50,FILTRO!$A$5:$AW$2635,5,FALSE),0) -> 0 | H50: =IFERROR(VLOOKUP($A50,FILTRO!$A$5:$AW$2635,6,FALSE),0) -> 0 | I50: =IFERROR(VLOOKUP($A50,FILTRO!$A$5:$AW$2635,7,FALSE),0) -> 0 | J50: =IFERROR(VLOOKUP($A50,FILTRO!$A$5:$AW$2635,8,FALSE),0) -> 0 | K50: =IFERROR(VLOOKUP($A50,FILTRO!$A$5:$AW$2635,9,FALSE),0) -> 0 | L50: =IFERROR(VLOOKUP($A50,FILTRO!$A$5:$AW$2635,10,FALSE),0) -> 0 | M50: =IFERROR(VLOOKUP($A50,FILTRO!$A$5:$AW$2635,11,FALSE),0) -> 0 | N50: =IFERROR(VLOOKUP($A50,FILTRO!$A$5:$AW$2635,12,FALSE),0) -> 0 | O50: =IFERROR(VLOOKUP($A50,FILTRO!$A$5:$AW$2635,13,FALSE),0) -> 0 | P50: =IFERROR(VLOOKUP($A50,FILTRO!$A$5:$AW$2635,14,FALSE),0) -> 0 | Q50: =IFERROR(VLOOKUP($A50,FILTRO!$A$5:$AW$2635,15,FALSE),0) -> 0 | R50: =IFERROR(VLOOKUP($A50,FILTRO!$A$5:$AW$2635,16,FALSE),0) -> 0 | S50: =IFERROR(VLOOKUP($A50,FILTRO!$A$5:$AW$2635,17,FALSE),0) -> 0 | T50: =IFERROR(VLOOKUP($A50,FILTRO!$A$5:$AW$2635,18,FALSE),0) -> 0 | U50: =IFERROR(VLOOKUP($A50,FILTRO!$A$5:$AW$2635,19,FALSE),0) -> 0 | V50: =IFERROR(VLOOKUP($A50,FILTRO!$A$5:$AW$2635,20,FALSE),0) -> 0 | W50: =IFERROR(VLOOKUP($A50,FILTRO!$A$5:$AW$2635,21,FALSE),0) -> 0 | X50: =IFERROR(VLOOKUP($A50,FILTRO!$A$5:$AW$2635,22,FALSE),0) -> 0 | Y50: =IFERROR(VLOOKUP($A50,FILTRO!$A$5:$AW$2635,23,FALSE),0) -> 0 | Z50: =IFERROR(VLOOKUP($A50,FILTRO!$A$5:$AW$2635,24,FALSE),0) -> 0 | AA50: =IFERROR(VLOOKUP($A50,FILTRO!$A$5:$AW$2635,25,FALSE),0) -> 0 | AB50: =IFERROR(VLOOKUP($A50,FILTRO!$A$5:$AW$2635,26,FALSE),0) -> 0 | AC50: =IFERROR(VLOOKUP($A50,FILTRO!$A$5:$AW$2635,27,FALSE),0) -> 0 | AD50: =IFERROR(VLOOKUP($A50,FILTRO!$A$5:$AW$2635,28,FALSE),0) -> 0 | AE50: =IFERROR(VLOOKUP($A50,FILTRO!$A$5:$AW$2635,29,FALSE),0) -> 0 | AF50: =IFERROR(VLOOKUP($A50,FILTRO!$A$5:$AW$2635,30,FALSE),0) -> 0 | AG50: =IFERROR(VLOOKUP($A50,FILTRO!$A$5:$AW$2635,31,FALSE),0) -> 141 | AH50: =IFERROR(VLOOKUP($A50,FILTRO!$A$5:$AW$2635,32,FALSE),0) -> 247 | AI50: =IFERROR(VLOOKUP($A50,FILTRO!$A$5:$AW$2635,33,FALSE),0) -> 187 | AJ50: =IFERROR(VLOOKUP($A50,FILTRO!$A$5:$AW$2635,34,FALSE),0) -> 296 | AK50: =IFERROR(VLOOKUP($A50,FILTRO!$A$5:$AW$2635,35,FALSE),0) -> 155 | AL50: =IFERROR(VLOOKUP($A50,FILTRO!$A$5:$AW$2635,36,FALSE),0) -> 228 | AM50: =IFERROR(VLOOKUP($A50,FILTRO!$A$5:$AW$2635,37,FALSE),0) -> 157 | AN50: =IFERROR(VLOOKUP($A50,FILTRO!$A$5:$AW$2635,38,FALSE),0) -> 227 | AO50: =IFERROR(VLOOKUP($A50,FILTRO!$A$5:$AW$2635,39,FALSE),0) -> 9 | AP50: =IFERROR(VLOOKUP($A50,FILTRO!$A$5:$AW$2635,40,FALSE),0) -> 9 | DB50: 0 | DC50: 0 | DD50: 0 | DE50: 0
A51: 09600204 | C51: OTROS PROFESIONALES DEBIDAMENTE CAPACITADOS | D51: 172 | E51: 70 | F51: 102 | G51: =IFERROR(VLOOKUP($A51,FILTRO!$A$5:$AW$2635,5,FALSE),0) -> 0 | H51: =IFERROR(VLOOKUP($A51,FILTRO!$A$5:$AW$2635,6,FALSE),0) -> 0 | I51: =IFERROR(VLOOKUP($A51,FILTRO!$A$5:$AW$2635,7,FALSE),0) -> 0 | J51: =IFERROR(VLOOKUP($A51,FILTRO!$A$5:$AW$2635,8,FALSE),0) -> 0 | K51: =IFERROR(VLOOKUP($A51,FILTRO!$A$5:$AW$2635,9,FALSE),0) -> 0 | L51: =IFERROR(VLOOKUP($A51,FILTRO!$A$5:$AW$2635,10,FALSE),0) -> 0 | M51: =IFERROR(VLOOKUP($A51,FILTRO!$A$5:$AW$2635,11,FALSE),0) -> 0 | N51: =IFERROR(VLOOKUP($A51,FILTRO!$A$5:$AW$2635,12,FALSE),0) -> 0 | O51: =IFERROR(VLOOKUP($A51,FILTRO!$A$5:$AW$2635,13,FALSE),0) -> 0 | P51: =IFERROR(VLOOKUP($A51,FILTRO!$A$5:$AW$2635,14,FALSE),0) -> 0 | Q51: =IFERROR(VLOOKUP($A51,FILTRO!$A$5:$AW$2635,15,FALSE),0) -> 0 | R51: =IFERROR(VLOOKUP($A51,FILTRO!$A$5:$AW$2635,16,FALSE),0) -> 0 | S51: =IFERROR(VLOOKUP($A51,FILTRO!$A$5:$AW$2635,17,FALSE),0) -> 0 | T51: =IFERROR(VLOOKUP($A51,FILTRO!$A$5:$AW$2635,18,FALSE),0) -> 0 | U51: =IFERROR(VLOOKUP($A51,FILTRO!$A$5:$AW$2635,19,FALSE),0) -> 0 | V51: =IFERROR(VLOOKUP($A51,FILTRO!$A$5:$AW$2635,20,FALSE),0) -> 0 | W51: =IFERROR(VLOOKUP($A51,FILTRO!$A$5:$AW$2635,21,FALSE),0) -> 0 | X51: =IFERROR(VLOOKUP($A51,FILTRO!$A$5:$AW$2635,22,FALSE),0) -> 0 | Y51: =IFERROR(VLOOKUP($A51,FILTRO!$A$5:$AW$2635,23,FALSE),0) -> 0 | Z51: =IFERROR(VLOOKUP($A51,FILTRO!$A$5:$AW$2635,24,FALSE),0) -> 0 | AA51: =IFERROR(VLOOKUP($A51,FILTRO!$A$5:$AW$2635,25,FALSE),0) -> 0 | AB51: =IFERROR(VLOOKUP($A51,FILTRO!$A$5:$AW$2635,26,FALSE),0) -> 0 | AC51: =IFERROR(VLOOKUP($A51,FILTRO!$A$5:$AW$2635,27,FALSE),0) -> 0 | AD51: =IFERROR(VLOOKUP($A51,FILTRO!$A$5:$AW$2635,28,FALSE),0) -> 0 | AE51: =IFERROR(VLOOKUP($A51,FILTRO!$A$5:$AW$2635,29,FALSE),0) -> 0 | AF51: =IFERROR(VLOOKUP($A51,FILTRO!$A$5:$AW$2635,30,FALSE),0) -> 0 | AG51: =IFERROR(VLOOKUP($A51,FILTRO!$A$5:$AW$2635,31,FALSE),0) -> 15 | AH51: =IFERROR(VLOOKUP($A51,FILTRO!$A$5:$AW$2635,32,FALSE),0) -> 24 | AI51: =IFERROR(VLOOKUP($A51,FILTRO!$A$5:$AW$2635,33,FALSE),0) -> 21 | AJ51: =IFERROR(VLOOKUP($A51,FILTRO!$A$5:$AW$2635,34,FALSE),0) -> 34 | AK51: =IFERROR(VLOOKUP($A51,FILTRO!$A$5:$AW$2635,35,FALSE),0) -> 18 | AL51: =IFERROR(VLOOKUP($A51,FILTRO!$A$5:$AW$2635,36,FALSE),0) -> 22 | AM51: =IFERROR(VLOOKUP($A51,FILTRO!$A$5:$AW$2635,37,FALSE),0) -> 16 | AN51: =IFERROR(VLOOKUP($A51,FILTRO!$A$5:$AW$2635,38,FALSE),0) -> 22 | AO51: =IFERROR(VLOOKUP($A51,FILTRO!$A$5:$AW$2635,39,FALSE),0) -> 9 | AP51: =IFERROR(VLOOKUP($A51,FILTRO!$A$5:$AW$2635,40,FALSE),0) -> 9 | DB51: 0 | DC51: 0 | DD51: 0 | DE51: 0
A52: 01030300C | B52: SEGUIMIENTO RIESGO DEPENDENCIA | C52: MÉDICO/A | D52: 103 | E52: 50 | F52: 53 | G52: =IFERROR(VLOOKUP($A52,FILTRO!$A$5:$AW$2635,5,FALSE),0) -> 0 | H52: =IFERROR(VLOOKUP($A52,FILTRO!$A$5:$AW$2635,6,FALSE),0) -> 0 | I52: =IFERROR(VLOOKUP($A52,FILTRO!$A$5:$AW$2635,7,FALSE),0) -> 0 | J52: =IFERROR(VLOOKUP($A52,FILTRO!$A$5:$AW$2635,8,FALSE),0) -> 0 | K52: =IFERROR(VLOOKUP($A52,FILTRO!$A$5:$AW$2635,9,FALSE),0) -> 0 | L52: =IFERROR(VLOOKUP($A52,FILTRO!$A$5:$AW$2635,10,FALSE),0) -> 0 | M52: =IFERROR(VLOOKUP($A52,FILTRO!$A$5:$AW$2635,11,FALSE),0) -> 0 | N52: =IFERROR(VLOOKUP($A52,FILTRO!$A$5:$AW$2635,12,FALSE),0) -> 0 | O52: =IFERROR(VLOOKUP($A52,FILTRO!$A$5:$AW$2635,13,FALSE),0) -> 0 | P52: =IFERROR(VLOOKUP($A52,FILTRO!$A$5:$AW$2635,14,FALSE),0) -> 0 | Q52: =IFERROR(VLOOKUP($A52,FILTRO!$A$5:$AW$2635,15,FALSE),0) -> 0 | R52: =IFERROR(VLOOKUP($A52,FILTRO!$A$5:$AW$2635,16,FALSE),0) -> 0 | S52: =IFERROR(VLOOKUP($A52,FILTRO!$A$5:$AW$2635,17,FALSE),0) -> 0 | T52: =IFERROR(VLOOKUP($A52,FILTRO!$A$5:$AW$2635,18,FALSE),0) -> 0 | U52: =IFERROR(VLOOKUP($A52,FILTRO!$A$5:$AW$2635,19,FALSE),0) -> 0 | V52: =IFERROR(VLOOKUP($A52,FILTRO!$A$5:$AW$2635,20,FALSE),0) -> 0 | W52: =IFERROR(VLOOKUP($A52,FILTRO!$A$5:$AW$2635,21,FALSE),0) -> 0 | X52: =IFERROR(VLOOKUP($A52,FILTRO!$A$5:$AW$2635,22,FALSE),0) -> 0 | Y52: =IFERROR(VLOOKUP($A52,FILTRO!$A$5:$AW$2635,23,FALSE),0) -> 0 | Z52: =IFERROR(VLOOKUP($A52,FILTRO!$A$5:$AW$2635,24,FALSE),0) -> 0 | AA52: =IFERROR(VLOOKUP($A52,FILTRO!$A$5:$AW$2635,25,FALSE),0) -> 0 | AB52: =IFERROR(VLOOKUP($A52,FILTRO!$A$5:$AW$2635,26,FALSE),0) -> 0 | AC52: =IFERROR(VLOOKUP($A52,FILTRO!$A$5:$AW$2635,27,FALSE),0) -> 0 | AD52: =IFERROR(VLOOKUP($A52,FILTRO!$A$5:$AW$2635,28,FALSE),0) -> 0 | AE52: =IFERROR(VLOOKUP($A52,FILTRO!$A$5:$AW$2635,29,FALSE),0) -> 0 | AF52: =IFERROR(VLOOKUP($A52,FILTRO!$A$5:$AW$2635,30,FALSE),0) -> 0 | AG52: =IFERROR(VLOOKUP($A52,FILTRO!$A$5:$AW$2635,31,FALSE),0) -> 13 | AH52: =IFERROR(VLOOKUP($A52,FILTRO!$A$5:$AW$2635,32,FALSE),0) -> 15 | AI52: =IFERROR(VLOOKUP($A52,FILTRO!$A$5:$AW$2635,33,FALSE),0) -> 13 | AJ52: =IFERROR(VLOOKUP($A52,FILTRO!$A$5:$AW$2635,34,FALSE),0) -> 11 | AK52: =IFERROR(VLOOKUP($A52,FILTRO!$A$5:$AW$2635,35,FALSE),0) -> 11 | AL52: =IFERROR(VLOOKUP($A52,FILTRO!$A$5:$AW$2635,36,FALSE),0) -> 11 | AM52: =IFERROR(VLOOKUP($A52,FILTRO!$A$5:$AW$2635,37,FALSE),0) -> 13 | AN52: =IFERROR(VLOOKUP($A52,FILTRO!$A$5:$AW$2635,38,FALSE),0) -> 16 | AO52: =IFERROR(VLOOKUP($A52,FILTRO!$A$5:$AW$2635,39,FALSE),0) -> 9 | AP52: =IFERROR(VLOOKUP($A52,FILTRO!$A$5:$AW$2635,40,FALSE),0) -> 8 | DB52: 0 | DC52: 0 | DD52: 0 | DE52: 0
A53: 01030400D | C53: ENFERMERA/O | D53: 720 | E53: =SUM(AG53+AI53+AK53+AM53) -> 263 | F53: =SUM(AH53+AJ53+AL53+AN53) -> 457 | G53: =IFERROR(VLOOKUP($A53,FILTRO!$A$5:$AW$2635,5,FALSE),0) -> 0 | H53: =IFERROR(VLOOKUP($A53,FILTRO!$A$5:$AW$2635,6,FALSE),0) -> 0 | I53: =IFERROR(VLOOKUP($A53,FILTRO!$A$5:$AW$2635,7,FALSE),0) -> 0 | J53: =IFERROR(VLOOKUP($A53,FILTRO!$A$5:$AW$2635,8,FALSE),0) -> 0 | K53: =IFERROR(VLOOKUP($A53,FILTRO!$A$5:$AW$2635,9,FALSE),0) -> 0 | L53: =IFERROR(VLOOKUP($A53,FILTRO!$A$5:$AW$2635,10,FALSE),0) -> 0 | M53: =IFERROR(VLOOKUP($A53,FILTRO!$A$5:$AW$2635,11,FALSE),0) -> 0 | N53: =IFERROR(VLOOKUP($A53,FILTRO!$A$5:$AW$2635,12,FALSE),0) -> 0 | O53: =IFERROR(VLOOKUP($A53,FILTRO!$A$5:$AW$2635,13,FALSE),0) -> 0 | P53: =IFERROR(VLOOKUP($A53,FILTRO!$A$5:$AW$2635,14,FALSE),0) -> 0 | Q53: =IFERROR(VLOOKUP($A53,FILTRO!$A$5:$AW$2635,15,FALSE),0) -> 0 | R53: =IFERROR(VLOOKUP($A53,FILTRO!$A$5:$AW$2635,16,FALSE),0) -> 0 | S53: =IFERROR(VLOOKUP($A53,FILTRO!$A$5:$AW$2635,17,FALSE),0) -> 0 | T53: =IFERROR(VLOOKUP($A53,FILTRO!$A$5:$AW$2635,18,FALSE),0) -> 0 | U53: =IFERROR(VLOOKUP($A53,FILTRO!$A$5:$AW$2635,19,FALSE),0) -> 0 | V53: =IFERROR(VLOOKUP($A53,FILTRO!$A$5:$AW$2635,20,FALSE),0) -> 0 | W53: =IFERROR(VLOOKUP($A53,FILTRO!$A$5:$AW$2635,21,FALSE),0) -> 0 | X53: =IFERROR(VLOOKUP($A53,FILTRO!$A$5:$AW$2635,22,FALSE),0) -> 0 | Y53: =IFERROR(VLOOKUP($A53,FILTRO!$A$5:$AW$2635,23,FALSE),0) -> 0 | Z53: =IFERROR(VLOOKUP($A53,FILTRO!$A$5:$AW$2635,24,FALSE),0) -> 0 | AA53: =IFERROR(VLOOKUP($A53,FILTRO!$A$5:$AW$2635,25,FALSE),0) -> 0 | AB53: =IFERROR(VLOOKUP($A53,FILTRO!$A$5:$AW$2635,26,FALSE),0) -> 0 | AC53: =IFERROR(VLOOKUP($A53,FILTRO!$A$5:$AW$2635,27,FALSE),0) -> 0 | AD53: =IFERROR(VLOOKUP($A53,FILTRO!$A$5:$AW$2635,28,FALSE),0) -> 0 | AE53: =IFERROR(VLOOKUP($A53,FILTRO!$A$5:$AW$2635,29,FALSE),0) -> 0 | AF53: =IFERROR(VLOOKUP($A53,FILTRO!$A$5:$AW$2635,30,FALSE),0) -> 0 | AG53: =IFERROR(VLOOKUP($A53,FILTRO!$A$5:$AW$2635,31,FALSE),0) -> 32 | AH53: =IFERROR(VLOOKUP($A53,FILTRO!$A$5:$AW$2635,32,FALSE),0) -> 45 | AI53: =IFERROR(VLOOKUP($A53,FILTRO!$A$5:$AW$2635,33,FALSE),0) -> 45 | AJ53: =IFERROR(VLOOKUP($A53,FILTRO!$A$5:$AW$2635,34,FALSE),0) -> 99 | AK53: =IFERROR(VLOOKUP($A53,FILTRO!$A$5:$AW$2635,35,FALSE),0) -> 53 | AL53: =IFERROR(VLOOKUP($A53,FILTRO!$A$5:$AW$2635,36,FALSE),0) -> 100 | AM53: =IFERROR(VLOOKUP($A53,FILTRO!$A$5:$AW$2635,37,FALSE),0) -> 133 | AN53: =IFERROR(VLOOKUP($A53,FILTRO!$A$5:$AW$2635,38,FALSE),0) -> 213 | AO53: =IFERROR(VLOOKUP($A53,FILTRO!$A$5:$AW$2635,39,FALSE),0) -> 14 | AP53: =IFERROR(VLOOKUP($A53,FILTRO!$A$5:$AW$2635,40,FALSE),0) -> 9 | DB53: 0 | DC53: 0 | DD53: 0 | DE53: 0
A54: 09600205 | C54: OTROS PROFESIONALES DEBIDAMENTE CAPACITADOS | D54: 103 | E54: 47 | F54: 56 | G54: =IFERROR(VLOOKUP($A54,FILTRO!$A$5:$AW$2635,5,FALSE),0) -> 0 | H54: =IFERROR(VLOOKUP($A54,FILTRO!$A$5:$AW$2635,6,FALSE),0) -> 0 | I54: =IFERROR(VLOOKUP($A54,FILTRO!$A$5:$AW$2635,7,FALSE),0) -> 0 | J54: =IFERROR(VLOOKUP($A54,FILTRO!$A$5:$AW$2635,8,FALSE),0) -> 0 | K54: =IFERROR(VLOOKUP($A54,FILTRO!$A$5:$AW$2635,9,FALSE),0) -> 0 | L54: =IFERROR(VLOOKUP($A54,FILTRO!$A$5:$AW$2635,10,FALSE),0) -> 0 | M54: =IFERROR(VLOOKUP($A54,FILTRO!$A$5:$AW$2635,11,FALSE),0) -> 0 | N54: =IFERROR(VLOOKUP($A54,FILTRO!$A$5:$AW$2635,12,FALSE),0) -> 0 | O54: =IFERROR(VLOOKUP($A54,FILTRO!$A$5:$AW$2635,13,FALSE),0) -> 0 | P54: =IFERROR(VLOOKUP($A54,FILTRO!$A$5:$AW$2635,14,FALSE),0) -> 0 | Q54: =IFERROR(VLOOKUP($A54,FILTRO!$A$5:$AW$2635,15,FALSE),0) -> 0 | R54: =IFERROR(VLOOKUP($A54,FILTRO!$A$5:$AW$2635,16,FALSE),0) -> 0 | S54: =IFERROR(VLOOKUP($A54,FILTRO!$A$5:$AW$2635,17,FALSE),0) -> 0 | T54: =IFERROR(VLOOKUP($A54,FILTRO!$A$5:$AW$2635,18,FALSE),0) -> 0 | U54: =IFERROR(VLOOKUP($A54,FILTRO!$A$5:$AW$2635,19,FALSE),0) -> 0 | V54: =IFERROR(VLOOKUP($A54,FILTRO!$A$5:$AW$2635,20,FALSE),0) -> 0 | W54: =IFERROR(VLOOKUP($A54,FILTRO!$A$5:$AW$2635,21,FALSE),0) -> 0 | X54: =IFERROR(VLOOKUP($A54,FILTRO!$A$5:$AW$2635,22,FALSE),0) -> 0 | Y54: =IFERROR(VLOOKUP($A54,FILTRO!$A$5:$AW$2635,23,FALSE),0) -> 0 | Z54: =IFERROR(VLOOKUP($A54,FILTRO!$A$5:$AW$2635,24,FALSE),0) -> 0 | AA54: =IFERROR(VLOOKUP($A54,FILTRO!$A$5:$AW$2635,25,FALSE),0) -> 0 | AB54: =IFERROR(VLOOKUP($A54,FILTRO!$A$5:$AW$2635,26,FALSE),0) -> 0 | AC54: =IFERROR(VLOOKUP($A54,FILTRO!$A$5:$AW$2635,27,FALSE),0) -> 0 | AD54: =IFERROR(VLOOKUP($A54,FILTRO!$A$5:$AW$2635,28,FALSE),0) -> 0 | AE54: =IFERROR(VLOOKUP($A54,FILTRO!$A$5:$AW$2635,29,FALSE),0) -> 0 | AF54: =IFERROR(VLOOKUP($A54,FILTRO!$A$5:$AW$2635,30,FALSE),0) -> 0 | AG54: =IFERROR(VLOOKUP($A54,FILTRO!$A$5:$AW$2635,31,FALSE),0) -> 9 | AH54: =IFERROR(VLOOKUP($A54,FILTRO!$A$5:$AW$2635,32,FALSE),0) -> 11 | AI54: =IFERROR(VLOOKUP($A54,FILTRO!$A$5:$AW$2635,33,FALSE),0) -> 11 | AJ54: =IFERROR(VLOOKUP($A54,FILTRO!$A$5:$AW$2635,34,FALSE),0) -> 15 | AK54: =IFERROR(VLOOKUP($A54,FILTRO!$A$5:$AW$2635,35,FALSE),0) -> 14 | AL54: =IFERROR(VLOOKUP($A54,FILTRO!$A$5:$AW$2635,36,FALSE),0) -> 13 | AM54: =IFERROR(VLOOKUP($A54,FILTRO!$A$5:$AW$2635,37,FALSE),0) -> 13 | AN54: =IFERROR(VLOOKUP($A54,FILTRO!$A$5:$AW$2635,38,FALSE),0) -> 17 | AO54: =IFERROR(VLOOKUP($A54,FILTRO!$A$5:$AW$2635,39,FALSE),0) -> 9 | AP54: =IFERROR(VLOOKUP($A54,FILTRO!$A$5:$AW$2635,40,FALSE),0) -> 9 | DB54: 0 | DC54: 0 | DD54: 0 | DE54: 0
A55: 01200010 | B55: DE INFECCIÓN TRANSMISIÓN SEXUAL | C55: MÉDICO/A | D55: 145 | E55: =SUM(G55+I55+K55+M55+O55+Q55+S55+U55+W55+Y55+AA55+AC55+AE55+AG55+AI55+AK55+AM55) -> 40 | F55: =SUM(H55+J55+L55+N55+P55+R55+T55+V55+X55+Z55+AB55+AD55+AF55+AH55+AJ55+AL55+AN55) -> 105 | G55: =IFERROR(VLOOKUP($A55,FILTRO!$A$5:$AW$2635,5,FALSE),0) -> 0 | H55: =IFERROR(VLOOKUP($A55,FILTRO!$A$5:$AW$2635,6,FALSE),0) -> 0 | I55: =IFERROR(VLOOKUP($A55,FILTRO!$A$5:$AW$2635,7,FALSE),0) -> 0 | J55: =IFERROR(VLOOKUP($A55,FILTRO!$A$5:$AW$2635,8,FALSE),0) -> 0 | K55: =IFERROR(VLOOKUP($A55,FILTRO!$A$5:$AW$2635,9,FALSE),0) -> 0 | L55: =IFERROR(VLOOKUP($A55,FILTRO!$A$5:$AW$2635,10,FALSE),0) -> 0 | M55: =IFERROR(VLOOKUP($A55,FILTRO!$A$5:$AW$2635,11,FALSE),0) -> 1 | N55: =IFERROR(VLOOKUP($A55,FILTRO!$A$5:$AW$2635,12,FALSE),0) -> 1 | O55: =IFERROR(VLOOKUP($A55,FILTRO!$A$5:$AW$2635,13,FALSE),0) -> 2 | P55: =IFERROR(VLOOKUP($A55,FILTRO!$A$5:$AW$2635,14,FALSE),0) -> 1 | Q55: =IFERROR(VLOOKUP($A55,FILTRO!$A$5:$AW$2635,15,FALSE),0) -> 1 | R55: =IFERROR(VLOOKUP($A55,FILTRO!$A$5:$AW$2635,16,FALSE),0) -> 0 | S55: =IFERROR(VLOOKUP($A55,FILTRO!$A$5:$AW$2635,17,FALSE),0) -> 1 | T55: =IFERROR(VLOOKUP($A55,FILTRO!$A$5:$AW$2635,18,FALSE),0) -> 1 | U55: =IFERROR(VLOOKUP($A55,FILTRO!$A$5:$AW$2635,19,FALSE),0) -> 2 | V55: =IFERROR(VLOOKUP($A55,FILTRO!$A$5:$AW$2635,20,FALSE),0) -> 2 | W55: =IFERROR(VLOOKUP($A55,FILTRO!$A$5:$AW$2635,21,FALSE),0) -> 2 | X55: =IFERROR(VLOOKUP($A55,FILTRO!$A$5:$AW$2635,22,FALSE),0) -> 4 | Y55: =IFERROR(VLOOKUP($A55,FILTRO!$A$5:$AW$2635,23,FALSE),0) -> 0 | Z55: =IFERROR(VLOOKUP($A55,FILTRO!$A$5:$AW$2635,24,FALSE),0) -> 3 | AA55: =IFERROR(VLOOKUP($A55,FILTRO!$A$5:$AW$2635,25,FALSE),0) -> 5 | AB55: =IFERROR(VLOOKUP($A55,FILTRO!$A$5:$AW$2635,26,FALSE),0) -> 8 | AC55: =IFERROR(VLOOKUP($A55,FILTRO!$A$5:$AW$2635,27,FALSE),0) -> 2 | AD55: =IFERROR(VLOOKUP($A55,FILTRO!$A$5:$AW$2635,28,FALSE),0) -> 11 | AE55: =IFERROR(VLOOKUP($A55,FILTRO!$A$5:$AW$2635,29,FALSE),0) -> 2 | AF55: =IFERROR(VLOOKUP($A55,FILTRO!$A$5:$AW$2635,30,FALSE),0) -> 22 | AG55: =IFERROR(VLOOKUP($A55,FILTRO!$A$5:$AW$2635,31,FALSE),0) -> 3 | AH55: =IFERROR(VLOOKUP($A55,FILTRO!$A$5:$AW$2635,32,FALSE),0) -> 20 | AI55: =IFERROR(VLOOKUP($A55,FILTRO!$A$5:$AW$2635,33,FALSE),0) -> 8 | AJ55: =IFERROR(VLOOKUP($A55,FILTRO!$A$5:$AW$2635,34,FALSE),0) -> 21 | AK55: =IFERROR(VLOOKUP($A55,FILTRO!$A$5:$AW$2635,35,FALSE),0) -> 5 | AL55: =IFERROR(VLOOKUP($A55,FILTRO!$A$5:$AW$2635,36,FALSE),0) -> 5 | AM55: =IFERROR(VLOOKUP($A55,FILTRO!$A$5:$AW$2635,37,FALSE),0) -> 6 | AN55: =IFERROR(VLOOKUP($A55,FILTRO!$A$5:$AW$2635,38,FALSE),0) -> 6 | AO55: =IFERROR(VLOOKUP($A55,FILTRO!$A$5:$AW$2635,39,FALSE),0) -> 0 | AP55: =IFERROR(VLOOKUP($A55,FILTRO!$A$5:$AW$2635,40,FALSE),0) -> 0 | DB55: 0 | DC55: 0 | DD55: 0 | DE55: 0
A56: 01200020 | C56: ENFERMERA/O | D56: 238 | E56: =SUM(G56+I56+K56+M56+O56+Q56+S56+U56+W56+Y56+AA56+AC56+AE56+AG56+AI56+AK56+AM56) -> 72 | F56: 166 | G56: =IFERROR(VLOOKUP($A56,FILTRO!$A$5:$AW$2635,5,FALSE),0) -> 0 | H56: =IFERROR(VLOOKUP($A56,FILTRO!$A$5:$AW$2635,6,FALSE),0) -> 0 | I56: =IFERROR(VLOOKUP($A56,FILTRO!$A$5:$AW$2635,7,FALSE),0) -> 2 | J56: =IFERROR(VLOOKUP($A56,FILTRO!$A$5:$AW$2635,8,FALSE),0) -> 1 | K56: =IFERROR(VLOOKUP($A56,FILTRO!$A$5:$AW$2635,9,FALSE),0) -> 0 | L56: =IFERROR(VLOOKUP($A56,FILTRO!$A$5:$AW$2635,10,FALSE),0) -> 4 | M56: =IFERROR(VLOOKUP($A56,FILTRO!$A$5:$AW$2635,11,FALSE),0) -> 0 | N56: =IFERROR(VLOOKUP($A56,FILTRO!$A$5:$AW$2635,12,FALSE),0) -> 1 | O56: =IFERROR(VLOOKUP($A56,FILTRO!$A$5:$AW$2635,13,FALSE),0) -> 1 | P56: =IFERROR(VLOOKUP($A56,FILTRO!$A$5:$AW$2635,14,FALSE),0) -> 2 | Q56: =IFERROR(VLOOKUP($A56,FILTRO!$A$5:$AW$2635,15,FALSE),0) -> 0 | R56: =IFERROR(VLOOKUP($A56,FILTRO!$A$5:$AW$2635,16,FALSE),0) -> 10 | S56: =IFERROR(VLOOKUP($A56,FILTRO!$A$5:$AW$2635,17,FALSE),0) -> 2 | T56: =IFERROR(VLOOKUP($A56,FILTRO!$A$5:$AW$2635,18,FALSE),0) -> 4 | U56: =IFERROR(VLOOKUP($A56,FILTRO!$A$5:$AW$2635,19,FALSE),0) -> 4 | V56: =IFERROR(VLOOKUP($A56,FILTRO!$A$5:$AW$2635,20,FALSE),0) -> 12 | W56: =IFERROR(VLOOKUP($A56,FILTRO!$A$5:$AW$2635,21,FALSE),0) -> 0 | X56: =IFERROR(VLOOKUP($A56,FILTRO!$A$5:$AW$2635,22,FALSE),0) -> 19 | Y56: =IFERROR(VLOOKUP($A56,FILTRO!$A$5:$AW$2635,23,FALSE),0) -> 1 | Z56: =IFERROR(VLOOKUP($A56,FILTRO!$A$5:$AW$2635,24,FALSE),0) -> 7 | AA56: =IFERROR(VLOOKUP($A56,FILTRO!$A$5:$AW$2635,25,FALSE),0) -> 2 | AB56: =IFERROR(VLOOKUP($A56,FILTRO!$A$5:$AW$2635,26,FALSE),0) -> 13 | AC56: =IFERROR(VLOOKUP($A56,FILTRO!$A$5:$AW$2635,27,FALSE),0) -> 8 | AD56: =IFERROR(VLOOKUP($A56,FILTRO!$A$5:$AW$2635,28,FALSE),0) -> 16 | AE56: =IFERROR(VLOOKUP($A56,FILTRO!$A$5:$AW$2635,29,FALSE),0) -> 16 | AF56: =IFERROR(VLOOKUP($A56,FILTRO!$A$5:$AW$2635,30,FALSE),0) -> 12 | AG56: =IFERROR(VLOOKUP($A56,FILTRO!$A$5:$AW$2635,31,FALSE),0) -> 11 | AH56: =IFERROR(VLOOKUP($A56,FILTRO!$A$5:$AW$2635,32,FALSE),0) -> 20 | AI56: =IFERROR(VLOOKUP($A56,FILTRO!$A$5:$AW$2635,33,FALSE),0) -> 10 | AJ56: =IFERROR(VLOOKUP($A56,FILTRO!$A$5:$AW$2635,34,FALSE),0) -> 17 | AK56: =IFERROR(VLOOKUP($A56,FILTRO!$A$5:$AW$2635,35,FALSE),0) -> 8 | AL56: =IFERROR(VLOOKUP($A56,FILTRO!$A$5:$AW$2635,36,FALSE),0) -> 14 | AM56: =IFERROR(VLOOKUP($A56,FILTRO!$A$5:$AW$2635,37,FALSE),0) -> 7 | AN56: =IFERROR(VLOOKUP($A56,FILTRO!$A$5:$AW$2635,38,FALSE),0) -> 14 | AO56: =IFERROR(VLOOKUP($A56,FILTRO!$A$5:$AW$2635,39,FALSE),0) -> 6 | AP56: =IFERROR(VLOOKUP($A56,FILTRO!$A$5:$AW$2635,40,FALSE),0) -> 6 | DB56: 0 | DC56: 0 | DD56: 0 | DE56: 0
A57: 01200030 | C57: MATRONA/ÓN | D57: 269 | E57: =SUM(G57+I57+K57+M57+O57+Q57+S57+U57+W57+Y57+AA57+AC57+AE57+AG57+AI57+AK57+AM57) -> 55 | F57: 214 | G57: =IFERROR(VLOOKUP($A57,FILTRO!$A$5:$AW$2635,5,FALSE),0) -> 0 | H57: =IFERROR(VLOOKUP($A57,FILTRO!$A$5:$AW$2635,6,FALSE),0) -> 1 | I57: =IFERROR(VLOOKUP($A57,FILTRO!$A$5:$AW$2635,7,FALSE),0) -> 0 | J57: =IFERROR(VLOOKUP($A57,FILTRO!$A$5:$AW$2635,8,FALSE),0) -> 0 | K57: =IFERROR(VLOOKUP($A57,FILTRO!$A$5:$AW$2635,9,FALSE),0) -> 0 | L57: =IFERROR(VLOOKUP($A57,FILTRO!$A$5:$AW$2635,10,FALSE),0) -> 1 | M57: =IFERROR(VLOOKUP($A57,FILTRO!$A$5:$AW$2635,11,FALSE),0) -> 2 | N57: =IFERROR(VLOOKUP($A57,FILTRO!$A$5:$AW$2635,12,FALSE),0) -> 5 | O57: =IFERROR(VLOOKUP($A57,FILTRO!$A$5:$AW$2635,13,FALSE),0) -> 10 | P57: =IFERROR(VLOOKUP($A57,FILTRO!$A$5:$AW$2635,14,FALSE),0) -> 56 | Q57: =IFERROR(VLOOKUP($A57,FILTRO!$A$5:$AW$2635,15,FALSE),0) -> 9 | R57: =IFERROR(VLOOKUP($A57,FILTRO!$A$5:$AW$2635,16,FALSE),0) -> 38 | S57: =IFERROR(VLOOKUP($A57,FILTRO!$A$5:$AW$2635,17,FALSE),0) -> 8 | T57: =IFERROR(VLOOKUP($A57,FILTRO!$A$5:$AW$2635,18,FALSE),0) -> 27 | U57: =IFERROR(VLOOKUP($A57,FILTRO!$A$5:$AW$2635,19,FALSE),0) -> 12 | V57: =IFERROR(VLOOKUP($A57,FILTRO!$A$5:$AW$2635,20,FALSE),0) -> 19 | W57: =IFERROR(VLOOKUP($A57,FILTRO!$A$5:$AW$2635,21,FALSE),0) -> 7 | X57: =IFERROR(VLOOKUP($A57,FILTRO!$A$5:$AW$2635,22,FALSE),0) -> 22 | Y57: =IFERROR(VLOOKUP($A57,FILTRO!$A$5:$AW$2635,23,FALSE),0) -> 5 | Z57: =IFERROR(VLOOKUP($A57,FILTRO!$A$5:$AW$2635,24,FALSE),0) -> 9 | AA57: =IFERROR(VLOOKUP($A57,FILTRO!$A$5:$AW$2635,25,FALSE),0) -> 1 | AB57: =IFERROR(VLOOKUP($A57,FILTRO!$A$5:$AW$2635,26,FALSE),0) -> 15 | AC57: =IFERROR(VLOOKUP($A57,FILTRO!$A$5:$AW$2635,27,FALSE),0) -> 0 | AD57: =IFERROR(VLOOKUP($A57,FILTRO!$A$5:$AW$2635,28,FALSE),0) -> 10 | AE57: =IFERROR(VLOOKUP($A57,FILTRO!$A$5:$AW$2635,29,FALSE),0) -> 0 | AF57: =IFERROR(VLOOKUP($A57,FILTRO!$A$5:$AW$2635,30,FALSE),0) -> 1 | AG57: =IFERROR(VLOOKUP($A57,FILTRO!$A$5:$AW$2635,31,FALSE),0) -> 1 | AH57: =IFERROR(VLOOKUP($A57,FILTRO!$A$5:$AW$2635,32,FALSE),0) -> 2 | AI57: =IFERROR(VLOOKUP($A57,FILTRO!$A$5:$AW$2635,33,FALSE),0) -> 0 | AJ57: =IFERROR(VLOOKUP($A57,FILTRO!$A$5:$AW$2635,34,FALSE),0) -> 1 | AK57: =IFERROR(VLOOKUP($A57,FILTRO!$A$5:$AW$2635,35,FALSE),0) -> 0 | AL57: =IFERROR(VLOOKUP($A57,FILTRO!$A$5:$AW$2635,36,FALSE),0) -> 6 | AM57: =IFERROR(VLOOKUP($A57,FILTRO!$A$5:$AW$2635,37,FALSE),0) -> 0 | AN57: =IFERROR(VLOOKUP($A57,FILTRO!$A$5:$AW$2635,38,FALSE),0) -> 1 | AO57: =IFERROR(VLOOKUP($A57,FILTRO!$A$5:$AW$2635,39,FALSE),0) -> 1 | AP57: =IFERROR(VLOOKUP($A57,FILTRO!$A$5:$AW$2635,40,FALSE),0) -> 18 | DB57: 0 | DC57: 0 | DD57: 0 | DE57: 0
A58: 03030140 | B58: OTROS PROBLEMAS DE SALUD | C58: MÉDICO/A | D58: 29620 | E58: =SUM(G58+I58+K58+M58+O58+Q58+S58+U58+W58+Y58+AA58+AC58+AE58+AG58+AI58+AK58+AM58) -> 8838 | F58: 20782 | G58: =IFERROR(VLOOKUP($A58,FILTRO!$A$5:$AW$2635,5,FALSE),0) -> 83 | H58: =IFERROR(VLOOKUP($A58,FILTRO!$A$5:$AW$2635,6,FALSE),0) -> 66 | I58: =IFERROR(VLOOKUP($A58,FILTRO!$A$5:$AW$2635,7,FALSE),0) -> 128 | J58: =IFERROR(VLOOKUP($A58,FILTRO!$A$5:$AW$2635,8,FALSE),0) -> 88 | K58: =IFERROR(VLOOKUP($A58,FILTRO!$A$5:$AW$2635,9,FALSE),0) -> 113 | L58: =IFERROR(VLOOKUP($A58,FILTRO!$A$5:$AW$2635,10,FALSE),0) -> 109 | M58: =IFERROR(VLOOKUP($A58,FILTRO!$A$5:$AW$2635,11,FALSE),0) -> 133 | N58: =IFERROR(VLOOKUP($A58,FILTRO!$A$5:$AW$2635,12,FALSE),0) -> 230 | O58: =IFERROR(VLOOKUP($A58,FILTRO!$A$5:$AW$2635,13,FALSE),0) -> 126 | P58: =IFERROR(VLOOKUP($A58,FILTRO!$A$5:$AW$2635,14,FALSE),0) -> 342 | Q58: =IFERROR(VLOOKUP($A58,FILTRO!$A$5:$AW$2635,15,FALSE),0) -> 124 | R58: =IFERROR(VLOOKUP($A58,FILTRO!$A$5:$AW$2635,16,FALSE),0) -> 397 | S58: =IFERROR(VLOOKUP($A58,FILTRO!$A$5:$AW$2635,17,FALSE),0) -> 153 | T58: =IFERROR(VLOOKUP($A58,FILTRO!$A$5:$AW$2635,18,FALSE),0) -> 651 | U58: =IFERROR(VLOOKUP($A58,FILTRO!$A$5:$AW$2635,19,FALSE),0) -> 189 | V58: =IFERROR(VLOOKUP($A58,FILTRO!$A$5:$AW$2635,20,FALSE),0) -> 759 | W58: =IFERROR(VLOOKUP($A58,FILTRO!$A$5:$AW$2635,21,FALSE),0) -> 228 | X58: =IFERROR(VLOOKUP($A58,FILTRO!$A$5:$AW$2635,22,FALSE),0) -> 905 | Y58: =IFERROR(VLOOKUP($A58,FILTRO!$A$5:$AW$2635,23,FALSE),0) -> 238 | Z58: =IFERROR(VLOOKUP($A58,FILTRO!$A$5:$AW$2635,24,FALSE),0) -> 1295 | AA58: =IFERROR(VLOOKUP($A58,FILTRO!$A$5:$AW$2635,25,FALSE),0) -> 457 | AB58: =IFERROR(VLOOKUP($A58,FILTRO!$A$5:$AW$2635,26,FALSE),0) -> 1597 | AC58: =IFERROR(VLOOKUP($A58,FILTRO!$A$5:$AW$2635,27,FALSE),0) -> 687 | AD58: =IFERROR(VLOOKUP($A58,FILTRO!$A$5:$AW$2635,28,FALSE),0) -> 2237 | AE58: =IFERROR(VLOOKUP($A58,FILTRO!$A$5:$AW$2635,29,FALSE),0) -> 1041 | AF58: =IFERROR(VLOOKUP($A58,FILTRO!$A$5:$AW$2635,30,FALSE),0) -> 2710 | AG58: =IFERROR(VLOOKUP($A58,FILTRO!$A$5:$AW$2635,31,FALSE),0) -> 1120 | AH58: =IFERROR(VLOOKUP($A58,FILTRO!$A$5:$AW$2635,32,FALSE),0) -> 2583 | AI58: =IFERROR(VLOOKUP($A58,FILTRO!$A$5:$AW$2635,33,FALSE),0) -> 1282 | AJ58: =IFERROR(VLOOKUP($A58,FILTRO!$A$5:$AW$2635,34,FALSE),0) -> 2320 | AK58: =IFERROR(VLOOKUP($A58,FILTRO!$A$5:$AW$2635,35,FALSE),0) -> 1059 | AL58: =IFERROR(VLOOKUP($A58,FILTRO!$A$5:$AW$2635,36,FALSE),0) -> 1964 | AM58: =IFERROR(VLOOKUP($A58,FILTRO!$A$5:$AW$2635,37,FALSE),0) -> 1677 | AN58: =IFERROR(VLOOKUP($A58,FILTRO!$A$5:$AW$2635,38,FALSE),0) -> 2529 | AO58: =IFERROR(VLOOKUP($A58,FILTRO!$A$5:$AW$2635,39,FALSE),0) -> 327 | AP58: =IFERROR(VLOOKUP($A58,FILTRO!$A$5:$AW$2635,40,FALSE),0) -> 353 | DB58: 0 | DC58: 0 | DD58: 0 | DE58: 0
A59: 03030150 | C59: ENFERMERA/O | D59: 2616 | E59: 732 | F59: 1884 | G59: =IFERROR(VLOOKUP($A59,FILTRO!$A$5:$AW$2635,5,FALSE),0) -> 17 | H59: =IFERROR(VLOOKUP($A59,FILTRO!$A$5:$AW$2635,6,FALSE),0) -> 13 | I59: =IFERROR(VLOOKUP($A59,FILTRO!$A$5:$AW$2635,7,FALSE),0) -> 4 | J59: =IFERROR(VLOOKUP($A59,FILTRO!$A$5:$AW$2635,8,FALSE),0) -> 5 | K59: =IFERROR(VLOOKUP($A59,FILTRO!$A$5:$AW$2635,9,FALSE),0) -> 8 | L59: =IFERROR(VLOOKUP($A59,FILTRO!$A$5:$AW$2635,10,FALSE),0) -> 13 | M59: =IFERROR(VLOOKUP($A59,FILTRO!$A$5:$AW$2635,11,FALSE),0) -> 6 | N59: =IFERROR(VLOOKUP($A59,FILTRO!$A$5:$AW$2635,12,FALSE),0) -> 13 | O59: =IFERROR(VLOOKUP($A59,FILTRO!$A$5:$AW$2635,13,FALSE),0) -> 6 | P59: =IFERROR(VLOOKUP($A59,FILTRO!$A$5:$AW$2635,14,FALSE),0) -> 31 | Q59: =IFERROR(VLOOKUP($A59,FILTRO!$A$5:$AW$2635,15,FALSE),0) -> 9 | R59: =IFERROR(VLOOKUP($A59,FILTRO!$A$5:$AW$2635,16,FALSE),0) -> 32 | S59: =IFERROR(VLOOKUP($A59,FILTRO!$A$5:$AW$2635,17,FALSE),0) -> 6 | T59: =IFERROR(VLOOKUP($A59,FILTRO!$A$5:$AW$2635,18,FALSE),0) -> 62 | U59: =IFERROR(VLOOKUP($A59,FILTRO!$A$5:$AW$2635,19,FALSE),0) -> 18 | V59: =IFERROR(VLOOKUP($A59,FILTRO!$A$5:$AW$2635,20,FALSE),0) -> 69 | W59: =IFERROR(VLOOKUP($A59,FILTRO!$A$5:$AW$2635,21,FALSE),0) -> 14 | X59: =IFERROR(VLOOKUP($A59,FILTRO!$A$5:$AW$2635,22,FALSE),0) -> 105 | Y59: =IFERROR(VLOOKUP($A59,FILTRO!$A$5:$AW$2635,23,FALSE),0) -> 29 | Z59: =IFERROR(VLOOKUP($A59,FILTRO!$A$5:$AW$2635,24,FALSE),0) -> 109 | AA59: =IFERROR(VLOOKUP($A59,FILTRO!$A$5:$AW$2635,25,FALSE),0) -> 37 | AB59: =IFERROR(VLOOKUP($A59,FILTRO!$A$5:$AW$2635,26,FALSE),0) -> 170 | AC59: =IFERROR(VLOOKUP($A59,FILTRO!$A$5:$AW$2635,27,FALSE),0) -> 63 | AD59: =IFERROR(VLOOKUP($A59,FILTRO!$A$5:$AW$2635,28,FALSE),0) -> 190 | AE59: =IFERROR(VLOOKUP($A59,FILTRO!$A$5:$AW$2635,29,FALSE),0) -> 84 | AF59: =IFERROR(VLOOKUP($A59,FILTRO!$A$5:$AW$2635,30,FALSE),0) -> 229 | AG59: =IFERROR(VLOOKUP($A59,FILTRO!$A$5:$AW$2635,31,FALSE),0) -> 115 | AH59: =IFERROR(VLOOKUP($A59,FILTRO!$A$5:$AW$2635,32,FALSE),0) -> 234 | AI59: =IFERROR(VLOOKUP($A59,FILTRO!$A$5:$AW$2635,33,FALSE),0) -> 106 | AJ59: =IFERROR(VLOOKUP($A59,FILTRO!$A$5:$AW$2635,34,FALSE),0) -> 223 | AK59: =IFERROR(VLOOKUP($A59,FILTRO!$A$5:$AW$2635,35,FALSE),0) -> 81 | AL59: =IFERROR(VLOOKUP($A59,FILTRO!$A$5:$AW$2635,36,FALSE),0) -> 176 | AM59: =IFERROR(VLOOKUP($A59,FILTRO!$A$5:$AW$2635,37,FALSE),0) -> 129 | AN59: =IFERROR(VLOOKUP($A59,FILTRO!$A$5:$AW$2635,38,FALSE),0) -> 210 | AO59: =IFERROR(VLOOKUP($A59,FILTRO!$A$5:$AW$2635,39,FALSE),0) -> 20 | AP59: =IFERROR(VLOOKUP($A59,FILTRO!$A$5:$AW$2635,40,FALSE),0) -> 14 | DB59: 0 | DD59: 0
A60: 03030170 | C60: MATRONA/ÓN | D60: 179 | E60: 13 | F60: 166 | G60: =IFERROR(VLOOKUP($A60,FILTRO!$A$5:$AW$2635,5,FALSE),0) -> 3 | H60: =IFERROR(VLOOKUP($A60,FILTRO!$A$5:$AW$2635,6,FALSE),0) -> 3 | I60: =IFERROR(VLOOKUP($A60,FILTRO!$A$5:$AW$2635,7,FALSE),0) -> 0 | J60: =IFERROR(VLOOKUP($A60,FILTRO!$A$5:$AW$2635,8,FALSE),0) -> 1 | K60: =IFERROR(VLOOKUP($A60,FILTRO!$A$5:$AW$2635,9,FALSE),0) -> 0 | L60: =IFERROR(VLOOKUP($A60,FILTRO!$A$5:$AW$2635,10,FALSE),0) -> 3 | M60: =IFERROR(VLOOKUP($A60,FILTRO!$A$5:$AW$2635,11,FALSE),0) -> 0 | N60: =IFERROR(VLOOKUP($A60,FILTRO!$A$5:$AW$2635,12,FALSE),0) -> 13 | O60: =IFERROR(VLOOKUP($A60,FILTRO!$A$5:$AW$2635,13,FALSE),0) -> 0 | P60: =IFERROR(VLOOKUP($A60,FILTRO!$A$5:$AW$2635,14,FALSE),0) -> 24 | Q60: =IFERROR(VLOOKUP($A60,FILTRO!$A$5:$AW$2635,15,FALSE),0) -> 2 | R60: =IFERROR(VLOOKUP($A60,FILTRO!$A$5:$AW$2635,16,FALSE),0) -> 21 | S60: =IFERROR(VLOOKUP($A60,FILTRO!$A$5:$AW$2635,17,FALSE),0) -> 0 | T60: =IFERROR(VLOOKUP($A60,FILTRO!$A$5:$AW$2635,18,FALSE),0) -> 26 | U60: =IFERROR(VLOOKUP($A60,FILTRO!$A$5:$AW$2635,19,FALSE),0) -> 0 | V60: =IFERROR(VLOOKUP($A60,FILTRO!$A$5:$AW$2635,20,FALSE),0) -> 19 | W60: =IFERROR(VLOOKUP($A60,FILTRO!$A$5:$AW$2635,21,FALSE),0) -> 0 | X60: =IFERROR(VLOOKUP($A60,FILTRO!$A$5:$AW$2635,22,FALSE),0) -> 8 | Y60: =IFERROR(VLOOKUP($A60,FILTRO!$A$5:$AW$2635,23,FALSE),0) -> 0 | Z60: =IFERROR(VLOOKUP($A60,FILTRO!$A$5:$AW$2635,24,FALSE),0) -> 3 | AA60: =IFERROR(VLOOKUP($A60,FILTRO!$A$5:$AW$2635,25,FALSE),0) -> 0 | AB60: =IFERROR(VLOOKUP($A60,FILTRO!$A$5:$AW$2635,26,FALSE),0) -> 8 | AC60: =IFERROR(VLOOKUP($A60,FILTRO!$A$5:$AW$2635,27,FALSE),0) -> 0 | AD60: =IFERROR(VLOOKUP($A60,FILTRO!$A$5:$AW$2635,28,FALSE),0) -> 10 | AE60: =IFERROR(VLOOKUP($A60,FILTRO!$A$5:$AW$2635,29,FALSE),0) -> 1 | AF60: =IFERROR(VLOOKUP($A60,FILTRO!$A$5:$AW$2635,30,FALSE),0) -> 6 | AG60: =IFERROR(VLOOKUP($A60,FILTRO!$A$5:$AW$2635,31,FALSE),0) -> 0 | AH60: =IFERROR(VLOOKUP($A60,FILTRO!$A$5:$AW$2635,32,FALSE),0) -> 2 | AI60: =IFERROR(VLOOKUP($A60,FILTRO!$A$5:$AW$2635,33,FALSE),0) -> 0 | AJ60: =IFERROR(VLOOKUP($A60,FILTRO!$A$5:$AW$2635,34,FALSE),0) -> 4 | AK60: =IFERROR(VLOOKUP($A60,FILTRO!$A$5:$AW$2635,35,FALSE),0) -> 2 | AL60: =IFERROR(VLOOKUP($A60,FILTRO!$A$5:$AW$2635,36,FALSE),0) -> 3 | AM60: =IFERROR(VLOOKUP($A60,FILTRO!$A$5:$AW$2635,37,FALSE),0) -> 5 | AN60: =IFERROR(VLOOKUP($A60,FILTRO!$A$5:$AW$2635,38,FALSE),0) -> 12 | AO60: =IFERROR(VLOOKUP($A60,FILTRO!$A$5:$AW$2635,39,FALSE),0) -> 0 | AP60: =IFERROR(VLOOKUP($A60,FILTRO!$A$5:$AW$2635,40,FALSE),0) -> 9 | DB60: 0 | DD60: 0
A61: 03030160 | C61: NUTRICIONISTA | D61: 3759 | E61: 1026 | F61: 2733 | G61: =IFERROR(VLOOKUP($A61,FILTRO!$A$5:$AW$2635,5,FALSE),0) -> 237 | H61: =IFERROR(VLOOKUP($A61,FILTRO!$A$5:$AW$2635,6,FALSE),0) -> 202 | I61: =IFERROR(VLOOKUP($A61,FILTRO!$A$5:$AW$2635,7,FALSE),0) -> 99 | J61: =IFERROR(VLOOKUP($A61,FILTRO!$A$5:$AW$2635,8,FALSE),0) -> 91 | K61: =IFERROR(VLOOKUP($A61,FILTRO!$A$5:$AW$2635,9,FALSE),0) -> 62 | L61: =IFERROR(VLOOKUP($A61,FILTRO!$A$5:$AW$2635,10,FALSE),0) -> 79 | M61: =IFERROR(VLOOKUP($A61,FILTRO!$A$5:$AW$2635,11,FALSE),0) -> 33 | N61: =IFERROR(VLOOKUP($A61,FILTRO!$A$5:$AW$2635,12,FALSE),0) -> 92 | O61: =IFERROR(VLOOKUP($A61,FILTRO!$A$5:$AW$2635,13,FALSE),0) -> 44 | P61: =IFERROR(VLOOKUP($A61,FILTRO!$A$5:$AW$2635,14,FALSE),0) -> 165 | Q61: =IFERROR(VLOOKUP($A61,FILTRO!$A$5:$AW$2635,15,FALSE),0) -> 35 | R61: =IFERROR(VLOOKUP($A61,FILTRO!$A$5:$AW$2635,16,FALSE),0) -> 173 | S61: =IFERROR(VLOOKUP($A61,FILTRO!$A$5:$AW$2635,17,FALSE),0) -> 25 | T61: =IFERROR(VLOOKUP($A61,FILTRO!$A$5:$AW$2635,18,FALSE),0) -> 198 | U61: =IFERROR(VLOOKUP($A61,FILTRO!$A$5:$AW$2635,19,FALSE),0) -> 34 | V61: =IFERROR(VLOOKUP($A61,FILTRO!$A$5:$AW$2635,20,FALSE),0) -> 184 | W61: =IFERROR(VLOOKUP($A61,FILTRO!$A$5:$AW$2635,21,FALSE),0) -> 38 | X61: =IFERROR(VLOOKUP($A61,FILTRO!$A$5:$AW$2635,22,FALSE),0) -> 189 | Y61: =IFERROR(VLOOKUP($A61,FILTRO!$A$5:$AW$2635,23,FALSE),0) -> 38 | Z61: =IFERROR(VLOOKUP($A61,FILTRO!$A$5:$AW$2635,24,FALSE),0) -> 198 | AA61: =IFERROR(VLOOKUP($A61,FILTRO!$A$5:$AW$2635,25,FALSE),0) -> 50 | AB61: =IFERROR(VLOOKUP($A61,FILTRO!$A$5:$AW$2635,26,FALSE),0) -> 227 | AC61: =IFERROR(VLOOKUP($A61,FILTRO!$A$5:$AW$2635,27,FALSE),0) -> 55 | AD61: =IFERROR(VLOOKUP($A61,FILTRO!$A$5:$AW$2635,28,FALSE),0) -> 228 | AE61: =IFERROR(VLOOKUP($A61,FILTRO!$A$5:$AW$2635,29,FALSE),0) -> 42 | AF61: =IFERROR(VLOOKUP($A61,FILTRO!$A$5:$AW$2635,30,FALSE),0) -> 211 | AG61: =IFERROR(VLOOKUP($A61,FILTRO!$A$5:$AW$2635,31,FALSE),0) -> 56 | AH61: =IFERROR(VLOOKUP($A61,FILTRO!$A$5:$AW$2635,32,FALSE),0) -> 153 | AI61: =IFERROR(VLOOKUP($A61,FILTRO!$A$5:$AW$2635,33,FALSE),0) -> 62 | AJ61: =IFERROR(VLOOKUP($A61,FILTRO!$A$5:$AW$2635,34,FALSE),0) -> 137 | AK61: =IFERROR(VLOOKUP($A61,FILTRO!$A$5:$AW$2635,35,FALSE),0) -> 53 | AL61: =IFERROR(VLOOKUP($A61,FILTRO!$A$5:$AW$2635,36,FALSE),0) -> 104 | AM61: =IFERROR(VLOOKUP($A61,FILTRO!$A$5:$AW$2635,37,FALSE),0) -> 63 | AN61: =IFERROR(VLOOKUP($A61,FILTRO!$A$5:$AW$2635,38,FALSE),0) -> 102 | AO61: =IFERROR(VLOOKUP($A61,FILTRO!$A$5:$AW$2635,39,FALSE),0) -> 54 | AP61: =IFERROR(VLOOKUP($A61,FILTRO!$A$5:$AW$2635,40,FALSE),0) -> 91 | DB61: 0 | DD61: 0
A62: 03030180 | C62: TÉCNICO EN ENFERMERÍA | D62: 288 | E62: 130 | F62: 158 | G62: =IFERROR(VLOOKUP($A62,FILTRO!$A$5:$AW$2635,5,FALSE),0) -> 7 | H62: =IFERROR(VLOOKUP($A62,FILTRO!$A$5:$AW$2635,6,FALSE),0) -> 3 | I62: =IFERROR(VLOOKUP($A62,FILTRO!$A$5:$AW$2635,7,FALSE),0) -> 7 | J62: =IFERROR(VLOOKUP($A62,FILTRO!$A$5:$AW$2635,8,FALSE),0) -> 3 | K62: =IFERROR(VLOOKUP($A62,FILTRO!$A$5:$AW$2635,9,FALSE),0) -> 4 | L62: =IFERROR(VLOOKUP($A62,FILTRO!$A$5:$AW$2635,10,FALSE),0) -> 5 | M62: =IFERROR(VLOOKUP($A62,FILTRO!$A$5:$AW$2635,11,FALSE),0) -> 5 | N62: =IFERROR(VLOOKUP($A62,FILTRO!$A$5:$AW$2635,12,FALSE),0) -> 2 | O62: =IFERROR(VLOOKUP($A62,FILTRO!$A$5:$AW$2635,13,FALSE),0) -> 7 | P62: =IFERROR(VLOOKUP($A62,FILTRO!$A$5:$AW$2635,14,FALSE),0) -> 18 | Q62: =IFERROR(VLOOKUP($A62,FILTRO!$A$5:$AW$2635,15,FALSE),0) -> 3 | R62: =IFERROR(VLOOKUP($A62,FILTRO!$A$5:$AW$2635,16,FALSE),0) -> 10 | S62: =IFERROR(VLOOKUP($A62,FILTRO!$A$5:$AW$2635,17,FALSE),0) -> 6 | T62: =IFERROR(VLOOKUP($A62,FILTRO!$A$5:$AW$2635,18,FALSE),0) -> 22 | U62: =IFERROR(VLOOKUP($A62,FILTRO!$A$5:$AW$2635,19,FALSE),0) -> 6 | V62: =IFERROR(VLOOKUP($A62,FILTRO!$A$5:$AW$2635,20,FALSE),0) -> 15 | W62: =IFERROR(VLOOKUP($A62,FILTRO!$A$5:$AW$2635,21,FALSE),0) -> 16 | X62: =IFERROR(VLOOKUP($A62,FILTRO!$A$5:$AW$2635,22,FALSE),0) -> 13 | Y62: =IFERROR(VLOOKUP($A62,FILTRO!$A$5:$AW$2635,23,FALSE),0) -> 13 | Z62: =IFERROR(VLOOKUP($A62,FILTRO!$A$5:$AW$2635,24,FALSE),0) -> 3 | AA62: =IFERROR(VLOOKUP($A62,FILTRO!$A$5:$AW$2635,25,FALSE),0) -> 5 | AB62: =IFERROR(VLOOKUP($A62,FILTRO!$A$5:$AW$2635,26,FALSE),0) -> 12 | AC62: =IFERROR(VLOOKUP($A62,FILTRO!$A$5:$AW$2635,27,FALSE),0) -> 11 | AD62: =IFERROR(VLOOKUP($A62,FILTRO!$A$5:$AW$2635,28,FALSE),0) -> 14 | AE62: =IFERROR(VLOOKUP($A62,FILTRO!$A$5:$AW$2635,29,FALSE),0) -> 10 | AF62: =IFERROR(VLOOKUP($A62,FILTRO!$A$5:$AW$2635,30,FALSE),0) -> 6 | AG62: =IFERROR(VLOOKUP($A62,FILTRO!$A$5:$AW$2635,31,FALSE),0) -> 10 | AH62: =IFERROR(VLOOKUP($A62,FILTRO!$A$5:$AW$2635,32,FALSE),0) -> 7 | AI62: =IFERROR(VLOOKUP($A62,FILTRO!$A$5:$AW$2635,33,FALSE),0) -> 10 | AJ62: =IFERROR(VLOOKUP($A62,FILTRO!$A$5:$AW$2635,34,FALSE),0) -> 5 | AK62: =IFERROR(VLOOKUP($A62,FILTRO!$A$5:$AW$2635,35,FALSE),0) -> 4 | AL62: =IFERROR(VLOOKUP($A62,FILTRO!$A$5:$AW$2635,36,FALSE),0) -> 7 | AM62: =IFERROR(VLOOKUP($A62,FILTRO!$A$5:$AW$2635,37,FALSE),0) -> 6 | AN62: =IFERROR(VLOOKUP($A62,FILTRO!$A$5:$AW$2635,38,FALSE),0) -> 13 | AO62: =IFERROR(VLOOKUP($A62,FILTRO!$A$5:$AW$2635,39,FALSE),0) -> 8 | AP62: =IFERROR(VLOOKUP($A62,FILTRO!$A$5:$AW$2635,40,FALSE),0) -> 0 | DB62: 0 | DD62: 0
A63: 09600206 | C63: OTROS PROFESIONALES DEBIDAMENTE CAPACITADOS | D63: =SUM(E63:F63) -> 0 | E63: =SUM(G63+I63+K63+M63+O63+Q63+S63+U63+W63+Y63+AA63+AC63+AE63+AG63+AI63+AK63+AM63) -> 0 | F63: =SUM(H63+J63+L63+N63+P63+R63+T63+V63+X63+Z63+AB63+AD63+AF63+AH63+AJ63+AL63+AN63) -> 0 | G63: =IFERROR(VLOOKUP($A63,FILTRO!$A$5:$AW$2635,5,FALSE),0) -> 0 | H63: =IFERROR(VLOOKUP($A63,FILTRO!$A$5:$AW$2635,6,FALSE),0) -> 0 | I63: =IFERROR(VLOOKUP($A63,FILTRO!$A$5:$AW$2635,7,FALSE),0) -> 0 | J63: =IFERROR(VLOOKUP($A63,FILTRO!$A$5:$AW$2635,8,FALSE),0) -> 0 | K63: =IFERROR(VLOOKUP($A63,FILTRO!$A$5:$AW$2635,9,FALSE),0) -> 0 | L63: =IFERROR(VLOOKUP($A63,FILTRO!$A$5:$AW$2635,10,FALSE),0) -> 0 | M63: =IFERROR(VLOOKUP($A63,FILTRO!$A$5:$AW$2635,11,FALSE),0) -> 0 | N63: =IFERROR(VLOOKUP($A63,FILTRO!$A$5:$AW$2635,12,FALSE),0) -> 0 | O63: =IFERROR(VLOOKUP($A63,FILTRO!$A$5:$AW$2635,13,FALSE),0) -> 0 | P63: =IFERROR(VLOOKUP($A63,FILTRO!$A$5:$AW$2635,14,FALSE),0) -> 0 | Q63: =IFERROR(VLOOKUP($A63,FILTRO!$A$5:$AW$2635,15,FALSE),0) -> 0 | R63: =IFERROR(VLOOKUP($A63,FILTRO!$A$5:$AW$2635,16,FALSE),0) -> 0 | S63: =IFERROR(VLOOKUP($A63,FILTRO!$A$5:$AW$2635,17,FALSE),0) -> 0 | T63: =IFERROR(VLOOKUP($A63,FILTRO!$A$5:$AW$2635,18,FALSE),0) -> 0 | U63: =IFERROR(VLOOKUP($A63,FILTRO!$A$5:$AW$2635,19,FALSE),0) -> 0 | V63: =IFERROR(VLOOKUP($A63,FILTRO!$A$5:$AW$2635,20,FALSE),0) -> 0 | W63: =IFERROR(VLOOKUP($A63,FILTRO!$A$5:$AW$2635,21,FALSE),0) -> 0 | X63: =IFERROR(VLOOKUP($A63,FILTRO!$A$5:$AW$2635,22,FALSE),0) -> 0 | Y63: =IFERROR(VLOOKUP($A63,FILTRO!$A$5:$AW$2635,23,FALSE),0) -> 0 | Z63: =IFERROR(VLOOKUP($A63,FILTRO!$A$5:$AW$2635,24,FALSE),0) -> 0 | AA63: =IFERROR(VLOOKUP($A63,FILTRO!$A$5:$AW$2635,25,FALSE),0) -> 0 | AB63: =IFERROR(VLOOKUP($A63,FILTRO!$A$5:$AW$2635,26,FALSE),0) -> 0 | AC63: =IFERROR(VLOOKUP($A63,FILTRO!$A$5:$AW$2635,27,FALSE),0) -> 0 | AD63: =IFERROR(VLOOKUP($A63,FILTRO!$A$5:$AW$2635,28,FALSE),0) -> 0 | AE63: =IFERROR(VLOOKUP($A63,FILTRO!$A$5:$AW$2635,29,FALSE),0) -> 0 | AF63: =IFERROR(VLOOKUP($A63,FILTRO!$A$5:$AW$2635,30,FALSE),0) -> 0 | AG63: =IFERROR(VLOOKUP($A63,FILTRO!$A$5:$AW$2635,31,FALSE),0) -> 0 | AH63: =IFERROR(VLOOKUP($A63,FILTRO!$A$5:$AW$2635,32,FALSE),0) -> 0 | AI63: =IFERROR(VLOOKUP($A63,FILTRO!$A$5:$AW$2635,33,FALSE),0) -> 0 | AJ63: =IFERROR(VLOOKUP($A63,FILTRO!$A$5:$AW$2635,34,FALSE),0) -> 0 | AK63: =IFERROR(VLOOKUP($A63,FILTRO!$A$5:$AW$2635,35,FALSE),0) -> 0 | AL63: =IFERROR(VLOOKUP($A63,FILTRO!$A$5:$AW$2635,36,FALSE),0) -> 0 | AM63: =IFERROR(VLOOKUP($A63,FILTRO!$A$5:$AW$2635,37,FALSE),0) -> 0 | AN63: =IFERROR(VLOOKUP($A63,FILTRO!$A$5:$AW$2635,38,FALSE),0) -> 0 | AO63: =IFERROR(VLOOKUP($A63,FILTRO!$A$5:$AW$2635,39,FALSE),0) -> 0 | AP63: =IFERROR(VLOOKUP($A63,FILTRO!$A$5:$AW$2635,40,FALSE),0) -> 0 | DB63: 0 | DD63: 0
A64: 01200031 | B64: NIÑOS CON NECESIDADES ESPECIALES | C64: MÉDICO/A | D64: 99 | E64: =SUM(G64+I64+K64+M64) -> 57 | F64: =SUM(H64+J64+L64+N64) -> 42 | G64: =IFERROR(VLOOKUP($A64,FILTRO!$A$5:$AW$2635,5,FALSE),0) -> 35 | H64: =IFERROR(VLOOKUP($A64,FILTRO!$A$5:$AW$2635,6,FALSE),0) -> 26 | I64: =IFERROR(VLOOKUP($A64,FILTRO!$A$5:$AW$2635,7,FALSE),0) -> 13 | J64: =IFERROR(VLOOKUP($A64,FILTRO!$A$5:$AW$2635,8,FALSE),0) -> 11 | K64: =IFERROR(VLOOKUP($A64,FILTRO!$A$5:$AW$2635,9,FALSE),0) -> 6 | L64: =IFERROR(VLOOKUP($A64,FILTRO!$A$5:$AW$2635,10,FALSE),0) -> 4 | M64: =IFERROR(VLOOKUP($A64,FILTRO!$A$5:$AW$2635,11,FALSE),0) -> 3 | N64: =IFERROR(VLOOKUP($A64,FILTRO!$A$5:$AW$2635,12,FALSE),0) -> 1 | O64: =IFERROR(VLOOKUP($A64,FILTRO!$A$5:$AW$2635,13,FALSE),0) -> 0 | P64: =IFERROR(VLOOKUP($A64,FILTRO!$A$5:$AW$2635,14,FALSE),0) -> 0 | Q64: =IFERROR(VLOOKUP($A64,FILTRO!$A$5:$AW$2635,15,FALSE),0) -> 0 | R64: =IFERROR(VLOOKUP($A64,FILTRO!$A$5:$AW$2635,16,FALSE),0) -> 0 | S64: =IFERROR(VLOOKUP($A64,FILTRO!$A$5:$AW$2635,17,FALSE),0) -> 0 | T64: =IFERROR(VLOOKUP($A64,FILTRO!$A$5:$AW$2635,18,FALSE),0) -> 0 | U64: =IFERROR(VLOOKUP($A64,FILTRO!$A$5:$AW$2635,19,FALSE),0) -> 0 | V64: =IFERROR(VLOOKUP($A64,FILTRO!$A$5:$AW$2635,20,FALSE),0) -> 0 | W64: =IFERROR(VLOOKUP($A64,FILTRO!$A$5:$AW$2635,21,FALSE),0) -> 0 | X64: =IFERROR(VLOOKUP($A64,FILTRO!$A$5:$AW$2635,22,FALSE),0) -> 0 | Y64: =IFERROR(VLOOKUP($A64,FILTRO!$A$5:$AW$2635,23,FALSE),0) -> 0 | Z64: =IFERROR(VLOOKUP($A64,FILTRO!$A$5:$AW$2635,24,FALSE),0) -> 0 | AA64: =IFERROR(VLOOKUP($A64,FILTRO!$A$5:$AW$2635,25,FALSE),0) -> 0 | AB64: =IFERROR(VLOOKUP($A64,FILTRO!$A$5:$AW$2635,26,FALSE),0) -> 0 | AC64: =IFERROR(VLOOKUP($A64,FILTRO!$A$5:$AW$2635,27,FALSE),0) -> 0 | AD64: =IFERROR(VLOOKUP($A64,FILTRO!$A$5:$AW$2635,28,FALSE),0) -> 0 | AE64: =IFERROR(VLOOKUP($A64,FILTRO!$A$5:$AW$2635,29,FALSE),0) -> 0 | AF64: =IFERROR(VLOOKUP($A64,FILTRO!$A$5:$AW$2635,30,FALSE),0) -> 0 | AG64: =IFERROR(VLOOKUP($A64,FILTRO!$A$5:$AW$2635,31,FALSE),0) -> 0 | AH64: =IFERROR(VLOOKUP($A64,FILTRO!$A$5:$AW$2635,32,FALSE),0) -> 0 | AI64: =IFERROR(VLOOKUP($A64,FILTRO!$A$5:$AW$2635,33,FALSE),0) -> 0 | AJ64: =IFERROR(VLOOKUP($A64,FILTRO!$A$5:$AW$2635,34,FALSE),0) -> 0 | AK64: =IFERROR(VLOOKUP($A64,FILTRO!$A$5:$AW$2635,35,FALSE),0) -> 0 | AL64: =IFERROR(VLOOKUP($A64,FILTRO!$A$5:$AW$2635,36,FALSE),0) -> 0 | AM64: =IFERROR(VLOOKUP($A64,FILTRO!$A$5:$AW$2635,37,FALSE),0) -> 0 | AN64: =IFERROR(VLOOKUP($A64,FILTRO!$A$5:$AW$2635,38,FALSE),0) -> 0 | AO64: =IFERROR(VLOOKUP($A64,FILTRO!$A$5:$AW$2635,39,FALSE),0) -> 1 | AP64: =IFERROR(VLOOKUP($A64,FILTRO!$A$5:$AW$2635,40,FALSE),0) -> 0 | DB64: 0 | DC64: 0 | DD64: 0 | DE64: 0
A65: 01200032 | C65: ENFERMERA/O | D65: 934 | E65: 578 | F65: =SUM(H65+J65+L65+N65) -> 356 | G65: =IFERROR(VLOOKUP($A65,FILTRO!$A$5:$AW$2635,5,FALSE),0) -> 377 | H65: =IFERROR(VLOOKUP($A65,FILTRO!$A$5:$AW$2635,6,FALSE),0) -> 248 | I65: =IFERROR(VLOOKUP($A65,FILTRO!$A$5:$AW$2635,7,FALSE),0) -> 145 | J65: =IFERROR(VLOOKUP($A65,FILTRO!$A$5:$AW$2635,8,FALSE),0) -> 74 | K65: =IFERROR(VLOOKUP($A65,FILTRO!$A$5:$AW$2635,9,FALSE),0) -> 40 | L65: =IFERROR(VLOOKUP($A65,FILTRO!$A$5:$AW$2635,10,FALSE),0) -> 22 | M65: =IFERROR(VLOOKUP($A65,FILTRO!$A$5:$AW$2635,11,FALSE),0) -> 16 | N65: =IFERROR(VLOOKUP($A65,FILTRO!$A$5:$AW$2635,12,FALSE),0) -> 12 | O65: =IFERROR(VLOOKUP($A65,FILTRO!$A$5:$AW$2635,13,FALSE),0) -> 0 | P65: =IFERROR(VLOOKUP($A65,FILTRO!$A$5:$AW$2635,14,FALSE),0) -> 0 | Q65: =IFERROR(VLOOKUP($A65,FILTRO!$A$5:$AW$2635,15,FALSE),0) -> 0 | R65: =IFERROR(VLOOKUP($A65,FILTRO!$A$5:$AW$2635,16,FALSE),0) -> 0 | S65: =IFERROR(VLOOKUP($A65,FILTRO!$A$5:$AW$2635,17,FALSE),0) -> 0 | T65: =IFERROR(VLOOKUP($A65,FILTRO!$A$5:$AW$2635,18,FALSE),0) -> 0 | U65: =IFERROR(VLOOKUP($A65,FILTRO!$A$5:$AW$2635,19,FALSE),0) -> 0 | V65: =IFERROR(VLOOKUP($A65,FILTRO!$A$5:$AW$2635,20,FALSE),0) -> 0 | W65: =IFERROR(VLOOKUP($A65,FILTRO!$A$5:$AW$2635,21,FALSE),0) -> 0 | X65: =IFERROR(VLOOKUP($A65,FILTRO!$A$5:$AW$2635,22,FALSE),0) -> 0 | Y65: =IFERROR(VLOOKUP($A65,FILTRO!$A$5:$AW$2635,23,FALSE),0) -> 0 | Z65: =IFERROR(VLOOKUP($A65,FILTRO!$A$5:$AW$2635,24,FALSE),0) -> 0 | AA65: =IFERROR(VLOOKUP($A65,FILTRO!$A$5:$AW$2635,25,FALSE),0) -> 0 | AB65: =IFERROR(VLOOKUP($A65,FILTRO!$A$5:$AW$2635,26,FALSE),0) -> 0 | AC65: =IFERROR(VLOOKUP($A65,FILTRO!$A$5:$AW$2635,27,FALSE),0) -> 0 | AD65: =IFERROR(VLOOKUP($A65,FILTRO!$A$5:$AW$2635,28,FALSE),0) -> 0 | AE65: =IFERROR(VLOOKUP($A65,FILTRO!$A$5:$AW$2635,29,FALSE),0) -> 0 | AF65: =IFERROR(VLOOKUP($A65,FILTRO!$A$5:$AW$2635,30,FALSE),0) -> 0 | AG65: =IFERROR(VLOOKUP($A65,FILTRO!$A$5:$AW$2635,31,FALSE),0) -> 0 | AH65: =IFERROR(VLOOKUP($A65,FILTRO!$A$5:$AW$2635,32,FALSE),0) -> 0 | AI65: =IFERROR(VLOOKUP($A65,FILTRO!$A$5:$AW$2635,33,FALSE),0) -> 0 | AJ65: =IFERROR(VLOOKUP($A65,FILTRO!$A$5:$AW$2635,34,FALSE),0) -> 0 | AK65: =IFERROR(VLOOKUP($A65,FILTRO!$A$5:$AW$2635,35,FALSE),0) -> 0 | AL65: =IFERROR(VLOOKUP($A65,FILTRO!$A$5:$AW$2635,36,FALSE),0) -> 0 | AM65: =IFERROR(VLOOKUP($A65,FILTRO!$A$5:$AW$2635,37,FALSE),0) -> 0 | AN65: =IFERROR(VLOOKUP($A65,FILTRO!$A$5:$AW$2635,38,FALSE),0) -> 0 | AO65: =IFERROR(VLOOKUP($A65,FILTRO!$A$5:$AW$2635,39,FALSE),0) -> 3 | AP65: =IFERROR(VLOOKUP($A65,FILTRO!$A$5:$AW$2635,40,FALSE),0) -> 0 | DB65: 0 | DD65: 0
A66: 01200033 | C66: MATRONA/ÓN | D66: 11 | E66: 5 | F66: 6 | G66: =IFERROR(VLOOKUP($A66,FILTRO!$A$5:$AW$2635,5,FALSE),0) -> 3 | H66: =IFERROR(VLOOKUP($A66,FILTRO!$A$5:$AW$2635,6,FALSE),0) -> 4 | I66: =IFERROR(VLOOKUP($A66,FILTRO!$A$5:$AW$2635,7,FALSE),0) -> 1 | J66: =IFERROR(VLOOKUP($A66,FILTRO!$A$5:$AW$2635,8,FALSE),0) -> 1 | K66: =IFERROR(VLOOKUP($A66,FILTRO!$A$5:$AW$2635,9,FALSE),0) -> 1 | L66: =IFERROR(VLOOKUP($A66,FILTRO!$A$5:$AW$2635,10,FALSE),0) -> 1 | M66: =IFERROR(VLOOKUP($A66,FILTRO!$A$5:$AW$2635,11,FALSE),0) -> 0 | N66: =IFERROR(VLOOKUP($A66,FILTRO!$A$5:$AW$2635,12,FALSE),0) -> 0 | O66: =IFERROR(VLOOKUP($A66,FILTRO!$A$5:$AW$2635,13,FALSE),0) -> 0 | P66: =IFERROR(VLOOKUP($A66,FILTRO!$A$5:$AW$2635,14,FALSE),0) -> 0 | Q66: =IFERROR(VLOOKUP($A66,FILTRO!$A$5:$AW$2635,15,FALSE),0) -> 0 | R66: =IFERROR(VLOOKUP($A66,FILTRO!$A$5:$AW$2635,16,FALSE),0) -> 0 | S66: =IFERROR(VLOOKUP($A66,FILTRO!$A$5:$AW$2635,17,FALSE),0) -> 0 | T66: =IFERROR(VLOOKUP($A66,FILTRO!$A$5:$AW$2635,18,FALSE),0) -> 0 | U66: =IFERROR(VLOOKUP($A66,FILTRO!$A$5:$AW$2635,19,FALSE),0) -> 0 | V66: =IFERROR(VLOOKUP($A66,FILTRO!$A$5:$AW$2635,20,FALSE),0) -> 0 | W66: =IFERROR(VLOOKUP($A66,FILTRO!$A$5:$AW$2635,21,FALSE),0) -> 0 | X66: =IFERROR(VLOOKUP($A66,FILTRO!$A$5:$AW$2635,22,FALSE),0) -> 0 | Y66: =IFERROR(VLOOKUP($A66,FILTRO!$A$5:$AW$2635,23,FALSE),0) -> 0 | Z66: =IFERROR(VLOOKUP($A66,FILTRO!$A$5:$AW$2635,24,FALSE),0) -> 0 | AA66: =IFERROR(VLOOKUP($A66,FILTRO!$A$5:$AW$2635,25,FALSE),0) -> 0 | AB66: =IFERROR(VLOOKUP($A66,FILTRO!$A$5:$AW$2635,26,FALSE),0) -> 0 | AC66: =IFERROR(VLOOKUP($A66,FILTRO!$A$5:$AW$2635,27,FALSE),0) -> 0 | AD66: =IFERROR(VLOOKUP($A66,FILTRO!$A$5:$AW$2635,28,FALSE),0) -> 0 | AE66: =IFERROR(VLOOKUP($A66,FILTRO!$A$5:$AW$2635,29,FALSE),0) -> 0 | AF66: =IFERROR(VLOOKUP($A66,FILTRO!$A$5:$AW$2635,30,FALSE),0) -> 0 | AG66: =IFERROR(VLOOKUP($A66,FILTRO!$A$5:$AW$2635,31,FALSE),0) -> 0 | AH66: =IFERROR(VLOOKUP($A66,FILTRO!$A$5:$AW$2635,32,FALSE),0) -> 0 | AI66: =IFERROR(VLOOKUP($A66,FILTRO!$A$5:$AW$2635,33,FALSE),0) -> 0 | AJ66: =IFERROR(VLOOKUP($A66,FILTRO!$A$5:$AW$2635,34,FALSE),0) -> 0 | AK66: =IFERROR(VLOOKUP($A66,FILTRO!$A$5:$AW$2635,35,FALSE),0) -> 0 | AL66: =IFERROR(VLOOKUP($A66,FILTRO!$A$5:$AW$2635,36,FALSE),0) -> 0 | AM66: =IFERROR(VLOOKUP($A66,FILTRO!$A$5:$AW$2635,37,FALSE),0) -> 0 | AN66: =IFERROR(VLOOKUP($A66,FILTRO!$A$5:$AW$2635,38,FALSE),0) -> 0 | AO66: =IFERROR(VLOOKUP($A66,FILTRO!$A$5:$AW$2635,39,FALSE),0) -> 0 | AP66: =IFERROR(VLOOKUP($A66,FILTRO!$A$5:$AW$2635,40,FALSE),0) -> 0 | DB66: 0 | DD66: 0
A67: 01200034 | C67: NUTRICIONISTA | D67: 241 | E67: 161 | F67: 80 | G67: =IFERROR(VLOOKUP($A67,FILTRO!$A$5:$AW$2635,5,FALSE),0) -> 105 | H67: =IFERROR(VLOOKUP($A67,FILTRO!$A$5:$AW$2635,6,FALSE),0) -> 54 | I67: =IFERROR(VLOOKUP($A67,FILTRO!$A$5:$AW$2635,7,FALSE),0) -> 32 | J67: =IFERROR(VLOOKUP($A67,FILTRO!$A$5:$AW$2635,8,FALSE),0) -> 19 | K67: =IFERROR(VLOOKUP($A67,FILTRO!$A$5:$AW$2635,9,FALSE),0) -> 20 | L67: =IFERROR(VLOOKUP($A67,FILTRO!$A$5:$AW$2635,10,FALSE),0) -> 5 | M67: =IFERROR(VLOOKUP($A67,FILTRO!$A$5:$AW$2635,11,FALSE),0) -> 4 | N67: =IFERROR(VLOOKUP($A67,FILTRO!$A$5:$AW$2635,12,FALSE),0) -> 2 | O67: =IFERROR(VLOOKUP($A67,FILTRO!$A$5:$AW$2635,13,FALSE),0) -> 0 | P67: =IFERROR(VLOOKUP($A67,FILTRO!$A$5:$AW$2635,14,FALSE),0) -> 0 | Q67: =IFERROR(VLOOKUP($A67,FILTRO!$A$5:$AW$2635,15,FALSE),0) -> 0 | R67: =IFERROR(VLOOKUP($A67,FILTRO!$A$5:$AW$2635,16,FALSE),0) -> 0 | S67: =IFERROR(VLOOKUP($A67,FILTRO!$A$5:$AW$2635,17,FALSE),0) -> 0 | T67: =IFERROR(VLOOKUP($A67,FILTRO!$A$5:$AW$2635,18,FALSE),0) -> 0 | U67: =IFERROR(VLOOKUP($A67,FILTRO!$A$5:$AW$2635,19,FALSE),0) -> 0 | V67: =IFERROR(VLOOKUP($A67,FILTRO!$A$5:$AW$2635,20,FALSE),0) -> 0 | W67: =IFERROR(VLOOKUP($A67,FILTRO!$A$5:$AW$2635,21,FALSE),0) -> 0 | X67: =IFERROR(VLOOKUP($A67,FILTRO!$A$5:$AW$2635,22,FALSE),0) -> 0 | Y67: =IFERROR(VLOOKUP($A67,FILTRO!$A$5:$AW$2635,23,FALSE),0) -> 0 | Z67: =IFERROR(VLOOKUP($A67,FILTRO!$A$5:$AW$2635,24,FALSE),0) -> 0 | AA67: =IFERROR(VLOOKUP($A67,FILTRO!$A$5:$AW$2635,25,FALSE),0) -> 0 | AB67: =IFERROR(VLOOKUP($A67,FILTRO!$A$5:$AW$2635,26,FALSE),0) -> 0 | AC67: =IFERROR(VLOOKUP($A67,FILTRO!$A$5:$AW$2635,27,FALSE),0) -> 0 | AD67: =IFERROR(VLOOKUP($A67,FILTRO!$A$5:$AW$2635,28,FALSE),0) -> 0 | AE67: =IFERROR(VLOOKUP($A67,FILTRO!$A$5:$AW$2635,29,FALSE),0) -> 0 | AF67: =IFERROR(VLOOKUP($A67,FILTRO!$A$5:$AW$2635,30,FALSE),0) -> 0 | AG67: =IFERROR(VLOOKUP($A67,FILTRO!$A$5:$AW$2635,31,FALSE),0) -> 0 | AH67: =IFERROR(VLOOKUP($A67,FILTRO!$A$5:$AW$2635,32,FALSE),0) -> 0 | AI67: =IFERROR(VLOOKUP($A67,FILTRO!$A$5:$AW$2635,33,FALSE),0) -> 0 | AJ67: =IFERROR(VLOOKUP($A67,FILTRO!$A$5:$AW$2635,34,FALSE),0) -> 0 | AK67: =IFERROR(VLOOKUP($A67,FILTRO!$A$5:$AW$2635,35,FALSE),0) -> 0 | AL67: =IFERROR(VLOOKUP($A67,FILTRO!$A$5:$AW$2635,36,FALSE),0) -> 0 | AM67: =IFERROR(VLOOKUP($A67,FILTRO!$A$5:$AW$2635,37,FALSE),0) -> 0 | AN67: =IFERROR(VLOOKUP($A67,FILTRO!$A$5:$AW$2635,38,FALSE),0) -> 0 | AO67: =IFERROR(VLOOKUP($A67,FILTRO!$A$5:$AW$2635,39,FALSE),0) -> 0 | AP67: =IFERROR(VLOOKUP($A67,FILTRO!$A$5:$AW$2635,40,FALSE),0) -> 1 | DB67: 0 | DD67: 0
B68: SECCIÓN D: CONTROL DE SALUD INTEGRAL DE ADOLESCENTES (incluidos en sección B)
B69: LUGAR DEL CONTROL, SEGÚN EDAD | D69: 10 A 14 AÑOS | I69: 15 A 19 AÑOS | N69: Niños, Niñas, Adolescentes y Jóvenes SENAME | O69: Niños, Niñas, Adolescentes y Jóvenes Mejor Niñez
D70: Ambos Sexos | E70: Hombres | F70: Mujeres | G70: Pueblos Originarios | H70: Migrantes | I70: Ambos Sexos | J70: Hombres | K70: Mujeres | L70: Pueblos Originarios | M70: Migrantes
A71: 01030500 | B71: EN ESPACIO AMIGABLE | D71: =SUM(E71:F71) -> 1167 | E71: =IFERROR(VLOOKUP($A71,FILTRO!$A$5:$AW$2635,3,FALSE),0) -> 453 | F71: =IFERROR(VLOOKUP($A71,FILTRO!$A$5:$AW$2635,4,FALSE),0) -> 714 | G71: =IFERROR(VLOOKUP($A71,FILTRO!$A$5:$AW$2635,5,FALSE),0) -> 39 | H71: =IFERROR(VLOOKUP($A71,FILTRO!$A$5:$AW$2635,6,FALSE),0) -> 42 | I71: =SUM(J71:K71) -> 1265 | J71: =IFERROR(VLOOKUP($A71,FILTRO!$A$5:$AW$2635,8,FALSE),0) -> 417 | K71: =IFERROR(VLOOKUP($A71,FILTRO!$A$5:$AW$2635,9,FALSE),0) -> 848 | L71: =IFERROR(VLOOKUP($A71,FILTRO!$A$5:$AW$2635,10,FALSE),0) -> 59 | M71: =IFERROR(VLOOKUP($A71,FILTRO!$A$5:$AW$2635,11,FALSE),0) -> 57 | N71: =IFERROR(VLOOKUP($A71,FILTRO!$A$5:$AW$2635,12,FALSE),0) -> 14 | O71: =IFERROR(VLOOKUP($A71,FILTRO!$A$5:$AW$2635,13,FALSE),0) -> 45 | CB71: * Niños, Niñas, Adolescentes y Jóvenes SENAME NO DEBE ser mayor al Total. | CF71: * Pueblos Originarios NO DEBE ser mayor al Total de controles de adolescentes de 10 a 14 años. | CH71: * Migrantes NO DEBE ser mayor al Total de controles de adolescentes de 10 a 14 años. | CJ71: * Pueblos Originarios NO DEBE ser mayor al Total de controles de adolescentes de 15 a 19 años. | CL71: * Migrantes NO DEBE ser mayor al Total de controles de adolescentes de 15 a 19 años. | DB71: 1 | DF71: 1 | DH71: 1 | DJ71: 1 | DL71: 1
A72: 01030600 | B72: EN OTROS ESPACIOS DEL ESTABLECIMIENTO DE SALUD | D72: =SUM(E72:F72) -> 3875 | E72: =IFERROR(VLOOKUP($A72,FILTRO!$A$5:$AW$2635,3,FALSE),0) -> 1738 | F72: =IFERROR(VLOOKUP($A72,FILTRO!$A$5:$AW$2635,4,FALSE),0) -> 2137 | G72: =IFERROR(VLOOKUP($A72,FILTRO!$A$5:$AW$2635,5,FALSE),0) -> 250 | H72: =IFERROR(VLOOKUP($A72,FILTRO!$A$5:$AW$2635,6,FALSE),0) -> 178 | I72: =SUM(J72:K72) -> 1614 | J72: =IFERROR(VLOOKUP($A72,FILTRO!$A$5:$AW$2635,8,FALSE),0) -> 604 | K72: =IFERROR(VLOOKUP($A72,FILTRO!$A$5:$AW$2635,9,FALSE),0) -> 1010 | L72: =IFERROR(VLOOKUP($A72,FILTRO!$A$5:$AW$2635,10,FALSE),0) -> 116 | M72: =IFERROR(VLOOKUP($A72,FILTRO!$A$5:$AW$2635,11,FALSE),0) -> 91 | N72: =IFERROR(VLOOKUP($A72,FILTRO!$A$5:$AW$2635,12,FALSE),0) -> 65 | O72: =IFERROR(VLOOKUP($A72,FILTRO!$A$5:$AW$2635,13,FALSE),0) -> 81 | CF72: * Pueblos Originarios NO DEBE ser mayor al Total de controles de adolescentes de 10 a 14 años. | CH72: * Migrantes NO DEBE ser mayor al Total de controles de adolescentes de 10 a 14 años. | CJ72: * Pueblos Originarios NO DEBE ser mayor al Total de controles de adolescentes de 15 a 19 años. | DF72: 1 | DH72: 1 | DJ72: 1
A73: 01030700 | B73: EN ESTABLECIMIENTOS EDUCACIONALES | D73: =SUM(E73:F73) -> 4547 | E73: =IFERROR(VLOOKUP($A73,FILTRO!$A$5:$AW$2635,3,FALSE),0) -> 2168 | F73: =IFERROR(VLOOKUP($A73,FILTRO!$A$5:$AW$2635,4,FALSE),0) -> 2379 | G73: =IFERROR(VLOOKUP($A73,FILTRO!$A$5:$AW$2635,5,FALSE),0) -> 176 | H73: =IFERROR(VLOOKUP($A73,FILTRO!$A$5:$AW$2635,6,FALSE),0) -> 163 | I73: =SUM(J73:K73) -> 1383 | J73: =IFERROR(VLOOKUP($A73,FILTRO!$A$5:$AW$2635,8,FALSE),0) -> 643 | K73: =IFERROR(VLOOKUP($A73,FILTRO!$A$5:$AW$2635,9,FALSE),0) -> 740 | L73: =IFERROR(VLOOKUP($A73,FILTRO!$A$5:$AW$2635,10,FALSE),0) -> 76 | M73: =IFERROR(VLOOKUP($A73,FILTRO!$A$5:$AW$2635,11,FALSE),0) -> 33 | N73: =IFERROR(VLOOKUP($A73,FILTRO!$A$5:$AW$2635,12,FALSE),0) -> 3 | O73: =IFERROR(VLOOKUP($A73,FILTRO!$A$5:$AW$2635,13,FALSE),0) -> 6 | CF73: * Pueblos Originarios NO DEBE ser mayor al Total de controles de adolescentes de 10 a 14 años. | CH73: * Migrantes NO DEBE ser mayor al Total de controles de adolescentes de 10 a 14 años. | CJ73: * Pueblos Originarios NO DEBE ser mayor al Total de controles de adolescentes de 15 a 19 años. | DF73: 1 | DH73: 1 | DJ73: 1
A74: 01030800 | B74: EN OTROS LUGARES FUERA DEL ESTABLECIMIENTO DE SALUD | D74: =SUM(E74:F74) -> 305 | E74: =IFERROR(VLOOKUP($A74,FILTRO!$A$5:$AW$2635,3,FALSE),0) -> 152 | F74: =IFERROR(VLOOKUP($A74,FILTRO!$A$5:$AW$2635,4,FALSE),0) -> 153 | G74: =IFERROR(VLOOKUP($A74,FILTRO!$A$5:$AW$2635,5,FALSE),0) -> 9 | H74: =IFERROR(VLOOKUP($A74,FILTRO!$A$5:$AW$2635,6,FALSE),0) -> 4 | I74: =SUM(J74:K74) -> 95 | J74: =IFERROR(VLOOKUP($A74,FILTRO!$A$5:$AW$2635,8,FALSE),0) -> 56 | K74: =IFERROR(VLOOKUP($A74,FILTRO!$A$5:$AW$2635,9,FALSE),0) -> 39 | L74: =IFERROR(VLOOKUP($A74,FILTRO!$A$5:$AW$2635,10,FALSE),0) -> 6 | M74: =IFERROR(VLOOKUP($A74,FILTRO!$A$5:$AW$2635,11,FALSE),0) -> 0 | N74: =IFERROR(VLOOKUP($A74,FILTRO!$A$5:$AW$2635,12,FALSE),0) -> 40 | O74: =IFERROR(VLOOKUP($A74,FILTRO!$A$5:$AW$2635,13,FALSE),0) -> 105 | CD74: * Niños, Niñas, Adolescentes y Jóvenes Mejor Niñez NO DEBE ser mayor al Total. | CF74: * Pueblos Originarios NO DEBE ser mayor al Total de controles de adolescentes de 10 a 14 años. | CH74: * Migrantes NO DEBE ser mayor al Total de controles de adolescentes de 10 a 14 años. | CJ74: * Pueblos Originarios NO DEBE ser mayor al Total de controles de adolescentes de 15 a 19 años. | CL74: * Migrantes NO DEBE ser mayor al Total de controles de adolescentes de 15 a 19 años. | DD74: 1 | DF74: 1 | DH74: 1 | DJ74: 1 | DL74: 1
B75: TOTAL | D75: =SUM(D71:D74) -> 9894 | E75: 4511 | F75: 5383 | G75: 474 | H75: =SUM(H71:H74) -> 387 | I75: 4357 | J75: 1720 | K75: 2637 | L75: 257 | M75: 181 | N75: =SUM(N71:N74) -> 122 | O75: =SUM(O71:O74) -> 237
B76: SECCIÓN E: CONTROLES DE SALUD EN ESTABLECIMIENTOS EDUCACIONALES
B77: SECCIÓN E1: CONTROLES INDIVIDUALES
B78: CURSO | C78: TOTAL | D78: SEXO | F78: Pueblos Originarios | G78: Migrantes | H78: Niños, Niñas, Adolescentes y Jóvenes SENAME | I78: Niños, Niñas, Adolescentes y Jóvenes Mejor Niñez
D79: Hombres | E79: Mujeres
A80: 01031000 | B80: KÍNDER | C80: =SUM(D80:E80) -> 694 | D80: =IFERROR(VLOOKUP($A80,FILTRO!$A$5:$AW$2635,3,FALSE),0) -> 320 | E80: =IFERROR(VLOOKUP($A80,FILTRO!$A$5:$AW$2635,4,FALSE),0) -> 374 | F80: =IFERROR(VLOOKUP($A80,FILTRO!$A$5:$AW$2635,5,FALSE),0) -> 2 | G80: =IFERROR(VLOOKUP($A80,FILTRO!$A$5:$AW$2635,6,FALSE),0) -> 3 | H80: =IFERROR(VLOOKUP($A80,FILTRO!$A$5:$AW$2635,7,FALSE),0) -> 0 | I80: =IFERROR(VLOOKUP($A80,FILTRO!$A$5:$AW$2635,8,FALSE),0) -> 0
A81: 01031100 | B81: PRIMERO BÁSICO | C81: =SUM(D81:E81) -> 1058 | D81: =IFERROR(VLOOKUP($A81,FILTRO!$A$5:$AW$2635,3,FALSE),0) -> 515 | E81: =IFERROR(VLOOKUP($A81,FILTRO!$A$5:$AW$2635,4,FALSE),0) -> 543 | F81: =IFERROR(VLOOKUP($A81,FILTRO!$A$5:$AW$2635,5,FALSE),0) -> 6 | G81: =IFERROR(VLOOKUP($A81,FILTRO!$A$5:$AW$2635,6,FALSE),0) -> 13 | H81: =IFERROR(VLOOKUP($A81,FILTRO!$A$5:$AW$2635,7,FALSE),0) -> 2 | I81: =IFERROR(VLOOKUP($A81,FILTRO!$A$5:$AW$2635,8,FALSE),0) -> 0
A82: 01031200 | B82: SEGUNDO BÁSICO | C82: =SUM(D82:E82) -> 1282 | D82: =IFERROR(VLOOKUP($A82,FILTRO!$A$5:$AW$2635,3,FALSE),0) -> 600 | E82: =IFERROR(VLOOKUP($A82,FILTRO!$A$5:$AW$2635,4,FALSE),0) -> 682 | F82: =IFERROR(VLOOKUP($A82,FILTRO!$A$5:$AW$2635,5,FALSE),0) -> 3 | G82: =IFERROR(VLOOKUP($A82,FILTRO!$A$5:$AW$2635,6,FALSE),0) -> 9 | H82: =IFERROR(VLOOKUP($A82,FILTRO!$A$5:$AW$2635,7,FALSE),0) -> 2 | I82: =IFERROR(VLOOKUP($A82,FILTRO!$A$5:$AW$2635,8,FALSE),0) -> 0
A83: 01031300 | B83: TERCERO BÁSICO | C83: =SUM(D83:E83) -> 1399 | D83: =IFERROR(VLOOKUP($A83,FILTRO!$A$5:$AW$2635,3,FALSE),0) -> 683 | E83: =IFERROR(VLOOKUP($A83,FILTRO!$A$5:$AW$2635,4,FALSE),0) -> 716 | F83: =IFERROR(VLOOKUP($A83,FILTRO!$A$5:$AW$2635,5,FALSE),0) -> 11 | G83: =IFERROR(VLOOKUP($A83,FILTRO!$A$5:$AW$2635,6,FALSE),0) -> 8 | H83: =IFERROR(VLOOKUP($A83,FILTRO!$A$5:$AW$2635,7,FALSE),0) -> 0 | I83: =IFERROR(VLOOKUP($A83,FILTRO!$A$5:$AW$2635,8,FALSE),0) -> 0
A84: 01031400 | B84: CUARTO BÁSICO | C84: =SUM(D84:E84) -> 1427 | D84: =IFERROR(VLOOKUP($A84,FILTRO!$A$5:$AW$2635,3,FALSE),0) -> 701 | E84: =IFERROR(VLOOKUP($A84,FILTRO!$A$5:$AW$2635,4,FALSE),0) -> 726 | F84: =IFERROR(VLOOKUP($A84,FILTRO!$A$5:$AW$2635,5,FALSE),0) -> 8 | G84: =IFERROR(VLOOKUP($A84,FILTRO!$A$5:$AW$2635,6,FALSE),0) -> 9 | H84: =IFERROR(VLOOKUP($A84,FILTRO!$A$5:$AW$2635,7,FALSE),0) -> 1 | I84: =IFERROR(VLOOKUP($A84,FILTRO!$A$5:$AW$2635,8,FALSE),0) -> 0
B85: SECCIÓN E2: CONTROLES GRUPALES
B86: CURSO | C86: TOTAL DE GRUPOS | D86: TOTAL | E86: SEXO | G86: Pueblos Originarios | H86: Migrantes | I86: Niños, Niñas, Adolescentes y Jóvenes SENAME | J86: Niños, Niñas, Adolescentes y Jóvenes Mejor Niñez
E87: Hombres | F87: Mujeres
A88: 01031500 | B88: KÍNDER | C88: =IFERROR(VLOOKUP($A88,FILTRO!$A$5:$AW$2635,2,FALSE),0) -> 0 | D88: =SUM(E88:F88) -> 0 | E88: =IFERROR(VLOOKUP($A88,FILTRO!$A$5:$AW$2635,4,FALSE),0) -> 0 | F88: =IFERROR(VLOOKUP($A88,FILTRO!$A$5:$AW$2635,5,FALSE),0) -> 0 | G88: =IFERROR(VLOOKUP($A88,FILTRO!$A$5:$AW$2635,6,FALSE),0) -> 0 | H88: =IFERROR(VLOOKUP($A88,FILTRO!$A$5:$AW$2635,7,FALSE),0) -> 0 | I88: =IFERROR(VLOOKUP($A88,FILTRO!$A$5:$AW$2635,8,FALSE),0) -> 0 | J88: =IFERROR(VLOOKUP($A88,FILTRO!$A$5:$AW$2635,9,FALSE),0) -> 0
A89: 01031600 | B89: PRIMERO BÁSICO | C89: =IFERROR(VLOOKUP($A89,FILTRO!$A$5:$AW$2635,2,FALSE),0) -> 0 | D89: =SUM(E89:F89) -> 0 | E89: =IFERROR(VLOOKUP($A89,FILTRO!$A$5:$AW$2635,4,FALSE),0) -> 0 | F89: =IFERROR(VLOOKUP($A89,FILTRO!$A$5:$AW$2635,5,FALSE),0) -> 0 | G89: =IFERROR(VLOOKUP($A89,FILTRO!$A$5:$AW$2635,6,FALSE),0) -> 0 | H89: =IFERROR(VLOOKUP($A89,FILTRO!$A$5:$AW$2635,7,FALSE),0) -> 0 | I89: =IFERROR(VLOOKUP($A89,FILTRO!$A$5:$AW$2635,8,FALSE),0) -> 0 | J89: =IFERROR(VLOOKUP($A89,FILTRO!$A$5:$AW$2635,9,FALSE),0) -> 0
A90: 01031700 | B90: SEGUNDO BÁSICO | C90: =IFERROR(VLOOKUP($A90,FILTRO!$A$5:$AW$2635,2,FALSE),0) -> 0 | D90: =SUM(E90:F90) -> 0 | E90: =IFERROR(VLOOKUP($A90,FILTRO!$A$5:$AW$2635,4,FALSE),0) -> 0 | F90: =IFERROR(VLOOKUP($A90,FILTRO!$A$5:$AW$2635,5,FALSE),0) -> 0 | G90: =IFERROR(VLOOKUP($A90,FILTRO!$A$5:$AW$2635,6,FALSE),0) -> 0 | H90: =IFERROR(VLOOKUP($A90,FILTRO!$A$5:$AW$2635,7,FALSE),0) -> 0 | I90: =IFERROR(VLOOKUP($A90,FILTRO!$A$5:$AW$2635,8,FALSE),0) -> 0 | J90: =IFERROR(VLOOKUP($A90,FILTRO!$A$5:$AW$2635,9,FALSE),0) -> 0
A91: 01031800 | B91: TERCERO BÁSICO | C91: =IFERROR(VLOOKUP($A91,FILTRO!$A$5:$AW$2635,2,FALSE),0) -> 0 | D91: =SUM(E91:F91) -> 0 | E91: =IFERROR(VLOOKUP($A91,FILTRO!$A$5:$AW$2635,4,FALSE),0) -> 0 | F91: =IFERROR(VLOOKUP($A91,FILTRO!$A$5:$AW$2635,5,FALSE),0) -> 0 | G91: =IFERROR(VLOOKUP($A91,FILTRO!$A$5:$AW$2635,6,FALSE),0) -> 0 | H91: =IFERROR(VLOOKUP($A91,FILTRO!$A$5:$AW$2635,7,FALSE),0) -> 0 | I91: =IFERROR(VLOOKUP($A91,FILTRO!$A$5:$AW$2635,8,FALSE),0) -> 0 | J91: =IFERROR(VLOOKUP($A91,FILTRO!$A$5:$AW$2635,9,FALSE),0) -> 0
A92: 01031900 | B92: CUARTO BÁSICO | C92: =IFERROR(VLOOKUP($A92,FILTRO!$A$5:$AW$2635,2,FALSE),0) -> 0 | D92: =SUM(E92:F92) -> 0 | E92: =IFERROR(VLOOKUP($A92,FILTRO!$A$5:$AW$2635,4,FALSE),0) -> 0 | F92: =IFERROR(VLOOKUP($A92,FILTRO!$A$5:$AW$2635,5,FALSE),0) -> 0 | G92: =IFERROR(VLOOKUP($A92,FILTRO!$A$5:$AW$2635,6,FALSE),0) -> 0 | H92: =IFERROR(VLOOKUP($A92,FILTRO!$A$5:$AW$2635,7,FALSE),0) -> 1 | I92: =IFERROR(VLOOKUP($A92,FILTRO!$A$5:$AW$2635,8,FALSE),0) -> 0 | J92: =IFERROR(VLOOKUP($A92,FILTRO!$A$5:$AW$2635,9,FALSE),0) -> 0 | CB92: * Niños, Niñas, Adolescentes y Jóvenes SENAME NO DEBE ser mayor al Total. | DB92: 1
B93: SECCIÓN F: CONTROLES INTEGRALES DE PERSONAS CON CONDICIONES CRÓNICAS (incluidos en Secciones B y C)
B94: TIPO DE CONTROL | C94: TOTAL | F94: POR EDAD | AH94: Migrantes | AI94: Pueblos Originarios
F95: 15 - 19 años | H95: 20 - 24 años | J95: 25 - 29 años | L95: 30 - 34 años | N95: 35 - 39 años | P95: 40 - 44 años | R95: 45 - 49 años | T95: 50 - 54 años | V95: 55 - 59 años | X95: 60 - 64 años | Z95: 65 - 69 años | AB95: 70 - 74 años | AD95: 75 - 79 años | AF95: 80 y más años
C96: Ambos Sexos | D96: Hombres | E96: Mujeres | F96: Hombres | G96: Mujeres | H96: Hombres | I96: Mujeres | J96: Hombres | K96: Mujeres | L96: Hombres | M96: Mujeres | N96: Hombres | O96: Mujeres | P96: Hombres | Q96: Mujeres | R96: Hombres | S96: Mujeres | T96: Hombres | U96: Mujeres | V96: Hombres | W96: Mujeres | X96: Hombres | Y96: Mujeres | Z96: Hombres | AA96: Mujeres | AB96: Hombres | AC96: Mujeres | AD96: Hombres | AE96: Mujeres | AF96: Hombres | AG96: Mujeres
A97: 01501010 | B97: CONTROL INTEGRAL CON RIESGO LEVE (G1) | C97: =SUM(D97:E97) -> 456 | D97: =SUM(F97+H97+J97+L97+N97+P97+R97+T97+V97+X97+Z97+AB97+AD97+AF97) -> 139 | E97: =SUM(+G97+I97+K97+M97+O97+Q97+S97+U97+W97+Y97+AA97+AC97+AE97+AG97) -> 317 | F97: =IFERROR(VLOOKUP($A97,FILTRO!$A$5:$AW$2635,5,FALSE),0) -> 2 | G97: =IFERROR(VLOOKUP($A97,FILTRO!$A$5:$AW$2635,6,FALSE),0) -> 0 | H97: =IFERROR(VLOOKUP($A97,FILTRO!$A$5:$AW$2635,7,FALSE),0) -> 2 | I97: =IFERROR(VLOOKUP($A97,FILTRO!$A$5:$AW$2635,8,FALSE),0) -> 2 | J97: =IFERROR(VLOOKUP($A97,FILTRO!$A$5:$AW$2635,9,FALSE),0) -> 4 | K97: =IFERROR(VLOOKUP($A97,FILTRO!$A$5:$AW$2635,10,FALSE),0) -> 1 | L97: =IFERROR(VLOOKUP($A97,FILTRO!$A$5:$AW$2635,11,FALSE),0) -> 5 | M97: =IFERROR(VLOOKUP($A97,FILTRO!$A$5:$AW$2635,12,FALSE),0) -> 8 | N97: =IFERROR(VLOOKUP($A97,FILTRO!$A$5:$AW$2635,13,FALSE),0) -> 2 | O97: =IFERROR(VLOOKUP($A97,FILTRO!$A$5:$AW$2635,14,FALSE),0) -> 16 | P97: =IFERROR(VLOOKUP($A97,FILTRO!$A$5:$AW$2635,15,FALSE),0) -> 4 | Q97: =IFERROR(VLOOKUP($A97,FILTRO!$A$5:$AW$2635,16,FALSE),0) -> 19 | R97: =IFERROR(VLOOKUP($A97,FILTRO!$A$5:$AW$2635,17,FALSE),0) -> 7 | S97: =IFERROR(VLOOKUP($A97,FILTRO!$A$5:$AW$2635,18,FALSE),0) -> 27 | T97: =IFERROR(VLOOKUP($A97,FILTRO!$A$5:$AW$2635,19,FALSE),0) -> 17 | U97: =IFERROR(VLOOKUP($A97,FILTRO!$A$5:$AW$2635,20,FALSE),0) -> 33 | V97: =IFERROR(VLOOKUP($A97,FILTRO!$A$5:$AW$2635,21,FALSE),0) -> 20 | W97: =IFERROR(VLOOKUP($A97,FILTRO!$A$5:$AW$2635,22,FALSE),0) -> 43 | X97: =IFERROR(VLOOKUP($A97,FILTRO!$A$5:$AW$2635,23,FALSE),0) -> 24 | Y97: =IFERROR(VLOOKUP($A97,FILTRO!$A$5:$AW$2635,24,FALSE),0) -> 45 | Z97: =IFERROR(VLOOKUP($A97,FILTRO!$A$5:$AW$2635,25,FALSE),0) -> 14 | AA97: =IFERROR(VLOOKUP($A97,FILTRO!$A$5:$AW$2635,26,FALSE),0) -> 43 | AB97: =IFERROR(VLOOKUP($A97,FILTRO!$A$5:$AW$2635,27,FALSE),0) -> 9 | AC97: =IFERROR(VLOOKUP($A97,FILTRO!$A$5:$AW$2635,28,FALSE),0) -> 26 | AD97: =IFERROR(VLOOKUP($A97,FILTRO!$A$5:$AW$2635,29,FALSE),0) -> 10 | AE97: =IFERROR(VLOOKUP($A97,FILTRO!$A$5:$AW$2635,30,FALSE),0) -> 23 | AF97: =IFERROR(VLOOKUP($A97,FILTRO!$A$5:$AW$2635,31,FALSE),0) -> 19 | AG97: =IFERROR(VLOOKUP($A97,FILTRO!$A$5:$AW$2635,32,FALSE),0) -> 31 | AH97: =IFERROR(VLOOKUP($A97,FILTRO!$A$5:$AW$2635,33,FALSE),0) -> 5 | AI97: =IFERROR(VLOOKUP($A97,FILTRO!$A$5:$AW$2635,34,FALSE),0) -> 5 | DA97: 0 | DB97: 0
A98: 01501020 | B98: CONTROL INTEGRAL CON RIESGO MODERADO (G2) | C98: 380 | D98: 117 | E98: 263 | F98: =IFERROR(VLOOKUP($A98,FILTRO!$A$5:$AW$2635,5,FALSE),0) -> 1 | G98: =IFERROR(VLOOKUP($A98,FILTRO!$A$5:$AW$2635,6,FALSE),0) -> 0 | H98: =IFERROR(VLOOKUP($A98,FILTRO!$A$5:$AW$2635,7,FALSE),0) -> 0 | I98: =IFERROR(VLOOKUP($A98,FILTRO!$A$5:$AW$2635,8,FALSE),0) -> 2 | J98: =IFERROR(VLOOKUP($A98,FILTRO!$A$5:$AW$2635,9,FALSE),0) -> 3 | K98: =IFERROR(VLOOKUP($A98,FILTRO!$A$5:$AW$2635,10,FALSE),0) -> 3 | L98: =IFERROR(VLOOKUP($A98,FILTRO!$A$5:$AW$2635,11,FALSE),0) -> 0 | M98: =IFERROR(VLOOKUP($A98,FILTRO!$A$5:$AW$2635,12,FALSE),0) -> 0 | N98: =IFERROR(VLOOKUP($A98,FILTRO!$A$5:$AW$2635,13,FALSE),0) -> 3 | O98: =IFERROR(VLOOKUP($A98,FILTRO!$A$5:$AW$2635,14,FALSE),0) -> 8 | P98: =IFERROR(VLOOKUP($A98,FILTRO!$A$5:$AW$2635,15,FALSE),0) -> 2 | Q98: =IFERROR(VLOOKUP($A98,FILTRO!$A$5:$AW$2635,16,FALSE),0) -> 10 | R98: =IFERROR(VLOOKUP($A98,FILTRO!$A$5:$AW$2635,17,FALSE),0) -> 9 | S98: =IFERROR(VLOOKUP($A98,FILTRO!$A$5:$AW$2635,18,FALSE),0) -> 16 | T98: =IFERROR(VLOOKUP($A98,FILTRO!$A$5:$AW$2635,19,FALSE),0) -> 10 | U98: =IFERROR(VLOOKUP($A98,FILTRO!$A$5:$AW$2635,20,FALSE),0) -> 15 | V98: =IFERROR(VLOOKUP($A98,FILTRO!$A$5:$AW$2635,21,FALSE),0) -> 13 | W98: =IFERROR(VLOOKUP($A98,FILTRO!$A$5:$AW$2635,22,FALSE),0) -> 53 | X98: =IFERROR(VLOOKUP($A98,FILTRO!$A$5:$AW$2635,23,FALSE),0) -> 17 | Y98: =IFERROR(VLOOKUP($A98,FILTRO!$A$5:$AW$2635,24,FALSE),0) -> 35 | Z98: =IFERROR(VLOOKUP($A98,FILTRO!$A$5:$AW$2635,25,FALSE),0) -> 19 | AA98: =IFERROR(VLOOKUP($A98,FILTRO!$A$5:$AW$2635,26,FALSE),0) -> 29 | AB98: =IFERROR(VLOOKUP($A98,FILTRO!$A$5:$AW$2635,27,FALSE),0) -> 21 | AC98: =IFERROR(VLOOKUP($A98,FILTRO!$A$5:$AW$2635,28,FALSE),0) -> 30 | AD98: =IFERROR(VLOOKUP($A98,FILTRO!$A$5:$AW$2635,29,FALSE),0) -> 8 | AE98: =IFERROR(VLOOKUP($A98,FILTRO!$A$5:$AW$2635,30,FALSE),0) -> 19 | AF98: =IFERROR(VLOOKUP($A98,FILTRO!$A$5:$AW$2635,31,FALSE),0) -> 11 | AG98: =IFERROR(VLOOKUP($A98,FILTRO!$A$5:$AW$2635,32,FALSE),0) -> 43 | AH98: =IFERROR(VLOOKUP($A98,FILTRO!$A$5:$AW$2635,33,FALSE),0) -> 6 | AI98: =IFERROR(VLOOKUP($A98,FILTRO!$A$5:$AW$2635,34,FALSE),0) -> 6 | DA98: 0 | DB98: 0
A99: 01501030 | B99: CONTROL INTEGRAL CON RIESGO ALTO (G3) | C99: 1847 | D99: 592 | E99: 1255 | F99: =IFERROR(VLOOKUP($A99,FILTRO!$A$5:$AW$2635,5,FALSE),0) -> 0 | G99: =IFERROR(VLOOKUP($A99,FILTRO!$A$5:$AW$2635,6,FALSE),0) -> 0 | H99: =IFERROR(VLOOKUP($A99,FILTRO!$A$5:$AW$2635,7,FALSE),0) -> 0 | I99: =IFERROR(VLOOKUP($A99,FILTRO!$A$5:$AW$2635,8,FALSE),0) -> 5 | J99: =IFERROR(VLOOKUP($A99,FILTRO!$A$5:$AW$2635,9,FALSE),0) -> 0 | K99: =IFERROR(VLOOKUP($A99,FILTRO!$A$5:$AW$2635,10,FALSE),0) -> 2 | L99: =IFERROR(VLOOKUP($A99,FILTRO!$A$5:$AW$2635,11,FALSE),0) -> 1 | M99: =IFERROR(VLOOKUP($A99,FILTRO!$A$5:$AW$2635,12,FALSE),0) -> 9 | N99: =IFERROR(VLOOKUP($A99,FILTRO!$A$5:$AW$2635,13,FALSE),0) -> 10 | O99: =IFERROR(VLOOKUP($A99,FILTRO!$A$5:$AW$2635,14,FALSE),0) -> 12 | P99: =IFERROR(VLOOKUP($A99,FILTRO!$A$5:$AW$2635,15,FALSE),0) -> 5 | Q99: =IFERROR(VLOOKUP($A99,FILTRO!$A$5:$AW$2635,16,FALSE),0) -> 21 | R99: =IFERROR(VLOOKUP($A99,FILTRO!$A$5:$AW$2635,17,FALSE),0) -> 14 | S99: =IFERROR(VLOOKUP($A99,FILTRO!$A$5:$AW$2635,18,FALSE),0) -> 46 | T99: =IFERROR(VLOOKUP($A99,FILTRO!$A$5:$AW$2635,19,FALSE),0) -> 27 | U99: =IFERROR(VLOOKUP($A99,FILTRO!$A$5:$AW$2635,20,FALSE),0) -> 69 | V99: =IFERROR(VLOOKUP($A99,FILTRO!$A$5:$AW$2635,21,FALSE),0) -> 40 | W99: =IFERROR(VLOOKUP($A99,FILTRO!$A$5:$AW$2635,22,FALSE),0) -> 139 | X99: =IFERROR(VLOOKUP($A99,FILTRO!$A$5:$AW$2635,23,FALSE),0) -> 80 | Y99: =IFERROR(VLOOKUP($A99,FILTRO!$A$5:$AW$2635,24,FALSE),0) -> 170 | Z99: =IFERROR(VLOOKUP($A99,FILTRO!$A$5:$AW$2635,25,FALSE),0) -> 144 | AA99: =IFERROR(VLOOKUP($A99,FILTRO!$A$5:$AW$2635,26,FALSE),0) -> 250 | AB99: =IFERROR(VLOOKUP($A99,FILTRO!$A$5:$AW$2635,27,FALSE),0) -> 98 | AC99: =IFERROR(VLOOKUP($A99,FILTRO!$A$5:$AW$2635,28,FALSE),0) -> 190 | AD99: =IFERROR(VLOOKUP($A99,FILTRO!$A$5:$AW$2635,29,FALSE),0) -> 80 | AE99: =IFERROR(VLOOKUP($A99,FILTRO!$A$5:$AW$2635,30,FALSE),0) -> 162 | AF99: =IFERROR(VLOOKUP($A99,FILTRO!$A$5:$AW$2635,31,FALSE),0) -> 93 | AG99: =IFERROR(VLOOKUP($A99,FILTRO!$A$5:$AW$2635,32,FALSE),0) -> 180 | AH99: =IFERROR(VLOOKUP($A99,FILTRO!$A$5:$AW$2635,33,FALSE),0) -> 10 | AI99: =IFERROR(VLOOKUP($A99,FILTRO!$A$5:$AW$2635,34,FALSE),0) -> 5 | DA99: 0 | DB99: 0
A100: 01502030 | B100: SEGUIMIENTO A DISTANCIA CON RIESGO LEVE (G1) | C100: 0 | D100: 0 | E100: 0 | F100: =IFERROR(VLOOKUP($A100,FILTRO!$A$5:$AW$2635,5,FALSE),0) -> 0 | G100: =IFERROR(VLOOKUP($A100,FILTRO!$A$5:$AW$2635,6,FALSE),0) -> 0 | H100: =IFERROR(VLOOKUP($A100,FILTRO!$A$5:$AW$2635,7,FALSE),0) -> 0 | I100: =IFERROR(VLOOKUP($A100,FILTRO!$A$5:$AW$2635,8,FALSE),0) -> 0 | J100: =IFERROR(VLOOKUP($A100,FILTRO!$A$5:$AW$2635,9,FALSE),0) -> 0 | K100: =IFERROR(VLOOKUP($A100,FILTRO!$A$5:$AW$2635,10,FALSE),0) -> 0 | L100: =IFERROR(VLOOKUP($A100,FILTRO!$A$5:$AW$2635,11,FALSE),0) -> 0 | M100: =IFERROR(VLOOKUP($A100,FILTRO!$A$5:$AW$2635,12,FALSE),0) -> 0 | N100: =IFERROR(VLOOKUP($A100,FILTRO!$A$5:$AW$2635,13,FALSE),0) -> 0 | O100: =IFERROR(VLOOKUP($A100,FILTRO!$A$5:$AW$2635,14,FALSE),0) -> 0 | P100: =IFERROR(VLOOKUP($A100,FILTRO!$A$5:$AW$2635,15,FALSE),0) -> 0 | Q100: =IFERROR(VLOOKUP($A100,FILTRO!$A$5:$AW$2635,16,FALSE),0) -> 0 | R100: =IFERROR(VLOOKUP($A100,FILTRO!$A$5:$AW$2635,17,FALSE),0) -> 0 | S100: =IFERROR(VLOOKUP($A100,FILTRO!$A$5:$AW$2635,18,FALSE),0) -> 0 | T100: =IFERROR(VLOOKUP($A100,FILTRO!$A$5:$AW$2635,19,FALSE),0) -> 0 | U100: =IFERROR(VLOOKUP($A100,FILTRO!$A$5:$AW$2635,20,FALSE),0) -> 0 | V100: =IFERROR(VLOOKUP($A100,FILTRO!$A$5:$AW$2635,21,FALSE),0) -> 0 | W100: =IFERROR(VLOOKUP($A100,FILTRO!$A$5:$AW$2635,22,FALSE),0) -> 0 | X100: =IFERROR(VLOOKUP($A100,FILTRO!$A$5:$AW$2635,23,FALSE),0) -> 0 | Y100: =IFERROR(VLOOKUP($A100,FILTRO!$A$5:$AW$2635,24,FALSE),0) -> 0 | Z100: =IFERROR(VLOOKUP($A100,FILTRO!$A$5:$AW$2635,25,FALSE),0) -> 0 | AA100: =IFERROR(VLOOKUP($A100,FILTRO!$A$5:$AW$2635,26,FALSE),0) -> 0 | AB100: =IFERROR(VLOOKUP($A100,FILTRO!$A$5:$AW$2635,27,FALSE),0) -> 0 | AC100: =IFERROR(VLOOKUP($A100,FILTRO!$A$5:$AW$2635,28,FALSE),0) -> 0 | AD100: =IFERROR(VLOOKUP($A100,FILTRO!$A$5:$AW$2635,29,FALSE),0) -> 0 | AE100: =IFERROR(VLOOKUP($A100,FILTRO!$A$5:$AW$2635,30,FALSE),0) -> 0 | AF100: =IFERROR(VLOOKUP($A100,FILTRO!$A$5:$AW$2635,31,FALSE),0) -> 0 | AG100: =IFERROR(VLOOKUP($A100,FILTRO!$A$5:$AW$2635,32,FALSE),0) -> 0 | AH100: =IFERROR(VLOOKUP($A100,FILTRO!$A$5:$AW$2635,33,FALSE),0) -> 0 | AI100: =IFERROR(VLOOKUP($A100,FILTRO!$A$5:$AW$2635,34,FALSE),0) -> 0 | DA100: 0 | DB100: 0
A101: 01502040 | B101: SEGUIMIENTO A DISTANCIA CON RIESGO MODERADO (G2) | C101: 10 | D101: 1 | E101: 9 | F101: =IFERROR(VLOOKUP($A101,FILTRO!$A$5:$AW$2635,5,FALSE),0) -> 0 | G101: =IFERROR(VLOOKUP($A101,FILTRO!$A$5:$AW$2635,6,FALSE),0) -> 0 | H101: =IFERROR(VLOOKUP($A101,FILTRO!$A$5:$AW$2635,7,FALSE),0) -> 0 | I101: =IFERROR(VLOOKUP($A101,FILTRO!$A$5:$AW$2635,8,FALSE),0) -> 0 | J101: =IFERROR(VLOOKUP($A101,FILTRO!$A$5:$AW$2635,9,FALSE),0) -> 0 | K101: =IFERROR(VLOOKUP($A101,FILTRO!$A$5:$AW$2635,10,FALSE),0) -> 1 | L101: =IFERROR(VLOOKUP($A101,FILTRO!$A$5:$AW$2635,11,FALSE),0) -> 0 | M101: =IFERROR(VLOOKUP($A101,FILTRO!$A$5:$AW$2635,12,FALSE),0) -> 0 | N101: =IFERROR(VLOOKUP($A101,FILTRO!$A$5:$AW$2635,13,FALSE),0) -> 0 | O101: =IFERROR(VLOOKUP($A101,FILTRO!$A$5:$AW$2635,14,FALSE),0) -> 0 | P101: =IFERROR(VLOOKUP($A101,FILTRO!$A$5:$AW$2635,15,FALSE),0) -> 0 | Q101: =IFERROR(VLOOKUP($A101,FILTRO!$A$5:$AW$2635,16,FALSE),0) -> 0 | R101: =IFERROR(VLOOKUP($A101,FILTRO!$A$5:$AW$2635,17,FALSE),0) -> 0 | S101: =IFERROR(VLOOKUP($A101,FILTRO!$A$5:$AW$2635,18,FALSE),0) -> 1 | T101: =IFERROR(VLOOKUP($A101,FILTRO!$A$5:$AW$2635,19,FALSE),0) -> 0 | U101: =IFERROR(VLOOKUP($A101,FILTRO!$A$5:$AW$2635,20,FALSE),0) -> 0 | V101: =IFERROR(VLOOKUP($A101,FILTRO!$A$5:$AW$2635,21,FALSE),0) -> 0 | W101: =IFERROR(VLOOKUP($A101,FILTRO!$A$5:$AW$2635,22,FALSE),0) -> 0 | X101: =IFERROR(VLOOKUP($A101,FILTRO!$A$5:$AW$2635,23,FALSE),0) -> 0 | Y101: =IFERROR(VLOOKUP($A101,FILTRO!$A$5:$AW$2635,24,FALSE),0) -> 0 | Z101: =IFERROR(VLOOKUP($A101,FILTRO!$A$5:$AW$2635,25,FALSE),0) -> 0 | AA101: =IFERROR(VLOOKUP($A101,FILTRO!$A$5:$AW$2635,26,FALSE),0) -> 1 | AB101: =IFERROR(VLOOKUP($A101,FILTRO!$A$5:$AW$2635,27,FALSE),0) -> 0 | AC101: =IFERROR(VLOOKUP($A101,FILTRO!$A$5:$AW$2635,28,FALSE),0) -> 0 | AD101: =IFERROR(VLOOKUP($A101,FILTRO!$A$5:$AW$2635,29,FALSE),0) -> 0 | AE101: =IFERROR(VLOOKUP($A101,FILTRO!$A$5:$AW$2635,30,FALSE),0) -> 4 | AF101: =IFERROR(VLOOKUP($A101,FILTRO!$A$5:$AW$2635,31,FALSE),0) -> 1 | AG101: =IFERROR(VLOOKUP($A101,FILTRO!$A$5:$AW$2635,32,FALSE),0) -> 2 | AH101: =IFERROR(VLOOKUP($A101,FILTRO!$A$5:$AW$2635,33,FALSE),0) -> 0 | AI101: =IFERROR(VLOOKUP($A101,FILTRO!$A$5:$AW$2635,34,FALSE),0) -> 0 | DA101: 0 | DB101: 0
A102: 01501040 | B102: SEGUIMIENTO A DISTANCIA CON RIESGO ALTO (G3) | C102: 2026 | D102: 587 | E102: 1439 | F102: =IFERROR(VLOOKUP($A102,FILTRO!$A$5:$AW$2635,5,FALSE),0) -> 0 | G102: =IFERROR(VLOOKUP($A102,FILTRO!$A$5:$AW$2635,6,FALSE),0) -> 0 | H102: =IFERROR(VLOOKUP($A102,FILTRO!$A$5:$AW$2635,7,FALSE),0) -> 0 | I102: =IFERROR(VLOOKUP($A102,FILTRO!$A$5:$AW$2635,8,FALSE),0) -> 5 | J102: =IFERROR(VLOOKUP($A102,FILTRO!$A$5:$AW$2635,9,FALSE),0) -> 0 | K102: =IFERROR(VLOOKUP($A102,FILTRO!$A$5:$AW$2635,10,FALSE),0) -> 0 | L102: =IFERROR(VLOOKUP($A102,FILTRO!$A$5:$AW$2635,11,FALSE),0) -> 2 | M102: =IFERROR(VLOOKUP($A102,FILTRO!$A$5:$AW$2635,12,FALSE),0) -> 7 | N102: =IFERROR(VLOOKUP($A102,FILTRO!$A$5:$AW$2635,13,FALSE),0) -> 3 | O102: =IFERROR(VLOOKUP($A102,FILTRO!$A$5:$AW$2635,14,FALSE),0) -> 15 | P102: =IFERROR(VLOOKUP($A102,FILTRO!$A$5:$AW$2635,15,FALSE),0) -> 2 | Q102: =IFERROR(VLOOKUP($A102,FILTRO!$A$5:$AW$2635,16,FALSE),0) -> 24 | R102: =IFERROR(VLOOKUP($A102,FILTRO!$A$5:$AW$2635,17,FALSE),0) -> 8 | S102: =IFERROR(VLOOKUP($A102,FILTRO!$A$5:$AW$2635,18,FALSE),0) -> 26 | T102: =IFERROR(VLOOKUP($A102,FILTRO!$A$5:$AW$2635,19,FALSE),0) -> 14 | U102: =IFERROR(VLOOKUP($A102,FILTRO!$A$5:$AW$2635,20,FALSE),0) -> 103 | V102: =IFERROR(VLOOKUP($A102,FILTRO!$A$5:$AW$2635,21,FALSE),0) -> 30 | W102: =IFERROR(VLOOKUP($A102,FILTRO!$A$5:$AW$2635,22,FALSE),0) -> 151 | X102: =IFERROR(VLOOKUP($A102,FILTRO!$A$5:$AW$2635,23,FALSE),0) -> 82 | Y102: =IFERROR(VLOOKUP($A102,FILTRO!$A$5:$AW$2635,24,FALSE),0) -> 218 | Z102: =IFERROR(VLOOKUP($A102,FILTRO!$A$5:$AW$2635,25,FALSE),0) -> 178 | AA102: =IFERROR(VLOOKUP($A102,FILTRO!$A$5:$AW$2635,26,FALSE),0) -> 380 | AB102: =IFERROR(VLOOKUP($A102,FILTRO!$A$5:$AW$2635,27,FALSE),0) -> 111 | AC102: =IFERROR(VLOOKUP($A102,FILTRO!$A$5:$AW$2635,28,FALSE),0) -> 228 | AD102: =IFERROR(VLOOKUP($A102,FILTRO!$A$5:$AW$2635,29,FALSE),0) -> 72 | AE102: =IFERROR(VLOOKUP($A102,FILTRO!$A$5:$AW$2635,30,FALSE),0) -> 132 | AF102: =IFERROR(VLOOKUP($A102,FILTRO!$A$5:$AW$2635,31,FALSE),0) -> 85 | AG102: =IFERROR(VLOOKUP($A102,FILTRO!$A$5:$AW$2635,32,FALSE),0) -> 150 | AH102: =IFERROR(VLOOKUP($A102,FILTRO!$A$5:$AW$2635,33,FALSE),0) -> 2 | AI102: =IFERROR(VLOOKUP($A102,FILTRO!$A$5:$AW$2635,34,FALSE),0) -> 2 | DA102: 0 | DB102: 0
A105: CODIGOS NUEVOS
A106: 09600204
A107: 09600205
A108: 09600206
A109: CODIGOS ELIMINADOS
A110: 01200035
B193: =SUM(D12:D33,V32:W33,Y20:Y23,X14:X15,D37:D40,E37:F40,D45:F67,D71:D75,I71:I75,C80:C84,D88:D92,C97:C99) -> 1220390 | C193: =SUM(DB1:EA99) -> 23

Sheet A02,
B1: SERVICIO DE SALUD
B2: =CONCATENATE("COMUNA: ",NOMBRE!B2," - ","( ",NOMBRE!C2,NOMBRE!D2,NOMBRE!E2,NOMBRE!F2,NOMBRE!G2," )") -> COMUNA: - ( )
B3: =CONCATENATE("ESTABLECIMIENTO/ESTRATEGIA: ",NOMBRE!B3," - ","( ",NOMBRE!C3,NOMBRE!D3,NOMBRE!E3,NOMBRE!F3,NOMBRE!G3,NOMBRE!H3," )") -> ESTABLECIMIENTO/ESTRATEGIA: - ( )
B4: =CONCATENATE("MES: ",NOMBRE!B6," - ","( ",NOMBRE!C6,NOMBRE!D6," )") -> MES: - ( )
B5: =CONCATENATE("AÑO: ",NOMBRE!B7) -> AÑO: 2023
B6: REM-A02. EXAMEN DE MEDICINA PREVENTIVA EN MAYORES DE 15 AÑOS
B8: SECCIÓN A: EMP REALIZADO POR PROFESIONAL
B9: PROFESIONAL | C9: TOTAL | F9: Pueblos Originarios | G9: Migrantes
C10: Ambos Sexos | D10: Hombres | E10: Mujeres
B11: TOTAL | C11: =SUM(C12:C17) -> 98196 | D11: =SUM(D12:D17) -> 34677 | E11: =SUM(E12:E17) -> 63519 | F11: =SUM(F12:F17) -> 318 | G11: =SUM(G12:G17) -> 1184
A12: 03030101 | B12: MÉDICO/A | C12: =SUM(D12:E12) -> 881 | D12: =IFERROR(VLOOKUP($A12,FILTRO!$A$5:$AW$2635,3,FALSE),0) -> 354 | E12: =IFERROR(VLOOKUP($A12,FILTRO!$A$5:$AW$2635,4,FALSE),0) -> 527 | F12: =IFERROR(VLOOKUP($A12,FILTRO!$A$5:$AW$2635,5,FALSE),0) -> 0 | G12: =IFERROR(VLOOKUP($A12,FILTRO!$A$5:$AW$2635,6,FALSE),0) -> 2
A13: 03030102 | B13: ENFERMERA/O | C13: 59252 | D13: =IFERROR(VLOOKUP($A13,FILTRO!$A$5:$AW$2635,3,FALSE),0) -> 22276 | E13: =IFERROR(VLOOKUP($A13,FILTRO!$A$5:$AW$2635,4,FALSE),0) -> 36976 | F13: =IFERROR(VLOOKUP($A13,FILTRO!$A$5:$AW$2635,5,FALSE),0) -> 176 | G13: =IFERROR(VLOOKUP($A13,FILTRO!$A$5:$AW$2635,6,FALSE),0) -> 531
A14: 03030103 | B14: MATRONA/ÓN | C14: 3415 | D14: =IFERROR(VLOOKUP($A14,FILTRO!$A$5:$AW$2635,3,FALSE),0) -> 207 | E14: =IFERROR(VLOOKUP($A14,FILTRO!$A$5:$AW$2635,4,FALSE),0) -> 3208 | F14: =IFERROR(VLOOKUP($A14,FILTRO!$A$5:$AW$2635,5,FALSE),0) -> 9 | G14: =IFERROR(VLOOKUP($A14,FILTRO!$A$5:$AW$2635,6,FALSE),0) -> 51
A15: 03030104 | B15: NUTRICIONISTA | C15: 6282 | D15: =IFERROR(VLOOKUP($A15,FILTRO!$A$5:$AW$2635,3,FALSE),0) -> 2132 | E15: =IFERROR(VLOOKUP($A15,FILTRO!$A$5:$AW$2635,4,FALSE),0) -> 4150 | F15: =IFERROR(VLOOKUP($A15,FILTRO!$A$5:$AW$2635,5,FALSE),0) -> 8 | G15: =IFERROR(VLOOKUP($A15,FILTRO!$A$5:$AW$2635,6,FALSE),0) -> 112
A16: 03030350 | B16: OTRO PROFESIONAL (capacitados en EMP Y EMPAM) | C16: 10942 | D16: =IFERROR(VLOOKUP($A16,FILTRO!$A$5:$AW$2635,3,FALSE),0) -> 4046 | E16: =IFERROR(VLOOKUP($A16,FILTRO!$A$5:$AW$2635,4,FALSE),0) -> 6896 | F16: =IFERROR(VLOOKUP($A16,FILTRO!$A$5:$AW$2635,5,FALSE),0) -> 18 | G16: =IFERROR(VLOOKUP($A16,FILTRO!$A$5:$AW$2635,6,FALSE),0) -> 135
A17: 03030110 | B17: TÉCNICO EN ENFERMERÍA | C17: 17424 | D17: =IFERROR(VLOOKUP($A17,FILTRO!$A$5:$AW$2635,3,FALSE),0) -> 5662 | E17: =IFERROR(VLOOKUP($A17,FILTRO!$A$5:$AW$2635,4,FALSE),0) -> 11762 | F17: =IFERROR(VLOOKUP($A17,FILTRO!$A$5:$AW$2635,5,FALSE),0) -> 107 | G17: =IFERROR(VLOOKUP($A17,FILTRO!$A$5:$AW$2635,6,FALSE),0) -> 353
B18: SECCIÓN B: EMP SEGÚN RESULTADO DEL ESTADO NUTRICIONAL
B19: ESTADO NUTRICIONAL | C19: TOTAL | F19: 15 a 19 años | H19: 20 a 24 años | J19: 25 a 29 años | L19: 30 a 34 años | N19: 35 a 39 años | P19: 40 a 44 años | R19: 45 a 49 años | T19: 50 a 54 años | V19: 55 a 59 años | X19: 60 a 64 años | Z19: 65 a 69 años | AB19: 70 a 74 años | AD19: 75 a 79 años | AF19: 80 y más años | AH19: Pueblos Originarios | AI19: Migrantes
C20: Ambos Sexos | D20: Hombres | E20: Mujeres | F20: Hombres | G20: Mujeres | H20: Hombres | I20: Mujeres | J20: Hombres | K20: Mujeres | L20: Hombres | M20: Mujeres | N20: Hombres | O20: Mujeres | P20: Hombres | Q20: Mujeres | R20: Hombres | S20: Mujeres | T20: Hombres | U20: Mujeres | V20: Hombres | W20: Mujeres | X20: Hombres | Y20: Mujeres | Z20: Hombres | AA20: Mujeres | AB20: Hombres | AC20: Mujeres | AD20: Hombres | AE20: Mujeres | AF20: Hombres | AG20: Mujeres
B21: TOTAL | C21: =SUM(C22:C25) -> 97795 | D21: =SUM(D22:D25) -> 34450 | E21: =SUM(E22:E25) -> 63345 | F21: =SUM(F22:F25) -> 325 | G21: 586 | H21: 2106 | I21: 4450 | J21: 2277 | K21: 5063 | L21: 2411 | M21: 5682 | N21: 2165 | O21: 5177 | P21: 2119 | Q21: 4571 | R21: 1972 | S21: 4183 | T21: 1911 | U21: 3693 | V21: 1791 | W21: 2959 | X21: 1501 | Y21: 2235 | Z21: 3980 | AA21: 6597 | AB21: 3995 | AC21: 6021 | AD21: 3461 | AE21: 5054 | AF21: 4436 | AG21: 7074 | AH21: =SUM(AH22:AH25) -> 313 | AI21: =SUM(AI22:AI25) -> 1058 | CA21: * Debe coincidir el total de EMP según Estado Nutricional con EMP realizado según profesional. | DA21: 1
A22: 03030330 | B22: NORMAL | C22: =SUM(D22:E22) -> 29991 | D22: =SUM(F22+H22+J22+L22+N22+P22+R22+T22+V22+X22+Z22+AB22+AD22+AF22) -> 11688 | E22: =SUM(G22+I22+K22+M22+O22+Q22+S22+U22+W22+Y22+AA22+AC22+AE22+AG22) -> 18303 | F22: =IFERROR(VLOOKUP($A22,FILTRO!$A$5:$AW$2635,5,FALSE),0) -> 157 | G22: =IFERROR(VLOOKUP($A22,FILTRO!$A$5:$AW$2635,6,FALSE),0) -> 257 | H22: =IFERROR(VLOOKUP($A22,FILTRO!$A$5:$AW$2635,7,FALSE),0) -> 938 | I22: =IFERROR(VLOOKUP($A22,FILTRO!$A$5:$AW$2635,8,FALSE),0) -> 1599 | J22: =IFERROR(VLOOKUP($A22,FILTRO!$A$5:$AW$2635,9,FALSE),0) -> 759 | K22: =IFERROR(VLOOKUP($A22,FILTRO!$A$5:$AW$2635,10,FALSE),0) -> 1468 | L22: =IFERROR(VLOOKUP($A22,FILTRO!$A$5:$AW$2635,11,FALSE),0) -> 629 | M22: =IFERROR(VLOOKUP($A22,FILTRO!$A$5:$AW$2635,12,FALSE),0) -> 1463 | N22: =IFERROR(VLOOKUP($A22,FILTRO!$A$5:$AW$2635,13,FALSE),0) -> 488 | O22: =IFERROR(VLOOKUP($A22,FILTRO!$A$5:$AW$2635,14,FALSE),0) -> 1185 | P22: =IFERROR(VLOOKUP($A22,FILTRO!$A$5:$AW$2635,15,FALSE),0) -> 430 | Q22: =IFERROR(VLOOKUP($A22,FILTRO!$A$5:$AW$2635,16,FALSE),0) -> 972 | R22: =IFERROR(VLOOKUP($A22,FILTRO!$A$5:$AW$2635,17,FALSE),0) -> 397 | S22: =IFERROR(VLOOKUP($A22,FILTRO!$A$5:$AW$2635,18,FALSE),0) -> 840 | T22: =IFERROR(VLOOKUP($A22,FILTRO!$A$5:$AW$2635,19,FALSE),0) -> 369 | U22: =IFERROR(VLOOKUP($A22,FILTRO!$A$5:$AW$2635,20,FALSE),0) -> 670 | V22: =IFERROR(VLOOKUP($A22,FILTRO!$A$5:$AW$2635,21,FALSE),0) -> 353 | W22: =IFERROR(VLOOKUP($A22,FILTRO!$A$5:$AW$2635,22,FALSE),0) -> 640 | X22: =IFERROR(VLOOKUP($A22,FILTRO!$A$5:$AW$2635,23,FALSE),0) -> 339 | Y22: =IFERROR(VLOOKUP($A22,FILTRO!$A$5:$AW$2635,24,FALSE),0) -> 534 | Z22: =IFERROR(VLOOKUP($A22,FILTRO!$A$5:$AW$2635,25,FALSE),0) -> 1523 | AA22: =IFERROR(VLOOKUP($A22,FILTRO!$A$5:$AW$2635,26,FALSE),0) -> 2087 | AB22: =IFERROR(VLOOKUP($A22,FILTRO!$A$5:$AW$2635,27,FALSE),0) -> 1605 | AC22: =IFERROR(VLOOKUP($A22,FILTRO!$A$5:$AW$2635,28,FALSE),0) -> 1958 | AD22: =IFERROR(VLOOKUP($A22,FILTRO!$A$5:$AW$2635,29,FALSE),0) -> 1538 | AE22: =IFERROR(VLOOKUP($A22,FILTRO!$A$5:$AW$2635,30,FALSE),0) -> 1764 | AF22: =IFERROR(VLOOKUP($A22,FILTRO!$A$5:$AW$2635,31,FALSE),0) -> 2163 | AG22: =IFERROR(VLOOKUP($A22,FILTRO!$A$5:$AW$2635,32,FALSE),0) -> 2866 | AH22: =IFERROR(VLOOKUP($A22,FILTRO!$A$5:$AW$2635,33,FALSE),0) -> 87 | AI22: =IFERROR(VLOOKUP($A22,FILTRO!$A$5:$AW$2635,34,FALSE),0) -> 295
A23: 03030340 | B23: BAJO PESO | C23: =SUM(D23:E23) -> 4587 | D23: =SUM(F23+H23+J23+L23+N23+P23+R23+T23+V23+X23+Z23+AB23+AD23+AF23) -> 1782 | E23: 2805 | F23: =IFERROR(VLOOKUP($A23,FILTRO!$A$5:$AW$2635,5,FALSE),0) -> 39 | G23: =IFERROR(VLOOKUP($A23,FILTRO!$A$5:$AW$2635,6,FALSE),0) -> 15 | H23: =IFERROR(VLOOKUP($A23,FILTRO!$A$5:$AW$2635,7,FALSE),0) -> 55 | I23: =IFERROR(VLOOKUP($A23,FILTRO!$A$5:$AW$2635,8,FALSE),0) -> 116 | J23: =IFERROR(VLOOKUP($A23,FILTRO!$A$5:$AW$2635,9,FALSE),0) -> 38 | K23: =IFERROR(VLOOKUP($A23,FILTRO!$A$5:$AW$2635,10,FALSE),0) -> 61 | L23: =IFERROR(VLOOKUP($A23,FILTRO!$A$5:$AW$2635,11,FALSE),0) -> 21 | M23: =IFERROR(VLOOKUP($A23,FILTRO!$A$5:$AW$2635,12,FALSE),0) -> 46 | N23: =IFERROR(VLOOKUP($A23,FILTRO!$A$5:$AW$2635,13,FALSE),0) -> 12 | O23: =IFERROR(VLOOKUP($A23,FILTRO!$A$5:$AW$2635,14,FALSE),0) -> 34 | P23: =IFERROR(VLOOKUP($A23,FILTRO!$A$5:$AW$2635,15,FALSE),0) -> 12 | Q23: =IFERROR(VLOOKUP($A23,FILTRO!$A$5:$AW$2635,16,FALSE),0) -> 31 | R23: =IFERROR(VLOOKUP($A23,FILTRO!$A$5:$AW$2635,17,FALSE),0) -> 16 | S23: =IFERROR(VLOOKUP($A23,FILTRO!$A$5:$AW$2635,18,FALSE),0) -> 31 | T23: =IFERROR(VLOOKUP($A23,FILTRO!$A$5:$AW$2635,19,FALSE),0) -> 7 | U23: =IFERROR(VLOOKUP($A23,FILTRO!$A$5:$AW$2635,20,FALSE),0) -> 25 | V23: =IFERROR(VLOOKUP($A23,FILTRO!$A$5:$AW$2635,21,FALSE),0) -> 15 | W23: =IFERROR(VLOOKUP($A23,FILTRO!$A$5:$AW$2635,22,FALSE),0) -> 22 | X23: =IFERROR(VLOOKUP($A23,FILTRO!$A$5:$AW$2635,23,FALSE),0) -> 17 | Y23: =IFERROR(VLOOKUP($A23,FILTRO!$A$5:$AW$2635,24,FALSE),0) -> 29 | Z23: =IFERROR(VLOOKUP($A23,FILTRO!$A$5:$AW$2635,25,FALSE),0) -> 229 | AA23: =IFERROR(VLOOKUP($A23,FILTRO!$A$5:$AW$2635,26,FALSE),0) -> 366 | AB23: =IFERROR(VLOOKUP($A23,FILTRO!$A$5:$AW$2635,27,FALSE),0) -> 346 | AC23: =IFERROR(VLOOKUP($A23,FILTRO!$A$5:$AW$2635,28,FALSE),0) -> 409 | AD23: =IFERROR(VLOOKUP($A23,FILTRO!$A$5:$AW$2635,29,FALSE),0) -> 314 | AE23: =IFERROR(VLOOKUP($A23,FILTRO!$A$5:$AW$2635,30,FALSE),0) -> 464 | AF23: =IFERROR(VLOOKUP($A23,FILTRO!$A$5:$AW$2635,31,FALSE),0) -> 661 | AG23: =IFERROR(VLOOKUP($A23,FILTRO!$A$5:$AW$2635,32,FALSE),0) -> 1156 | AH23: =IFERROR(VLOOKUP($A23,FILTRO!$A$5:$AW$2635,33,FALSE),0) -> 19 | AI23: =IFERROR(VLOOKUP($A23,FILTRO!$A$5:$AW$2635,34,FALSE),0) -> 64
A24: 03030120 | B24: SOBREPESO | C24: =SUM(D24:E24) -> 34051 | D24: 12732 | E24: 21319 | F24: =IFERROR(VLOOKUP($A24,FILTRO!$A$5:$AW$2635,5,FALSE),0) -> 66 | G24: =IFERROR(VLOOKUP($A24,FILTRO!$A$5:$AW$2635,6,FALSE),0) -> 164 | H24: =IFERROR(VLOOKUP($A24,FILTRO!$A$5:$AW$2635,7,FALSE),0) -> 679 | I24: =IFERROR(VLOOKUP($A24,FILTRO!$A$5:$AW$2635,8,FALSE),0) -> 1398 | J24: =IFERROR(VLOOKUP($A24,FILTRO!$A$5:$AW$2635,9,FALSE),0) -> 876 | K24: =IFERROR(VLOOKUP($A24,FILTRO!$A$5:$AW$2635,10,FALSE),0) -> 1723 | L24: =IFERROR(VLOOKUP($A24,FILTRO!$A$5:$AW$2635,11,FALSE),0) -> 1037 | M24: =IFERROR(VLOOKUP($A24,FILTRO!$A$5:$AW$2635,12,FALSE),0) -> 1992 | N24: =IFERROR(VLOOKUP($A24,FILTRO!$A$5:$AW$2635,13,FALSE),0) -> 983 | O24: =IFERROR(VLOOKUP($A24,FILTRO!$A$5:$AW$2635,14,FALSE),0) -> 1953 | P24: =IFERROR(VLOOKUP($A24,FILTRO!$A$5:$AW$2635,15,FALSE),0) -> 980 | Q24: =IFERROR(VLOOKUP($A24,FILTRO!$A$5:$AW$2635,16,FALSE),0) -> 1776 | R24: =IFERROR(VLOOKUP($A24,FILTRO!$A$5:$AW$2635,17,FALSE),0) -> 886 | S24: =IFERROR(VLOOKUP($A24,FILTRO!$A$5:$AW$2635,18,FALSE),0) -> 1712 | T24: =IFERROR(VLOOKUP($A24,FILTRO!$A$5:$AW$2635,19,FALSE),0) -> 885 | U24: =IFERROR(VLOOKUP($A24,FILTRO!$A$5:$AW$2635,20,FALSE),0) -> 1546 | V24: =IFERROR(VLOOKUP($A24,FILTRO!$A$5:$AW$2635,21,FALSE),0) -> 849 | W24: =IFERROR(VLOOKUP($A24,FILTRO!$A$5:$AW$2635,22,FALSE),0) -> 1207 | X24: =IFERROR(VLOOKUP($A24,FILTRO!$A$5:$AW$2635,23,FALSE),0) -> 728 | Y24: =IFERROR(VLOOKUP($A24,FILTRO!$A$5:$AW$2635,24,FALSE),0) -> 881 | Z24: =IFERROR(VLOOKUP($A24,FILTRO!$A$5:$AW$2635,25,FALSE),0) -> 1329 | AA24: =IFERROR(VLOOKUP($A24,FILTRO!$A$5:$AW$2635,26,FALSE),0) -> 1955 | AB24: =IFERROR(VLOOKUP($A24,FILTRO!$A$5:$AW$2635,27,FALSE),0) -> 1299 | AC24: =IFERROR(VLOOKUP($A24,FILTRO!$A$5:$AW$2635,28,FALSE),0) -> 1808 | AD24: =IFERROR(VLOOKUP($A24,FILTRO!$A$5:$AW$2635,29,FALSE),0) -> 1042 | AE24: =IFERROR(VLOOKUP($A24,FILTRO!$A$5:$AW$2635,30,FALSE),0) -> 1517 | AF24: =IFERROR(VLOOKUP($A24,FILTRO!$A$5:$AW$2635,31,FALSE),0) -> 1093 | AG24: =IFERROR(VLOOKUP($A24,FILTRO!$A$5:$AW$2635,32,FALSE),0) -> 1687 | AH24: =IFERROR(VLOOKUP($A24,FILTRO!$A$5:$AW$2635,33,FALSE),0) -> 101 | AI24: =IFERROR(VLOOKUP($A24,FILTRO!$A$5:$AW$2635,34,FALSE),0) -> 381
A25: 03030130 | B25: OBESOS | C25: =SUM(D25:E25) -> 29166 | D25: 8248 | E25: 20918 | F25: =IFERROR(VLOOKUP($A25,FILTRO!$A$5:$AW$2635,5,FALSE),0) -> 63 | G25: =IFERROR(VLOOKUP($A25,FILTRO!$A$5:$AW$2635,6,FALSE),0) -> 150 | H25: =IFERROR(VLOOKUP($A25,FILTRO!$A$5:$AW$2635,7,FALSE),0) -> 434 | I25: =IFERROR(VLOOKUP($A25,FILTRO!$A$5:$AW$2635,8,FALSE),0) -> 1337 | J25: =IFERROR(VLOOKUP($A25,FILTRO!$A$5:$AW$2635,9,FALSE),0) -> 604 | K25: =IFERROR(VLOOKUP($A25,FILTRO!$A$5:$AW$2635,10,FALSE),0) -> 1811 | L25: =IFERROR(VLOOKUP($A25,FILTRO!$A$5:$AW$2635,11,FALSE),0) -> 724 | M25: =IFERROR(VLOOKUP($A25,FILTRO!$A$5:$AW$2635,12,FALSE),0) -> 2181 | N25: =IFERROR(VLOOKUP($A25,FILTRO!$A$5:$AW$2635,13,FALSE),0) -> 682 | O25: =IFERROR(VLOOKUP($A25,FILTRO!$A$5:$AW$2635,14,FALSE),0) -> 2005 | P25: =IFERROR(VLOOKUP($A25,FILTRO!$A$5:$AW$2635,15,FALSE),0) -> 697 | Q25: =IFERROR(VLOOKUP($A25,FILTRO!$A$5:$AW$2635,16,FALSE),0) -> 1792 | R25: =IFERROR(VLOOKUP($A25,FILTRO!$A$5:$AW$2635,17,FALSE),0) -> 673 | S25: =IFERROR(VLOOKUP($A25,FILTRO!$A$5:$AW$2635,18,FALSE),0) -> 1600 | T25: =IFERROR(VLOOKUP($A25,FILTRO!$A$5:$AW$2635,19,FALSE),0) -> 650 | U25: =IFERROR(VLOOKUP($A25,FILTRO!$A$5:$AW$2635,20,FALSE),0) -> 1452 | V25: =IFERROR(VLOOKUP($A25,FILTRO!$A$5:$AW$2635,21,FALSE),0) -> 574 | W25: =IFERROR(VLOOKUP($A25,FILTRO!$A$5:$AW$2635,22,FALSE),0) -> 1090 | X25: =IFERROR(VLOOKUP($A25,FILTRO!$A$5:$AW$2635,23,FALSE),0) -> 417 | Y25: =IFERROR(VLOOKUP($A25,FILTRO!$A$5:$AW$2635,24,FALSE),0) -> 791 | Z25: =IFERROR(VLOOKUP($A25,FILTRO!$A$5:$AW$2635,25,FALSE),0) -> 899 | AA25: =IFERROR(VLOOKUP($A25,FILTRO!$A$5:$AW$2635,26,FALSE),0) -> 2189 | AB25: =IFERROR(VLOOKUP($A25,FILTRO!$A$5:$AW$2635,27,FALSE),0) -> 745 | AC25: =IFERROR(VLOOKUP($A25,FILTRO!$A$5:$AW$2635,28,FALSE),0) -> 1846 | AD25: =IFERROR(VLOOKUP($A25,FILTRO!$A$5:$AW$2635,29,FALSE),0) -> 567 | AE25: =IFERROR(VLOOKUP($A25,FILTRO!$A$5:$AW$2635,30,FALSE),0) -> 1309 | AF25: =IFERROR(VLOOKUP($A25,FILTRO!$A$5:$AW$2635,31,FALSE),0) -> 519 | AG25: =IFERROR(VLOOKUP($A25,FILTRO!$A$5:$AW$2635,32,FALSE),0) -> 1365 | AH25: =IFERROR(VLOOKUP($A25,FILTRO!$A$5:$AW$2635,33,FALSE),0) -> 106 | AI25: =IFERROR(VLOOKUP($A25,FILTRO!$A$5:$AW$2635,34,FALSE),0) -> 318
B26: SECCIÓN C: RESULTADOS DE EMP SEGÚN ESTADO DE SALUD
B27: ESTADO DE SALUD | C27: TOTAL | F27: 15 a 19 años | H27: 20 a 24 años | J27: 25 a 29 años | L27: 30 a 34 años | N27: 35 a 39 años | P27: 40 a 44 años | R27: 45 a 49 años | T27: 50 a 54 años | V27: 55 a 59 años | X27: 60 a 64 años | Z27: 65 a 69 años | AB27: 70 a 74 años | AD27: 75 a 79 años | AF27: 80 y más años | AH27: Pueblos Originarios | AI27: Migrantes
C28: Ambos Sexos | D28: Hombres | E28: Mujeres | F28: Hombres | G28: Mujeres | H28: Hombres | I28: Mujeres | J28: Hombres | K28: Mujeres | L28: Hombres | M28: Mujeres | N28: Hombres | O28: Mujeres | P28: Hombres | Q28: Mujeres | R28: Hombres | S28: Mujeres | T28: Hombres | U28: Mujeres | V28: Hombres | W28: Mujeres | X28: Hombres | Y28: Mujeres | Z28: Hombres | AA28: Mujeres | AB28: Hombres | AC28: Mujeres | AD28: Hombres | AE28: Mujeres | AF28: Hombres | AG28: Mujeres
A29: 02200010 | B29: TABAQUISMO | C29: =SUM(D29:E29) -> 16101 | D29: =SUM(F29+H29+J29+L29+N29+P29+R29+T29+V29+X29+Z29+AB29+AD29+AF29) -> 6112 | E29: =SUM(G29+I29+K29+M29+O29+Q29+S29+U29+W29+Y29+AA29+AC29+AE29+AG29) -> 9989 | F29: =IFERROR(VLOOKUP($A29,FILTRO!$A$5:$AW$2635,5,FALSE),0) -> 25 | G29: =IFERROR(VLOOKUP($A29,FILTRO!$A$5:$AW$2635,6,FALSE),0) -> 47 | H29: =IFERROR(VLOOKUP($A29,FILTRO!$A$5:$AW$2635,7,FALSE),0) -> 568 | I29: =IFERROR(VLOOKUP($A29,FILTRO!$A$5:$AW$2635,8,FALSE),0) -> 975 | J29: =IFERROR(VLOOKUP($A29,FILTRO!$A$5:$AW$2635,9,FALSE),0) -> 729 | K29: =IFERROR(VLOOKUP($A29,FILTRO!$A$5:$AW$2635,10,FALSE),0) -> 1165 | L29: =IFERROR(VLOOKUP($A29,FILTRO!$A$5:$AW$2635,11,FALSE),0) -> 695 | M29: =IFERROR(VLOOKUP($A29,FILTRO!$A$5:$AW$2635,12,FALSE),0) -> 1348 | N29: =IFERROR(VLOOKUP($A29,FILTRO!$A$5:$AW$2635,13,FALSE),0) -> 691 | O29: =IFERROR(VLOOKUP($A29,FILTRO!$A$5:$AW$2635,14,FALSE),0) -> 1306 | P29: =IFERROR(VLOOKUP($A29,FILTRO!$A$5:$AW$2635,15,FALSE),0) -> 681 | Q29: =IFERROR(VLOOKUP($A29,FILTRO!$A$5:$AW$2635,16,FALSE),0) -> 1207 | R29: =IFERROR(VLOOKUP($A29,FILTRO!$A$5:$AW$2635,17,FALSE),0) -> 577 | S29: =IFERROR(VLOOKUP($A29,FILTRO!$A$5:$AW$2635,18,FALSE),0) -> 1053 | T29: =IFERROR(VLOOKUP($A29,FILTRO!$A$5:$AW$2635,19,FALSE),0) -> 543 | U29: =IFERROR(VLOOKUP($A29,FILTRO!$A$5:$AW$2635,20,FALSE),0) -> 858 | V29: =IFERROR(VLOOKUP($A29,FILTRO!$A$5:$AW$2635,21,FALSE),0) -> 481 | W29: =IFERROR(VLOOKUP($A29,FILTRO!$A$5:$AW$2635,22,FALSE),0) -> 595 | X29: =IFERROR(VLOOKUP($A29,FILTRO!$A$5:$AW$2635,23,FALSE),0) -> 308 | Y29: =IFERROR(VLOOKUP($A29,FILTRO!$A$5:$AW$2635,24,FALSE),0) -> 421 | Z29: =IFERROR(VLOOKUP($A29,FILTRO!$A$5:$AW$2635,25,FALSE),0) -> 307 | AA29: =IFERROR(VLOOKUP($A29,FILTRO!$A$5:$AW$2635,26,FALSE),0) -> 440 | AB29: =IFERROR(VLOOKUP($A29,FILTRO!$A$5:$AW$2635,27,FALSE),0) -> 249 | AC29: =IFERROR(VLOOKUP($A29,FILTRO!$A$5:$AW$2635,28,FALSE),0) -> 298 | AD29: =IFERROR(VLOOKUP($A29,FILTRO!$A$5:$AW$2635,29,FALSE),0) -> 152 | AE29: =IFERROR(VLOOKUP($A29,FILTRO!$A$5:$AW$2635,30,FALSE),0) -> 150 | AF29: =IFERROR(VLOOKUP($A29,FILTRO!$A$5:$AW$2635,31,FALSE),0) -> 106 | AG29: =IFERROR(VLOOKUP($A29,FILTRO!$A$5:$AW$2635,32,FALSE),0) -> 126 | AH29: =IFERROR(VLOOKUP($A29,FILTRO!$A$5:$AW$2635,33,FALSE),0) -> 50 | AI29: =IFERROR(VLOOKUP($A29,FILTRO!$A$5:$AW$2635,34,FALSE),0) -> 107
A30: 02200020 | B30: PRESIÓN ARTERIAL ELEVADA (= >140/90 mmHg) | C30: =SUM(D30:E30) -> 15329 | D30: =SUM(F30+H30+J30+L30+N30+P30+R30+T30+V30+X30+Z30+AB30+AD30+AF30) -> 6573 | E30: =SUM(G30+I30+K30+M30+O30+Q30+S30+U30+W30+Y30+AA30+AC30+AE30+AG30) -> 8756 | F30: =IFERROR(VLOOKUP($A30,FILTRO!$A$5:$AW$2635,5,FALSE),0) -> 27 | G30: =IFERROR(VLOOKUP($A30,FILTRO!$A$5:$AW$2635,6,FALSE),0) -> 31 | H30: =IFERROR(VLOOKUP($A30,FILTRO!$A$5:$AW$2635,7,FALSE),0) -> 193 | I30: =IFERROR(VLOOKUP($A30,FILTRO!$A$5:$AW$2635,8,FALSE),0) -> 187 | J30: =IFERROR(VLOOKUP($A30,FILTRO!$A$5:$AW$2635,9,FALSE),0) -> 222 | K30: =IFERROR(VLOOKUP($A30,FILTRO!$A$5:$AW$2635,10,FALSE),0) -> 212 | L30: =IFERROR(VLOOKUP($A30,FILTRO!$A$5:$AW$2635,11,FALSE),0) -> 249 | M30: =IFERROR(VLOOKUP($A30,FILTRO!$A$5:$AW$2635,12,FALSE),0) -> 325 | N30: =IFERROR(VLOOKUP($A30,FILTRO!$A$5:$AW$2635,13,FALSE),0) -> 284 | O30: =IFERROR(VLOOKUP($A30,FILTRO!$A$5:$AW$2635,14,FALSE),0) -> 400 | P30: =IFERROR(VLOOKUP($A30,FILTRO!$A$5:$AW$2635,15,FALSE),0) -> 349 | Q30: =IFERROR(VLOOKUP($A30,FILTRO!$A$5:$AW$2635,16,FALSE),0) -> 475 | R30: =IFERROR(VLOOKUP($A30,FILTRO!$A$5:$AW$2635,17,FALSE),0) -> 420 | S30: =IFERROR(VLOOKUP($A30,FILTRO!$A$5:$AW$2635,18,FALSE),0) -> 574 | T30: =IFERROR(VLOOKUP($A30,FILTRO!$A$5:$AW$2635,19,FALSE),0) -> 481 | U30: =IFERROR(VLOOKUP($A30,FILTRO!$A$5:$AW$2635,20,FALSE),0) -> 624 | V30: =IFERROR(VLOOKUP($A30,FILTRO!$A$5:$AW$2635,21,FALSE),0) -> 514 | W30: =IFERROR(VLOOKUP($A30,FILTRO!$A$5:$AW$2635,22,FALSE),0) -> 483 | X30: =IFERROR(VLOOKUP($A30,FILTRO!$A$5:$AW$2635,23,FALSE),0) -> 432 | Y30: =IFERROR(VLOOKUP($A30,FILTRO!$A$5:$AW$2635,24,FALSE),0) -> 454 | Z30: =IFERROR(VLOOKUP($A30,FILTRO!$A$5:$AW$2635,25,FALSE),0) -> 878 | AA30: =IFERROR(VLOOKUP($A30,FILTRO!$A$5:$AW$2635,26,FALSE),0) -> 1249 | AB30: =IFERROR(VLOOKUP($A30,FILTRO!$A$5:$AW$2635,27,FALSE),0) -> 909 | AC30: =IFERROR(VLOOKUP($A30,FILTRO!$A$5:$AW$2635,28,FALSE),0) -> 1212 | AD30: =IFERROR(VLOOKUP($A30,FILTRO!$A$5:$AW$2635,29,FALSE),0) -> 788 | AE30: =IFERROR(VLOOKUP($A30,FILTRO!$A$5:$AW$2635,30,FALSE),0) -> 1087 | AF30: =IFERROR(VLOOKUP($A30,FILTRO!$A$5:$AW$2635,31,FALSE),0) -> 827 | AG30: =IFERROR(VLOOKUP($A30,FILTRO!$A$5:$AW$2635,32,FALSE),0) -> 1443 | AH30: =IFERROR(VLOOKUP($A30,FILTRO!$A$5:$AW$2635,33,FALSE),0) -> 56 | AI30: =IFERROR(VLOOKUP($A30,FILTRO!$A$5:$AW$2635,34,FALSE),0) -> 107
B31: SECCIÓN D: RESULTADOS DE EMP SEGÚN ESTADO DE SALUD (EXÁMENES DE LABORATORIO)
B32: ESTADO DE SALUD | C32: TOTAL | F32: 15 a 19 años | H32: 20 a 24 años | J32: 25 a 29 años | L32: 30 a 34 años | N32: 35 a 39 años | P32: 40 a 44 años | R32: 45 a 49 años | T32: 50 a 54 años | V32: 55 a 59 años | X32: 60 a 64 años | Z32: 65 a 69 años | AB32: 70 a 74 años | AD32: 75 a 79 años | AF32: 80 y más años | AH32: Pueblos Originarios | AI32: Migrantes
C33: Ambos Sexos | D33: Hombres | E33: Mujeres | F33: Hombres | G33: Mujeres | H33: Hombres | I33: Mujeres | J33: Hombres | K33: Mujeres | L33: Hombres | M33: Mujeres | N33: Hombres | O33: Mujeres | P33: Hombres | Q33: Mujeres | R33: Hombres | S33: Mujeres | T33: Hombres | U33: Mujeres | V33: Hombres | W33: Mujeres | X33: Hombres | Y33: Mujeres | Z33: Hombres | AA33: Mujeres | AB33: Hombres | AC33: Mujeres | AD33: Hombres | AE33: Mujeres | AF33: Hombres | AG33: Mujeres
A34: 02200030 | B34: GLICEMIA ALTERADA (= > a 100 mg/dl) | C34: =SUM(D34:E34) -> 12625 | D34: =SUM(F34+H34+J34+L34+N34+P34+R34+T34+V34+X34+Z34+AB34+AD34+AF34) -> 4331 | E34: =SUM(G34+I34+K34+M34+O34+Q34+S34+U34+W34+Y34+AA34+AC34+AE34+AG34) -> 8294 | F34: =IFERROR(VLOOKUP($A34,FILTRO!$A$5:$AW$2635,5,FALSE),0) -> 13 | G34: =IFERROR(VLOOKUP($A34,FILTRO!$A$5:$AW$2635,6,FALSE),0) -> 20 | H34: =IFERROR(VLOOKUP($A34,FILTRO!$A$5:$AW$2635,7,FALSE),0) -> 202 | I34: =IFERROR(VLOOKUP($A34,FILTRO!$A$5:$AW$2635,8,FALSE),0) -> 553 | J34: =IFERROR(VLOOKUP($A34,FILTRO!$A$5:$AW$2635,9,FALSE),0) -> 240 | K34: =IFERROR(VLOOKUP($A34,FILTRO!$A$5:$AW$2635,10,FALSE),0) -> 613 | L34: =IFERROR(VLOOKUP($A34,FILTRO!$A$5:$AW$2635,11,FALSE),0) -> 310 | M34: =IFERROR(VLOOKUP($A34,FILTRO!$A$5:$AW$2635,12,FALSE),0) -> 776 | N34: =IFERROR(VLOOKUP($A34,FILTRO!$A$5:$AW$2635,13,FALSE),0) -> 330 | O34: =IFERROR(VLOOKUP($A34,FILTRO!$A$5:$AW$2635,14,FALSE),0) -> 842 | P34: =IFERROR(VLOOKUP($A34,FILTRO!$A$5:$AW$2635,15,FALSE),0) -> 344 | Q34: =IFERROR(VLOOKUP($A34,FILTRO!$A$5:$AW$2635,16,FALSE),0) -> 708 | R34: =IFERROR(VLOOKUP($A34,FILTRO!$A$5:$AW$2635,17,FALSE),0) -> 336 | S34: =IFERROR(VLOOKUP($A34,FILTRO!$A$5:$AW$2635,18,FALSE),0) -> 718 | T34: =IFERROR(VLOOKUP($A34,FILTRO!$A$5:$AW$2635,19,FALSE),0) -> 367 | U34: =IFERROR(VLOOKUP($A34,FILTRO!$A$5:$AW$2635,20,FALSE),0) -> 664 | V34: =IFERROR(VLOOKUP($A34,FILTRO!$A$5:$AW$2635,21,FALSE),0) -> 365 | W34: =IFERROR(VLOOKUP($A34,FILTRO!$A$5:$AW$2635,22,FALSE),0) -> 578 | X34: =IFERROR(VLOOKUP($A34,FILTRO!$A$5:$AW$2635,23,FALSE),0) -> 282 | Y34: =IFERROR(VLOOKUP($A34,FILTRO!$A$5:$AW$2635,24,FALSE),0) -> 437 | Z34: =IFERROR(VLOOKUP($A34,FILTRO!$A$5:$AW$2635,25,FALSE),0) -> 440 | AA34: =IFERROR(VLOOKUP($A34,FILTRO!$A$5:$AW$2635,26,FALSE),0) -> 719 | AB34: =IFERROR(VLOOKUP($A34,FILTRO!$A$5:$AW$2635,27,FALSE),0) -> 417 | AC34: =IFERROR(VLOOKUP($A34,FILTRO!$A$5:$AW$2635,28,FALSE),0) -> 588 | AD34: =IFERROR(VLOOKUP($A34,FILTRO!$A$5:$AW$2635,29,FALSE),0) -> 321 | AE34: =IFERROR(VLOOKUP($A34,FILTRO!$A$5:$AW$2635,30,FALSE),0) -> 511 | AF34: =IFERROR(VLOOKUP($A34,FILTRO!$A$5:$AW$2635,31,FALSE),0) -> 364 | AG34: =IFERROR(VLOOKUP($A34,FILTRO!$A$5:$AW$2635,32,FALSE),0) -> 567 | AH34: =IFERROR(VLOOKUP($A34,FILTRO!$A$5:$AW$2635,33,FALSE),0) -> 65 | AI34: =IFERROR(VLOOKUP($A34,FILTRO!$A$5:$AW$2635,34,FALSE),0) -> 195
A35: 02200040 | B35: COLESTEROL ELEVADO (= > 200 mg/dl) | C35: =SUM(D35:E35) -> 5196 | D35: =SUM(F35+H35+J35+L35+N35+P35+R35+T35+V35+X35+Z35+AB35+AD35+AF35) -> 1675 | E35: =SUM(G35+I35+K35+M35+O35+Q35+S35+U35+W35+Y35+AA35+AC35+AE35+AG35) -> 3521 | F35: =IFERROR(VLOOKUP($A35,FILTRO!$A$5:$AW$2635,5,FALSE),0) -> 3 | G35: =IFERROR(VLOOKUP($A35,FILTRO!$A$5:$AW$2635,6,FALSE),0) -> 6 | H35: =IFERROR(VLOOKUP($A35,FILTRO!$A$5:$AW$2635,7,FALSE),0) -> 26 | I35: =IFERROR(VLOOKUP($A35,FILTRO!$A$5:$AW$2635,8,FALSE),0) -> 62 | J35: =IFERROR(VLOOKUP($A35,FILTRO!$A$5:$AW$2635,9,FALSE),0) -> 53 | K35: =IFERROR(VLOOKUP($A35,FILTRO!$A$5:$AW$2635,10,FALSE),0) -> 119 | L35: =IFERROR(VLOOKUP($A35,FILTRO!$A$5:$AW$2635,11,FALSE),0) -> 81 | M35: =IFERROR(VLOOKUP($A35,FILTRO!$A$5:$AW$2635,12,FALSE),0) -> 160 | N35: =IFERROR(VLOOKUP($A35,FILTRO!$A$5:$AW$2635,13,FALSE),0) -> 80 | O35: =IFERROR(VLOOKUP($A35,FILTRO!$A$5:$AW$2635,14,FALSE),0) -> 187 | P35: =IFERROR(VLOOKUP($A35,FILTRO!$A$5:$AW$2635,15,FALSE),0) -> 117 | Q35: =IFERROR(VLOOKUP($A35,FILTRO!$A$5:$AW$2635,16,FALSE),0) -> 240 | R35: =IFERROR(VLOOKUP($A35,FILTRO!$A$5:$AW$2635,17,FALSE),0) -> 132 | S35: =IFERROR(VLOOKUP($A35,FILTRO!$A$5:$AW$2635,18,FALSE),0) -> 302 | T35: =IFERROR(VLOOKUP($A35,FILTRO!$A$5:$AW$2635,19,FALSE),0) -> 116 | U35: =IFERROR(VLOOKUP($A35,FILTRO!$A$5:$AW$2635,20,FALSE),0) -> 306 | V35: =IFERROR(VLOOKUP($A35,FILTRO!$A$5:$AW$2635,21,FALSE),0) -> 133 | W35: =IFERROR(VLOOKUP($A35,FILTRO!$A$5:$AW$2635,22,FALSE),0) -> 279 | X35: =IFERROR(VLOOKUP($A35,FILTRO!$A$5:$AW$2635,23,FALSE),0) -> 104 | Y35: =IFERROR(VLOOKUP($A35,FILTRO!$A$5:$AW$2635,24,FALSE),0) -> 210 | Z35: =IFERROR(VLOOKUP($A35,FILTRO!$A$5:$AW$2635,25,FALSE),0) -> 240 | AA35: =IFERROR(VLOOKUP($A35,FILTRO!$A$5:$AW$2635,26,FALSE),0) -> 531 | AB35: =IFERROR(VLOOKUP($A35,FILTRO!$A$5:$AW$2635,27,FALSE),0) -> 239 | AC35: =IFERROR(VLOOKUP($A35,FILTRO!$A$5:$AW$2635,28,FALSE),0) -> 433 | AD35: =IFERROR(VLOOKUP($A35,FILTRO!$A$5:$AW$2635,29,FALSE),0) -> 191 | AE35: =IFERROR(VLOOKUP($A35,FILTRO!$A$5:$AW$2635,30,FALSE),0) -> 312 | AF35: =IFERROR(VLOOKUP($A35,FILTRO!$A$5:$AW$2635,31,FALSE),0) -> 160 | AG35: =IFERROR(VLOOKUP($A35,FILTRO!$A$5:$AW$2635,32,FALSE),0) -> 374 | AH35: =IFERROR(VLOOKUP($A35,FILTRO!$A$5:$AW$2635,33,FALSE),0) -> 28 | AI35: =IFERROR(VLOOKUP($A35,FILTRO!$A$5:$AW$2635,34,FALSE),0) -> 30
B195: =SUM(C12:C17,C21:C25,C29:C30,C34:C35) -> 343037 | C195: =SUM(DB7:EA52) -> 0

Sheet A03
B1: SERVICIO DE SALUD
B2: =CONCATENATE("COMUNA: ",NOMBRE!B2," - ","( ",NOMBRE!C2,NOMBRE!D2,NOMBRE!E2,NOMBRE!F2,NOMBRE!G2," )") -> COMUNA: - ( )
B3: =CONCATENATE("ESTABLECIMIENTO/ESTRATEGIA: ",NOMBRE!B3," - ","( ",NOMBRE!C3,NOMBRE!D3,NOMBRE!E3,NOMBRE!F3,NOMBRE!G3,NOMBRE!H3," )") -> ESTABLECIMIENTO/ESTRATEGIA: - ( )
B4: =CONCATENATE("MES: ",NOMBRE!B6," - ","( ",NOMBRE!C6,NOMBRE!D6," )") -> MES: - ( )
B5: =CONCATENATE("AÑO: ",NOMBRE!B7) -> AÑO: 2023
B6: REM-A03. APLICACIÓN Y RESULTADOS DE ESCALAS DE EVALUACIÓN
B7: SECCIÓN A: APLICACIÓN DE INSTRUMENTO Y RESULTADO EN EL NIÑO (A)
B8: SECCIÓN A.1: APLICACIÓN Y RESULTADOS DE PAUTA BREVE
B9: EVALUACIONES POR EDAD DEL NIÑO | D9: TOTAL | G9: GRUPO DE EDAD
G10: Menor de 1 mes | I10: 1 mes | K10: 2 meses | M10: 3 meses | O10: 4 meses | Q10: 5 meses | S10: 6 meses | U10: 7 - 11 meses | W10: 12 - 17 meses | Y10: 18 - 24 meses
D11: Ambos Sexos | E11: Hombres | F11: Mujeres | G11: Hombres | H11: Mujeres | I11: Hombres | J11: Mujeres | K11: Hombres | L11: Mujeres | M11: Hombres | N11: Mujeres | O11: Hombres | P11: Mujeres | Q11: Hombres | R11: Mujeres | S11: Hombres | T11: Mujeres | U11: Hombres | V11: Mujeres | W11: Hombres | X11: Mujeres | Y11: Hombres | Z11: Mujeres
A12: 02021730 | B12: APLICACIÓN PAUTA BREVE | D12: =SUM(E12+F12) -> 14554 | E12: =SUM(G12+I12+K12+M12+O12+Q12+S12+U12+W12+Y12) -> 7205 | F12: =SUM(H12+J12+L12+N12+P12+R12+T12+V12+X12+Z12) -> 7349 | G12: =IFERROR(VLOOKUP($A12,[1]FILTRO_10!$A$5:$AW$2602,5,FALSE),0) -> 0 | H12: =IFERROR(VLOOKUP($A12,[1]FILTRO_10!$A$5:$AW$2602,6,FALSE),0) -> 0 | I12: =IFERROR(VLOOKUP($A12,FILTRO!$A$5:$AW$2635,7,FALSE),0) -> 90 | J12: =IFERROR(VLOOKUP($A12,FILTRO!$A$5:$AW$2635,8,FALSE),0) -> 82 | K12: =IFERROR(VLOOKUP($A12,FILTRO!$A$5:$AW$2635,9,FALSE),0) -> 8 | L12: =IFERROR(VLOOKUP($A12,FILTRO!$A$5:$AW$2635,10,FALSE),0) -> 13 | M12: =IFERROR(VLOOKUP($A12,FILTRO!$A$5:$AW$2635,11,FALSE),0) -> 106 | N12: =IFERROR(VLOOKUP($A12,FILTRO!$A$5:$AW$2635,12,FALSE),0) -> 128 | O12: =IFERROR(VLOOKUP($A12,FILTRO!$A$5:$AW$2635,13,FALSE),0) -> 2446 | P12: =IFERROR(VLOOKUP($A12,FILTRO!$A$5:$AW$2635,14,FALSE),0) -> 2508 | Q12: =IFERROR(VLOOKUP($A12,FILTRO!$A$5:$AW$2635,15,FALSE),0) -> 89 | R12: =IFERROR(VLOOKUP($A12,FILTRO!$A$5:$AW$2635,16,FALSE),0) -> 103 | S12: =IFERROR(VLOOKUP($A12,FILTRO!$A$5:$AW$2635,17,FALSE),0) -> 15 | T12: =IFERROR(VLOOKUP($A12,FILTRO!$A$5:$AW$2635,18,FALSE),0) -> 22 | U12: =IFERROR(VLOOKUP($A12,FILTRO!$A$5:$AW$2635,19,FALSE),0) -> 83 | V12: =IFERROR(VLOOKUP($A12,FILTRO!$A$5:$AW$2635,20,FALSE),0) -> 80 | W12: =IFERROR(VLOOKUP($A12,FILTRO!$A$5:$AW$2635,21,FALSE),0) -> 2416 | X12: =IFERROR(VLOOKUP($A12,FILTRO!$A$5:$AW$2635,22,FALSE),0) -> 2327 | Y12: =IFERROR(VLOOKUP($A12,FILTRO!$A$5:$AW$2635,23,FALSE),0) -> 1952 | Z12: =IFERROR(VLOOKUP($A12,FILTRO!$A$5:$AW$2635,24,FALSE),0) -> 2086
A13: 03500020 | B13: RESULTADOS | C13: NORMAL | D13: =SUM(E13+F13) -> 12989 | E13: 6268 | F13: =SUM(H13+J13+L13+N13+P13+R13+T13+V13+X13+Z13) -> 6721 | G13: =IFERROR(VLOOKUP($A13,FILTRO!$A$5:$AW$2635,5,FALSE),0) -> 5 | H13: =IFERROR(VLOOKUP($A13,FILTRO!$A$5:$AW$2635,6,FALSE),0) -> 13 | I13: =IFERROR(VLOOKUP($A13,FILTRO!$A$5:$AW$2635,7,FALSE),0) -> 90 | J13: =IFERROR(VLOOKUP($A13,FILTRO!$A$5:$AW$2635,8,FALSE),0) -> 82 | K13: =IFERROR(VLOOKUP($A13,FILTRO!$A$5:$AW$2635,9,FALSE),0) -> 8 | L13: =IFERROR(VLOOKUP($A13,FILTRO!$A$5:$AW$2635,10,FALSE),0) -> 13 | M13: =IFERROR(VLOOKUP($A13,FILTRO!$A$5:$AW$2635,11,FALSE),0) -> 104 | N13: =IFERROR(VLOOKUP($A13,FILTRO!$A$5:$AW$2635,12,FALSE),0) -> 126 | O13: =IFERROR(VLOOKUP($A13,FILTRO!$A$5:$AW$2635,13,FALSE),0) -> 2338 | P13: =IFERROR(VLOOKUP($A13,FILTRO!$A$5:$AW$2635,14,FALSE),0) -> 2426 | Q13: =IFERROR(VLOOKUP($A13,FILTRO!$A$5:$AW$2635,15,FALSE),0) -> 83 | R13: =IFERROR(VLOOKUP($A13,FILTRO!$A$5:$AW$2635,16,FALSE),0) -> 99 | S13: =IFERROR(VLOOKUP($A13,FILTRO!$A$5:$AW$2635,17,FALSE),0) -> 14 | T13: =IFERROR(VLOOKUP($A13,FILTRO!$A$5:$AW$2635,18,FALSE),0) -> 18 | U13: =IFERROR(VLOOKUP($A13,FILTRO!$A$5:$AW$2635,19,FALSE),0) -> 73 | V13: =IFERROR(VLOOKUP($A13,FILTRO!$A$5:$AW$2635,20,FALSE),0) -> 73 | W13: =IFERROR(VLOOKUP($A13,FILTRO!$A$5:$AW$2635,21,FALSE),0) -> 2129 | X13: =IFERROR(VLOOKUP($A13,FILTRO!$A$5:$AW$2635,22,FALSE),0) -> 2127 | Y13: =IFERROR(VLOOKUP($A13,FILTRO!$A$5:$AW$2635,23,FALSE),0) -> 1424 | Z13: =IFERROR(VLOOKUP($A13,FILTRO!$A$5:$AW$2635,24,FALSE),0) -> 1744 | CF13: * Aplicacion de Pauta Breve en Hombres Menor de 1 mes debe ser igual a la suma de resultados. | CO13: * Aplicacion de Pauta Breve en Mujeres de 4 meses debe ser igual a la suma de resultados. | CP13: * Aplicacion de Pauta Breve en Hombres de 5 meses debe ser igual a la suma de resultados. | CT13: * Aplicacion de Pauta Breve en Hombres de 7 - 11 meses debe ser igual a la suma de resultados. | CW13: * Aplicacion de Pauta Breve en Mujeres de 12 - 17 meses debe ser igual a la suma de resultados. | CX13: * Aplicacion de Pauta Breve en Hombres de 18 - 24 meses debe ser igual a la suma de resultados. | CY13: * Aplicacion de Pauta Breve en Mujeres de 18 - 24 meses debe ser igual a la suma de resultados. | DE13: 0 | DF13: 1 | DG13: 0 | DH13: 0 | DI13: 0 | DJ13: 0 | DK13: 0 | DL13: 0 | DM13: 0 | DN13: 0 | DO13: 1 | DP13: 1 | DQ13: 0 | DR13: 0 | DS13: 0 | DT13: 1 | DU13: 0 | DV13: 0 | DW13: 1 | DX13: 1 | DY13: 1 | DZ13: 0
A14: 03500030 | C14: ALTERADO | D14: =SUM(E14+F14) -> 1574 | E14: 940 | F14: 634 | G14: =IFERROR(VLOOKUP($A14,FILTRO!$A$5:$AW$2635,5,FALSE),0) -> 1 | H14: =IFERROR(VLOOKUP($A14,FILTRO!$A$5:$AW$2635,6,FALSE),0) -> 1 | I14: =IFERROR(VLOOKUP($A14,FILTRO!$A$5:$AW$2635,7,FALSE),0) -> 0 | J14: =IFERROR(VLOOKUP($A14,FILTRO!$A$5:$AW$2635,8,FALSE),0) -> 0 | K14: =IFERROR(VLOOKUP($A14,FILTRO!$A$5:$AW$2635,9,FALSE),0) -> 0 | L14: =IFERROR(VLOOKUP($A14,FILTRO!$A$5:$AW$2635,10,FALSE),0) -> 0 | M14: =IFERROR(VLOOKUP($A14,FILTRO!$A$5:$AW$2635,11,FALSE),0) -> 2 | N14: =IFERROR(VLOOKUP($A14,FILTRO!$A$5:$AW$2635,12,FALSE),0) -> 2 | O14: =IFERROR(VLOOKUP($A14,FILTRO!$A$5:$AW$2635,13,FALSE),0) -> 106 | P14: =IFERROR(VLOOKUP($A14,FILTRO!$A$5:$AW$2635,14,FALSE),0) -> 81 | Q14: =IFERROR(VLOOKUP($A14,FILTRO!$A$5:$AW$2635,15,FALSE),0) -> 6 | R14: =IFERROR(VLOOKUP($A14,FILTRO!$A$5:$AW$2635,16,FALSE),0) -> 4 | S14: =IFERROR(VLOOKUP($A14,FILTRO!$A$5:$AW$2635,17,FALSE),0) -> 1 | T14: =IFERROR(VLOOKUP($A14,FILTRO!$A$5:$AW$2635,18,FALSE),0) -> 3 | U14: =IFERROR(VLOOKUP($A14,FILTRO!$A$5:$AW$2635,19,FALSE),0) -> 10 | V14: =IFERROR(VLOOKUP($A14,FILTRO!$A$5:$AW$2635,20,FALSE),0) -> 7 | W14: =IFERROR(VLOOKUP($A14,FILTRO!$A$5:$AW$2635,21,FALSE),0) -> 288 | X14: =IFERROR(VLOOKUP($A14,FILTRO!$A$5:$AW$2635,22,FALSE),0) -> 197 | Y14: =IFERROR(VLOOKUP($A14,FILTRO!$A$5:$AW$2635,23,FALSE),0) -> 526 | Z14: =IFERROR(VLOOKUP($A14,FILTRO!$A$5:$AW$2635,24,FALSE),0) -> 339
B15: SECCIÓN A.2: RESULTADOS DE LA APLICACIÓN DE ESCALA DE EVALUACIÓN DEL DESARROLLO PSICOMOTOR
B16: ACTIVIDAD | C16: RESULTADO | D16: TOTAL | G16: POR EDAD | S16: Pueblos Originarios | T16: Migrantes
G17: Menor 7 meses | I17: 7 - 11 meses | K17: 12 - 17 meses | M17: 18 - 23 meses | O17: 24 - 47 meses | Q17: 48 - 59 meses
D18: Ambos Sexos | E18: Hombres | F18: Mujeres | G18: Hombres | H18: Mujeres | I18: Hombres | J18: Mujeres | K18: Hombres | L18: Mujeres | M18: Hombres | N18: Mujeres | O18: Hombres | P18: Mujeres | Q18: Hombres | R18: Mujeres
A19: 02021740 | B19: APLICACIÓN TEST DE DESARROLLO PSICOMOTOR | D19: =SUM(E19+F19) -> 18627 | E19: =SUM(G19+I19+K19+M19+O19+Q19) -> 9621 | F19: =SUM(H19+J19+L19+N19+P19+R19) -> 9006 | G19: =IFERROR(VLOOKUP($A19,FILTRO!$A$5:$AW$2635,5,FALSE),0) -> 93 | H19: =IFERROR(VLOOKUP($A19,FILTRO!$A$5:$AW$2635,6,FALSE),0) -> 81 | I19: =IFERROR(VLOOKUP($A19,FILTRO!$A$5:$AW$2635,7,FALSE),0) -> 2846 | J19: =IFERROR(VLOOKUP($A19,FILTRO!$A$5:$AW$2635,8,FALSE),0) -> 2848 | K19: =IFERROR(VLOOKUP($A19,FILTRO!$A$5:$AW$2635,9,FALSE),0) -> 761 | L19: =IFERROR(VLOOKUP($A19,FILTRO!$A$5:$AW$2635,10,FALSE),0) -> 674 | M19: =IFERROR(VLOOKUP($A19,FILTRO!$A$5:$AW$2635,11,FALSE),0) -> 3198 | N19: =IFERROR(VLOOKUP($A19,FILTRO!$A$5:$AW$2635,12,FALSE),0) -> 2867 | O19: =IFERROR(VLOOKUP($A19,FILTRO!$A$5:$AW$2635,13,FALSE),0) -> 2509 | P19: =IFERROR(VLOOKUP($A19,FILTRO!$A$5:$AW$2635,14,FALSE),0) -> 2369 | Q19: =IFERROR(VLOOKUP($A19,FILTRO!$A$5:$AW$2635,15,FALSE),0) -> 214 | R19: =IFERROR(VLOOKUP($A19,FILTRO!$A$5:$AW$2635,16,FALSE),0) -> 167 | S19: =IFERROR(VLOOKUP($A19,FILTRO!$A$5:$AW$2635,17,FALSE),0) -> 78 | T19: =IFERROR(VLOOKUP($A19,FILTRO!$A$5:$AW$2635,18,FALSE),0) -> 115 | CH19: * El total de aplicaciones de Pueblos Originarios debe ser IGUAL a los resultados de la totalidad de las aplicaciones de la primera evaluación y la reevaluación. | CJ19: * El total de aplicaciones de Migrantes debe ser IGUAL a los resultados de la totalidad de las aplicaciones de la primera evaluación y la reevaluación. | CL19: 0 | CM19: 0 | CN19: 0 | CO19: 0 | DB19: 0 | DC19: 0 | DD19: 0 | DE19: 0 | DF19: 0 | DG19: 0 | DI19: 0 | DK19: 0
A20: 02010320 | B20: PRIMERA EVALUACIÓN | C20: NORMAL | D20: =SUM(E20+F20) -> 13926 | E20: =SUM(G20+I20+K20+M20+O20+Q20) -> 6736 | F20: 7190 | G20: =IFERROR(VLOOKUP($A20,FILTRO!$A$5:$AW$2635,5,FALSE),0) -> 66 | H20: =IFERROR(VLOOKUP($A20,FILTRO!$A$5:$AW$2635,6,FALSE),0) -> 66 | I20: =IFERROR(VLOOKUP($A20,FILTRO!$A$5:$AW$2635,7,FALSE),0) -> 2479 | J20: =IFERROR(VLOOKUP($A20,FILTRO!$A$5:$AW$2635,8,FALSE),0) -> 2530 | K20: =IFERROR(VLOOKUP($A20,FILTRO!$A$5:$AW$2635,9,FALSE),0) -> 521 | L20: =IFERROR(VLOOKUP($A20,FILTRO!$A$5:$AW$2635,10,FALSE),0) -> 540 | M20: =IFERROR(VLOOKUP($A20,FILTRO!$A$5:$AW$2635,11,FALSE),0) -> 2106 | N20: =IFERROR(VLOOKUP($A20,FILTRO!$A$5:$AW$2635,12,FALSE),0) -> 2219 | O20: =IFERROR(VLOOKUP($A20,FILTRO!$A$5:$AW$2635,13,FALSE),0) -> 1449 | P20: =IFERROR(VLOOKUP($A20,FILTRO!$A$5:$AW$2635,14,FALSE),0) -> 1718 | Q20: =IFERROR(VLOOKUP($A20,FILTRO!$A$5:$AW$2635,15,FALSE),0) -> 115 | R20: =IFERROR(VLOOKUP($A20,FILTRO!$A$5:$AW$2635,16,FALSE),0) -> 117 | S20: =IFERROR(VLOOKUP($A20,FILTRO!$A$5:$AW$2635,17,FALSE),0) -> 51 | T20: =IFERROR(VLOOKUP($A20,FILTRO!$A$5:$AW$2635,18,FALSE),0) -> 93
A21: 05225303 | C21: NORMAL CON REZAGO | D21: =SUM(E21+F21) -> 1034 | E21: 603 | F21: 431 | G21: =IFERROR(VLOOKUP($A21,FILTRO!$A$5:$AW$2635,5,FALSE),0) -> 9 | H21: =IFERROR(VLOOKUP($A21,FILTRO!$A$5:$AW$2635,6,FALSE),0) -> 2 | I21: =IFERROR(VLOOKUP($A21,FILTRO!$A$5:$AW$2635,7,FALSE),0) -> 103 | J21: =IFERROR(VLOOKUP($A21,FILTRO!$A$5:$AW$2635,8,FALSE),0) -> 96 | K21: =IFERROR(VLOOKUP($A21,FILTRO!$A$5:$AW$2635,9,FALSE),0) -> 51 | L21: =IFERROR(VLOOKUP($A21,FILTRO!$A$5:$AW$2635,10,FALSE),0) -> 35 | M21: =IFERROR(VLOOKUP($A21,FILTRO!$A$5:$AW$2635,11,FALSE),0) -> 169 | N21: =IFERROR(VLOOKUP($A21,FILTRO!$A$5:$AW$2635,12,FALSE),0) -> 95 | O21: =IFERROR(VLOOKUP($A21,FILTRO!$A$5:$AW$2635,13,FALSE),0) -> 262 | P21: =IFERROR(VLOOKUP($A21,FILTRO!$A$5:$AW$2635,14,FALSE),0) -> 198 | Q21: =IFERROR(VLOOKUP($A21,FILTRO!$A$5:$AW$2635,15,FALSE),0) -> 9 | R21: =IFERROR(VLOOKUP($A21,FILTRO!$A$5:$AW$2635,16,FALSE),0) -> 5 | S21: =IFERROR(VLOOKUP($A21,FILTRO!$A$5:$AW$2635,17,FALSE),0) -> 15 | T21: =IFERROR(VLOOKUP($A21,FILTRO!$A$5:$AW$2635,18,FALSE),0) -> 8
A22: 02010321 | C22: RIESGO | D22: 1349 | E22: 824 | F22: 525 | G22: =IFERROR(VLOOKUP($A22,FILTRO!$A$5:$AW$2635,5,FALSE),0) -> 12 | H22: =IFERROR(VLOOKUP($A22,FILTRO!$A$5:$AW$2635,6,FALSE),0) -> 8 | I22: =IFERROR(VLOOKUP($A22,FILTRO!$A$5:$AW$2635,7,FALSE),0) -> 117 | J22: =IFERROR(VLOOKUP($A22,FILTRO!$A$5:$AW$2635,8,FALSE),0) -> 106 | K22: =IFERROR(VLOOKUP($A22,FILTRO!$A$5:$AW$2635,9,FALSE),0) -> 58 | L22: =IFERROR(VLOOKUP($A22,FILTRO!$A$5:$AW$2635,10,FALSE),0) -> 23 | M22: =IFERROR(VLOOKUP($A22,FILTRO!$A$5:$AW$2635,11,FALSE),0) -> 329 | N22: =IFERROR(VLOOKUP($A22,FILTRO!$A$5:$AW$2635,12,FALSE),0) -> 216 | O22: =IFERROR(VLOOKUP($A22,FILTRO!$A$5:$AW$2635,13,FALSE),0) -> 301 | P22: =IFERROR(VLOOKUP($A22,FILTRO!$A$5:$AW$2635,14,FALSE),0) -> 168 | Q22: =IFERROR(VLOOKUP($A22,FILTRO!$A$5:$AW$2635,15,FALSE),0) -> 7 | R22: =IFERROR(VLOOKUP($A22,FILTRO!$A$5:$AW$2635,16,FALSE),0) -> 4 | S22: =IFERROR(VLOOKUP($A22,FILTRO!$A$5:$AW$2635,17,FALSE),0) -> 1 | T22: =IFERROR(VLOOKUP($A22,FILTRO!$A$5:$AW$2635,18,FALSE),0) -> 12
A23: 02010322 | C23: RETRASO | D23: 454 | E23: 314 | F23: 140 | G23: =IFERROR(VLOOKUP($A23,FILTRO!$A$5:$AW$2635,5,FALSE),0) -> 1 | H23: =IFERROR(VLOOKUP($A23,FILTRO!$A$5:$AW$2635,6,FALSE),0) -> 1 | I23: =IFERROR(VLOOKUP($A23,FILTRO!$A$5:$AW$2635,7,FALSE),0) -> 22 | J23: =IFERROR(VLOOKUP($A23,FILTRO!$A$5:$AW$2635,8,FALSE),0) -> 21 | K23: =IFERROR(VLOOKUP($A23,FILTRO!$A$5:$AW$2635,9,FALSE),0) -> 19 | L23: =IFERROR(VLOOKUP($A23,FILTRO!$A$5:$AW$2635,10,FALSE),0) -> 3 | M23: =IFERROR(VLOOKUP($A23,FILTRO!$A$5:$AW$2635,11,FALSE),0) -> 154 | N23: =IFERROR(VLOOKUP($A23,FILTRO!$A$5:$AW$2635,12,FALSE),0) -> 72 | O23: =IFERROR(VLOOKUP($A23,FILTRO!$A$5:$AW$2635,13,FALSE),0) -> 109 | P23: =IFERROR(VLOOKUP($A23,FILTRO!$A$5:$AW$2635,14,FALSE),0) -> 36 | Q23: =IFERROR(VLOOKUP($A23,FILTRO!$A$5:$AW$2635,15,FALSE),0) -> 9 | R23: =IFERROR(VLOOKUP($A23,FILTRO!$A$5:$AW$2635,16,FALSE),0) -> 7 | S23: =IFERROR(VLOOKUP($A23,FILTRO!$A$5:$AW$2635,17,FALSE),0) -> 0 | T23: =IFERROR(VLOOKUP($A23,FILTRO!$A$5:$AW$2635,18,FALSE),0) -> 2
A24: 05225304 | B24: REEVALUACIÓN | C24: NORMAL (desde normal con rezago) | D24: 501 | E24: 273 | F24: 228 | G24: =IFERROR(VLOOKUP($A24,FILTRO!$A$5:$AW$2635,5,FALSE),0) -> 2 | H24: =IFERROR(VLOOKUP($A24,FILTRO!$A$5:$AW$2635,6,FALSE),0) -> 2 | I24: =IFERROR(VLOOKUP($A24,FILTRO!$A$5:$AW$2635,7,FALSE),0) -> 48 | J24: =IFERROR(VLOOKUP($A24,FILTRO!$A$5:$AW$2635,8,FALSE),0) -> 41 | K24: =IFERROR(VLOOKUP($A24,FILTRO!$A$5:$AW$2635,9,FALSE),0) -> 32 | L24: =IFERROR(VLOOKUP($A24,FILTRO!$A$5:$AW$2635,10,FALSE),0) -> 31 | M24: =IFERROR(VLOOKUP($A24,FILTRO!$A$5:$AW$2635,11,FALSE),0) -> 66 | N24: =IFERROR(VLOOKUP($A24,FILTRO!$A$5:$AW$2635,12,FALSE),0) -> 49 | O24: =IFERROR(VLOOKUP($A24,FILTRO!$A$5:$AW$2635,13,FALSE),0) -> 110 | P24: =IFERROR(VLOOKUP($A24,FILTRO!$A$5:$AW$2635,14,FALSE),0) -> 91 | Q24: =IFERROR(VLOOKUP($A24,FILTRO!$A$5:$AW$2635,15,FALSE),0) -> 15 | R24: =IFERROR(VLOOKUP($A24,FILTRO!$A$5:$AW$2635,16,FALSE),0) -> 14 | S24: =IFERROR(VLOOKUP($A24,FILTRO!$A$5:$AW$2635,17,FALSE),0) -> 7 | T24: =IFERROR(VLOOKUP($A24,FILTRO!$A$5:$AW$2635,18,FALSE),0) -> 0
A25: 02010420 | C25: NORMAL (desde riesgo) | D25: 643 | E25: 383 | F25: 260 | G25: =IFERROR(VLOOKUP($A25,FILTRO!$A$5:$AW$2635,5,FALSE),0) -> 3 | H25: =IFERROR(VLOOKUP($A25,FILTRO!$A$5:$AW$2635,6,FALSE),0) -> 1 | I25: =IFERROR(VLOOKUP($A25,FILTRO!$A$5:$AW$2635,7,FALSE),0) -> 46 | J25: =IFERROR(VLOOKUP($A25,FILTRO!$A$5:$AW$2635,8,FALSE),0) -> 31 | K25: =IFERROR(VLOOKUP($A25,FILTRO!$A$5:$AW$2635,9,FALSE),0) -> 33 | L25: =IFERROR(VLOOKUP($A25,FILTRO!$A$5:$AW$2635,10,FALSE),0) -> 20 | M25: =IFERROR(VLOOKUP($A25,FILTRO!$A$5:$AW$2635,11,FALSE),0) -> 179 | N25: =IFERROR(VLOOKUP($A25,FILTRO!$A$5:$AW$2635,12,FALSE),0) -> 118 | O25: =IFERROR(VLOOKUP($A25,FILTRO!$A$5:$AW$2635,13,FALSE),0) -> 106 | P25: =IFERROR(VLOOKUP($A25,FILTRO!$A$5:$AW$2635,14,FALSE),0) -> 78 | Q25: =IFERROR(VLOOKUP($A25,FILTRO!$A$5:$AW$2635,15,FALSE),0) -> 16 | R25: =IFERROR(VLOOKUP($A25,FILTRO!$A$5:$AW$2635,16,FALSE),0) -> 12 | S25: =IFERROR(VLOOKUP($A25,FILTRO!$A$5:$AW$2635,17,FALSE),0) -> 0 | T25: =IFERROR(VLOOKUP($A25,FILTRO!$A$5:$AW$2635,18,FALSE),0) -> 2
A26: 05225305 | C26: NORMAL (desde retraso) | D26: 86 | E26: 55 | F26: 31 | G26: =IFERROR(VLOOKUP($A26,FILTRO!$A$5:$AW$2635,5,FALSE),0) -> 0 | H26: =IFERROR(VLOOKUP($A26,FILTRO!$A$5:$AW$2635,6,FALSE),0) -> 0 | I26: =IFERROR(VLOOKUP($A26,FILTRO!$A$5:$AW$2635,7,FALSE),0) -> 3 | J26: =IFERROR(VLOOKUP($A26,FILTRO!$A$5:$AW$2635,8,FALSE),0) -> 3 | K26: =IFERROR(VLOOKUP($A26,FILTRO!$A$5:$AW$2635,9,FALSE),0) -> 1 | L26: =IFERROR(VLOOKUP($A26,FILTRO!$A$5:$AW$2635,10,FALSE),0) -> 2 | M26: =IFERROR(VLOOKUP($A26,FILTRO!$A$5:$AW$2635,11,FALSE),0) -> 22 | N26: =IFERROR(VLOOKUP($A26,FILTRO!$A$5:$AW$2635,12,FALSE),0) -> 13 | O26: =IFERROR(VLOOKUP($A26,FILTRO!$A$5:$AW$2635,13,FALSE),0) -> 16 | P26: =IFERROR(VLOOKUP($A26,FILTRO!$A$5:$AW$2635,14,FALSE),0) -> 12 | Q26: =IFERROR(VLOOKUP($A26,FILTRO!$A$5:$AW$2635,15,FALSE),0) -> 13 | R26: =IFERROR(VLOOKUP($A26,FILTRO!$A$5:$AW$2635,16,FALSE),0) -> 1 | S26: =IFERROR(VLOOKUP($A26,FILTRO!$A$5:$AW$2635,17,FALSE),0) -> 4 | T26: =IFERROR(VLOOKUP($A26,FILTRO!$A$5:$AW$2635,18,FALSE),0) -> 0
A27: 03500366 | C27: NORMAL CON REZAGO (desde riesgo) | D27: 175 | E27: 114 | F27: 61 | G27: =IFERROR(VLOOKUP($A27,FILTRO!$A$5:$AW$2635,5,FALSE),0) -> 0 | H27: =IFERROR(VLOOKUP($A27,FILTRO!$A$5:$AW$2635,6,FALSE),0) -> 0 | I27: =IFERROR(VLOOKUP($A27,FILTRO!$A$5:$AW$2635,7,FALSE),0) -> 6 | J27: =IFERROR(VLOOKUP($A27,FILTRO!$A$5:$AW$2635,8,FALSE),0) -> 7 | K27: =IFERROR(VLOOKUP($A27,FILTRO!$A$5:$AW$2635,9,FALSE),0) -> 9 | L27: =IFERROR(VLOOKUP($A27,FILTRO!$A$5:$AW$2635,10,FALSE),0) -> 4 | M27: =IFERROR(VLOOKUP($A27,FILTRO!$A$5:$AW$2635,11,FALSE),0) -> 69 | N27: =IFERROR(VLOOKUP($A27,FILTRO!$A$5:$AW$2635,12,FALSE),0) -> 34 | O27: =IFERROR(VLOOKUP($A27,FILTRO!$A$5:$AW$2635,13,FALSE),0) -> 27 | P27: =IFERROR(VLOOKUP($A27,FILTRO!$A$5:$AW$2635,14,FALSE),0) -> 14 | Q27: =IFERROR(VLOOKUP($A27,FILTRO!$A$5:$AW$2635,15,FALSE),0) -> 3 | R27: =IFERROR(VLOOKUP($A27,FILTRO!$A$5:$AW$2635,16,FALSE),0) -> 2 | S27: =IFERROR(VLOOKUP($A27,FILTRO!$A$5:$AW$2635,17,FALSE),0) -> 0 | T27: =IFERROR(VLOOKUP($A27,FILTRO!$A$5:$AW$2635,18,FALSE),0) -> 0
A28: 03500400 | C28: NORMAL CON REZAGO (desde retraso) | D28: 31 | E28: 15 | F28: 16 | G28: =IFERROR(VLOOKUP($A28,FILTRO!$A$5:$AW$2635,5,FALSE),0) -> 0 | H28: =IFERROR(VLOOKUP($A28,FILTRO!$A$5:$AW$2635,6,FALSE),0) -> 0 | I28: =IFERROR(VLOOKUP($A28,FILTRO!$A$5:$AW$2635,7,FALSE),0) -> 1 | J28: =IFERROR(VLOOKUP($A28,FILTRO!$A$5:$AW$2635,8,FALSE),0) -> 1 | K28: =IFERROR(VLOOKUP($A28,FILTRO!$A$5:$AW$2635,9,FALSE),0) -> 1 | L28: =IFERROR(VLOOKUP($A28,FILTRO!$A$5:$AW$2635,10,FALSE),0) -> 1 | M28: =IFERROR(VLOOKUP($A28,FILTRO!$A$5:$AW$2635,11,FALSE),0) -> 5 | N28: =IFERROR(VLOOKUP($A28,FILTRO!$A$5:$AW$2635,12,FALSE),0) -> 9 | O28: =IFERROR(VLOOKUP($A28,FILTRO!$A$5:$AW$2635,13,FALSE),0) -> 6 | P28: =IFERROR(VLOOKUP($A28,FILTRO!$A$5:$AW$2635,14,FALSE),0) -> 4 | Q28: =IFERROR(VLOOKUP($A28,FILTRO!$A$5:$AW$2635,15,FALSE),0) -> 2 | R28: =IFERROR(VLOOKUP($A28,FILTRO!$A$5:$AW$2635,16,FALSE),0) -> 1 | S28: =IFERROR(VLOOKUP($A28,FILTRO!$A$5:$AW$2635,17,FALSE),0) -> 0 | T28: =IFERROR(VLOOKUP($A28,FILTRO!$A$5:$AW$2635,18,FALSE),0) -> 0
A29: 03500401 | C29: RIESGO (desde retraso) | D29: =SUM(E29:F29) -> 49 | E29: 30 | F29: 19 | G29: =IFERROR(VLOOKUP($A29,FILTRO!$A$5:$AW$2635,5,FALSE),0) -> 0 | H29: =IFERROR(VLOOKUP($A29,FILTRO!$A$5:$AW$2635,6,FALSE),0) -> 0 | I29: =IFERROR(VLOOKUP($A29,FILTRO!$A$5:$AW$2635,7,FALSE),0) -> 0 | J29: =IFERROR(VLOOKUP($A29,FILTRO!$A$5:$AW$2635,8,FALSE),0) -> 0 | K29: =IFERROR(VLOOKUP($A29,FILTRO!$A$5:$AW$2635,9,FALSE),0) -> 3 | L29: =IFERROR(VLOOKUP($A29,FILTRO!$A$5:$AW$2635,10,FALSE),0) -> 2 | M29: =IFERROR(VLOOKUP($A29,FILTRO!$A$5:$AW$2635,11,FALSE),0) -> 12 | N29: =IFERROR(VLOOKUP($A29,FILTRO!$A$5:$AW$2635,12,FALSE),0) -> 8 | O29: =IFERROR(VLOOKUP($A29,FILTRO!$A$5:$AW$2635,13,FALSE),0) -> 13 | P29: =IFERROR(VLOOKUP($A29,FILTRO!$A$5:$AW$2635,14,FALSE),0) -> 8 | Q29: =IFERROR(VLOOKUP($A29,FILTRO!$A$5:$AW$2635,15,FALSE),0) -> 2 | R29: =IFERROR(VLOOKUP($A29,FILTRO!$A$5:$AW$2635,16,FALSE),0) -> 1 | S29: =IFERROR(VLOOKUP($A29,FILTRO!$A$5:$AW$2635,17,FALSE),0) -> 0 | T29: =IFERROR(VLOOKUP($A29,FILTRO!$A$5:$AW$2635,18,FALSE),0) -> 0
A30: 05225306 | C30: NORMAL CON REZAGO (desde normal con rezago) | D30: =SUM(E30:F30) -> 106 | E30: 82 | F30: 24 | G30: =IFERROR(VLOOKUP($A30,FILTRO!$A$5:$AW$2635,5,FALSE),0) -> 0 | H30: =IFERROR(VLOOKUP($A30,FILTRO!$A$5:$AW$2635,6,FALSE),0) -> 0 | I30: =IFERROR(VLOOKUP($A30,FILTRO!$A$5:$AW$2635,7,FALSE),0) -> 6 | J30: =IFERROR(VLOOKUP($A30,FILTRO!$A$5:$AW$2635,8,FALSE),0) -> 1 | K30: =IFERROR(VLOOKUP($A30,FILTRO!$A$5:$AW$2635,9,FALSE),0) -> 9 | L30: =IFERROR(VLOOKUP($A30,FILTRO!$A$5:$AW$2635,10,FALSE),0) -> 5 | M30: =IFERROR(VLOOKUP($A30,FILTRO!$A$5:$AW$2635,11,FALSE),0) -> 22 | N30: =IFERROR(VLOOKUP($A30,FILTRO!$A$5:$AW$2635,12,FALSE),0) -> 5 | O30: =IFERROR(VLOOKUP($A30,FILTRO!$A$5:$AW$2635,13,FALSE),0) -> 36 | P30: =IFERROR(VLOOKUP($A30,FILTRO!$A$5:$AW$2635,14,FALSE),0) -> 11 | Q30: =IFERROR(VLOOKUP($A30,FILTRO!$A$5:$AW$2635,15,FALSE),0) -> 9 | R30: =IFERROR(VLOOKUP($A30,FILTRO!$A$5:$AW$2635,16,FALSE),0) -> 2 | S30: =IFERROR(VLOOKUP($A30,FILTRO!$A$5:$AW$2635,17,FALSE),0) -> 1 | T30: =IFERROR(VLOOKUP($A30,FILTRO!$A$5:$AW$2635,18,FALSE),0) -> 0
A31: 02010421 | C31: RIESGO (desde riesgo) | D31: =SUM(E31+F31) -> 132 | E31: 90 | F31: 42 | G31: =IFERROR(VLOOKUP($A31,FILTRO!$A$5:$AW$2635,5,FALSE),0) -> 0 | H31: =IFERROR(VLOOKUP($A31,FILTRO!$A$5:$AW$2635,6,FALSE),0) -> 0 | I31: =IFERROR(VLOOKUP($A31,FILTRO!$A$5:$AW$2635,7,FALSE),0) -> 8 | J31: =IFERROR(VLOOKUP($A31,FILTRO!$A$5:$AW$2635,8,FALSE),0) -> 3 | K31: =IFERROR(VLOOKUP($A31,FILTRO!$A$5:$AW$2635,9,FALSE),0) -> 14 | L31: =IFERROR(VLOOKUP($A31,FILTRO!$A$5:$AW$2635,10,FALSE),0) -> 4 | M31: =IFERROR(VLOOKUP($A31,FILTRO!$A$5:$AW$2635,11,FALSE),0) -> 35 | N31: =IFERROR(VLOOKUP($A31,FILTRO!$A$5:$AW$2635,12,FALSE),0) -> 20 | O31: =IFERROR(VLOOKUP($A31,FILTRO!$A$5:$AW$2635,13,FALSE),0) -> 28 | P31: =IFERROR(VLOOKUP($A31,FILTRO!$A$5:$AW$2635,14,FALSE),0) -> 14 | Q31: =IFERROR(VLOOKUP($A31,FILTRO!$A$5:$AW$2635,15,FALSE),0) -> 5 | R31: =IFERROR(VLOOKUP($A31,FILTRO!$A$5:$AW$2635,16,FALSE),0) -> 1 | S31: =IFERROR(VLOOKUP($A31,FILTRO!$A$5:$AW$2635,17,FALSE),0) -> 0 | T31: =IFERROR(VLOOKUP($A31,FILTRO!$A$5:$AW$2635,18,FALSE),0) -> 0
A32: 03600110 | C32: RIESGO (desde normal con rezago) | D32: =SUM(E32+F32) -> 37 | E32: 27 | F32: 10 | G32: =IFERROR(VLOOKUP($A32,FILTRO!$A$5:$AW$2635,5,FALSE),0) -> 0 | H32: =IFERROR(VLOOKUP($A32,FILTRO!$A$5:$AW$2635,6,FALSE),0) -> 0 | I32: =IFERROR(VLOOKUP($A32,FILTRO!$A$5:$AW$2635,7,FALSE),0) -> 4 | J32: =IFERROR(VLOOKUP($A32,FILTRO!$A$5:$AW$2635,8,FALSE),0) -> 1 | K32: =IFERROR(VLOOKUP($A32,FILTRO!$A$5:$AW$2635,9,FALSE),0) -> 4 | L32: =IFERROR(VLOOKUP($A32,FILTRO!$A$5:$AW$2635,10,FALSE),0) -> 4 | M32: =IFERROR(VLOOKUP($A32,FILTRO!$A$5:$AW$2635,11,FALSE),0) -> 8 | N32: =IFERROR(VLOOKUP($A32,FILTRO!$A$5:$AW$2635,12,FALSE),0) -> 2 | O32: =IFERROR(VLOOKUP($A32,FILTRO!$A$5:$AW$2635,13,FALSE),0) -> 11 | P32: =IFERROR(VLOOKUP($A32,FILTRO!$A$5:$AW$2635,14,FALSE),0) -> 3 | Q32: =IFERROR(VLOOKUP($A32,FILTRO!$A$5:$AW$2635,15,FALSE),0) -> 0 | R32: =IFERROR(VLOOKUP($A32,FILTRO!$A$5:$AW$2635,16,FALSE),0) -> 0 | S32: =IFERROR(VLOOKUP($A32,FILTRO!$A$5:$AW$2635,17,FALSE),0) -> 0 | T32: =IFERROR(VLOOKUP($A32,FILTRO!$A$5:$AW$2635,18,FALSE),0) -> 0
A33: 02010422 | C33: RETRASO (desde retraso) | D33: =SUM(E33+F33) -> 45 | E33: 35 | F33: 10 | G33: =IFERROR(VLOOKUP($A33,FILTRO!$A$5:$AW$2635,5,FALSE),0) -> 0 | H33: =IFERROR(VLOOKUP($A33,FILTRO!$A$5:$AW$2635,6,FALSE),0) -> 0 | I33: =IFERROR(VLOOKUP($A33,FILTRO!$A$5:$AW$2635,7,FALSE),0) -> 1 | J33: =IFERROR(VLOOKUP($A33,FILTRO!$A$5:$AW$2635,8,FALSE),0) -> 0 | K33: =IFERROR(VLOOKUP($A33,FILTRO!$A$5:$AW$2635,9,FALSE),0) -> 0 | L33: =IFERROR(VLOOKUP($A33,FILTRO!$A$5:$AW$2635,10,FALSE),0) -> 0 | M33: =IFERROR(VLOOKUP($A33,FILTRO!$A$5:$AW$2635,11,FALSE),0) -> 15 | N33: =IFERROR(VLOOKUP($A33,FILTRO!$A$5:$AW$2635,12,FALSE),0) -> 5 | O33: =IFERROR(VLOOKUP($A33,FILTRO!$A$5:$AW$2635,13,FALSE),0) -> 13 | P33: =IFERROR(VLOOKUP($A33,FILTRO!$A$5:$AW$2635,14,FALSE),0) -> 4 | Q33: =IFERROR(VLOOKUP($A33,FILTRO!$A$5:$AW$2635,15,FALSE),0) -> 6 | R33: =IFERROR(VLOOKUP($A33,FILTRO!$A$5:$AW$2635,16,FALSE),0) -> 1 | S33: =IFERROR(VLOOKUP($A33,FILTRO!$A$5:$AW$2635,17,FALSE),0) -> 0 | T33: =IFERROR(VLOOKUP($A33,FILTRO!$A$5:$AW$2635,18,FALSE),0) -> 0
A34: 03600120 | C34: RETRASO (desde riesgo) | D34: =SUM(E34+F34) -> 56 | E34: 45 | F34: 11 | G34: =IFERROR(VLOOKUP($A34,FILTRO!$A$5:$AW$2635,5,FALSE),0) -> 0 | H34: =IFERROR(VLOOKUP($A34,FILTRO!$A$5:$AW$2635,6,FALSE),0) -> 0 | I34: =IFERROR(VLOOKUP($A34,FILTRO!$A$5:$AW$2635,7,FALSE),0) -> 0 | J34: =IFERROR(VLOOKUP($A34,FILTRO!$A$5:$AW$2635,8,FALSE),0) -> 0 | K34: =IFERROR(VLOOKUP($A34,FILTRO!$A$5:$AW$2635,9,FALSE),0) -> 9 | L34: =IFERROR(VLOOKUP($A34,FILTRO!$A$5:$AW$2635,10,FALSE),0) -> 1 | M34: =IFERROR(VLOOKUP($A34,FILTRO!$A$5:$AW$2635,11,FALSE),0) -> 10 | N34: =IFERROR(VLOOKUP($A34,FILTRO!$A$5:$AW$2635,12,FALSE),0) -> 6 | O34: =IFERROR(VLOOKUP($A34,FILTRO!$A$5:$AW$2635,13,FALSE),0) -> 22 | P34: =IFERROR(VLOOKUP($A34,FILTRO!$A$5:$AW$2635,14,FALSE),0) -> 4 | Q34: =IFERROR(VLOOKUP($A34,FILTRO!$A$5:$AW$2635,15,FALSE),0) -> 4 | R34: =IFERROR(VLOOKUP($A34,FILTRO!$A$5:$AW$2635,16,FALSE),0) -> 0 | S34: =IFERROR(VLOOKUP($A34,FILTRO!$A$5:$AW$2635,17,FALSE),0) -> 0 | T34: =IFERROR(VLOOKUP($A34,FILTRO!$A$5:$AW$2635,18,FALSE),0) -> 0
A35: 03600130 | C35: RETRASO (desde normal con rezago) | D35: =SUM(E35+F35) -> 11 | E35: 8 | F35: 3 | G35: =IFERROR(VLOOKUP($A35,FILTRO!$A$5:$AW$2635,5,FALSE),0) -> 0 | H35: =IFERROR(VLOOKUP($A35,FILTRO!$A$5:$AW$2635,6,FALSE),0) -> 0 | I35: =IFERROR(VLOOKUP($A35,FILTRO!$A$5:$AW$2635,7,FALSE),0) -> 0 | J35: =IFERROR(VLOOKUP($A35,FILTRO!$A$5:$AW$2635,8,FALSE),0) -> 0 | K35: =IFERROR(VLOOKUP($A35,FILTRO!$A$5:$AW$2635,9,FALSE),0) -> 2 | L35: =IFERROR(VLOOKUP($A35,FILTRO!$A$5:$AW$2635,10,FALSE),0) -> 1 | M35: =IFERROR(VLOOKUP($A35,FILTRO!$A$5:$AW$2635,11,FALSE),0) -> 1 | N35: =IFERROR(VLOOKUP($A35,FILTRO!$A$5:$AW$2635,12,FALSE),0) -> 0 | O35: =IFERROR(VLOOKUP($A35,FILTRO!$A$5:$AW$2635,13,FALSE),0) -> 5 | P35: =IFERROR(VLOOKUP($A35,FILTRO!$A$5:$AW$2635,14,FALSE),0) -> 2 | Q35: =IFERROR(VLOOKUP($A35,FILTRO!$A$5:$AW$2635,15,FALSE),0) -> 0 | R35: =IFERROR(VLOOKUP($A35,FILTRO!$A$5:$AW$2635,16,FALSE),0) -> 0 | S35: =IFERROR(VLOOKUP($A35,FILTRO!$A$5:$AW$2635,17,FALSE),0) -> 0 | T35: =IFERROR(VLOOKUP($A35,FILTRO!$A$5:$AW$2635,18,FALSE),0) -> 0
A36: 03500331 | B36: DERIVADOS A ESPECIALIDAD | C36: RIESGO | D36: 171 | E36: =SUM(G36+I36+K36+M36+O36+Q36) -> 112 | F36: 59 | G36: =IFERROR(VLOOKUP($A36,FILTRO!$A$5:$AW$2635,5,FALSE),0) -> 0 | H36: =IFERROR(VLOOKUP($A36,FILTRO!$A$5:$AW$2635,6,FALSE),0) -> 0 | I36: =IFERROR(VLOOKUP($A36,FILTRO!$A$5:$AW$2635,7,FALSE),0) -> 14 | J36: =IFERROR(VLOOKUP($A36,FILTRO!$A$5:$AW$2635,8,FALSE),0) -> 12 | K36: =IFERROR(VLOOKUP($A36,FILTRO!$A$5:$AW$2635,9,FALSE),0) -> 13 | L36: =IFERROR(VLOOKUP($A36,FILTRO!$A$5:$AW$2635,10,FALSE),0) -> 8 | M36: =IFERROR(VLOOKUP($A36,FILTRO!$A$5:$AW$2635,11,FALSE),0) -> 42 | N36: =IFERROR(VLOOKUP($A36,FILTRO!$A$5:$AW$2635,12,FALSE),0) -> 22 | O36: =IFERROR(VLOOKUP($A36,FILTRO!$A$5:$AW$2635,13,FALSE),0) -> 39 | P36: =IFERROR(VLOOKUP($A36,FILTRO!$A$5:$AW$2635,14,FALSE),0) -> 15 | Q36: =IFERROR(VLOOKUP($A36,FILTRO!$A$5:$AW$2635,15,FALSE),0) -> 4 | R36: =IFERROR(VLOOKUP($A36,FILTRO!$A$5:$AW$2635,16,FALSE),0) -> 2 | S36: =IFERROR(VLOOKUP($A36,FILTRO!$A$5:$AW$2635,17,FALSE),0) -> 0 | T36: =IFERROR(VLOOKUP($A36,FILTRO!$A$5:$AW$2635,18,FALSE),0) -> 0
A37: 03500332 | C37: RETRASO | D37: 166 | E37: 127 | F37: 39 | G37: =IFERROR(VLOOKUP($A37,FILTRO!$A$5:$AW$2635,5,FALSE),0) -> 0 | H37: =IFERROR(VLOOKUP($A37,FILTRO!$A$5:$AW$2635,6,FALSE),0) -> 2 | I37: =IFERROR(VLOOKUP($A37,FILTRO!$A$5:$AW$2635,7,FALSE),0) -> 2 | J37: =IFERROR(VLOOKUP($A37,FILTRO!$A$5:$AW$2635,8,FALSE),0) -> 7 | K37: =IFERROR(VLOOKUP($A37,FILTRO!$A$5:$AW$2635,9,FALSE),0) -> 15 | L37: =IFERROR(VLOOKUP($A37,FILTRO!$A$5:$AW$2635,10,FALSE),0) -> 1 | M37: =IFERROR(VLOOKUP($A37,FILTRO!$A$5:$AW$2635,11,FALSE),0) -> 62 | N37: =IFERROR(VLOOKUP($A37,FILTRO!$A$5:$AW$2635,12,FALSE),0) -> 19 | O37: =IFERROR(VLOOKUP($A37,FILTRO!$A$5:$AW$2635,13,FALSE),0) -> 40 | P37: =IFERROR(VLOOKUP($A37,FILTRO!$A$5:$AW$2635,14,FALSE),0) -> 7 | Q37: =IFERROR(VLOOKUP($A37,FILTRO!$A$5:$AW$2635,15,FALSE),0) -> 8 | R37: =IFERROR(VLOOKUP($A37,FILTRO!$A$5:$AW$2635,16,FALSE),0) -> 3 | S37: =IFERROR(VLOOKUP($A37,FILTRO!$A$5:$AW$2635,17,FALSE),0) -> 0 | T37: =IFERROR(VLOOKUP($A37,FILTRO!$A$5:$AW$2635,18,FALSE),0) -> 1
A38: 03500333 | B38: TRASLADO DE ESTABLECIMIENTO | C38: NORMAL CON REZAGO | D38: 5 | E38: 3 | F38: 2 | G38: =IFERROR(VLOOKUP($A38,FILTRO!$A$5:$AW$2635,5,FALSE),0) -> 0 | H38: =IFERROR(VLOOKUP($A38,FILTRO!$A$5:$AW$2635,6,FALSE),0) -> 0 | I38: =IFERROR(VLOOKUP($A38,FILTRO!$A$5:$AW$2635,7,FALSE),0) -> 0 | J38: =IFERROR(VLOOKUP($A38,FILTRO!$A$5:$AW$2635,8,FALSE),0) -> 1 | K38: =IFERROR(VLOOKUP($A38,FILTRO!$A$5:$AW$2635,9,FALSE),0) -> 1 | L38: =IFERROR(VLOOKUP($A38,FILTRO!$A$5:$AW$2635,10,FALSE),0) -> 0 | M38: =IFERROR(VLOOKUP($A38,FILTRO!$A$5:$AW$2635,11,FALSE),0) -> 1 | N38: =IFERROR(VLOOKUP($A38,FILTRO!$A$5:$AW$2635,12,FALSE),0) -> 1 | O38: =IFERROR(VLOOKUP($A38,FILTRO!$A$5:$AW$2635,13,FALSE),0) -> 1 | P38: =IFERROR(VLOOKUP($A38,FILTRO!$A$5:$AW$2635,14,FALSE),0) -> 0 | Q38: =IFERROR(VLOOKUP($A38,FILTRO!$A$5:$AW$2635,15,FALSE),0) -> 0 | R38: =IFERROR(VLOOKUP($A38,FILTRO!$A$5:$AW$2635,16,FALSE),0) -> 0 | S38: =IFERROR(VLOOKUP($A38,FILTRO!$A$5:$AW$2635,17,FALSE),0) -> 0 | T38: =IFERROR(VLOOKUP($A38,FILTRO!$A$5:$AW$2635,18,FALSE),0) -> 0
A39: 03500334 | C39: RIESGO | D39: 16 | E39: 11 | F39: 5 | G39: =IFERROR(VLOOKUP($A39,FILTRO!$A$5:$AW$2635,5,FALSE),0) -> 0 | H39: =IFERROR(VLOOKUP($A39,FILTRO!$A$5:$AW$2635,6,FALSE),0) -> 0 | I39: =IFERROR(VLOOKUP($A39,FILTRO!$A$5:$AW$2635,7,FALSE),0) -> 0 | J39: =IFERROR(VLOOKUP($A39,FILTRO!$A$5:$AW$2635,8,FALSE),0) -> 1 | K39: =IFERROR(VLOOKUP($A39,FILTRO!$A$5:$AW$2635,9,FALSE),0) -> 3 | L39: =IFERROR(VLOOKUP($A39,FILTRO!$A$5:$AW$2635,10,FALSE),0) -> 0 | M39: =IFERROR(VLOOKUP($A39,FILTRO!$A$5:$AW$2635,11,FALSE),0) -> 7 | N39: =IFERROR(VLOOKUP($A39,FILTRO!$A$5:$AW$2635,12,FALSE),0) -> 1 | O39: =IFERROR(VLOOKUP($A39,FILTRO!$A$5:$AW$2635,13,FALSE),0) -> 1 | P39: =IFERROR(VLOOKUP($A39,FILTRO!$A$5:$AW$2635,14,FALSE),0) -> 2 | Q39: =IFERROR(VLOOKUP($A39,FILTRO!$A$5:$AW$2635,15,FALSE),0) -> 0 | R39: =IFERROR(VLOOKUP($A39,FILTRO!$A$5:$AW$2635,16,FALSE),0) -> 1 | S39: =IFERROR(VLOOKUP($A39,FILTRO!$A$5:$AW$2635,17,FALSE),0) -> 0 | T39: =IFERROR(VLOOKUP($A39,FILTRO!$A$5:$AW$2635,18,FALSE),0) -> 0
A40: 03500335 | C40: RETRASO | D40: 1 | E40: 1 | F40: 0 | G40: =IFERROR(VLOOKUP($A40,FILTRO!$A$5:$AW$2635,5,FALSE),0) -> 0 | H40: =IFERROR(VLOOKUP($A40,FILTRO!$A$5:$AW$2635,6,FALSE),0) -> 0 | I40: =IFERROR(VLOOKUP($A40,FILTRO!$A$5:$AW$2635,7,FALSE),0) -> 1 | J40: =IFERROR(VLOOKUP($A40,FILTRO!$A$5:$AW$2635,8,FALSE),0) -> 0 | K40: =IFERROR(VLOOKUP($A40,FILTRO!$A$5:$AW$2635,9,FALSE),0) -> 0 | L40: =IFERROR(VLOOKUP($A40,FILTRO!$A$5:$AW$2635,10,FALSE),0) -> 0 | M40: =IFERROR(VLOOKUP($A40,FILTRO!$A$5:$AW$2635,11,FALSE),0) -> 0 | N40: =IFERROR(VLOOKUP($A40,FILTRO!$A$5:$AW$2635,12,FALSE),0) -> 0 | O40: =IFERROR(VLOOKUP($A40,FILTRO!$A$5:$AW$2635,13,FALSE),0) -> 0 | P40: =IFERROR(VLOOKUP($A40,FILTRO!$A$5:$AW$2635,14,FALSE),0) -> 0 | Q40: =IFERROR(VLOOKUP($A40,FILTRO!$A$5:$AW$2635,15,FALSE),0) -> 0 | R40: =IFERROR(VLOOKUP($A40,FILTRO!$A$5:$AW$2635,16,FALSE),0) -> 0 | S40: =IFERROR(VLOOKUP($A40,FILTRO!$A$5:$AW$2635,17,FALSE),0) -> 0 | T40: =IFERROR(VLOOKUP($A40,FILTRO!$A$5:$AW$2635,18,FALSE),0) -> 0
B41: SECCIÓN A.3: NIÑOS Y NIÑAS CON REZAGO, DÉFICIT U OTRA VULNERABILIDAD DERIVADOS A ALGUNA MODALIDAD DE ESTIMULACIÓN EN LA PRIMERA EVALUACIÓN
B42: NIÑO / A | C42: TOTAL | F42: POR EDAD
F43: Menor 7 meses | H43: 7 - 11 meses | J43: 12 - 17 meses | L43: 18 - 23 meses | N43: 24 - 47 meses | P43: 48 - 59 meses
C44: Ambos Sexos | D44: Hombres | E44: Mujeres | F44: Hombres | G44: Mujeres | H44: Hombres | I44: Mujeres | J44: Hombres | K44: Mujeres | L44: Hombres | M44: Mujeres | N44: Hombres | O44: Mujeres | P44: Hombres | Q44: Mujeres
A45: 02021790 | B45: NORMAL CON REZAGO | C45: =SUM(D45+E45) -> 1275 | D45: =SUM(F45+H45+J45+L45+N45+P45) -> 725 | E45: =SUM(G45+I45+K45+M45+O45+Q45) -> 550 | F45: =IFERROR(VLOOKUP($A45,FILTRO!$A$5:$AW$2635,5,FALSE),0) -> 27 | G45: =IFERROR(VLOOKUP($A45,FILTRO!$A$5:$AW$2635,6,FALSE),0) -> 25 | H45: =IFERROR(VLOOKUP($A45,FILTRO!$A$5:$AW$2635,7,FALSE),0) -> 102 | I45: =IFERROR(VLOOKUP($A45,FILTRO!$A$5:$AW$2635,8,FALSE),0) -> 113 | J45: =IFERROR(VLOOKUP($A45,FILTRO!$A$5:$AW$2635,9,FALSE),0) -> 74 | K45: =IFERROR(VLOOKUP($A45,FILTRO!$A$5:$AW$2635,10,FALSE),0) -> 48 | L45: =IFERROR(VLOOKUP($A45,FILTRO!$A$5:$AW$2635,11,FALSE),0) -> 182 | M45: =IFERROR(VLOOKUP($A45,FILTRO!$A$5:$AW$2635,12,FALSE),0) -> 125 | N45: =IFERROR(VLOOKUP($A45,FILTRO!$A$5:$AW$2635,13,FALSE),0) -> 322 | O45: =IFERROR(VLOOKUP($A45,FILTRO!$A$5:$AW$2635,14,FALSE),0) -> 233 | P45: =IFERROR(VLOOKUP($A45,FILTRO!$A$5:$AW$2635,15,FALSE),0) -> 18 | Q45: =IFERROR(VLOOKUP($A45,FILTRO!$A$5:$AW$2635,16,FALSE),0) -> 6 | R45: =CB45 ->  | CB45: =IF(C45<#REF!,"* Niños derivados deben ser mayores o iguales al ingreso de niños(as) Normal con Rezago a salas de estimulación REM A05 sección F. ","") ->  | DB45: =IF(C45<#REF!,1,0) -> 
A46: 02021810 | B46: RIESGO | C46: =SUM(D46+E46) -> 1273 | D46: =SUM(F46+H46+J46+L46+N46+P46) -> 791 | E46: 482 | F46: =IFERROR(VLOOKUP($A46,FILTRO!$A$5:$AW$2635,5,FALSE),0) -> 11 | G46: =IFERROR(VLOOKUP($A46,FILTRO!$A$5:$AW$2635,6,FALSE),0) -> 7 | H46: =IFERROR(VLOOKUP($A46,FILTRO!$A$5:$AW$2635,7,FALSE),0) -> 102 | I46: =IFERROR(VLOOKUP($A46,FILTRO!$A$5:$AW$2635,8,FALSE),0) -> 96 | J46: =IFERROR(VLOOKUP($A46,FILTRO!$A$5:$AW$2635,9,FALSE),0) -> 70 | K46: =IFERROR(VLOOKUP($A46,FILTRO!$A$5:$AW$2635,10,FALSE),0) -> 33 | L46: =IFERROR(VLOOKUP($A46,FILTRO!$A$5:$AW$2635,11,FALSE),0) -> 302 | M46: =IFERROR(VLOOKUP($A46,FILTRO!$A$5:$AW$2635,12,FALSE),0) -> 180 | N46: =IFERROR(VLOOKUP($A46,FILTRO!$A$5:$AW$2635,13,FALSE),0) -> 290 | O46: =IFERROR(VLOOKUP($A46,FILTRO!$A$5:$AW$2635,14,FALSE),0) -> 161 | P46: =IFERROR(VLOOKUP($A46,FILTRO!$A$5:$AW$2635,15,FALSE),0) -> 16 | Q46: =IFERROR(VLOOKUP($A46,FILTRO!$A$5:$AW$2635,16,FALSE),0) -> 5 | CB46: =IF(C46<#REF!,"* Niños derivados deben ser mayores o iguales al ingreso de niños(as) Normal con Rezago a salas de estimulación REM A05 sección F. ","") ->  | DB46: =IF(C46<#REF!,1,0) -> 
A47: 02021820 | B47: RETRASO | C47: =SUM(D47+E47) -> 441 | D47: 317 | E47: 124 | F47: =IFERROR(VLOOKUP($A47,FILTRO!$A$5:$AW$2635,5,FALSE),0) -> 1 | G47: =IFERROR(VLOOKUP($A47,FILTRO!$A$5:$AW$2635,6,FALSE),0) -> 1 | H47: =IFERROR(VLOOKUP($A47,FILTRO!$A$5:$AW$2635,7,FALSE),0) -> 13 | I47: =IFERROR(VLOOKUP($A47,FILTRO!$A$5:$AW$2635,8,FALSE),0) -> 15 | J47: =IFERROR(VLOOKUP($A47,FILTRO!$A$5:$AW$2635,9,FALSE),0) -> 24 | K47: =IFERROR(VLOOKUP($A47,FILTRO!$A$5:$AW$2635,10,FALSE),0) -> 4 | L47: =IFERROR(VLOOKUP($A47,FILTRO!$A$5:$AW$2635,11,FALSE),0) -> 135 | M47: =IFERROR(VLOOKUP($A47,FILTRO!$A$5:$AW$2635,12,FALSE),0) -> 62 | N47: =IFERROR(VLOOKUP($A47,FILTRO!$A$5:$AW$2635,13,FALSE),0) -> 123 | O47: =IFERROR(VLOOKUP($A47,FILTRO!$A$5:$AW$2635,14,FALSE),0) -> 37 | P47: =IFERROR(VLOOKUP($A47,FILTRO!$A$5:$AW$2635,15,FALSE),0) -> 21 | Q47: =IFERROR(VLOOKUP($A47,FILTRO!$A$5:$AW$2635,16,FALSE),0) -> 5 | CB47: =IF(C47<#REF!,"* Niños derivados deben ser mayores o iguales al ingreso de niños(as) Normal con Rezago a salas de estimulación REM A05 sección F. ","") ->  | DB47: =IF(C47<#REF!,1,0) -> 
A48: 05225307 | B48: OTRA VULNERABILIDAD | C48: =SUM(D48:E48) -> 2100 | D48: 1152 | E48: 948 | F48: =IFERROR(VLOOKUP($A48,FILTRO!$A$5:$AW$2635,5,FALSE),0) -> 299 | G48: =IFERROR(VLOOKUP($A48,FILTRO!$A$5:$AW$2635,6,FALSE),0) -> 322 | H48: =IFERROR(VLOOKUP($A48,FILTRO!$A$5:$AW$2635,7,FALSE),0) -> 101 | I48: =IFERROR(VLOOKUP($A48,FILTRO!$A$5:$AW$2635,8,FALSE),0) -> 112 | J48: =IFERROR(VLOOKUP($A48,FILTRO!$A$5:$AW$2635,9,FALSE),0) -> 124 | K48: =IFERROR(VLOOKUP($A48,FILTRO!$A$5:$AW$2635,10,FALSE),0) -> 91 | L48: =IFERROR(VLOOKUP($A48,FILTRO!$A$5:$AW$2635,11,FALSE),0) -> 154 | M48: =IFERROR(VLOOKUP($A48,FILTRO!$A$5:$AW$2635,12,FALSE),0) -> 142 | N48: =IFERROR(VLOOKUP($A48,FILTRO!$A$5:$AW$2635,13,FALSE),0) -> 365 | O48: =IFERROR(VLOOKUP($A48,FILTRO!$A$5:$AW$2635,14,FALSE),0) -> 191 | P48: =IFERROR(VLOOKUP($A48,FILTRO!$A$5:$AW$2635,15,FALSE),0) -> 109 | Q48: =IFERROR(VLOOKUP($A48,FILTRO!$A$5:$AW$2635,16,FALSE),0) -> 90 | CB48: =IF(C48<#REF!,"* Niños derivados deben ser mayores o iguales al ingreso de niños(as) Normal con Rezago a salas de estimulación REM A05 sección F. ","") ->  | DB48: =IF(C48<#REF!,1,0) -> 
B49: SECCIÓN A.4: RESULTADOS DE LA APLICACIÓN DE PROTOCOLO NEUROSENSORIAL
B50: RESULTADOS | C50: TOTAL | F50: POR EDAD
F51: 1 mes | H51: 2 meses
C52: Ambos Sexos | D52: Hombres | E52: Mujeres | F52: Hombres | G52: Mujeres | H52: Hombres | I52: Mujeres
A53: 02021760 | B53: APLICACIÓN DE PROTOCOLO NEUROSENSORIAL (1-2 MESES) | C53: =SUM(D53+E53) -> 4843 | D53: =SUM(F53+H53) -> 2465 | E53: =SUM(G53+I53) -> 2378 | F53: =IFERROR(VLOOKUP($A53,FILTRO!$A$5:$AW$2635,5,FALSE),0) -> 2062 | G53: =IFERROR(VLOOKUP($A53,FILTRO!$A$5:$AW$2635,6,FALSE),0) -> 1970 | H53: =IFERROR(VLOOKUP($A53,FILTRO!$A$5:$AW$2635,7,FALSE),0) -> 403 | I53: =IFERROR(VLOOKUP($A53,FILTRO!$A$5:$AW$2635,8,FALSE),0) -> 408
A54: 03500040 | B54: NORMAL | C54: =SUM(D54+E54) -> 4029 | D54: =SUM(F54+H54) -> 2034 | E54: 1995 | F54: =IFERROR(VLOOKUP($A54,FILTRO!$A$5:$AW$2635,5,FALSE),0) -> 1727 | G54: =IFERROR(VLOOKUP($A54,FILTRO!$A$5:$AW$2635,6,FALSE),0) -> 1676 | H54: =IFERROR(VLOOKUP($A54,FILTRO!$A$5:$AW$2635,7,FALSE),0) -> 307 | I54: =IFERROR(VLOOKUP($A54,FILTRO!$A$5:$AW$2635,8,FALSE),0) -> 319
A55: 03500050 | B55: ANORMAL | C55: =SUM(D55+E55) -> 755 | D55: =SUM(F55+H55) -> 401 | E55: =SUM(G55+I55) -> 354 | F55: =IFERROR(VLOOKUP($A55,FILTRO!$A$5:$AW$2635,5,FALSE),0) -> 312 | G55: =IFERROR(VLOOKUP($A55,FILTRO!$A$5:$AW$2635,6,FALSE),0) -> 275 | H55: =IFERROR(VLOOKUP($A55,FILTRO!$A$5:$AW$2635,7,FALSE),0) -> 89 | I55: =IFERROR(VLOOKUP($A55,FILTRO!$A$5:$AW$2635,8,FALSE),0) -> 79
A56: 03500060 | B56: MUY ANORMAL | C56: =SUM(D56+E56) -> 71 | D56: 38 | E56: 33 | F56: =IFERROR(VLOOKUP($A56,FILTRO!$A$5:$AW$2635,5,FALSE),0) -> 31 | G56: =IFERROR(VLOOKUP($A56,FILTRO!$A$5:$AW$2635,6,FALSE),0) -> 23 | H56: =IFERROR(VLOOKUP($A56,FILTRO!$A$5:$AW$2635,7,FALSE),0) -> 7 | I56: =IFERROR(VLOOKUP($A56,FILTRO!$A$5:$AW$2635,8,FALSE),0) -> 10
B57: SECCIÓN A.5: LACTANCIA EN NIÑOS Y NIÑAS CONTROLADOS
B58: TIPO DE ALIMENTACIÓN | D58: TOTAL | E58: SEGÚN CONTROL PROGRAMÁTICO | K58: Pueblos Originarios | L58: Migrantes
E59: Diada | F59: Del 1° mes | G59: Del 3° mes | H59: Del 6° mes | I59: Del 12° mes | J59: Del 24° mes | CB59: 0 | CC59: 0 | CD59: 0 | CE59: 0 | CF59: 0
A60: A0200002 | B60: LACTANCIA MATERNA EXCLUSIVA | D60: =SUM(E60:H60) -> 12522 | E60: =IFERROR(VLOOKUP($A60,FILTRO!$A$5:$AW$2635,3,FALSE),0) -> 3397 | F60: =IFERROR(VLOOKUP($A60,FILTRO!$A$5:$AW$2635,4,FALSE),0) -> 3166 | G60: =IFERROR(VLOOKUP($A60,FILTRO!$A$5:$AW$2635,5,FALSE),0) -> 3111 | H60: =IFERROR(VLOOKUP($A60,FILTRO!$A$5:$AW$2635,6,FALSE),0) -> 2848 | I60: =IFERROR(VLOOKUP($A60,FILTRO!$A$5:$AW$2635,7,FALSE),0) -> 0 | J60: =IFERROR(VLOOKUP($A60,FILTRO!$A$5:$AW$2635,8,FALSE),0) -> 0 | K60: =IFERROR(VLOOKUP($A60,FILTRO!$A$5:$AW$2635,9,FALSE),0) -> 46 | L60: =IFERROR(VLOOKUP($A60,FILTRO!$A$5:$AW$2635,10,FALSE),0) -> 87 | CD60: * * El campo Migrantes NO PUEDE ser mayor al Total. | CF60: 0 | CG60: 0 | CH60: 0 | DA60: 0 | DB60: 0 | DC60: 0 | DD60: 1 | DE60: 0
A61: 03500359 | B61: LACTANCIA MATERNA / FORMULA LÁCTEA | D61: =SUM(E61:H61) -> 3867 | E61: =IFERROR(VLOOKUP($A61,FILTRO!$A$5:$AW$2635,3,FALSE),0) -> 853 | F61: =IFERROR(VLOOKUP($A61,FILTRO!$A$5:$AW$2635,4,FALSE),0) -> 1242 | G61: =IFERROR(VLOOKUP($A61,FILTRO!$A$5:$AW$2635,5,FALSE),0) -> 1087 | H61: =IFERROR(VLOOKUP($A61,FILTRO!$A$5:$AW$2635,6,FALSE),0) -> 685 | I61: =IFERROR(VLOOKUP($A61,FILTRO!$A$5:$AW$2635,7,FALSE),0) -> 0 | J61: =IFERROR(VLOOKUP($A61,FILTRO!$A$5:$AW$2635,8,FALSE),0) -> 0 | K61: =IFERROR(VLOOKUP($A61,FILTRO!$A$5:$AW$2635,9,FALSE),0) -> 12 | L61: =IFERROR(VLOOKUP($A61,FILTRO!$A$5:$AW$2635,10,FALSE),0) -> 23 | DB61: 0 | DC61: 0 | DD61: 0 | DE61: 0
A62: 03500360 | B62: FORMULA LÁCTEA | D62: =SUM(E62:H62) -> 1487 | E62: =IFERROR(VLOOKUP($A62,FILTRO!$A$5:$AW$2635,3,FALSE),0) -> 75 | F62: =IFERROR(VLOOKUP($A62,FILTRO!$A$5:$AW$2635,4,FALSE),0) -> 313 | G62: =IFERROR(VLOOKUP($A62,FILTRO!$A$5:$AW$2635,5,FALSE),0) -> 551 | H62: =IFERROR(VLOOKUP($A62,FILTRO!$A$5:$AW$2635,6,FALSE),0) -> 548 | I62: =IFERROR(VLOOKUP($A62,FILTRO!$A$5:$AW$2635,7,FALSE),0) -> 0 | J62: =IFERROR(VLOOKUP($A62,FILTRO!$A$5:$AW$2635,8,FALSE),0) -> 0 | K62: =IFERROR(VLOOKUP($A62,FILTRO!$A$5:$AW$2635,9,FALSE),0) -> 3 | L62: =IFERROR(VLOOKUP($A62,FILTRO!$A$5:$AW$2635,10,FALSE),0) -> 8 | DB62: 0 | DC62: 0 | DD62: 0 | DE62: 0
A63: A0200003 | B63: LACTANCIA MATERNA MAS ALIMENTACIÓN COMPLEMENTARIA | D63: =SUM(E63:J63) -> 2274 | E63: =IFERROR(VLOOKUP($A63,FILTRO!$A$5:$AW$2635,3,FALSE),0) -> 4 | F63: =IFERROR(VLOOKUP($A63,FILTRO!$A$5:$AW$2635,4,FALSE),0) -> 9 | G63: =IFERROR(VLOOKUP($A63,FILTRO!$A$5:$AW$2635,5,FALSE),0) -> 16 | H63: =IFERROR(VLOOKUP($A63,FILTRO!$A$5:$AW$2635,6,FALSE),0) -> 361 | I63: =IFERROR(VLOOKUP($A63,FILTRO!$A$5:$AW$2635,7,FALSE),0) -> 1402 | J63: =IFERROR(VLOOKUP($A63,FILTRO!$A$5:$AW$2635,8,FALSE),0) -> 482 | K63: =IFERROR(VLOOKUP($A63,FILTRO!$A$5:$AW$2635,9,FALSE),0) -> 22 | L63: =IFERROR(VLOOKUP($A63,FILTRO!$A$5:$AW$2635,10,FALSE),0) -> 15 | DB63: 0 | DC63: 0 | DD63: 0 | DE63: 0
A64: 03600140 | B64: LACTANCIA MATERNA/ FÓRMULA LÁCTEA/ ALIMENTACIÓN COMPLEMENTARIA | D64: =SUM(H64:J64)+E64 -> 2717 | E64: =IFERROR(VLOOKUP($A64,FILTRO!$A$5:$AW$2635,3,FALSE),0) -> 9 | F64: =IFERROR(VLOOKUP($A64,FILTRO!$A$5:$AW$2635,4,FALSE),0) -> 0 | G64: =IFERROR(VLOOKUP($A64,FILTRO!$A$5:$AW$2635,5,FALSE),0) -> 0 | H64: =IFERROR(VLOOKUP($A64,FILTRO!$A$5:$AW$2635,6,FALSE),0) -> 363 | I64: =IFERROR(VLOOKUP($A64,FILTRO!$A$5:$AW$2635,7,FALSE),0) -> 1405 | J64: =IFERROR(VLOOKUP($A64,FILTRO!$A$5:$AW$2635,8,FALSE),0) -> 940 | K64: =IFERROR(VLOOKUP($A64,FILTRO!$A$5:$AW$2635,9,FALSE),0) -> 16 | L64: =IFERROR(VLOOKUP($A64,FILTRO!$A$5:$AW$2635,10,FALSE),0) -> 11 | DA64: 0 | DB64: 0 | DC64: 0 | DD64: 0 | DE64: 0
A65: 03600150 | B65: FORMULA LÁCTEA ALIMENTACIÓN COMPLEMENTARIA | D65: =SUM(H65:J65)+E65 -> 4070 | E65: =IFERROR(VLOOKUP($A65,FILTRO!$A$5:$AW$2635,3,FALSE),0) -> 9 | F65: =IFERROR(VLOOKUP($A65,FILTRO!$A$5:$AW$2635,4,FALSE),0) -> 0 | G65: =IFERROR(VLOOKUP($A65,FILTRO!$A$5:$AW$2635,5,FALSE),0) -> 0 | H65: =IFERROR(VLOOKUP($A65,FILTRO!$A$5:$AW$2635,6,FALSE),0) -> 345 | I65: =IFERROR(VLOOKUP($A65,FILTRO!$A$5:$AW$2635,7,FALSE),0) -> 1569 | J65: =IFERROR(VLOOKUP($A65,FILTRO!$A$5:$AW$2635,8,FALSE),0) -> 2147 | K65: =IFERROR(VLOOKUP($A65,FILTRO!$A$5:$AW$2635,9,FALSE),0) -> 23 | L65: =IFERROR(VLOOKUP($A65,FILTRO!$A$5:$AW$2635,10,FALSE),0) -> 30 | DA65: 0 | DB65: 0 | DC65: 0 | DD65: 0 | DE65: 0
A66: A0200001 | B66: NÚMERO DE NIÑOS Y NIÑAS CONTROLADOS | D66: =SUM(E66:J66) -> 25679 | E66: =IFERROR(VLOOKUP($A66,FILTRO!$A$5:$AW$2635,3,FALSE),0) -> 3575 | F66: =IFERROR(VLOOKUP($A66,FILTRO!$A$5:$AW$2635,4,FALSE),0) -> 4424 | G66: =IFERROR(VLOOKUP($A66,FILTRO!$A$5:$AW$2635,5,FALSE),0) -> 4516 | H66: =IFERROR(VLOOKUP($A66,FILTRO!$A$5:$AW$2635,6,FALSE),0) -> 5144 | I66: =IFERROR(VLOOKUP($A66,FILTRO!$A$5:$AW$2635,7,FALSE),0) -> 4360 | J66: =IFERROR(VLOOKUP($A66,FILTRO!$A$5:$AW$2635,8,FALSE),0) -> 3660 | K66: =IFERROR(VLOOKUP($A66,FILTRO!$A$5:$AW$2635,9,FALSE),0) -> 100 | L66: =IFERROR(VLOOKUP($A66,FILTRO!$A$5:$AW$2635,10,FALSE),0) -> 133 | CE66: * El número de menores con lactancia materna Exclusiva o Artificial al control del 6er mes NO debe ser MAYOR al número de menores controlados. | CG66: * El número de menores con lactancia Materna o Artificial mas Solidos al control del 24 meses NO debe ser MAYOR al número de menores controlados. | DA66: 0 | DB66: 0 | DC66: 0 | DD66: 0 | DE66: 1 | DF66: 0 | DG66: 1 | DH66: 0
B67: SECCIÓN A.6: RESULTADOS RADIOGRAFÍA DE PELVIS (CADERA)
B68: RESULTADO | C68: TOTAL | F68: POR EDAD | J68: 3 MESES | L68: 4 MESES
F69: 3 MESES | H69: 4 MESES | J69: Pueblos Originarios | K69: Migrantes | L69: Pueblos Originarios | M69: Migrantes
C70: Ambos Sexos | D70: Hombres | E70: Mujeres | F70: Hombres | G70: Mujeres | H70: Hombres | I70: Mujeres
A71: 09600207 | B71: NORMAL | C71: =SUM(D71:E71) -> 3590 | D71: =+F71+H71 -> 1925 | E71: 1665 | F71: =IFERROR(VLOOKUP($A71,FILTRO!$A$5:$AW$2635,5,FALSE),0) -> 1415 | G71: =IFERROR(VLOOKUP($A71,FILTRO!$A$5:$AW$2635,6,FALSE),0) -> 1214 | H71: =IFERROR(VLOOKUP($A71,FILTRO!$A$5:$AW$2635,7,FALSE),0) -> 510 | I71: =IFERROR(VLOOKUP($A71,FILTRO!$A$5:$AW$2635,8,FALSE),0) -> 451 | J71: =IFERROR(VLOOKUP($A71,FILTRO!$A$5:$AW$2635,9,FALSE),0) -> 24 | K71: =IFERROR(VLOOKUP($A71,FILTRO!$A$5:$AW$2635,10,FALSE),0) -> 17 | L71: =IFERROR(VLOOKUP($A71,FILTRO!$A$5:$AW$2635,11,FALSE),0) -> 11 | M71: =IFERROR(VLOOKUP($A71,FILTRO!$A$5:$AW$2635,12,FALSE),0) -> 17 | DA71: 0 | DB71: 0 | DC71: 0 | DD71: 0 | DE71: 0 | DF71: 0 | DG71: 0 | DH71: 0 | DI71: 0
A72: 09600208 | B72: ANORMAL | C72: =SUM(D72:E72) -> 607 | D72: 210 | E72: 397 | F72: =IFERROR(VLOOKUP($A72,FILTRO!$A$5:$AW$2635,5,FALSE),0) -> 134 | G72: =IFERROR(VLOOKUP($A72,FILTRO!$A$5:$AW$2635,6,FALSE),0) -> 252 | H72: =IFERROR(VLOOKUP($A72,FILTRO!$A$5:$AW$2635,7,FALSE),0) -> 76 | I72: =IFERROR(VLOOKUP($A72,FILTRO!$A$5:$AW$2635,8,FALSE),0) -> 145 | J72: =IFERROR(VLOOKUP($A72,FILTRO!$A$5:$AW$2635,9,FALSE),0) -> 3 | K72: =IFERROR(VLOOKUP($A72,FILTRO!$A$5:$AW$2635,10,FALSE),0) -> 3 | L72: =IFERROR(VLOOKUP($A72,FILTRO!$A$5:$AW$2635,11,FALSE),0) -> 0 | M72: =IFERROR(VLOOKUP($A72,FILTRO!$A$5:$AW$2635,12,FALSE),0) -> 1 | CF72: * * No olvide digitar el campo Pueblos Originarios (4 MESES) (Digite CEROS si no tiene). | CG72: * * No olvide digitar el campo Migrantes (4 MESES) (Digite CEROS si no tiene). | DB72: 0 | DC72: 0 | DD72: 0 | DE72: 0 | DF72: 0 | DG72: 0 | DH72: 0 | DI72: 0
A73: 09600209 | B73: INMADURA | C73: =SUM(D73:E73) -> 688 | D73: 247 | E73: 441 | F73: =IFERROR(VLOOKUP($A73,FILTRO!$A$5:$AW$2635,5,FALSE),0) -> 195 | G73: =IFERROR(VLOOKUP($A73,FILTRO!$A$5:$AW$2635,6,FALSE),0) -> 342 | H73: =IFERROR(VLOOKUP($A73,FILTRO!$A$5:$AW$2635,7,FALSE),0) -> 52 | I73: =IFERROR(VLOOKUP($A73,FILTRO!$A$5:$AW$2635,8,FALSE),0) -> 99 | J73: =IFERROR(VLOOKUP($A73,FILTRO!$A$5:$AW$2635,9,FALSE),0) -> 6 | K73: =IFERROR(VLOOKUP($A73,FILTRO!$A$5:$AW$2635,10,FALSE),0) -> 8 | L73: =IFERROR(VLOOKUP($A73,FILTRO!$A$5:$AW$2635,11,FALSE),0) -> 1 | M73: =IFERROR(VLOOKUP($A73,FILTRO!$A$5:$AW$2635,12,FALSE),0) -> 5 | CF73: * * No olvide digitar el campo Pueblos Originarios (4 MESES) (Digite CEROS si no tiene). | CG73: * * No olvide digitar el campo Migrantes (4 MESES) (Digite CEROS si no tiene). | DB73: 0 | DC73: 0 | DD73: 0 | DE73: 0 | DF73: 0 | DG73: 0 | DH73: 0 | DI73: 0
B74: SECCION B: EVALUACIÓN, APLICACIÓN Y RESULTADOS DE ESCALAS EN LA MUJER
B75: SECCIÓN B.1: EVALUACIÓN DEL ESTADO NUTRICIONAL A MUJERES CONTROLADAS AL OCTAVO MES POST PARTO
B76: ESTADO NUTRICIONAL | C76: TOTAL
B78: TOTAL | C78: =SUM(C79:C82) -> 882
A79: 03500120 | B79: OBESA | C79: =IFERROR(VLOOKUP($A79,FILTRO!$A$5:$AW$2635,2,FALSE),0) -> 327
A80: 03500130 | B80: SOBREPESO | C80: =IFERROR(VLOOKUP($A80,FILTRO!$A$5:$AW$2635,2,FALSE),0) -> 338
A81: 03500140 | B81: NORMAL | C81: =IFERROR(VLOOKUP($A81,FILTRO!$A$5:$AW$2635,2,FALSE),0) -> 203
A82: 03500150 | B82: BAJO PESO | C82: =IFERROR(VLOOKUP($A82,FILTRO!$A$5:$AW$2635,2,FALSE),0) -> 14
B83: SECCIÓN B.2: APLICACIÓN DE ESCALA SEGÚN EVALUACIÓN DE RIESGO PSICOSOCIAL ABREVIADA A GESTANTES
B84: TIPO | C84: Total de Aplicaciones | D84: Riesgo | E84: Derivadas a equipo de cabecera | F84: Violencia Intrafamiliar | CG84: 0
A85: 02021830 | B85: EVALUACIÓN AL INGRESO | C85: =IFERROR(VLOOKUP($A85,FILTRO!$A$5:$AW$2635,2,FALSE),0) -> 6145 | D85: =IFERROR(VLOOKUP($A85,FILTRO!$A$5:$AW$2635,3,FALSE),0) -> 1695 | E85: =IFERROR(VLOOKUP($A85,FILTRO!$A$5:$AW$2635,4,FALSE),0) -> 1379 | F85: =IFERROR(VLOOKUP($A85,FILTRO!$A$5:$AW$2635,5,FALSE),0) -> 125 | G85: =CA85&CB85&CC85 ->  | BU85: =IF(CA85=1,"* Las Aplicaciones de EPSA con resultado de Riesgo NO DEBE ser MAYOR que el Total de las aplicaciones. ","") ->  | CA85: =IF(CG85=1,"* Las Aplicaciones de EPSA con resultado de Riesgo NO DEBE ser MAYOR que el Total de las aplicaciones. ","") ->  | CB85: =IF(CH85=1,"* Las Aplicaciones de EPSA con resultado de Riesgo NO DEBE ser MENOR que las Derivaciones a equipo de cabecera. ","") ->  | CC85: =IF(CI85=1,"* Las Aplicaciones de EPSA asociadas a Violencia Intrafamiliar NO DEBEN ser MAYOR al Total de las aplicaciones. ","") ->  | CG85: =IF(C85<D85,1,0) -> 0 | CH85: =IF(D85<E85,1,0) -> 0 | CI85: =IF(F85>C85,1,0) -> 0
A86: 03600160 | B86: EVALUACIÓN AL TERCER TRIMESTRE | C86: =IFERROR(VLOOKUP($A86,FILTRO!$A$5:$AW$2635,2,FALSE),0) -> 396 | D86: =IFERROR(VLOOKUP($A86,FILTRO!$A$5:$AW$2635,3,FALSE),0) -> 69 | E86: =IFERROR(VLOOKUP($A86,FILTRO!$A$5:$AW$2635,4,FALSE),0) -> 54 | F86: =IFERROR(VLOOKUP($A86,FILTRO!$A$5:$AW$2635,5,FALSE),0) -> 4 | G86: =CA86&CB86&CC86 ->  | CA86: =IF(CG86=1,"* Las Aplicaciones de EPSA con resultado de Riesgo NO DEBE ser MAYOR que el Total de las aplicaciones. ","") ->  | CB86: =IF(CH86=1,"* Las Aplicaciones de EPSA con resultado de Riesgo NO DEBE ser MENOR que las Derivaciones a equipo de cabecera. ","") ->  | CC86: =IF(CI86=1,"* Las Aplicaciones de EPSA asociadas a Violencia Intrafamiliar NO DEBEN ser MAYOR al Total de las aplicaciones. ","") ->  | CG86: =IF(C86<D86,1,0) -> 0 | CH86: =IF(D86<E86,1,0) -> 0 | CI86: =IF(F86>C86,1,0) -> 0
B87: SECCIÓN B.3: APLICACIÓN DE ESCALA DE EDIMBURGO A GESTANTES Y MUJERES POST PARTO | CH87: 0
B88: CONCEPTO | D88: TOTAL DE APLICACIONES | E88: RESULTADOS 10 O MÁS PTOS. O RESULTADO DISTINTO DE 0 EN PREG 10 . (PUERPERAS) | F88: RESULTADOS 13 O MÁS PTOS O RESULTADO DISTINTO DE 0 EN PREG 10. (GESTANTES) | G88: TOTAL DE CASOS ALTERADOS DERIVADOS A SALUD MENTAL | CH88: 0
A89: 03500160 | B89: EVALUACIÓN A GESTANTES | C89: PRIMERA EVALUACIÓN (2º control prenatal) | D89: =IFERROR(VLOOKUP($A89,FILTRO!$A$5:$AW$2635,2,FALSE),0) -> 6187 | E89: =IFERROR(VLOOKUP($A89,FILTRO!$A$5:$AW$2635,3,FALSE),0) -> 0 | F89: =IFERROR(VLOOKUP($A89,FILTRO!$A$5:$AW$2635,4,FALSE),0) -> 598 | G89: =IFERROR(VLOOKUP($A89,FILTRO!$A$5:$AW$2635,5,FALSE),0) -> 574 | CH89: 0 | DA89: 0 | DC89: 0
A90: 03500170 | C90: REEVALUACIÓN (con puntaje elevado en la primera evaluación) | D90: =IFERROR(VLOOKUP($A90,FILTRO!$A$5:$AW$2635,2,FALSE),0) -> 75 | E90: =IFERROR(VLOOKUP($A90,FILTRO!$A$5:$AW$2635,3,FALSE),0) -> 0 | F90: =IFERROR(VLOOKUP($A90,FILTRO!$A$5:$AW$2635,4,FALSE),0) -> 27 | G90: =IFERROR(VLOOKUP($A90,FILTRO!$A$5:$AW$2635,5,FALSE),0) -> 14 | CH90: 0 | DC90: 0
A91: 03500200 | B91: EVALUACIÓN A MUJERES POST PARTO O SÍNTOMAS DE DEPRESIÓN | C91: A los 2 meses | D91: =IFERROR(VLOOKUP($A91,FILTRO!$A$5:$AW$2635,2,FALSE),0) -> 4481 | E91: =IFERROR(VLOOKUP($A91,FILTRO!$A$5:$AW$2635,3,FALSE),0) -> 664 | F91: =IFERROR(VLOOKUP($A91,FILTRO!$A$5:$AW$2635,4,FALSE),0) -> 0 | G91: =IFERROR(VLOOKUP($A91,FILTRO!$A$5:$AW$2635,5,FALSE),0) -> 520 | CH91: 0 | DB91: 0
A92: 03500210 | C92: A los 6 meses | D92: =IFERROR(VLOOKUP($A92,FILTRO!$A$5:$AW$2635,2,FALSE),0) -> 4198 | E92: =IFERROR(VLOOKUP($A92,FILTRO!$A$5:$AW$2635,3,FALSE),0) -> 647 | F92: =IFERROR(VLOOKUP($A92,FILTRO!$A$5:$AW$2635,4,FALSE),0) -> 0 | G92: =IFERROR(VLOOKUP($A92,FILTRO!$A$5:$AW$2635,5,FALSE),0) -> 468 | CH92: 0 | DB92: 0
B93: SECCIÓN C: RESULTADOS DE LA EVALUACIÓN DEL ESTADO NUTRICIONAL DEL ADOLESCENTE CON CONTROL SALUD INTEGRAL
B94: ESTADO NUTRICIONAL | D94: TOTAL | G94: 10 A 14 años | I94: 15 A 19 años
D95: Ambos Sexos | E95: Hombres | F95: Mujeres | G95: Hombres | H95: Mujeres | I95: Hombres | J95: Mujeres
B96: TOTAL | D96: =SUM(D97:D101) -> 13312 | E96: =SUM(E97:E101) -> 5768 | F96: 7544 | G96: =SUM(G97:G101) -> 4092 | H96: =SUM(H97:H101) -> 4924 | I96: 1676 | J96: 2620
A97: 03050400 | B97: NORMAL | D97: =SUM(E97+F97) -> 5885 | E97: =SUM(G97+I97) -> 2521 | F97: =SUM(H97+J97) -> 3364 | G97: =IFERROR(VLOOKUP($A97,FILTRO!$A$5:$AW$2635,5,FALSE),0) -> 1697 | H97: =IFERROR(VLOOKUP($A97,FILTRO!$A$5:$AW$2635,6,FALSE),0) -> 2226 | I97: =IFERROR(VLOOKUP($A97,FILTRO!$A$5:$AW$2635,7,FALSE),0) -> 824 | J97: =IFERROR(VLOOKUP($A97,FILTRO!$A$5:$AW$2635,8,FALSE),0) -> 1138
A98: 03050500 | B98: BAJO PESO | D98: =SUM(E98+F98) -> 836 | E98: 460 | F98: 376 | G98: =IFERROR(VLOOKUP($A98,FILTRO!$A$5:$AW$2635,5,FALSE),0) -> 292 | H98: =IFERROR(VLOOKUP($A98,FILTRO!$A$5:$AW$2635,6,FALSE),0) -> 239 | I98: =IFERROR(VLOOKUP($A98,FILTRO!$A$5:$AW$2635,7,FALSE),0) -> 168 | J98: =IFERROR(VLOOKUP($A98,FILTRO!$A$5:$AW$2635,8,FALSE),0) -> 137
A99: 03050600 | B99: SOBREPESO | D99: =SUM(E99+F99) -> 3446 | E99: 1326 | F99: 2120 | G99: =IFERROR(VLOOKUP($A99,FILTRO!$A$5:$AW$2635,5,FALSE),0) -> 987 | H99: =IFERROR(VLOOKUP($A99,FILTRO!$A$5:$AW$2635,6,FALSE),0) -> 1371 | I99: =IFERROR(VLOOKUP($A99,FILTRO!$A$5:$AW$2635,7,FALSE),0) -> 339 | J99: =IFERROR(VLOOKUP($A99,FILTRO!$A$5:$AW$2635,8,FALSE),0) -> 749
A100: 03050700 | B100: OBESOS | D100: =SUM(E100+F100) -> 2662 | E100: 1213 | F100: 1449 | G100: =IFERROR(VLOOKUP($A100,FILTRO!$A$5:$AW$2635,5,FALSE),0) -> 935 | H100: =IFERROR(VLOOKUP($A100,FILTRO!$A$5:$AW$2635,6,FALSE),0) -> 950 | I100: =IFERROR(VLOOKUP($A100,FILTRO!$A$5:$AW$2635,7,FALSE),0) -> 278 | J100: =IFERROR(VLOOKUP($A100,FILTRO!$A$5:$AW$2635,8,FALSE),0) -> 499
A101: 03050710 | B101: OBESOS SEVEROS | D101: =SUM(E101+F101) -> 483 | E101: 248 | F101: 235 | G101: =IFERROR(VLOOKUP($A101,FILTRO!$A$5:$AW$2635,5,FALSE),0) -> 181 | H101: =IFERROR(VLOOKUP($A101,FILTRO!$A$5:$AW$2635,6,FALSE),0) -> 138 | I101: =IFERROR(VLOOKUP($A101,FILTRO!$A$5:$AW$2635,7,FALSE),0) -> 67 | J101: =IFERROR(VLOOKUP($A101,FILTRO!$A$5:$AW$2635,8,FALSE),0) -> 97
B102: SECCIÓN D: OTRAS EVALUACIONES, APLICACIONES Y RESULTADOS DE ESCALAS EN TODAS LAS EDADES
B103: SECCIÓN D.1: APLICACIÓN DE TAMIZAJE PARA EVALUAR EL NIVEL DE RIESGO DE CONSUMO DE ALCOHOL, TABACO Y OTRAS DROGAS
B104: COMPONENTE | D104: TOTAL | G104: POR EDAD
G105: 10-14 años | I105: 15-19 años | K105: 20-24 años | M105: 25-44 años | O105: 45-64 años | Q105: 65-69 años | S105: 70-79 años | U105: 80 y más años
D106: Ambos Sexos | E106: Hombres | F106: Mujeres | G106: Hombres | H106: Mujeres | I106: Hombres | J106: Mujeres | K106: Hombres | L106: Mujeres | M106: Hombres | N106: Mujeres | O106: Hombres | P106: Mujeres | Q106: Hombres | R106: Mujeres | S106: Hombres | T106: Mujeres | U106: Hombres | V106: Mujeres
A107: 03500346 | B107: Nº DE AUDIT (EMP/EMPAM) | D107: =SUM(E107+F107) -> 37295 | E107: =+I107+K107+M107+O107+Q107+S107+U107 -> 12587 | F107: =+J107+L107+N107+P107+R107+T107+V107 -> 24708 | G107: =IFERROR(VLOOKUP($A107,FILTRO!$A$5:$AW$2635,5,FALSE),0) -> 0 | H107: =IFERROR(VLOOKUP($A107,FILTRO!$A$5:$AW$2635,6,FALSE),0) -> 0 | I107: =IFERROR(VLOOKUP($A107,FILTRO!$A$5:$AW$2635,7,FALSE),0) -> 197 | J107: =IFERROR(VLOOKUP($A107,FILTRO!$A$5:$AW$2635,8,FALSE),0) -> 337 | K107: =IFERROR(VLOOKUP($A107,FILTRO!$A$5:$AW$2635,9,FALSE),0) -> 742 | L107: =IFERROR(VLOOKUP($A107,FILTRO!$A$5:$AW$2635,10,FALSE),0) -> 1873 | M107: =IFERROR(VLOOKUP($A107,FILTRO!$A$5:$AW$2635,11,FALSE),0) -> 3565 | N107: =IFERROR(VLOOKUP($A107,FILTRO!$A$5:$AW$2635,12,FALSE),0) -> 8529 | O107: =IFERROR(VLOOKUP($A107,FILTRO!$A$5:$AW$2635,13,FALSE),0) -> 3025 | P107: =IFERROR(VLOOKUP($A107,FILTRO!$A$5:$AW$2635,14,FALSE),0) -> 5841 | Q107: =IFERROR(VLOOKUP($A107,FILTRO!$A$5:$AW$2635,15,FALSE),0) -> 1394 | R107: =IFERROR(VLOOKUP($A107,FILTRO!$A$5:$AW$2635,16,FALSE),0) -> 2344 | S107: =IFERROR(VLOOKUP($A107,FILTRO!$A$5:$AW$2635,17,FALSE),0) -> 2371 | T107: =IFERROR(VLOOKUP($A107,FILTRO!$A$5:$AW$2635,18,FALSE),0) -> 3635 | U107: =IFERROR(VLOOKUP($A107,FILTRO!$A$5:$AW$2635,19,FALSE),0) -> 1293 | V107: =IFERROR(VLOOKUP($A107,FILTRO!$A$5:$AW$2635,20,FALSE),0) -> 2149
A108: 03500347 | B108: Nº DE AUDIT APLICADO | D108: =SUM(E108+F108) -> 27785 | E108: =SUM(K108+M108+O108+Q108+S108+U108) -> 10223 | F108: 17562 | G108: =IFERROR(VLOOKUP($A108,FILTRO!$A$5:$AW$2635,5,FALSE),0) -> 0 | H108: =IFERROR(VLOOKUP($A108,FILTRO!$A$5:$AW$2635,6,FALSE),0) -> 0 | I108: =IFERROR(VLOOKUP($A108,FILTRO!$A$5:$AW$2635,7,FALSE),0) -> 0 | J108: =IFERROR(VLOOKUP($A108,FILTRO!$A$5:$AW$2635,8,FALSE),0) -> 0 | K108: =IFERROR(VLOOKUP($A108,FILTRO!$A$5:$AW$2635,9,FALSE),0) -> 1511 | L108: =IFERROR(VLOOKUP($A108,FILTRO!$A$5:$AW$2635,10,FALSE),0) -> 2313 | M108: =IFERROR(VLOOKUP($A108,FILTRO!$A$5:$AW$2635,11,FALSE),0) -> 3223 | N108: =IFERROR(VLOOKUP($A108,FILTRO!$A$5:$AW$2635,12,FALSE),0) -> 6610 | O108: =IFERROR(VLOOKUP($A108,FILTRO!$A$5:$AW$2635,13,FALSE),0) -> 2608 | P108: =IFERROR(VLOOKUP($A108,FILTRO!$A$5:$AW$2635,14,FALSE),0) -> 4814 | Q108: =IFERROR(VLOOKUP($A108,FILTRO!$A$5:$AW$2635,15,FALSE),0) -> 1121 | R108: =IFERROR(VLOOKUP($A108,FILTRO!$A$5:$AW$2635,16,FALSE),0) -> 1581 | S108: =IFERROR(VLOOKUP($A108,FILTRO!$A$5:$AW$2635,17,FALSE),0) -> 1178 | T108: =IFERROR(VLOOKUP($A108,FILTRO!$A$5:$AW$2635,18,FALSE),0) -> 1564 | U108: =IFERROR(VLOOKUP($A108,FILTRO!$A$5:$AW$2635,19,FALSE),0) -> 582 | V108: =IFERROR(VLOOKUP($A108,FILTRO!$A$5:$AW$2635,20,FALSE),0) -> 680
A109: 03500402 | B109: Nº DE ASSIST (EMP/EMPAM) | D109: 2360 | E109: 834 | F109: 1526 | G109: =IFERROR(VLOOKUP($A109,FILTRO!$A$5:$AW$2635,5,FALSE),0) -> 0 | H109: =IFERROR(VLOOKUP($A109,FILTRO!$A$5:$AW$2635,6,FALSE),0) -> 0 | I109: =IFERROR(VLOOKUP($A109,FILTRO!$A$5:$AW$2635,7,FALSE),0) -> 0 | J109: =IFERROR(VLOOKUP($A109,FILTRO!$A$5:$AW$2635,8,FALSE),0) -> 0 | K109: =IFERROR(VLOOKUP($A109,FILTRO!$A$5:$AW$2635,9,FALSE),0) -> 57 | L109: =IFERROR(VLOOKUP($A109,FILTRO!$A$5:$AW$2635,10,FALSE),0) -> 110 | M109: =IFERROR(VLOOKUP($A109,FILTRO!$A$5:$AW$2635,11,FALSE),0) -> 246 | N109: =IFERROR(VLOOKUP($A109,FILTRO!$A$5:$AW$2635,12,FALSE),0) -> 573 | O109: =IFERROR(VLOOKUP($A109,FILTRO!$A$5:$AW$2635,13,FALSE),0) -> 172 | P109: =IFERROR(VLOOKUP($A109,FILTRO!$A$5:$AW$2635,14,FALSE),0) -> 375 | Q109: =IFERROR(VLOOKUP($A109,FILTRO!$A$5:$AW$2635,15,FALSE),0) -> 136 | R109: =IFERROR(VLOOKUP($A109,FILTRO!$A$5:$AW$2635,16,FALSE),0) -> 149 | S109: =IFERROR(VLOOKUP($A109,FILTRO!$A$5:$AW$2635,17,FALSE),0) -> 152 | T109: =IFERROR(VLOOKUP($A109,FILTRO!$A$5:$AW$2635,18,FALSE),0) -> 213 | U109: =IFERROR(VLOOKUP($A109,FILTRO!$A$5:$AW$2635,19,FALSE),0) -> 71 | V109: =IFERROR(VLOOKUP($A109,FILTRO!$A$5:$AW$2635,20,FALSE),0) -> 106
A110: 03500348 | B110: N° DE ASSIST APLICADO | D110: 2844 | E110: 766 | F110: 2078 | G110: =IFERROR(VLOOKUP($A110,FILTRO!$A$5:$AW$2635,5,FALSE),0) -> 0 | H110: =IFERROR(VLOOKUP($A110,FILTRO!$A$5:$AW$2635,6,FALSE),0) -> 0 | I110: =IFERROR(VLOOKUP($A110,FILTRO!$A$5:$AW$2635,7,FALSE),0) -> 0 | J110: =IFERROR(VLOOKUP($A110,FILTRO!$A$5:$AW$2635,8,FALSE),0) -> 0 | K110: =IFERROR(VLOOKUP($A110,FILTRO!$A$5:$AW$2635,9,FALSE),0) -> 64 | L110: =IFERROR(VLOOKUP($A110,FILTRO!$A$5:$AW$2635,10,FALSE),0) -> 159 | M110: =IFERROR(VLOOKUP($A110,FILTRO!$A$5:$AW$2635,11,FALSE),0) -> 276 | N110: =IFERROR(VLOOKUP($A110,FILTRO!$A$5:$AW$2635,12,FALSE),0) -> 827 | O110: =IFERROR(VLOOKUP($A110,FILTRO!$A$5:$AW$2635,13,FALSE),0) -> 275 | P110: =IFERROR(VLOOKUP($A110,FILTRO!$A$5:$AW$2635,14,FALSE),0) -> 810 | Q110: =IFERROR(VLOOKUP($A110,FILTRO!$A$5:$AW$2635,15,FALSE),0) -> 64 | R110: =IFERROR(VLOOKUP($A110,FILTRO!$A$5:$AW$2635,16,FALSE),0) -> 116 | S110: =IFERROR(VLOOKUP($A110,FILTRO!$A$5:$AW$2635,17,FALSE),0) -> 69 | T110: =IFERROR(VLOOKUP($A110,FILTRO!$A$5:$AW$2635,18,FALSE),0) -> 134 | U110: =IFERROR(VLOOKUP($A110,FILTRO!$A$5:$AW$2635,19,FALSE),0) -> 18 | V110: =IFERROR(VLOOKUP($A110,FILTRO!$A$5:$AW$2635,20,FALSE),0) -> 32
A111: 03600100 | B111: N° DE CRAFFT EN CONTROL DE SALUD INTEGRAL DEL ADOLESCENTE | D111: 4886 | E111: =+G111+I111 -> 2214 | F111: =+H111+J111 -> 2672 | G111: =IFERROR(VLOOKUP($A111,FILTRO!$A$5:$AW$2635,5,FALSE),0) -> 1370 | H111: =IFERROR(VLOOKUP($A111,FILTRO!$A$5:$AW$2635,6,FALSE),0) -> 1603 | I111: =IFERROR(VLOOKUP($A111,FILTRO!$A$5:$AW$2635,7,FALSE),0) -> 844 | J111: =IFERROR(VLOOKUP($A111,FILTRO!$A$5:$AW$2635,8,FALSE),0) -> 1069 | K111: =IFERROR(VLOOKUP($A111,FILTRO!$A$5:$AW$2635,9,FALSE),0) -> 0 | L111: =IFERROR(VLOOKUP($A111,FILTRO!$A$5:$AW$2635,10,FALSE),0) -> 0 | M111: =IFERROR(VLOOKUP($A111,FILTRO!$A$5:$AW$2635,11,FALSE),0) -> 0 | N111: =IFERROR(VLOOKUP($A111,FILTRO!$A$5:$AW$2635,12,FALSE),0) -> 0 | O111: =IFERROR(VLOOKUP($A111,FILTRO!$A$5:$AW$2635,13,FALSE),0) -> 0 | P111: =IFERROR(VLOOKUP($A111,FILTRO!$A$5:$AW$2635,14,FALSE),0) -> 0 | Q111: =IFERROR(VLOOKUP($A111,FILTRO!$A$5:$AW$2635,15,FALSE),0) -> 0 | R111: =IFERROR(VLOOKUP($A111,FILTRO!$A$5:$AW$2635,16,FALSE),0) -> 0 | S111: =IFERROR(VLOOKUP($A111,FILTRO!$A$5:$AW$2635,17,FALSE),0) -> 0 | T111: =IFERROR(VLOOKUP($A111,FILTRO!$A$5:$AW$2635,18,FALSE),0) -> 0 | U111: =IFERROR(VLOOKUP($A111,FILTRO!$A$5:$AW$2635,19,FALSE),0) -> 0 | V111: =IFERROR(VLOOKUP($A111,FILTRO!$A$5:$AW$2635,20,FALSE),0) -> 0
A112: 03500367 | B112: N° DE CRAFFT APLICADO | D112: 6841 | E112: =+G112+I112 -> 3098 | F112: =+H112+J112 -> 3743 | G112: =IFERROR(VLOOKUP($A112,FILTRO!$A$5:$AW$2635,5,FALSE),0) -> 1706 | H112: =IFERROR(VLOOKUP($A112,FILTRO!$A$5:$AW$2635,6,FALSE),0) -> 1972 | I112: =IFERROR(VLOOKUP($A112,FILTRO!$A$5:$AW$2635,7,FALSE),0) -> 1392 | J112: =IFERROR(VLOOKUP($A112,FILTRO!$A$5:$AW$2635,8,FALSE),0) -> 1771 | K112: =IFERROR(VLOOKUP($A112,FILTRO!$A$5:$AW$2635,9,FALSE),0) -> 0 | L112: =IFERROR(VLOOKUP($A112,FILTRO!$A$5:$AW$2635,10,FALSE),0) -> 0 | M112: =IFERROR(VLOOKUP($A112,FILTRO!$A$5:$AW$2635,11,FALSE),0) -> 0 | N112: =IFERROR(VLOOKUP($A112,FILTRO!$A$5:$AW$2635,12,FALSE),0) -> 0 | O112: =IFERROR(VLOOKUP($A112,FILTRO!$A$5:$AW$2635,13,FALSE),0) -> 0 | P112: =IFERROR(VLOOKUP($A112,FILTRO!$A$5:$AW$2635,14,FALSE),0) -> 0 | Q112: =IFERROR(VLOOKUP($A112,FILTRO!$A$5:$AW$2635,15,FALSE),0) -> 0 | R112: =IFERROR(VLOOKUP($A112,FILTRO!$A$5:$AW$2635,16,FALSE),0) -> 0 | S112: =IFERROR(VLOOKUP($A112,FILTRO!$A$5:$AW$2635,17,FALSE),0) -> 0 | T112: =IFERROR(VLOOKUP($A112,FILTRO!$A$5:$AW$2635,18,FALSE),0) -> 0 | U112: =IFERROR(VLOOKUP($A112,FILTRO!$A$5:$AW$2635,19,FALSE),0) -> 0 | V112: =IFERROR(VLOOKUP($A112,FILTRO!$A$5:$AW$2635,20,FALSE),0) -> 0
A113: 03500349 | B113: RESULTADOS DE EVALUACIÓN | C113: BAJO RIESGO | D113: 73369 | E113: =SUM(G113+I113+K113+M113+O113+Q113+S113+U113) -> 26166 | F113: 47203 | G113: =IFERROR(VLOOKUP($A113,FILTRO!$A$5:$AW$2635,5,FALSE),0) -> 2704 | H113: =IFERROR(VLOOKUP($A113,FILTRO!$A$5:$AW$2635,6,FALSE),0) -> 3126 | I113: =IFERROR(VLOOKUP($A113,FILTRO!$A$5:$AW$2635,7,FALSE),0) -> 1943 | J113: =IFERROR(VLOOKUP($A113,FILTRO!$A$5:$AW$2635,8,FALSE),0) -> 2647 | K113: =IFERROR(VLOOKUP($A113,FILTRO!$A$5:$AW$2635,9,FALSE),0) -> 2116 | L113: =IFERROR(VLOOKUP($A113,FILTRO!$A$5:$AW$2635,10,FALSE),0) -> 4047 | M113: =IFERROR(VLOOKUP($A113,FILTRO!$A$5:$AW$2635,11,FALSE),0) -> 6357 | N113: =IFERROR(VLOOKUP($A113,FILTRO!$A$5:$AW$2635,12,FALSE),0) -> 14744 | O113: =IFERROR(VLOOKUP($A113,FILTRO!$A$5:$AW$2635,13,FALSE),0) -> 5253 | P113: =IFERROR(VLOOKUP($A113,FILTRO!$A$5:$AW$2635,14,FALSE),0) -> 10646 | Q113: =IFERROR(VLOOKUP($A113,FILTRO!$A$5:$AW$2635,15,FALSE),0) -> 2479 | R113: =IFERROR(VLOOKUP($A113,FILTRO!$A$5:$AW$2635,16,FALSE),0) -> 3939 | S113: =IFERROR(VLOOKUP($A113,FILTRO!$A$5:$AW$2635,17,FALSE),0) -> 3458 | T113: =IFERROR(VLOOKUP($A113,FILTRO!$A$5:$AW$2635,18,FALSE),0) -> 5232 | U113: =IFERROR(VLOOKUP($A113,FILTRO!$A$5:$AW$2635,19,FALSE),0) -> 1856 | V113: =IFERROR(VLOOKUP($A113,FILTRO!$A$5:$AW$2635,20,FALSE),0) -> 2822
A114: 03500290 | C114: CONSUMO RIESGOSO / INTERMEDIO | D114: 3603 | E114: 1526 | F114: 2077 | G114: =IFERROR(VLOOKUP($A114,FILTRO!$A$5:$AW$2635,5,FALSE),0) -> 34 | H114: =IFERROR(VLOOKUP($A114,FILTRO!$A$5:$AW$2635,6,FALSE),0) -> 46 | I114: =IFERROR(VLOOKUP($A114,FILTRO!$A$5:$AW$2635,7,FALSE),0) -> 169 | J114: =IFERROR(VLOOKUP($A114,FILTRO!$A$5:$AW$2635,8,FALSE),0) -> 179 | K114: =IFERROR(VLOOKUP($A114,FILTRO!$A$5:$AW$2635,9,FALSE),0) -> 164 | L114: =IFERROR(VLOOKUP($A114,FILTRO!$A$5:$AW$2635,10,FALSE),0) -> 260 | M114: =IFERROR(VLOOKUP($A114,FILTRO!$A$5:$AW$2635,11,FALSE),0) -> 525 | N114: =IFERROR(VLOOKUP($A114,FILTRO!$A$5:$AW$2635,12,FALSE),0) -> 852 | O114: =IFERROR(VLOOKUP($A114,FILTRO!$A$5:$AW$2635,13,FALSE),0) -> 382 | P114: =IFERROR(VLOOKUP($A114,FILTRO!$A$5:$AW$2635,14,FALSE),0) -> 496 | Q114: =IFERROR(VLOOKUP($A114,FILTRO!$A$5:$AW$2635,15,FALSE),0) -> 124 | R114: =IFERROR(VLOOKUP($A114,FILTRO!$A$5:$AW$2635,16,FALSE),0) -> 106 | S114: =IFERROR(VLOOKUP($A114,FILTRO!$A$5:$AW$2635,17,FALSE),0) -> 109 | T114: =IFERROR(VLOOKUP($A114,FILTRO!$A$5:$AW$2635,18,FALSE),0) -> 116 | U114: =IFERROR(VLOOKUP($A114,FILTRO!$A$5:$AW$2635,19,FALSE),0) -> 19 | V114: =IFERROR(VLOOKUP($A114,FILTRO!$A$5:$AW$2635,20,FALSE),0) -> 22
A115: 03500300 | C115: POSIBLE CONSUMO PERJUDICIAL O DEPENDENCIA | D115: 758 | E115: 441 | F115: 317 | G115: =IFERROR(VLOOKUP($A115,FILTRO!$A$5:$AW$2635,5,FALSE),0) -> 27 | H115: =IFERROR(VLOOKUP($A115,FILTRO!$A$5:$AW$2635,6,FALSE),0) -> 32 | I115: =IFERROR(VLOOKUP($A115,FILTRO!$A$5:$AW$2635,7,FALSE),0) -> 103 | J115: =IFERROR(VLOOKUP($A115,FILTRO!$A$5:$AW$2635,8,FALSE),0) -> 78 | K115: =IFERROR(VLOOKUP($A115,FILTRO!$A$5:$AW$2635,9,FALSE),0) -> 27 | L115: =IFERROR(VLOOKUP($A115,FILTRO!$A$5:$AW$2635,10,FALSE),0) -> 23 | M115: =IFERROR(VLOOKUP($A115,FILTRO!$A$5:$AW$2635,11,FALSE),0) -> 111 | N115: =IFERROR(VLOOKUP($A115,FILTRO!$A$5:$AW$2635,12,FALSE),0) -> 72 | O115: =IFERROR(VLOOKUP($A115,FILTRO!$A$5:$AW$2635,13,FALSE),0) -> 111 | P115: =IFERROR(VLOOKUP($A115,FILTRO!$A$5:$AW$2635,14,FALSE),0) -> 71 | Q115: =IFERROR(VLOOKUP($A115,FILTRO!$A$5:$AW$2635,15,FALSE),0) -> 28 | R115: =IFERROR(VLOOKUP($A115,FILTRO!$A$5:$AW$2635,16,FALSE),0) -> 33 | S115: =IFERROR(VLOOKUP($A115,FILTRO!$A$5:$AW$2635,17,FALSE),0) -> 31 | T115: =IFERROR(VLOOKUP($A115,FILTRO!$A$5:$AW$2635,18,FALSE),0) -> 5 | U115: =IFERROR(VLOOKUP($A115,FILTRO!$A$5:$AW$2635,19,FALSE),0) -> 3 | V115: =IFERROR(VLOOKUP($A115,FILTRO!$A$5:$AW$2635,20,FALSE),0) -> 3
B116: SECCIÓN D.2: RESULTADOS DE LA APLICACIÓN DE INSTRUMENTO DE VALORACIÓN DE DESEMPEÑO EN COMUNIDAD (IVADEC-CIF)
B117: ACTIVIDAD | C117: RESULTADO | D117: TOTAL | G117: POR EDAD
G118: 6 -11 meses | I118: 12 - 23 meses | K118: 2 - 4 años | M118: 5 - 9 años | O118: 10 a 14 años | Q118: 15 a 19 años | S118: 20 a 24 años | U118: 25 a 64 años | W118: 65 a 69 años | Y118: 70 a 79 años | AA118: 80 y más años
D119: Ambos Sexos | E119: Hombres | F119: Mujeres | G119: Hombres | H119: Mujeres | I119: Hombres | J119: Mujeres | K119: Hombres | L119: Mujeres | M119: Hombres | N119: Mujeres | O119: Hombres | P119: Mujeres | Q119: Hombres | R119: Mujeres | S119: Hombres | T119: Mujeres | U119: Hombres | V119: Mujeres | W119: Hombres | X119: Mujeres | Y119: Hombres | Z119: Mujeres | AA119: Hombres | AB119: Mujeres
A120: 03051000A | B120: ORIGEN FÍSICO | C120: SIN DISCAPACIDAD | D120: =SUM(E120+F120) -> 9 | E120: =SUM(G120+I120+K120+M120+O120+Q120+S120+U120+W120+Y120+AA120) -> 7 | F120: =SUM(H120+J120+L120+N120+P120+R120+T120+V120+X120+Z120+AB120) -> 2 | G120: =IFERROR(VLOOKUP($A120,FILTRO!$A$5:$AW$2635,5,FALSE),0) -> 0 | H120: =IFERROR(VLOOKUP($A120,FILTRO!$A$5:$AW$2635,6,FALSE),0) -> 0 | I120: =IFERROR(VLOOKUP($A120,FILTRO!$A$5:$AW$2635,7,FALSE),0) -> 0 | J120: =IFERROR(VLOOKUP($A120,FILTRO!$A$5:$AW$2635,8,FALSE),0) -> 0 | K120: =IFERROR(VLOOKUP($A120,FILTRO!$A$5:$AW$2635,9,FALSE),0) -> 1 | L120: =IFERROR(VLOOKUP($A120,FILTRO!$A$5:$AW$2635,10,FALSE),0) -> 0 | M120: =IFERROR(VLOOKUP($A120,FILTRO!$A$5:$AW$2635,11,FALSE),0) -> 0 | N120: =IFERROR(VLOOKUP($A120,FILTRO!$A$5:$AW$2635,12,FALSE),0) -> 0 | O120: =IFERROR(VLOOKUP($A120,FILTRO!$A$5:$AW$2635,13,FALSE),0) -> 0 | P120: =IFERROR(VLOOKUP($A120,FILTRO!$A$5:$AW$2635,14,FALSE),0) -> 0 | Q120: =IFERROR(VLOOKUP($A120,FILTRO!$A$5:$AW$2635,15,FALSE),0) -> 0 | R120: =IFERROR(VLOOKUP($A120,FILTRO!$A$5:$AW$2635,16,FALSE),0) -> 0 | S120: =IFERROR(VLOOKUP($A120,FILTRO!$A$5:$AW$2635,17,FALSE),0) -> 0 | T120: =IFERROR(VLOOKUP($A120,FILTRO!$A$5:$AW$2635,18,FALSE),0) -> 0 | U120: =IFERROR(VLOOKUP($A120,FILTRO!$A$5:$AW$2635,19,FALSE),0) -> 4 | V120: =IFERROR(VLOOKUP($A120,FILTRO!$A$5:$AW$2635,20,FALSE),0) -> 1 | W120: =IFERROR(VLOOKUP($A120,FILTRO!$A$5:$AW$2635,21,FALSE),0) -> 1 | X120: =IFERROR(VLOOKUP($A120,FILTRO!$A$5:$AW$2635,22,FALSE),0) -> 0 | Y120: =IFERROR(VLOOKUP($A120,FILTRO!$A$5:$AW$2635,23,FALSE),0) -> 1 | Z120: =IFERROR(VLOOKUP($A120,FILTRO!$A$5:$AW$2635,24,FALSE),0) -> 1 | AA120: =IFERROR(VLOOKUP($A120,FILTRO!$A$5:$AW$2635,25,FALSE),0) -> 0 | AB120: =IFERROR(VLOOKUP($A120,FILTRO!$A$5:$AW$2635,26,FALSE),0) -> 0
A121: 03051100 | C121: DISCAPACIDAD LEVE | D121: 336 | E121: =SUM(G121+I121+K121+M121+O121+Q121+S121+U121+W121+Y121+AA121) -> 175 | F121: 161 | G121: =IFERROR(VLOOKUP($A121,FILTRO!$A$5:$AW$2635,5,FALSE),0) -> 2 | H121: =IFERROR(VLOOKUP($A121,FILTRO!$A$5:$AW$2635,6,FALSE),0) -> 1 | I121: =IFERROR(VLOOKUP($A121,FILTRO!$A$5:$AW$2635,7,FALSE),0) -> 0 | J121: =IFERROR(VLOOKUP($A121,FILTRO!$A$5:$AW$2635,8,FALSE),0) -> 0 | K121: =IFERROR(VLOOKUP($A121,FILTRO!$A$5:$AW$2635,9,FALSE),0) -> 2 | L121: =IFERROR(VLOOKUP($A121,FILTRO!$A$5:$AW$2635,10,FALSE),0) -> 1 | M121: =IFERROR(VLOOKUP($A121,FILTRO!$A$5:$AW$2635,11,FALSE),0) -> 6 | N121: =IFERROR(VLOOKUP($A121,FILTRO!$A$5:$AW$2635,12,FALSE),0) -> 2 | O121: =IFERROR(VLOOKUP($A121,FILTRO!$A$5:$AW$2635,13,FALSE),0) -> 6 | P121: =IFERROR(VLOOKUP($A121,FILTRO!$A$5:$AW$2635,14,FALSE),0) -> 3 | Q121: =IFERROR(VLOOKUP($A121,FILTRO!$A$5:$AW$2635,15,FALSE),0) -> 1 | R121: =IFERROR(VLOOKUP($A121,FILTRO!$A$5:$AW$2635,16,FALSE),0) -> 2 | S121: =IFERROR(VLOOKUP($A121,FILTRO!$A$5:$AW$2635,17,FALSE),0) -> 2 | T121: =IFERROR(VLOOKUP($A121,FILTRO!$A$5:$AW$2635,18,FALSE),0) -> 5 | U121: =IFERROR(VLOOKUP($A121,FILTRO!$A$5:$AW$2635,19,FALSE),0) -> 109 | V121: =IFERROR(VLOOKUP($A121,FILTRO!$A$5:$AW$2635,20,FALSE),0) -> 122 | W121: =IFERROR(VLOOKUP($A121,FILTRO!$A$5:$AW$2635,21,FALSE),0) -> 22 | X121: =IFERROR(VLOOKUP($A121,FILTRO!$A$5:$AW$2635,22,FALSE),0) -> 14 | Y121: =IFERROR(VLOOKUP($A121,FILTRO!$A$5:$AW$2635,23,FALSE),0) -> 18 | Z121: =IFERROR(VLOOKUP($A121,FILTRO!$A$5:$AW$2635,24,FALSE),0) -> 9 | AA121: =IFERROR(VLOOKUP($A121,FILTRO!$A$5:$AW$2635,25,FALSE),0) -> 7 | AB121: =IFERROR(VLOOKUP($A121,FILTRO!$A$5:$AW$2635,26,FALSE),0) -> 2
A122: 03051200 | C122: DISCAPACIDAD MODERADA | D122: 397 | E122: 177 | F122: 220 | G122: =IFERROR(VLOOKUP($A122,FILTRO!$A$5:$AW$2635,5,FALSE),0) -> 0 | H122: =IFERROR(VLOOKUP($A122,FILTRO!$A$5:$AW$2635,6,FALSE),0) -> 1 | I122: =IFERROR(VLOOKUP($A122,FILTRO!$A$5:$AW$2635,7,FALSE),0) -> 1 | J122: =IFERROR(VLOOKUP($A122,FILTRO!$A$5:$AW$2635,8,FALSE),0) -> 2 | K122: =IFERROR(VLOOKUP($A122,FILTRO!$A$5:$AW$2635,9,FALSE),0) -> 0 | L122: =IFERROR(VLOOKUP($A122,FILTRO!$A$5:$AW$2635,10,FALSE),0) -> 2 | M122: =IFERROR(VLOOKUP($A122,FILTRO!$A$5:$AW$2635,11,FALSE),0) -> 3 | N122: =IFERROR(VLOOKUP($A122,FILTRO!$A$5:$AW$2635,12,FALSE),0) -> 3 | O122: =IFERROR(VLOOKUP($A122,FILTRO!$A$5:$AW$2635,13,FALSE),0) -> 2 | P122: =IFERROR(VLOOKUP($A122,FILTRO!$A$5:$AW$2635,14,FALSE),0) -> 0 | Q122: =IFERROR(VLOOKUP($A122,FILTRO!$A$5:$AW$2635,15,FALSE),0) -> 3 | R122: =IFERROR(VLOOKUP($A122,FILTRO!$A$5:$AW$2635,16,FALSE),0) -> 2 | S122: =IFERROR(VLOOKUP($A122,FILTRO!$A$5:$AW$2635,17,FALSE),0) -> 6 | T122: =IFERROR(VLOOKUP($A122,FILTRO!$A$5:$AW$2635,18,FALSE),0) -> 4 | U122: =IFERROR(VLOOKUP($A122,FILTRO!$A$5:$AW$2635,19,FALSE),0) -> 116 | V122: =IFERROR(VLOOKUP($A122,FILTRO!$A$5:$AW$2635,20,FALSE),0) -> 133 | W122: =IFERROR(VLOOKUP($A122,FILTRO!$A$5:$AW$2635,21,FALSE),0) -> 17 | X122: =IFERROR(VLOOKUP($A122,FILTRO!$A$5:$AW$2635,22,FALSE),0) -> 36 | Y122: =IFERROR(VLOOKUP($A122,FILTRO!$A$5:$AW$2635,23,FALSE),0) -> 20 | Z122: =IFERROR(VLOOKUP($A122,FILTRO!$A$5:$AW$2635,24,FALSE),0) -> 26 | AA122: =IFERROR(VLOOKUP($A122,FILTRO!$A$5:$AW$2635,25,FALSE),0) -> 9 | AB122: =IFERROR(VLOOKUP($A122,FILTRO!$A$5:$AW$2635,26,FALSE),0) -> 11
A123: 03051300 | C123: DISCAPACIDAD SEVERA | D123: 289 | E123: 141 | F123: 148 | G123: =IFERROR(VLOOKUP($A123,FILTRO!$A$5:$AW$2635,5,FALSE),0) -> 0 | H123: =IFERROR(VLOOKUP($A123,FILTRO!$A$5:$AW$2635,6,FALSE),0) -> 0 | I123: =IFERROR(VLOOKUP($A123,FILTRO!$A$5:$AW$2635,7,FALSE),0) -> 3 | J123: =IFERROR(VLOOKUP($A123,FILTRO!$A$5:$AW$2635,8,FALSE),0) -> 2 | K123: =IFERROR(VLOOKUP($A123,FILTRO!$A$5:$AW$2635,9,FALSE),0) -> 4 | L123: =IFERROR(VLOOKUP($A123,FILTRO!$A$5:$AW$2635,10,FALSE),0) -> 1 | M123: =IFERROR(VLOOKUP($A123,FILTRO!$A$5:$AW$2635,11,FALSE),0) -> 11 | N123: =IFERROR(VLOOKUP($A123,FILTRO!$A$5:$AW$2635,12,FALSE),0) -> 4 | O123: =IFERROR(VLOOKUP($A123,FILTRO!$A$5:$AW$2635,13,FALSE),0) -> 7 | P123: =IFERROR(VLOOKUP($A123,FILTRO!$A$5:$AW$2635,14,FALSE),0) -> 1 | Q123: =IFERROR(VLOOKUP($A123,FILTRO!$A$5:$AW$2635,15,FALSE),0) -> 2 | R123: =IFERROR(VLOOKUP($A123,FILTRO!$A$5:$AW$2635,16,FALSE),0) -> 0 | S123: =IFERROR(VLOOKUP($A123,FILTRO!$A$5:$AW$2635,17,FALSE),0) -> 1 | T123: =IFERROR(VLOOKUP($A123,FILTRO!$A$5:$AW$2635,18,FALSE),0) -> 3 | U123: =IFERROR(VLOOKUP($A123,FILTRO!$A$5:$AW$2635,19,FALSE),0) -> 62 | V123: =IFERROR(VLOOKUP($A123,FILTRO!$A$5:$AW$2635,20,FALSE),0) -> 74 | W123: =IFERROR(VLOOKUP($A123,FILTRO!$A$5:$AW$2635,21,FALSE),0) -> 8 | X123: =IFERROR(VLOOKUP($A123,FILTRO!$A$5:$AW$2635,22,FALSE),0) -> 11 | Y123: =IFERROR(VLOOKUP($A123,FILTRO!$A$5:$AW$2635,23,FALSE),0) -> 29 | Z123: =IFERROR(VLOOKUP($A123,FILTRO!$A$5:$AW$2635,24,FALSE),0) -> 23 | AA123: =IFERROR(VLOOKUP($A123,FILTRO!$A$5:$AW$2635,25,FALSE),0) -> 14 | AB123: =IFERROR(VLOOKUP($A123,FILTRO!$A$5:$AW$2635,26,FALSE),0) -> 29
A124: 03051400 | C124: DISCAPACIDAD PROFUNDA | D124: 21 | E124: 10 | F124: 11 | G124: =IFERROR(VLOOKUP($A124,FILTRO!$A$5:$AW$2635,5,FALSE),0) -> 0 | H124: =IFERROR(VLOOKUP($A124,FILTRO!$A$5:$AW$2635,6,FALSE),0) -> 0 | I124: =IFERROR(VLOOKUP($A124,FILTRO!$A$5:$AW$2635,7,FALSE),0) -> 0 | J124: =IFERROR(VLOOKUP($A124,FILTRO!$A$5:$AW$2635,8,FALSE),0) -> 0 | K124: =IFERROR(VLOOKUP($A124,FILTRO!$A$5:$AW$2635,9,FALSE),0) -> 1 | L124: =IFERROR(VLOOKUP($A124,FILTRO!$A$5:$AW$2635,10,FALSE),0) -> 1 | M124: =IFERROR(VLOOKUP($A124,FILTRO!$A$5:$AW$2635,11,FALSE),0) -> 0 | N124: =IFERROR(VLOOKUP($A124,FILTRO!$A$5:$AW$2635,12,FALSE),0) -> 0 | O124: =IFERROR(VLOOKUP($A124,FILTRO!$A$5:$AW$2635,13,FALSE),0) -> 0 | P124: =IFERROR(VLOOKUP($A124,FILTRO!$A$5:$AW$2635,14,FALSE),0) -> 0 | Q124: =IFERROR(VLOOKUP($A124,FILTRO!$A$5:$AW$2635,15,FALSE),0) -> 0 | R124: =IFERROR(VLOOKUP($A124,FILTRO!$A$5:$AW$2635,16,FALSE),0) -> 0 | S124: =IFERROR(VLOOKUP($A124,FILTRO!$A$5:$AW$2635,17,FALSE),0) -> 0 | T124: =IFERROR(VLOOKUP($A124,FILTRO!$A$5:$AW$2635,18,FALSE),0) -> 0 | U124: =IFERROR(VLOOKUP($A124,FILTRO!$A$5:$AW$2635,19,FALSE),0) -> 1 | V124: =IFERROR(VLOOKUP($A124,FILTRO!$A$5:$AW$2635,20,FALSE),0) -> 1 | W124: =IFERROR(VLOOKUP($A124,FILTRO!$A$5:$AW$2635,21,FALSE),0) -> 0 | X124: =IFERROR(VLOOKUP($A124,FILTRO!$A$5:$AW$2635,22,FALSE),0) -> 1 | Y124: =IFERROR(VLOOKUP($A124,FILTRO!$A$5:$AW$2635,23,FALSE),0) -> 2 | Z124: =IFERROR(VLOOKUP($A124,FILTRO!$A$5:$AW$2635,24,FALSE),0) -> 3 | AA124: =IFERROR(VLOOKUP($A124,FILTRO!$A$5:$AW$2635,25,FALSE),0) -> 6 | AB124: =IFERROR(VLOOKUP($A124,FILTRO!$A$5:$AW$2635,26,FALSE),0) -> 5
A125: 03051500 | B125: ORIGEN SENSORIAL VISUAL | C125: SIN DISCAPACIDAD | D125: 3 | E125: 2 | F125: 1 | G125: =IFERROR(VLOOKUP($A125,FILTRO!$A$5:$AW$2635,5,FALSE),0) -> 0 | H125: =IFERROR(VLOOKUP($A125,FILTRO!$A$5:$AW$2635,6,FALSE),0) -> 0 | I125: =IFERROR(VLOOKUP($A125,FILTRO!$A$5:$AW$2635,7,FALSE),0) -> 0 | J125: =IFERROR(VLOOKUP($A125,FILTRO!$A$5:$AW$2635,8,FALSE),0) -> 0 | K125: =IFERROR(VLOOKUP($A125,FILTRO!$A$5:$AW$2635,9,FALSE),0) -> 0 | L125: =IFERROR(VLOOKUP($A125,FILTRO!$A$5:$AW$2635,10,FALSE),0) -> 0 | M125: =IFERROR(VLOOKUP($A125,FILTRO!$A$5:$AW$2635,11,FALSE),0) -> 0 | N125: =IFERROR(VLOOKUP($A125,FILTRO!$A$5:$AW$2635,12,FALSE),0) -> 0 | O125: =IFERROR(VLOOKUP($A125,FILTRO!$A$5:$AW$2635,13,FALSE),0) -> 0 | P125: =IFERROR(VLOOKUP($A125,FILTRO!$A$5:$AW$2635,14,FALSE),0) -> 0 | Q125: =IFERROR(VLOOKUP($A125,FILTRO!$A$5:$AW$2635,15,FALSE),0) -> 0 | R125: =IFERROR(VLOOKUP($A125,FILTRO!$A$5:$AW$2635,16,FALSE),0) -> 0 | S125: =IFERROR(VLOOKUP($A125,FILTRO!$A$5:$AW$2635,17,FALSE),0) -> 0 | T125: =IFERROR(VLOOKUP($A125,FILTRO!$A$5:$AW$2635,18,FALSE),0) -> 0 | U125: =IFERROR(VLOOKUP($A125,FILTRO!$A$5:$AW$2635,19,FALSE),0) -> 2 | V125: =IFERROR(VLOOKUP($A125,FILTRO!$A$5:$AW$2635,20,FALSE),0) -> 1 | W125: =IFERROR(VLOOKUP($A125,FILTRO!$A$5:$AW$2635,21,FALSE),0) -> 0 | X125: =IFERROR(VLOOKUP($A125,FILTRO!$A$5:$AW$2635,22,FALSE),0) -> 0 | Y125: =IFERROR(VLOOKUP($A125,FILTRO!$A$5:$AW$2635,23,FALSE),0) -> 0 | Z125: =IFERROR(VLOOKUP($A125,FILTRO!$A$5:$AW$2635,24,FALSE),0) -> 0 | AA125: =IFERROR(VLOOKUP($A125,FILTRO!$A$5:$AW$2635,25,FALSE),0) -> 0 | AB125: =IFERROR(VLOOKUP($A125,FILTRO!$A$5:$AW$2635,26,FALSE),0) -> 0
A126: 03051600 | C126: DISCAPACIDAD LEVE | D126: 46 | E126: 31 | F126: 15 | G126: =IFERROR(VLOOKUP($A126,FILTRO!$A$5:$AW$2635,5,FALSE),0) -> 0 | H126: =IFERROR(VLOOKUP($A126,FILTRO!$A$5:$AW$2635,6,FALSE),0) -> 0 | I126: =IFERROR(VLOOKUP($A126,FILTRO!$A$5:$AW$2635,7,FALSE),0) -> 0 | J126: =IFERROR(VLOOKUP($A126,FILTRO!$A$5:$AW$2635,8,FALSE),0) -> 0 | K126: =IFERROR(VLOOKUP($A126,FILTRO!$A$5:$AW$2635,9,FALSE),0) -> 0 | L126: =IFERROR(VLOOKUP($A126,FILTRO!$A$5:$AW$2635,10,FALSE),0) -> 0 | M126: =IFERROR(VLOOKUP($A126,FILTRO!$A$5:$AW$2635,11,FALSE),0) -> 1 | N126: =IFERROR(VLOOKUP($A126,FILTRO!$A$5:$AW$2635,12,FALSE),0) -> 0 | O126: =IFERROR(VLOOKUP($A126,FILTRO!$A$5:$AW$2635,13,FALSE),0) -> 0 | P126: =IFERROR(VLOOKUP($A126,FILTRO!$A$5:$AW$2635,14,FALSE),0) -> 0 | Q126: =IFERROR(VLOOKUP($A126,FILTRO!$A$5:$AW$2635,15,FALSE),0) -> 2 | R126: =IFERROR(VLOOKUP($A126,FILTRO!$A$5:$AW$2635,16,FALSE),0) -> 1 | S126: =IFERROR(VLOOKUP($A126,FILTRO!$A$5:$AW$2635,17,FALSE),0) -> 0 | T126: =IFERROR(VLOOKUP($A126,FILTRO!$A$5:$AW$2635,18,FALSE),0) -> 0 | U126: =IFERROR(VLOOKUP($A126,FILTRO!$A$5:$AW$2635,19,FALSE),0) -> 22 | V126: =IFERROR(VLOOKUP($A126,FILTRO!$A$5:$AW$2635,20,FALSE),0) -> 13 | W126: =IFERROR(VLOOKUP($A126,FILTRO!$A$5:$AW$2635,21,FALSE),0) -> 6 | X126: =IFERROR(VLOOKUP($A126,FILTRO!$A$5:$AW$2635,22,FALSE),0) -> 1 | Y126: =IFERROR(VLOOKUP($A126,FILTRO!$A$5:$AW$2635,23,FALSE),0) -> 0 | Z126: =IFERROR(VLOOKUP($A126,FILTRO!$A$5:$AW$2635,24,FALSE),0) -> 0 | AA126: =IFERROR(VLOOKUP($A126,FILTRO!$A$5:$AW$2635,25,FALSE),0) -> 0 | AB126: =IFERROR(VLOOKUP($A126,FILTRO!$A$5:$AW$2635,26,FALSE),0) -> 0
